Workbook

Sheet IMP-RESUMEN
B1: EDEMET
B3: INGRESO MÁXIMO PERMITIDO = IMP
B5: En miles de Balboas
B7: INGRESO MÁXIMO PERMITIDO | C7: JUL26/ JUN27 | D7: JUL27 / JUN28 | E7: JUL28 / JUN29 | F7: JUL29/ JUN30
B9: IPSD - Ingreso Máximo Permitido por Distribución | C9: =+IMPD!D15 -> 206160.3744 | D9: =+IMPD!E15 -> 222314.0824 | E9: =+IMPD!F15 -> 225474.9802 | F9: =+IMPD!G15 -> 227333.7346
B10: IMPCO - Ingreso Máximo Permitido por Comercialización | C10: =+IMPCO!D14 -> 59194.59041 | D10: =+IMPCO!E14 -> 60606.85826 | E10: =+IMPCO!F14 -> 62080.86679 | F10: =+IMPCO!G14 -> 63559.42077
B11: ALUMPU - Ingreso Máximo Permitido por Alumbrado Público | C11: =+ALUMPU!D14 -> 6533.209453 | D11: =+ALUMPU!E14 -> 6646.230568 | E11: =+ALUMPU!F14 -> 6781.7164 | F11: =+ALUMPU!G14 -> 6909.261096
B12: IPPD - Ingreso Máximo Permitido por Pérdidas en Distribución | C12: =+IMPD!D20 -> 64021.71372 | D12: =+IMPD!E20 -> 64971.80046 | E12: =+IMPD!F20 -> 65976.55149 | F12: =+IMPD!G20 -> 66966.67637
B13: INVNE - Descuento por Inversiones no Ejecutadas en periodo anterior | C13: -30670.04116
B15: IMP - Ingreso Máximo Permitido | C15: =+C9+C12+C10+C11+C13 -> 305239.8469 | D15: =+D9+D12+D10+D11+D13 -> 354538.9717 | E15: =+E9+E12+E10+E11+E13 -> 360314.1149 | F15: =+F9+F12+F10+F11+F13 -> 364769.0929
B17: Factor de Descuento | C17: =1/(1+RETORNO!D40) -> 0.9029888932 | D17: =1/(1+RETORNO!D40)*1/(1+RETORNO!D40) -> 0.8153889413 | E17: =1/(1+RETORNO!D40)*1/(1+RETORNO!D40)*1/(1+RETORNO!D40) -> 0.7362871577 | F17: =1/(1+RETORNO!D40)*1/(1+RETORNO!D40)*1/(1+RETORNO!D40)*1/(1+RETORNO!D40) -> 0.6648591256
B18: Factor de Descuento Aplicado | C18: =+(1+C17)/2 -> 0.9514944466 | D18: =+(C17+D17)/2 -> 0.8591889173 | E18: =+(D17+E17)/2 -> 0.7758380495 | F18: =+(E17+F17)/2 -> 0.7005731416
B20: VPN DEL INGRESO MÁXIMO PERMITIDO | C20: =C7 -> JUL26/ JUN27 | D20: =D7 -> JUL27 / JUN28 | E20: JUL28 / JUN29 | F20: JUL29/ JUN30
B22: IPSD | C22: =+(C9+$C$13/SUM($C$9:$C$12)*C9)*C$18 -> 178250.1447 | D22: =+D9*D$18 -> 191009.7958 | E22: 174932.0688 | F22: 159263.9087
B23: IMPCO | C23: =+(C10+$C$13/SUM($C$9:$C$12)*C10)*C$18 -> 51180.75835 | D23: 52072.74092 | E23: 48164.6986 | F23: 44528.02309
B24: ALUMPU | C24: =+(C11+$C$13/SUM($C$9:$C$12)*C11)*C$18 -> 5648.736007 | D24: 5710.367645 | E24: 5261.513624 | F24: 4840.442752
B25: IPPD | C25: =+(C12+$C$13/SUM($C$9:$C$12)*C12)*C$18 -> 55354.38013 | D25: 55823.05089 | E25: 51187.11902 | F25: 46915.05485
B27: IMP | C27: =SUM(C22:C26) -> 290434.0192 | D27: =SUM(D22:D26) -> 304615.9552 | E27: =SUM(E22:E26) -> 279545.4001 | F27: =SUM(F22:F26) -> 255547.4294
B29: Energía Facturada (MWh) sin incluir AP | C29: =C18*DEMANDA!E12 -> 4594092.551 | D29: =D18*DEMANDA!F12 -> 4212230.596 | E29: =E18*DEMANDA!G12 -> 3864576.905 | F29: =F18*DEMANDA!H12 -> 3543940.621
B32: VALOR PRESENTE NETO - INGRESO MÁXIMO PERMITIDO
B33: DETALLE | C33: UNIDADES | D33: JULIO/26-JUNIO/30
B35: VP-IPSD - DISTRIBUCIÓN | C35: Miles de B/. | D35: =+C22+D22+E22+F22 -> 703455.918
B36: VP-IMPCO - COMERCIALIZACIÓN | C36: Miles de B/. | D36: =+C23+D23+E23+F23 -> 195946.221
B37: VP-ALUMPU - ALUMBRADO PÚBLICO | C37: Miles de B/. | D37: =+C24+D24+E24+F24 -> 21461.06003
B38: SUB-TOTAL | C38: Miles de B/. | D38: =SUM(D35:D37) -> 920863.199
B39: VP-IPPD - PÉRDIDAS DE DISTRIBUCIÓN | C39: Miles de B/. | D39: =+C25+D25+E25+F25 -> 209279.6049
B40: IMP TOTAL | C40: Miles de B/. | D40: =SUM(D35:D37)+D39 -> 1130142.804
B41: ENERGIA FACTURADA (sin AP) | C41: MWh | D41: =+C29+D29+E29+F29 -> 16214840.67
B42: IMP | C42: B/./MWh | D42: =+D40/D41*1000 -> 69.69805172
B43: IMP S/Pérdidas | C43: B/./MWh | D43: =D42-(D39*1000/D41) -> 56.79138128
B45: (1) Las pérdidas estándar de energía se han fijado conforme a las ecuaciones de eficiencia, no obstante, el monto (en B/.) es un valor de referencia.
B46: El mismo se revisa semestralmente, según varía el costo real de la energía.

Sheet IMPD
B2: EDEMET
B4: INGRESO MÁXIMO PERMITIDO POR DISTRIBUCIÓN = IMPD
B5: En miles de Balboas
B7: DISTRIBUCIÓN | D7: ='IMP-RESUMEN'!C7:C8 -> JUL26/ JUN27 | E7: ='IMP-RESUMEN'!D7:D8 -> JUL27 / JUN28 | F7: ='IMP-RESUMEN'!E7:E8 -> JUL28 / JUN29 | G7: ='IMP-RESUMEN'!F7:F8 -> JUL29/ JUN30
B10: Rentabilidad sobre Activos | C10: BCDN * RR | D10: =+ACTIVOS!H14*RETORNO!$D$40 -> 91250.71444 | E10: =+ACTIVOS!I14*RETORNO!$D$40 -> 102792.8962 | F10: =+ACTIVOS!J14*RETORNO!$D$40 -> 101168.6361 | G10: =+ACTIVOS!K14*RETORNO!$D$40 -> 100983.3388
B11: Depreciación | C11: Depo+INVi * DEP% | D11: ='BC y Dep'!D80/1000+((ACTIVOS!H9-ACTIVOS!G9)/2)*'PERDIDAS y OTROS'!E$11+((ACTIVOS!G9-ACTIVOS!F9))*'BC y Dep'!C84 -> 44230.17742 | E11: ='BC y Dep'!E80/1000+(ACTIVOS!H9-ACTIVOS!G9)*'PERDIDAS y OTROS'!E$11+((ACTIVOS!I9-ACTIVOS!H9)/2)*'PERDIDAS y OTROS'!F$11+((ACTIVOS!G9-ACTIVOS!F9))*'BC y Dep'!C84 -> 46960.09558 | F11: ='BC y Dep'!F80/1000+(ACTIVOS!H9-ACTIVOS!G9)*'PERDIDAS y OTROS'!E$11+(ACTIVOS!I9-ACTIVOS!H9)*'PERDIDAS y OTROS'!F$11+((ACTIVOS!J9-ACTIVOS!I9)/2)*'PERDIDAS y OTROS'!G$11+((ACTIVOS!G9-ACTIVOS!F9))*'BC y Dep'!C84 -> 49837.89514 | G11: ='BC y Dep'!G80/1000+(ACTIVOS!H9-ACTIVOS!G9)*'PERDIDAS y OTROS'!E$11+(ACTIVOS!I9-ACTIVOS!H9)*'PERDIDAS y OTROS'!F$11+(ACTIVOS!J9-ACTIVOS!I9)*'PERDIDAS y OTROS'!G$11+((ACTIVOS!K9-ACTIVOS!J9))/2*'PERDIDAS y OTROS'!H$11+((ACTIVOS!G9-ACTIVOS!F9))*'BC y Dep'!C84 -> 49902.33436
B12: Operación y Mantenimiento | C12: OM | D12: ='Costos y Pérdidas Eficientes'!D84/1000 -> 51636.96312 | E12: ='Costos y Pérdidas Eficientes'!E84/1000 -> 53003.20397 | F12: ='Costos y Pérdidas Eficientes'!F84/1000 -> 54385.11358 | G12: ='Costos y Pérdidas Eficientes'!G84/1000 -> 55821.72429
B13: Administración | C13: ADM | D13: ='Costos y Pérdidas Eficientes'!D86/1000 -> 19042.51946 | E13: ='Costos y Pérdidas Eficientes'!E86/1000 -> 19557.88667 | F13: ='Costos y Pérdidas Eficientes'!F86/1000 -> 20083.33539 | G13: ='Costos y Pérdidas Eficientes'!G86/1000 -> 20626.33717
B15: IPSD | D15: =+D13+D12+D11+D10 -> 206160.3744 | E15: =+E13+E12+E11+E10 -> 222314.0824 | F15: =+F13+F12+F11+F10 -> 225474.9802 | G15: =+G13+G12+G11+G10 -> 227333.7346
B17: Pérdidas Ecuaciones de Eficiencia | C17: (PDEcEf%) * MWhD * CMM | D17: =+('PERDIDAS y OTROS'!E9)*'PERDIDAS y OTROS'!E8*DEMANDA!E7/1000 -> 53269.35905 | E17: =+('PERDIDAS y OTROS'!F9)*'PERDIDAS y OTROS'!F8*DEMANDA!F7/1000 -> 54057.1455 | F17: =+('PERDIDAS y OTROS'!G9)*'PERDIDAS y OTROS'!G8*DEMANDA!G7/1000 -> 54890.21434 | G17: =+('PERDIDAS y OTROS'!H9)*'PERDIDAS y OTROS'!H8*DEMANDA!H7/1000 -> 55711.11286
B19: Pérdidas No Técnicas en Zonas Rojas (PNT) | C19: (PDNT%) * MWhD * CMM | D19: =+('PERDIDAS y OTROS'!E10)*'PERDIDAS y OTROS'!E8*DEMANDA!E7/1000 -> 10752.35467 | E19: =+('PERDIDAS y OTROS'!F10)*'PERDIDAS y OTROS'!F8*DEMANDA!F7/1000 -> 10914.65496 | F19: =+('PERDIDAS y OTROS'!G10)*'PERDIDAS y OTROS'!G8*DEMANDA!G7/1000 -> 11086.33714 | G19: =+('PERDIDAS y OTROS'!H10)*'PERDIDAS y OTROS'!H8*DEMANDA!H7/1000 -> 11255.56352
B20: IPPD | D20: =+D17+D18+D19 -> 64021.71372 | E20: =+E17+E18+E19 -> 64971.80046 | F20: 65976.55149 | G20: 66966.67637
B22: IMPD | D22: =+D15+D20 -> 270182.0882 | E22: =+E15+E20 -> 287285.8829 | F22: =+F15+F20 -> 291451.5317 | G22: =+G15+G20 -> 294300.411

Sheet IMPCO
B2: EDEMET
B4: INGRESO MÁXIMO PERMITIDO POR COMERCIALIZACIÓN = IMPCO
B5: En miles de Balboas
B7: COMERCIALIZACION | D7: =IMPD!D7 -> JUL26/ JUN27 | E7: =IMPD!E7 -> JUL27 / JUN28 | F7: =IMPD!F7 -> JUL28 / JUN29 | G7: =IMPD!G7 -> JUL29/ JUN30
B10: Rentabilidad sobre Activos | C10: BCNC * RR | D10: =+ACTIVOS!H15*RETORNO!$D$40 -> 7176.306352 | E10: =+ACTIVOS!I15*RETORNO!$D$40 -> 7024.54663 | F10: =+ACTIVOS!J15*RETORNO!$D$40 -> 6877.768582 | G10: =+ACTIVOS!K15*RETORNO!$D$40 -> 6742.301353
B11: Depreciación | C11: Depo+INVi * DEP% | D11: ='BC y Dep'!D82/1000+((ACTIVOS!H10-ACTIVOS!G10)/2)*'PERDIDAS y OTROS'!E$12+((ACTIVOS!G10-ACTIVOS!F10))*'BC y Dep'!C86 -> 4762.855445 | E11: ='BC y Dep'!E82/1000+(ACTIVOS!H10-ACTIVOS!G10)*'PERDIDAS y OTROS'!E$12+((ACTIVOS!I10-ACTIVOS!H10)/2)*'PERDIDAS y OTROS'!F$12+((ACTIVOS!G10-ACTIVOS!F10))*'BC y Dep'!C86 -> 4804.284328 | F11: ='BC y Dep'!F82/1000+(ACTIVOS!H10-ACTIVOS!G10)*'PERDIDAS y OTROS'!E$12+(ACTIVOS!I10-ACTIVOS!H10)*'PERDIDAS y OTROS'!F$12+((ACTIVOS!J10-ACTIVOS!I10)/2)*'PERDIDAS y OTROS'!G$12+((ACTIVOS!G10-ACTIVOS!F10))*'BC y Dep'!C86 -> 4854.591232 | G11: ='BC y Dep'!G82/1000+(ACTIVOS!H10-ACTIVOS!G10)*'PERDIDAS y OTROS'!E$12+(ACTIVOS!I10-ACTIVOS!H10)*'PERDIDAS y OTROS'!F$12+(ACTIVOS!J10-ACTIVOS!I10)*'PERDIDAS y OTROS'!G$12+((ACTIVOS!K10-ACTIVOS!J10)/2)*'PERDIDAS y OTROS'!H$12+((ACTIVOS!G10-ACTIVOS!F10))*'BC y Dep'!C86 -> 4848.746968
B12: Comercialización | C12: COM | D12: ='Costos y Pérdidas Eficientes'!D85/1000 -> 47255.42862 | E12: ='Costos y Pérdidas Eficientes'!E85/1000 -> 48778.0273 | F12: ='Costos y Pérdidas Eficientes'!F85/1000 -> 50348.50698 | G12: ='Costos y Pérdidas Eficientes'!G85/1000 -> 51968.37245
B14: IMPCO | D14: =+D10+D11+D12 -> 59194.59041 | E14: =+E10+E11+E12 -> 60606.85826 | F14: =+F10+F11+F12 -> 62080.86679 | G14: =+G10+G11+G12 -> 63559.42077

Sheet ALUMPU
B2: EDEMET
B4: INGRESO MÁXIMO PERMITIDO POR ALUMBRADO PÚBLICO = ALUMPU
B5: En miles de Balboas
B7: ALUMBRADO PÚBLICO | D7: =IMPCO!D7 -> JUL26/ JUN27 | E7: =IMPCO!E7 -> JUL27 / JUN28 | F7: =IMPCO!F7 -> JUL28 / JUN29 | G7: =IMPCO!G7 -> JUL29/ JUN30
B10: Rentabilidad sobre Activos | C10: ACTNalum * RR | D10: =+ACTIVOS!H16*RETORNO!$D$40 -> 2945.585884 | E10: =+ACTIVOS!I16*RETORNO!$D$40 -> 2965.334108 | F10: =+ACTIVOS!J16*RETORNO!$D$40 -> 2976.448255 | G10: =+ACTIVOS!K16*RETORNO!$D$40 -> 2978.844918
B11: Depreciación | C11: Depo+INVi * DEP% | D11: ='BC y Dep'!D81/1000+((ACTIVOS!H11-ACTIVOS!G11)/2)*'PERDIDAS y OTROS'!E$13+((ACTIVOS!G11-ACTIVOS!F11))*'BC y Dep'!C85 -> 2166.913553 | E11: ='BC y Dep'!E81/1000+(ACTIVOS!H11-ACTIVOS!G11)*'PERDIDAS y OTROS'!E$13+((ACTIVOS!I11-ACTIVOS!H11)/2)*'PERDIDAS y OTROS'!F$13+((ACTIVOS!G11-ACTIVOS!F11))*'BC y Dep'!C85 -> 2216.181596 | F11: ='BC y Dep'!F81/1000+(ACTIVOS!H11-ACTIVOS!G11)*'PERDIDAS y OTROS'!E$13+(ACTIVOS!I11-ACTIVOS!H11)*'PERDIDAS y OTROS'!F$13+((ACTIVOS!J11-ACTIVOS!I11)/2)*'PERDIDAS y OTROS'!G$13+((ACTIVOS!G11-ACTIVOS!F11))*'BC y Dep'!C85 -> 2296.548435 | G11: ='BC y Dep'!G81/1000+(ACTIVOS!H11-ACTIVOS!G11)*'PERDIDAS y OTROS'!E$13+(ACTIVOS!I11-ACTIVOS!H11)*'PERDIDAS y OTROS'!F$13+(ACTIVOS!J11-ACTIVOS!I11)*'PERDIDAS y OTROS'!G$13+((ACTIVOS!K11-ACTIVOS!J11)/2)*'PERDIDAS y OTROS'!H$13+((ACTIVOS!G11-ACTIVOS!F11))*'BC y Dep'!C85 -> 2377.69162
B12: Operación y Mantenimiento | C12: OMalum | D12: =$D$25*(D24+E24)/2/1000 -> 1420.710015 | E12: =$D$25*(E24+F24)/2/1000 -> 1464.714863 | F12: =$D$25*(F24+G24)/2/1000 -> 1508.71971 | G12: =$D$25*(G24+H24)/2/1000 -> 1552.724558
B14: ALUMPU | D14: =+D10+D11+D12 -> 6533.209453 | E14: =+E10+E11+E12 -> 6646.230568 | F14: 6781.7164 | G14: 6909.261096
D23: 2026-06-01 | E23: 2027-06-01 | F23: 2028-06-01 | G23: 2029-06-01 | H23: 2030-06-01
B24: Cantidad de luminarias al 30/6 | D24: 200756 | E24: =+D24+INVERSIONES!D26 -> 207072 | F24: =+E24+INVERSIONES!E26 -> 213388 | G24: =+F24+INVERSIONES!F26 -> 219704 | H24: =+G24+INVERSIONES!G26 -> 226020
B25: Costo O&M por luminaria [B/. /año] | D25: =D37 -> 6.967201935
E27: =+(E24+D24)/2 -> 203914 | F27: =+(F24+E24)/2 -> 210230 | G27: =+(G24+F24)/2 -> 216546 | H27: 222862
B29: Detalle | C29: Unidad | D29: 2022 | E29: =D29+1 -> 2023 | F29: =E29+1 -> 2024 | G29: 2025 | H29: PROMEDIO
B30: Costo AP | C30: B/. | D30: 1305113.966 | E30: 1204838.179 | F30: 1618437.877 | G30: 1256807.901 | H30: =AVERAGE(D30:G30) -> 1346299.481
B31: Luminarias | C31: Cant. | D31: 182261.5833 | E31: 185832.5833 | F31: 189253.6667 | G31: 191732 | H31: =AVERAGE(D31:G31) -> 187269.9583
B33: Costo Mant./lum Cont. | D33: =D30/D31*C48 -> 7.221844044 | E33: =E30/E31*D48 -> 6.509318278 | F33: =F30/F31*E48 -> 8.547949227 | G33: =G30/G31 -> 6.555024206 | H33: =AVERAGE(D33:G33) -> 7.208533939
B35: Costo Mant./lum RT-1 | D35: 6.967201935
B37: Costo Mant./lum | D37: =MIN(H33,D35) -> 6.967201935
B40: Actualización
B41: Detalle | C41: Jul-Dic/2022 | D41: Ene-Jun/2023 | E41: Jul-Dic/2023 | F41: Ene-Jun/2024 | G41: Jul-Dic/2024 | H41: Ene-Jun/2025 | I41: Jul-Dic/2025 | J41: Acumulado
B42: FAC de Comercialización | C42: 1.006666795 | D42: 1.0388843 | E42: 0.9802820184 | F42: 1.014155551 | G42: 1.002452871 | H42: 1.005279842 | I42: 0.9930898305 | J42: =PRODUCT(C42:I42) -> 1.040514192
B43: FAC de redes de Distribución, conexión | C43: 1.002837111 | D43: 1.016547543 | E43: 0.9916088462 | F43: 1.006740505 | G43: 1.001167993 | H43: 1.002514124 | I43: 0.996709557 | J43: =PRODUCT(C43:I43) -> 1.018080469
B44: FAC por Servicio de Alumbrado Público | C44: 1.00159356 | D44: 1.00929449 | E44: 0.9952868233 | F44: 1.00377122 | G44: 1.000653476 | H44: 1.001406618 | I44: 0.9981590422 | J44: 1.010151075
C47: 2022 | D47: =C47+1 -> 2023 | E47: =D47+1 -> 2024 | F47: 2025
B48: Actualización | C48: =PRODUCT(D44:$I$44) -> 1.0085439 | D48: =PRODUCT(F44:$I$44) -> 1.003988297 | E48: =PRODUCT(H44:$I$44) -> 0.9995630704 | F48: =I44 -> 0.9981590422
B49: Act Jun 22 - Dic 25 | C49: =C48 -> 1.0085439
B58: IPC0 | C58: 104.1
B59: IPCN | C59: 108.8

Sheet DEMANDA
B3: EDEMET
B5: IMPULSORES DE COSTOS | C5: Unidades | D5: BASE | E5: =ALUMPU!D7 -> JUL26/ JUN27 | F5: =ALUMPU!E7 -> JUL27 / JUN28 | G5: =ALUMPU!F7 -> JUL28 / JUN29 | H5: =ALUMPU!G7 -> JUL29/ JUN30 | I5: CREC.a.a.
B6: Demanda Máxima | C6: MW | D6: =+D7/8760/D15 -> 959.2703799 | E6: =+E7/8760/E15 -> 971.493646 | F6: =+F7/8760/F15 -> 982.2509667 | G6: =+G7/8760/G15 -> 987.8845264 | H6: =+H7/8760/H15 -> 998.7479016 | I6: =(H6/D6)^(1/4)-1 -> 0.01013335357
B7: Energía ingresada al sist. Propio (eficiente) | C7: MWh | D7: =+(D12+D13)/(1-D14) -> 5332121.423 | E7: =+(E12+E13)/(1-E14) -> 5439348.403 | F7: 5521452.078 | G7: 5608301.818 | H7: 5693909.225 | I7: =(H7/D7)^(1/4)-1 -> 0.01654738412
B8: Clientes | C8: Nº clientes | D8: 606429.2797 | E8: 625353.2982 | F8: 644852.725 | G8: 664945.1079 | H8: 685648.4818 | I8: =(H8/D8)^(1/4)-1 -> 0.03117016549
B9: DEM/CLIENTE | C9: KW/CL | D9: =D6/D8*1000 -> 1.581833879 | E9: 1.836935005 | F9: 1.814307922 | G9: 1.784533004 | H9: 1.806068282
B10: ENERGIA-AÑO/CLIENTE | C10: MWh/CL | D10: =(D12+D13)/D8 -> 7.99661734 | E10: =(E12+E13)/E8 -> 7.910834028 | F10: 7.787614332 | G10: 7.671292214 | H10: 7.553407329
B12: Energia facturada sin AP | C12: MWh | D12: 4731129.365 | E12: 4828291.503 | F12: 4902566.259 | G12: 4981164.443 | H12: 5058630.441 | I12: =(H12/D12)^(1/4)-1 -> 0.01687374076
B13: Energía facturada AP | C13: MWh | D13: 118253.5289 | E13: 118774.6483 | F13: 119298.0641 | G13: 119823.7866 | H13: 120351.8258 | I13: =(H13/D13)^(1/4)-1 -> 0.004406797969
B14: Perdidas eficientes | D14: =7.06%*D17 -> 0.09053404669 | E14: =7.06%*E17 -> 0.09050390156 | F14: 0.09048122643 | G14: 0.09045761188 | H14: 0.09043469741
B15: Factor de carga | D15: 0.6345339885 | E15: 0.6391500198 | F15: 0.6416921643 | G15: 0.6480687625 | H15: 0.6508045088
C17: Factor de Ajuste | D17: 1.282351936 | E17: 1.281924951 | F17: 1.281603774 | G17: 1.28126929 | H17: 1.280944723
D19: =D14*1000000000-('Costos y Pérdidas Eficientes'!C98+'PERDIDAS y OTROS'!E10)*1000000000 -> -2.533197403e-07 | E19: =E14*1000000000-('Costos y Pérdidas Eficientes'!D98+'PERDIDAS y OTROS'!E10)*1000000000 -> -1.639127731e-07 | F19: =F14*1000000000-('Costos y Pérdidas Eficientes'!E98+'PERDIDAS y OTROS'!F10)*1000000000 -> 0 | G19: =G14*1000000000-('Costos y Pérdidas Eficientes'!F98+'PERDIDAS y OTROS'!G10)*1000000000 -> -1.788139343e-07 | H19: =H14*1000000000-('Costos y Pérdidas Eficientes'!G98+'PERDIDAS y OTROS'!H10)*1000000000 -> -2.086162567e-07

Sheet Costos y Pérdidas Eficientes
A1: EDEMET
A2: Estimaciones de los costos a partir de parametros estimados y las variables reales, actualizados U$S junio 2024
D3: C | E3: Ln Clientes | F3: Ln DM | G3: Ln DM/Cli | H3: Ln O&M | I3: Ln COM | J3: Ln (O&M + COM) | K3: Ln MWh | L3: Ln MWh/Cli
A4: Activos de Distribución: | C4: Ln AD | D4: 16.938381 | E4: 0 | F4: 0.862667 | G4: 0 | H4: 0 | I4: 0 | J4: 0 | K4: 0 | L4: -0.581895
A5: Activos de Comercialización: | C5: Ln AC | D5: 6.48909 | E5: 0.939715 | F5: 0 | G5: 0 | H5: 0 | I5: 0 | J5: 0 | K5: 0 | L5: 0
A6: Costos de Operación y Mantenimiento de Distribución: | C6: Ln O&M | D6: 6.638115 | E6: 0 | F6: 0.893847 | G6: -0.826253 | H6: 0 | I6: 0 | J6: 0 | K6: 0 | L6: 0
A7: Costos de Comercialización: | C7: Ln COM | D7: 4.17036 | E7: 1.032803 | F7: 0 | G7: 0 | H7: 0 | I7: 0 | J7: 0 | K7: 0 | L7: 0
A8: Costos de Administración: | C8: Ln ADM | D8: -0.061995 | E8: 0 | F8: 0 | G8: 0 | H8: 0 | I8: 0 | J8: 0.931384 | K8: 0 | L8: 0
A9: Ecuación de Pérdidas Estándar o Eficientes: | C9: Ln Perd | D9: -2.274458 | E9: 0 | F9: 0 | G9: 0 | H9: 0 | I9: 0 | J9: 0 | K9: 0.979898 | L9: 0
A31: Tabla de Datos Proyectados | C31: Base
A32: Variable | B32: Unidad | C32: Jul 24 -jun 25 | D32: Jul 25 -jun 26 | E32: Jul 26 -jun 27 | F32: Jul 27 -jun 28 | G32: Jul 28 -jun 29 | H32: Jul 29 -jun 30
A33: Demanda Máxima | B33: MW | D33: =DEMANDA!D6 -> 959.2703799 | E33: =DEMANDA!E6 -> 971.493646 | F33: =DEMANDA!F6 -> 982.2509667 | G33: =DEMANDA!G6 -> 987.8845264 | H33: =DEMANDA!H6 -> 998.7479016
A34: Longitud de red áerea | B34: km
A35: Longitud de red subterranea | B35: km
A36: Venta totales de energía [MWh] | B36: MWh | D36: =DEMANDA!D12+DEMANDA!D13 -> 4849382.894 | E36: =DEMANDA!E12+DEMANDA!E13 -> 4947066.151 | F36: =DEMANDA!F12+DEMANDA!F13 -> 5021864.323 | G36: =DEMANDA!G12+DEMANDA!G13 -> 5100988.229 | H36: =DEMANDA!H12+DEMANDA!H13 -> 5178982.267
A37: Costos OyM (D) | B37: USD | D37: =+C45 -> 72861397.03 | E37: 74798996.04 | F37: 76778071.45 | G37: 78779843.93 | H37: 80860853.97
A38: Costos OyM (C) | B38: USD | D38: 60762696 | E38: 62722026.73 | F38: 64742968.62 | G38: 66827462.86 | H38: 68977506.75
A39: Clientes | B39: Cant. | D39: =DEMANDA!D8 -> 606429.2797 | E39: =DEMANDA!E8 -> 625353.2982 | F39: =DEMANDA!F8 -> 644852.725 | G39: =DEMANDA!G8 -> 664945.1079 | H39: =DEMANDA!H8 -> 685648.4818
D40: =D34+D35 -> 0 | E40: =E34+E35 -> 0 | F40: =F34+F35 -> 0 | G40: =G34+G35 -> 0 | H40: =H34+H35 -> 0
A41: Tabla de Costos sin Ajuste en USD (EEUU) a junio 2024
A42: COSTO | B42: =+C32 -> Jul 24 -jun 25 | C42: =D32 -> Jul 25 -jun 26 | D42: =E32 -> Jul 26 -jun 27 | E42: =F32 -> Jul 27 -jun 28 | F42: =G32 -> Jul 28 -jun 29 | G42: =H32 -> Jul 29 -jun 30
A43: AD | C43: =EXP($D$4+$E$4*LN(D$39)+$F$4*LN(D$33)+$G$4*LN(D$33/D$39)+$H$4*LN(D$37)+$I$4*LN(D$38)+$K$4*LN(D$36)+$L$4*LN(D36/D39)) -> 2530875942 | D43: 2574780569 | E43: 2623210812 | F43: 2659371612 | G43: =EXP($D$4+$E$4*LN(H$39)+$F$4*LN(H$33)+$G$4*LN(H$33/H$39)+$H$4*LN(H$37)+$I$4*LN(H$38)+$K$4*LN(H$36)+$L$4*LN(H36/H39)) -> 2708881706
A44: AC | C44: =EXP($D$5+$E$5*LN(D$39)+$F$5*LN(D$33)+$G$5*LN(D$33/D$39)+$H$5*LN(D$37)+$I$5*LN(D$38)+$K$5*LN(D$36)) -> 178789182.8 | D44: =EXP($D$5+$E$5*LN(E$39)+$F$5*LN(E$33)+$G$5*LN(E$33/E$39)+$H$5*LN(E$37)+$I$5*LN(E$38)+$K$5*LN(E$36)) -> 184027193 | E44: =EXP($D$5+$E$5*LN(F$39)+$F$5*LN(F$33)+$G$5*LN(F$33/F$39)+$H$5*LN(F$37)+$I$5*LN(F$38)+$K$5*LN(F$36)) -> 189414486.2 | F44: =EXP($D$5+$E$5*LN(G$39)+$F$5*LN(G$33)+$G$5*LN(G$33/G$39)+$H$5*LN(G$37)+$I$5*LN(G$38)+$K$5*LN(G$36)) -> 194955339 | G44: =EXP($D$5+$E$5*LN(H$39)+$F$5*LN(H$33)+$G$5*LN(H$33/H$39)+$H$5*LN(H$37)+$I$5*LN(H$38)+$K$5*LN(H$36)) -> 200654137
A45: OMD | C45: =EXP($D$6+$E$6*LN(D$39)+$F$6*LN(D$33)+$G$6*LN(D$33/D$39)+$K$6*LN(D$36)) -> 72861397.03 | D45: =EXP($D$6+$E$6*LN(E$39)+$F$6*LN(E$33)+$G$6*LN(E$33/E$39)+$K$6*LN(E$36)) -> 74798996.04 | E45: =EXP($D$6+$E$6*LN(F$39)+$F$6*LN(F$33)+$G$6*LN(F$33/F$39)+$K$6*LN(F$36)) -> 76778071.45 | F45: =EXP($D$6+$E$6*LN(G$39)+$F$6*LN(G$33)+$G$6*LN(G$33/G$39)+$K$6*LN(G$36)) -> 78779843.93 | G45: =EXP($D$6+$E$6*LN(H$39)+$F$6*LN(H$33)+$G$6*LN(H$33/H$39)+$K$6*LN(H$36)) -> 80860853.97
A46: COM | C46: =EXP($D$7+$E$7*LN(D$39)+$F$7*LN(D$33)+$G$7*LN(D$33/D$39)+$H$7*LN(D$37)+$K$7*LN(D$36)) -> 60762696 | D46: =EXP($D$7+$E$7*LN(E$39)+$F$7*LN(E$33)+$G$7*LN(E$33/E$39)+$H$7*LN(E$37)+$K$7*LN(E$36)) -> 62722026.73 | E46: =EXP($D$7+$E$7*LN(F$39)+$F$7*LN(F$33)+$G$7*LN(F$33/F$39)+$H$7*LN(F$37)+$K$7*LN(F$36)) -> 64742968.62 | F46: =EXP($D$7+$E$7*LN(G$39)+$F$7*LN(G$33)+$G$7*LN(G$33/G$39)+$H$7*LN(G$37)+$K$7*LN(G$36)) -> 66827462.86 | G46: =EXP($D$7+$E$7*LN(H$39)+$F$7*LN(H$33)+$G$7*LN(H$33/H$39)+$H$7*LN(H$37)+$K$7*LN(H$36)) -> 68977506.75
A47: ADM | C47: =EXP($D$8+$E$8*LN(D$39)+$F$8*LN(D$33)+$G$8*LN(D$33/D$39)+$H$8*LN(D$37)+$I$8*LN(D$38)+$J$8*LN(D$37+D$38)+$K$8*LN(D$36)) -> 34785237.64 | D47: =EXP($D$8+$E$8*LN(E$39)+$F$8*LN(E$33)+$G$8*LN(E$33/E$39)+$H$8*LN(E$37)+$I$8*LN(E$38)+$J$8*LN(E$37+E$38)+$K$8*LN(E$36)) -> 35729149.1 | E47: 36696123.67 | F47: 37682013.98 | G47: 38700838.8
A59: Costos resultantes de las ecuaciones de eficiencia dados en Balboas a junio 2020 (utilizando Parametros del estudio actual)
A60: COSTO | B60: =+B42 -> Jul 24 -jun 25 | C60: Jul 25 -jun 26 | D60: Jul 26 -jun 27 | E60: Jul 27 -jun 28 | F60: Jul 28 -jun 29 | G60: Jul 29 -jun 30
A61: AD | C61: =C43*($C108*$B104+(1-$C108)*$C121*$B$117+(1-$C108)*(1-$C121)) -> 1148715440 | D61: =D43*($C108*$B104+(1-$C108)*$C121*$B$117+(1-$C108)*(1-$C121)) -> 1168642898 | E61: =E43*($C108*$B104+(1-$C108)*$C121*$B$117+(1-$C108)*(1-$C121)) -> 1190624444 | F61: =F43*($C108*$B104+(1-$C108)*$C121*$B$117+(1-$C108)*(1-$C121)) -> 1207037129 | G61: =G43*($C108*$B104+(1-$C108)*$C121*$B$117+(1-$C108)*(1-$C121)) -> 1229508800
A62: AC | C62: =C44*($C109*$B104+(1-$C109)*$C122*$B$117+(1-$C109)*(1-$C122)) -> 112462175.3 | D62: =D44*($C109*$B104+(1-$C109)*$C122*$B$117+(1-$C109)*(1-$C122)) -> 115756994.5 | E62: =E44*($C109*$B104+(1-$C109)*$C122*$B$117+(1-$C109)*(1-$C122)) -> 119145715.8 | F62: =F44*($C109*$B104+(1-$C109)*$C122*$B$117+(1-$C109)*(1-$C122)) -> 122631029.3 | G62: =G44*($C109*$B104+(1-$C109)*$C122*$B$117+(1-$C109)*(1-$C122)) -> 126215693.7
A63: OMD | C63: =C45*($B110*$B104+(1-$B110)*$B123*$B$117+(1-$B110)*(1-$B123)) -> 50221186.48 | D63: =D45*($B110*$B104+(1-$B110)*$B123*$B$117+(1-$B110)*(1-$B123)) -> 51556715.65 | E63: =E45*($B110*$B104+(1-$B110)*$B123*$B$117+(1-$B110)*(1-$B123)) -> 52920833.26 | F63: =F45*($B110*$B104+(1-$B110)*$B123*$B$117+(1-$B110)*(1-$B123)) -> 54300595.29 | G63: =G45*($B110*$B104+(1-$B110)*$B123*$B$117+(1-$B110)*(1-$B123)) -> 55734973.41
A64: COM | C64: =C46*($B111*$B104+(1-$B111)*$B124*$B$117+(1-$B111)*(1-$B124)) -> 45720100.87 | D64: =D46*($B111*$B104+(1-$B111)*$B124*$B$117+(1-$B111)*(1-$B124)) -> 47194373.82 | E64: =E46*($B111*$B104+(1-$B111)*$B124*$B$117+(1-$B111)*(1-$B124)) -> 48715005.28 | F64: =F46*($B111*$B104+(1-$B111)*$B124*$B$117+(1-$B111)*(1-$B124)) -> 50283455.87 | G64: =G46*($B111*$B104+(1-$B111)*$B124*$B$117+(1-$B111)*(1-$B124)) -> 51901228.45
A65: ADM | C65: =C47*($B112*$B104+(1-$B112)*$B125*$B$117+(1-$B112)*(1-$B125)) -> 18495843.15 | D65: =D47*($B112*$B104+(1-$B112)*$B125*$B$117+(1-$B112)*(1-$B125)) -> 18997735.32 | E65: =E47*($B112*$B104+(1-$B112)*$B125*$B$117+(1-$B112)*(1-$B125)) -> 19511890.49 | F65: =F47*($B112*$B104+(1-$B112)*$B125*$B$117+(1-$B112)*(1-$B125)) -> 20036103.45 | G65: =G47*($B112*$B104+(1-$B112)*$B125*$B$117+(1-$B112)*(1-$B125)) -> 20577828.2
C66: =SUM(C61:C62) -> 1261177615 | D66: =SUM(D61:D62) -> 1284399892 | E66: =SUM(E61:E62) -> 1309770160 | F66: =SUM(F61:F62) -> 1329668158 | G66: =SUM(G61:G62) -> 1355724493
A69: Activos proyectados con ecuaciones de eficiencia y mercado Proy Dda a precios de junio 2022
A70: Actividad | C70: =C60 -> Jul 25 -jun 26 | D70: =D60 -> Jul 26 -jun 27 | E70: =E60 -> Jul 27 -jun 28 | F70: =F60 -> Jul 28 -jun 29 | G70: =G60 -> Jul 29 -jun 30
A71: AD (Ecuación de eficiencia) | C71: =C61*$D130 -> 1150945192 | D71: 1170911331 | E71: 1192935546 | F71: 1209380089 | G71: 1231895379
A72: AC (Ecuación de eficiencia) | C72: 112560696.5 | D72: 115858402 | E72: 119250092 | F72: 122738458.8 | G72: 126326263.5
A73: Total | C73: =SUM(C71:C72) -> 1263505889 | D73: =SUM(D71:D72) -> 1286769733 | E73: =SUM(E71:E72) -> 1312185638 | F73: =SUM(F71:F72) -> 1332118548 | G73: =SUM(G71:G72) -> 1358221642
A75: Inversiones proyectadas con ecuaciones de eficiencia y mercado Proy Dda a precios de junio 2022
A76: Actividad | C76: =C70 -> Jul 25 -jun 26 | D76: =D70 -> Jul 26 -jun 27 | E76: =E70 -> Jul 27 -jun 28 | F76: =F70 -> Jul 28 -jun 29 | G76: =G70 -> Jul 29 -jun 30
A77: AD (Ecuación de eficiencia) | D77: =(D71-C71) -> 19966138.55 | E77: 22024214.87 | F77: 16444543.02 | G77: 22515289.9
A78: AC (Ecuación de eficiencia) | D78: 3297705.547 | E78: 3391689.952 | F78: 3488366.774 | G78: 3587804.715
A79: Total | D79: =+SUM(D77:D78) -> 23263844.1 | E79: =+SUM(E77:E78) -> 25415904.82 | F79: =+SUM(F77:F78) -> 19932909.8 | G79: =+SUM(G77:G78) -> 26103094.62
A82: Costos proyectados con ecuaciones de eficiencia y mercado Proy Dda a precios de junio 2022
A83: Actividad | B83: 2021 | C83: =C76 -> Jul 25 -jun 26 | D83: =D76 -> Jul 26 -jun 27 | E83: =E76 -> Jul 27 -jun 28 | F83: =F76 -> Jul 28 -jun 29 | G83: =G76 -> Jul 29 -jun 30
A84: OMD | D84: =D63*$D132 -> 51636963.12 | E84: 53003203.97 | F84: 54385113.58 | G84: 55821724.29
A85: COM | D85: 47255428.62 | E85: 48778027.3 | F85: 50348506.98 | G85: 51968372.45
A86: ADM | D86: 19042519.46 | E86: 19557886.67 | F86: 20083335.39 | G86: 20626337.17
D87: =SUM(D84:D86) -> 117934911.2 | E87: =SUM(E84:E86) -> 121339117.9 | F87: =SUM(F84:F86) -> 124816955.9 | G87: =SUM(G84:G86) -> 128416433.9
A90: 2 - PÉRDIDAS
A92: RESULTADOS PÉRDIDAS
A95: Porcentaje
A96: COSTO | C96: =C83 -> Jul 25 -jun 26 | D96: =D83 -> Jul 26 -jun 27 | E96: =E83 -> Jul 27 -jun 28 | F96: =F83 -> Jul 28 -jun 29 | G96: =G83 -> Jul 29 -jun 30
A97: PE_MWH | C97: =EXP($D$9+$K$9*LN(DEMANDA!D7)) -> 401690.2842 | D97: =EXP($D$9+$K$9*LN(DEMANDA!E7)) -> 409604.1567 | E97: =EXP($D$9+$K$9*LN(DEMANDA!F7)) -> 415661.6841 | F97: =EXP($D$9+$K$9*LN(DEMANDA!G7)) -> 422067.4016 | G97: =EXP($D$9+$K$9*LN(DEMANDA!H7)) -> 428379.5376
A98: PE_% | C98: =C97/DEMANDA!D7 -> 0.07533404669 | D98: =D97/DEMANDA!E7 -> 0.07530390156 | E98: =E97/DEMANDA!F7 -> 0.07528122643 | F98: =F97/DEMANDA!G7 -> 0.07525761188 | G98: =G97/DEMANDA!H7 -> 0.07523469741
A101: 3.- FACTORES DE AJUSTE
A102: Tabla de factores de ajuste del Componente Mano de Obra
B103: 2026 -2030
A104: Costo laboral relativo 2016 | B104: 0.288324305
A107: Participación de la mano de obra en los costos totales | B107: En Panama | C107: En EEUU
A108: AD | B108: 0.4224005874 | C108: 0.6649530545
A109: AC | B109: 0.2257416034 | C109: 0.4924879309
A110: OMD | B110: 0.3911
A111: COM | B111: 0.2655
A112: ADM | B112: 0.5794
A115: Tabla de factores de ajuste del Componente Materiales a PPP
A117: PPP | B117: 0.468
A120: % Nacional | B120: En Panama | C120: En EEUU
A121: AD | B121: 0.2445847228 | C121: 0.4089231293
A122: AC | B122: 0.03700539509 | C122: 0.0758794164
A123: OMD | B123: 0.1
A124: COM | B124: 0.15
A125: ADM | B125: 0.25
A129: % Total costos locales | B129: IPC Dic 25/jun 24 | C129: TC US$ Dic 25/jun 24 | D129: FA
A130: =B108+(1-B108)*B121 -> 0.5636725796 | B130: =B138/B137 -> 1.003443636 | C130: =B140/B139 -> 1 | D130: =A130*B130+(1-A130)*C130 -> 1.001941083
A131: =B109+(1-B109)*B122 -> 0.2543933413 | B131: =B130 -> 1.003443636 | C131: 1 | D131: =A131*B131+(1-A131)*C131 -> 1.000876038
A132: =B110+(1-B110)*B123 -> 0.45199 | B132: 1.003443636 | C132: 1 | D132: =A132*B132+(1-A132)*C132 -> 1.001556489
A133: =B111+(1-B111)*B124 -> 0.375675 | B133: 1.003443636 | C133: 1 | D133: =A133*B133+(1-A133)*C133 -> 1.001293688
A134: =B112+(1-B112)*B125 -> 0.68455 | B134: 1.003443636 | C134: 1 | D134: =A134*B134+(1-A134)*C134 -> 1.002357341
A137: IPC jun 2024 | B137: =B148 -> 99.45750452
A138: IPC dic 2025 | B138: 99.8
A139: TC US$ 2024 | B139: 1
A140: TC US$ 2025 | B140: 1
A143: 2025-01-01
A144: Base 2013 | B144: 110
A145: Base 2024 | B145: 100
A146: 2024-06-01
A147: Base 2013 | B147: 110.6
A148: Base 2024 | B148: =B144*B145/B147 -> 99.45750452

Sheet INVERSIONES
B1: EDEMET | J1: EDEMET
J2: INVERSIONES
B3: INVERSIONES | J3: En Balboas
B4: En miles de Balboas
J5: INVERSION EN SUBESTACIONES, ARQUITECTURA ASOCIADA Y LÍNEAS EN AT NO CONTEMPLADAS EN LAS ECUACIONES DE EFICIENCIA | U5: INVERSION EN SUBESTACIONES, ARQUITECTURA ASOCIADA Y LÍNEAS EN AT NO CONTEMPLADAS EN LAS ECUACIONES DE EFICIENCIA EN MILES DE BALBOAS
B6: INVERSIONES TOTALES | D6: =DEMANDA!E5 -> JUL26/ JUN27 | E6: =DEMANDA!F5 -> JUL27 / JUN28 | F6: =DEMANDA!G5 -> JUL28 / JUN29 | G6: =DEMANDA!H5 -> JUL29/ JUN30 | H6: TOTALES | J6: Concepto | K6: 2026 | L6: =K6+1 -> 2027 | N6: =L6+1 -> 2028 | P6: =N6+1 -> 2029 | R6: =P6+1 -> 2030 | S6: Total | U6: Concepto | V6: =D6 -> JUL26/ JUN27 | W6: =E6 -> JUL27 / JUN28 | X6: =F6 -> JUL28 / JUN29 | Y6: =G6 -> JUL29/ JUN30 | Z6: Total
H7: Miles de Balboas | K7: 2do Sem | L7: 1er Sem | M7: 2do Sem | N7: 1er Sem | O7: 2do Sem | P7: 1er Sem | Q7: 2do Sem | R7: 1er Sem
B8: Distribución | C8: ID | D8: ='Costos y Pérdidas Eficientes'!D77/1000+D17 -> 61104.11126 | E8: ='Costos y Pérdidas Eficientes'!E77/1000+E17 -> 154395.8552 | F8: ='Costos y Pérdidas Eficientes'!F77/1000+F17 -> 34719.12241 | G8: ='Costos y Pérdidas Eficientes'!G77/1000+G17 -> 48177.56936 | H8: =SUM(D8:G8) -> 298396.6583 | J8: Ampliación de SE El Higo (115kV) | K8: 0 | L8: 0 | M8: 0 | N8: 0 | O8: 0 | P8: 0 | Q8: 0 | R8: 5300000 | S8: =SUM(K8:R8) -> 5300000 | T8: ID | U8: =J8 -> Ampliación de SE El Higo (115kV) | V8: =(K8+L8)/1000 -> 0 | W8: =(M8+N8)/1000 -> 0 | X8: =(O8+P8)/1000 -> 0 | Y8: =(Q8+R8)/1000 -> 5300 | Z8: =SUM(V8:Y8) -> 5300
B9: Comercialización | C9: IC | D9: ='Costos y Pérdidas Eficientes'!D78/1000+D18 -> 3297.705547 | E9: ='Costos y Pérdidas Eficientes'!E78/1000+E18 -> 3391.689952 | F9: ='Costos y Pérdidas Eficientes'!F78/1000+F18 -> 3488.366774 | G9: ='Costos y Pérdidas Eficientes'!G78/1000+G18 -> 3587.804715 | H9: =SUM(D9:G9) -> 13765.56699 | J9: Ampliación de SE El Higo (T4) | K9: 0 | L9: 0 | M9: 0 | N9: 0 | O9: 0 | P9: 0 | Q9: 0 | R9: 0 | S9: =SUM(K9:R9) -> 0 | T9: ID | U9: Ampliación de SE El Higo (T4) | V9: 0 | W9: 0 | X9: 0 | Y9: 0 | Z9: 0
B10: Alumbrado Público | C10: IAP | D10: =D19 -> 2400 | E10: =E19 -> 2400 | F10: 2400 | G10: 2400 | H10: 9600 | J10: Ampliación de SE JDA (Segundo Transformador de Potencia) | K10: 0 | L10: 0 | M10: 0 | N10: 0 | O10: 0 | P10: 0 | Q10: 0 | R10: 0 | S10: 0 | T10: ID | U10: Ampliación de SE JDA (Segundo Transformador de Potencia) | V10: 0 | W10: 0 | X10: 0 | Y10: 0 | Z10: 0
B11: TOTAL INVERSIONES | D11: =+D8+D9+D10 -> 66801.81681 | E11: =+E8+E9+E10 -> 160187.5452 | F11: =+F8+F9+F10 -> 40607.48919 | G11: =+G8+G9+G10 -> 54165.37408 | H11: =SUM(D11:G11) -> 321762.2252 | J11: Ampliación de SE Panamá 3 (230 y 115KV) | K11: 0 | L11: 0 | M11: 0 | N11: 7750000 | O11: 0 | P11: 0 | Q11: 0 | R11: 0 | S11: 7750000 | T11: ID | U11: Ampliación de SE Panamá 3 (230 y 115KV) | V11: 0 | W11: 7750 | X11: 0 | Y11: 0 | Z11: 7750
D12: =D11-INVERSIONES!$D$11 -> 0 | J12: Ampliación de subestación Pocrí | K12: 0 | L12: 0 | M12: 22515773 | N12: 0 | O12: 0 | P12: 0 | Q12: 0 | R12: 0 | S12: 22515773 | T12: ID | U12: Ampliación de subestación Pocrí | V12: 0 | W12: 22515.773 | X12: 0 | Y12: 0 | Z12: 22515.773
J13: Ampliación SE Burunga 230/115/34,5 kV | K13: 0 | L13: 2013804 | M13: 0 | N13: 0 | O13: 0 | P13: 0 | Q13: 0 | R13: 0 | S13: 2013804 | T13: ID | U13: Ampliación SE Burunga 230/115/34,5 kV | V13: 2013.804 | W13: 0 | X13: 0 | Y13: 0 | Z13: 2013.804
J14: Arquitectura de red de subestación Santiago 2 | K14: 0 | L14: 0 | M14: 0 | N14: 0 | O14: 0 | P14: 0 | Q14: 0 | R14: 0 | S14: 0 | T14: ID | U14: Arquitectura de red de subestación Santiago 2 | V14: 0 | W14: 0 | X14: 0 | Y14: 0 | Z14: 0
B15: INVERSIONES NO CONTEMPLADAS EN LAS ECUACIONES DE EFICIENCIA | D15: =D6 -> JUL26/ JUN27 | E15: =E6 -> JUL27 / JUN28 | F15: JUL28 / JUN29 | G15: JUL29/ JUN30 | H15: TOTALES | J15: Arquitectura de Red Subestación El Torno y JDA | K15: 0 | L15: 0 | M15: 0 | N15: 0 | O15: 0 | P15: 0 | Q15: 0 | R15: 0 | S15: 0 | T15: ID | U15: Arquitectura de Red Subestación El Torno y JDA | V15: 0 | W15: 0 | X15: 0 | Y15: 0 | Z15: 0
H16: Miles de Balboas | J16: Arquitectura de Red Subestación Panamá Pacífico (Howard) | K16: 0 | L16: 0 | M16: 0 | N16: 0 | O16: 0 | P16: 0 | Q16: 0 | R16: 0 | S16: 0 | T16: ID | U16: Arquitectura de Red Subestación Panamá Pacífico (Howard) | V16: 0 | W16: 0 | X16: 0 | Y16: 0 | Z16: 0
B17: Inverisones adicionales Distribucion | C17: ID | D17: =SUMIF($T$8:$T$60,$C17,V$8:V$59) -> 41137.97271 | E17: 132371.6404 | F17: 18274.57939 | G17: 25662.27946 | H17: =SUM(D17:G17) -> 217446.4719 | J17: Aumento del T4 de subestación Santiago (50MVA 115/34.5kV) | K17: 0 | L17: 0 | M17: 0 | N17: 0 | O17: 0 | P17: 0 | Q17: 0 | R17: 0 | S17: 0 | T17: ID | U17: Aumento del T4 de subestación Santiago (50MVA 115/34.5kV) | V17: 0 | W17: 0 | X17: 0 | Y17: 0 | Z17: 0
B18: Inverisones adicionales Comercialización | C18: IC | D18: 0 | E18: 0 | F18: 0 | G18: 0 | H18: =SUM(D18:G18) -> 0 | J18: Circuito 34,5 kV (Respaldo Santiago - Montijo) | K18: 0 | L18: 0 | M18: 0 | N18: 0 | O18: 0 | P18: 0 | Q18: 0 | R18: 0 | S18: 0 | T18: ID | U18: Circuito 34,5 kV (Respaldo Santiago - Montijo) | V18: 0 | W18: 0 | X18: 0 | Y18: 0 | Z18: 0
B19: Inversiones adicionales en AP | C19: IAP | D19: 2400 | E19: 2400 | F19: 2400 | G19: 2400 | H19: 9600 | J19: Circuito 34,5 kV (Respaldo SE Penonomé - SE Antón) | K19: 986667 | L19: 0 | M19: 0 | N19: 0 | O19: 0 | P19: 0 | Q19: 0 | R19: 0 | S19: 986667 | T19: ID | U19: Circuito 34,5 kV (Respaldo SE Penonomé - SE Antón) | V19: 986.667 | W19: 0 | X19: 0 | Y19: 0 | Z19: 986.667
H20: =SUM(H17:H19)-S47/1000 -> 0 | J20: Circuito 34,5 kV SE Santiago 2 - San Francisco | K20: 0 | L20: 0 | M20: 0 | N20: 0 | O20: 0 | P20: 0 | Q20: 0 | R20: 0 | S20: 0 | T20: ID | U20: Circuito 34,5 kV SE Santiago 2 - San Francisco | V20: 0 | W20: 0 | X20: 0 | Y20: 0 | Z20: 0
J21: Circuito 34-33B SE Santiago- SE Soná | K21: 0 | L21: 0 | M21: 5023354 | N21: 0 | O21: 0 | P21: 0 | Q21: 0 | R21: 0 | S21: 5023354 | T21: ID | U21: Circuito 34-33B SE Santiago- SE Soná | V21: 0 | W21: 5023.354 | X21: 0 | Y21: 0 | Z21: 5023.354
B22: LUMINARIAS QUE SE INCORPORAN | D22: =D15 -> JUL26/ JUN27 | E22: =E15 -> JUL27 / JUN28 | F22: =F15 -> JUL28 / JUN29 | G22: =G15 -> JUL29/ JUN30 | H22: TOTALES | J22: Conexión de SE Chorrera 115kV al T1 | K22: 0 | L22: 0 | M22: 0 | N22: 0 | O22: 0 | P22: 0 | Q22: 0 | R22: 0 | S22: 0 | T22: ID | U22: Conexión de SE Chorrera 115kV al T1 | V22: 0 | W22: 0 | X22: 0 | Y22: 0 | Z22: 0
B23: Crecimiento Vegetativo - Sodio | H23: =SUM(D23:G23) -> 0 | J23: Alumbrado Público | K23: 1200000 | L23: 1200000 | M23: 1200000 | N23: 1200000 | O23: 1200000 | P23: 1200000 | Q23: 1200000 | R23: 1200000 | S23: 9600000 | T23: IAP | U23: Alumbrado Público | V23: 2400 | W23: 2400 | X23: 2400 | Y23: 2400 | Z23: 9600
B24: Crecimiento Vegetativo - LED | D24: =(K52+L52) -> 6316 | E24: =(L52+M52) -> 6316 | F24: =(M52+N52) -> 6316 | G24: =(N52+O52) -> 6316 | H24: =SUM(D24:G24) -> 25264 | J24: LAT Burunga - Howard en 115 kV | K24: 0 | L24: 26104677 | M24: 0 | N24: 0 | O24: 0 | P24: 0 | Q24: 0 | R24: 0 | S24: 26104677 | T24: ID | U24: LAT Burunga - Howard en 115 kV | V24: 26104.677 | W24: 0 | X24: 0 | Y24: 0 | Z24: 26104.677
B25: Proyectos especiales | H25: 0 | J25: LAT SE Chorrera - SE El Torno 115 (Segunda Línea) | K25: 0 | L25: 0 | M25: 7993217 | N25: 0 | O25: 0 | P25: 0 | Q25: 0 | R25: 0 | S25: 7993217 | T25: ID | U25: LAT SE Chorrera - SE El Torno 115 (Segunda Línea) | V25: 0 | W25: 7993.217 | X25: 0 | Y25: 0 | Z25: 7993.217
B26: TOTAL LUMINARIAS ADICIONALES | D26: =SUM(D23:D25) -> 6316 | E26: =SUM(E23:E25) -> 6316 | F26: =SUM(F23:F25) -> 6316 | G26: =SUM(G23:G25) -> 6316 | H26: =SUM(D26:G26) -> 25264 | J26: LAT Justo Arosemena – Segunda Línea 115 kV | K26: 0 | L26: 0 | M26: 4829118 | N26: 0 | O26: 0 | P26: 0 | Q26: 0 | R26: 0 | S26: 4829118 | T26: ID | U26: LAT Justo Arosemena – Segunda Línea 115 kV | V26: 0 | W26: 4829.118 | X26: 0 | Y26: 0 | Z26: 4829.118
J27: Línea 115kV La Floresta - SE Panamá 3 | K27: 0 | L27: 0 | M27: 0 | N27: 10500000 | O27: 0 | P27: 0 | Q27: 0 | R27: 0 | S27: 10500000 | T27: ID | U27: Línea 115kV La Floresta - SE Panamá 3 | V27: 0 | W27: 10500 | X27: 0 | Y27: 0 | Z27: 10500
B28: INVERSIONES ESTIMADAS | D28: ENE - JUN 2026 | J28: Línea HIGO-COR, 115kV | K28: 0 | L28: 0 | M28: 0 | N28: 0 | O28: 0 | P28: 0 | Q28: 0 | R28: 9150000 | S28: 9150000 | T28: ID | U28: Línea HIGO-COR, 115kV | V28: 0 | W28: 0 | X28: 0 | Y28: 9150 | Z28: 9150
D29: Miles de Balboas | J29: Medida Inteligente EDEMET | K29: 0 | L29: 0 | M29: 0 | N29: 0 | O29: 0 | P29: 0 | Q29: 0 | R29: 0 | S29: 0 | T29: ID | U29: Medida Inteligente EDEMET | V29: 0 | W29: 0 | X29: 0 | Y29: 0 | Z29: 0
B30: Distribución | C30: ID | D30: 69040.72012 | J30: Nueva LAT Llano Sánchez – Pocrí en 115kV | K30: 0 | L30: 0 | M30: 13382499 | N30: 0 | O30: 0 | P30: 0 | Q30: 0 | R30: 0 | S30: 13382499 | T30: ID | U30: Nueva LAT Llano Sánchez – Pocrí en 115kV | V30: 0 | W30: 13382.499 | X30: 0 | Y30: 0 | Z30: 13382.499
B31: Comercialización | C31: IC | D31: 7980.156532 | J31: Nueva Línea AT Divisa – La Arena en 115kV | K31: 0 | L31: 0 | M31: 26583181 | N31: 0 | O31: 0 | P31: 0 | Q31: 0 | R31: 0 | S31: 26583181 | T31: ID | U31: Nueva Línea AT Divisa – La Arena en 115kV | V31: 0 | W31: 26583.181 | X31: 0 | Y31: 0 | Z31: 26583.181
B32: Alumbrado Público | C32: IAP | D32: 3437.52 | J32: Nueva Línea El Higo - Coronado (34.5 kV) Forrada | K32: 470728 | L32: 0 | M32: 0 | N32: 0 | O32: 0 | P32: 0 | Q32: 0 | R32: 0 | S32: 470728 | T32: ID | U32: Nueva Línea El Higo - Coronado (34.5 kV) Forrada | V32: 470.728 | W32: 0 | X32: 0 | Y32: 0 | Z32: 470.728
B33: TOTAL INVERSIONES | D33: =+D30+D31+D32 -> 80458.39665 | J33: Nueva SE La Floresta 115/12 KV | K33: 0 | L33: 6273076 | M33: 0 | N33: 0 | O33: 0 | P33: 0 | Q33: 0 | R33: 0 | S33: 6273076 | T33: ID | U33: =J33 -> Nueva SE La Floresta 115/12 KV | V33: =(K33+L33)/1000 -> 6273.076 | W33: =(M33+N33)/1000 -> 0 | X33: =(O33+P33)/1000 -> 0 | Y33: =(Q33+R33)/1000 -> 0 | Z33: =SUM(V33:Y33) -> 6273.076
D34: 0 | J34: Nueva Subestación Panamá Pacífico (Howard) 115/12 kV | K34: 0 | L34: 0 | M34: 0 | N34: 0 | O34: 0 | P34: 0 | Q34: 0 | R34: 0 | S34: 0 | T34: ID | U34: Nueva Subestación Panamá Pacífico (Howard) 115/12 kV | V34: 0 | W34: 0 | X34: 0 | Y34: 0 | Z34: 0
J35: Nueva Subestación Santiago 2 230/115/34,5 kV. | K35: 0 | L35: 0 | M35: 32895070 | N35: 0 | O35: 0 | P35: 0 | Q35: 0 | R35: 0 | S35: 32895070 | T35: ID | U35: Nueva Subestación Santiago 2 230/115/34,5 kV. | V35: 0 | W35: 32895.07 | X35: 0 | Y35: 0 | Z35: 32895.07
J36: Electrificación Rural | K36: =K82 -> 0 | L36: =L82 -> 1181877.71 | M36: 551476.76 | N36: 347951.59 | O36: 253327.64 | P36: 187001.76 | Q36: 112279.46 | R36: 0 | S36: 2633914.92 | T36: ID | U36: Electrificación Rural | V36: 1181.87771 | W36: 899.42835 | X36: 440.3294 | Y36: 112.27946 | Z36: 2633.91492
J37: SE Coronado 115/34,5/13.2kV | K37: 0 | L37: 0 | M37: 0 | N37: 0 | O37: 0 | P37: 0 | Q37: 0 | R37: 11100000 | S37: 11100000 | T37: ID | U37: SE Coronado 115/34,5/13.2kV | V37: 0 | W37: 0 | X37: 0 | Y37: 11100 | Z37: 11100
J38: Soterrado Ave Eloy Alfaro | K38: 0 | L38: 0 | M38: 0 | N38: 0 | O38: 0 | P38: 0 | Q38: 0 | R38: 0 | S38: 0 | T38: ID | U38: Soterrado Ave Eloy Alfaro | V38: 0 | W38: 0 | X38: 0 | Y38: 0 | Z38: 0
J39: Soterrado Ave. Aquilino de la Guardia | K39: 0 | L39: 0 | M39: 0 | N39: 0 | O39: 0 | P39: 0 | Q39: 0 | R39: 0 | S39: 0 | T39: ID | U39: Soterrado Ave. Aquilino de la Guardia | V39: 0 | W39: 0 | X39: 0 | Y39: 0 | Z39: 0
J40: Soterrado Calle 50 | K40: 0 | L40: 0 | M40: 0 | N40: 0 | O40: 12799772.99 | P40: 0 | Q40: 0 | R40: 0 | S40: 12799772.99 | T40: ID | U40: Soterrado Calle 50 | V40: 0 | W40: 0 | X40: 12799.77299 | Y40: 0 | Z40: 12799.77299
J41: 1. Tramo de Soho a vía cincuentenario | K41: 0 | L41: 0 | M41: 0 | N41: 0 | O41: 0 | P41: 0 | Q41: 0 | R41: 0 | S41: 0 | T41: ID | U41: 1. Tramo de Soho a vía cincuentenario | V41: 0 | W41: 0 | X41: 0 | Y41: 0 | Z41: 0
J42: 2. tramo línea 115kV | K42: 0 | L42: 0 | M42: 0 | N42: 0 | O42: 0 | P42: 0 | Q42: 0 | R42: 0 | S42: 0 | T42: ID | U42: 2. tramo línea 115kV | V42: 0 | W42: 0 | X42: 0 | Y42: 0 | Z42: 0
J43: 3. tramo de Federico Boyd a Soho Mall | K43: 0 | L43: 0 | M43: 0 | N43: 0 | O43: 0 | P43: 0 | Q43: 0 | R43: 0 | S43: 0 | T43: ID | U43: 3. tramo de Federico Boyd a Soho Mall | V43: 0 | W43: 0 | X43: 0 | Y43: 0 | Z43: 0
J44: Soterrado Las Tablas tramo 1 | K44: 0 | L44: 0 | M44: 0 | N44: 0 | O44: 3153071 | P44: 0 | Q44: 0 | R44: 0 | S44: 3153071 | T44: ID | U44: Soterrado Las Tablas tramo 1 | V44: 0 | W44: 0 | X44: 3153.071 | Y44: 0 | Z44: 3153.071
J45: Soterrado Las Tablas (tramo 2) | K45: 0 | L45: 0 | M45: 0 | N45: 0 | O45: 1881406 | P45: 0 | Q45: 0 | R45: 0 | S45: 1881406 | T45: ID | U45: Soterrado Las Tablas (tramo 2) | V45: 0 | W45: 0 | X45: 1881.406 | Y45: 0 | Z45: 1881.406
J46: Soterrado Obarrio/Eléctrico Etapa I y II | K46: 4107143 | L46: 0 | M46: 0 | N46: 0 | O46: 0 | P46: 0 | Q46: 0 | R46: 0 | S46: 4107143 | T46: ID | U46: =J46 -> Soterrado Obarrio/Eléctrico Etapa I y II | V46: =(K46+L46)/1000 -> 4107.143 | W46: =(M46+N46)/1000 -> 0 | X46: =(O46+P46)/1000 -> 0 | Y46: =(Q46+R46)/1000 -> 0 | Z46: =SUM(V46:Y46) -> 4107.143
J47: TOTAL | K47: =SUM(K8:K46) -> 6764538 | L47: =SUM(L8:L46) -> 36773434.71 | M47: 114973688.8 | N47: 19797951.59 | O47: 19287577.63 | P47: 1387001.76 | Q47: 1312279.46 | R47: 26750000 | S47: 227046471.9 | U47: TOTAL | V47: =SUM(V8:V46) -> 43537.97271 | W47: 134771.6404 | X47: 20674.57939 | Y47: 28062.27946 | Z47: 227046.4719
S48: 0
J49: CANTIDAD DE LUMINARIAS ADICIONALES (ALUMBRADO PÚBLICO) | U49: CANTIDAD DE LUMINARIAS ADICIONALES (ALUMBRADO PÚBLICO)
J50: DETALLE | K50: =K6 -> 2026 | L50: 2027 | N50: 2028 | P50: 2029 | R50: 2030 | S50: Total | U50: Concepto | V50: JUL26/ JUN27 | W50: JUL27 / JUN28 | X50: JUL28 / JUN29 | Y50: JUL29/ JUN30 | Z50: Total
K51: II Sem | L51: I Sem | M51: II Sem | N51: I Sem | O51: II Sem | P51: I Sem | Q51: II Sem | R51: I Sem
J52: Alumbrado Público | K52: 3158 | L52: 3158 | M52: 3158 | N52: 3158 | O52: 3158 | P52: 3158 | Q52: 3158 | R52: 3157 | S52: =SUM(K52:R52) -> 25263 | U52: Total | V52: =K52+L52 -> 6316 | W52: =M52+N52 -> 6316 | X52: =O52+P52 -> 6316 | Y52: =Q52+R52 -> 6315 | Z52: =SUM(V52:Y52) -> 25263
J53: Crecimiento Vegetativo - LED | K53: 1705 | L53: 1705 | M53: 1705 | N53: 1705 | O53: 1705 | P53: 1705 | Q53: 1705 | R53: 1705 | S53: =SUM(K53:R53) -> 13640 | U53: Crecimiento Vegetativo - LED | V53: 3410 | W53: 3410 | X53: 3410 | Y53: 3410 | Z53: =SUM(V53:Y53) -> 13640
J54: Sustitución de luminarias de Sodio por LED con fotocontroles inteligentes | K54: 1453 | L54: 1453 | M54: 1453 | N54: 1453 | O54: 1453 | P54: 1453 | Q54: 1453 | R54: 1453 | S54: 11624 | U54: Sustitución de luminarias de Sodio por LED con fotocontroles inteligentes | V54: 2906 | W54: 2906 | X54: 2906 | Y54: 2906 | Z54: 11624
K55: =K23/K52 -> 379.9873338 | L55: 379.9873338 | M55: 379.9873338 | N55: 379.9873338 | O55: 379.9873338 | P55: 379.9873338 | Q55: 379.9873338 | R55: 380.1076972
U56: INVERSIONES EN ALUMBRADO PÚBLICO | V56: JUL26/ JUN27 | W56: JUL27 / JUN28 | X56: JUL28 / JUN29 | Y56: JUL29/ JUN30 | Z56: TOTALES
J57: Concepto | K57: 2026 2do Sem | L57: 2027 1er Sem | M57: 2027 2do Sem | N57: 2028 1er Sem | O57: 2028 2do Sem | P57: 2029 1er Sem | Q57: 2029 2do Sem | R57: 2030 1er Sem | S57: TOTAL | U57: Crecimiento Vegetativo - LED | V57: 1296 | W57: 1296 | X57: 1296 | Y57: 1296 | Z57: 5184
J58: ELECTRIFICACIÓN RURAL | U58: Sustitución de luminarias de Sodio por LED con fotocontroles inteligentes | V58: 1104 | W58: 1104 | X58: 1104 | Y58: 1104 | Z58: 4416
J59: Río Indio, Nacimiento, Jordanal, Ciri Grande, Capira | L59: 617293.7 | S59: =SUM(K59:R59) -> 617293.7 | U59: TOTAL | V59: 2400 | W59: 2400 | X59: 2400 | Y59: 2400 | Z59: 9600
J60: Turuega, Chiguirí, Penonomé | L60: 390509.98 | S60: 390509.98
J61: Nuevo San José, San Juan del Turbe, La Pintada | L61: 9095.01 | S61: 9095.01
J62: El Juan, El Higo, La Mesa | L62: 164979.02 | S62: 164979.02
J63: Los Hatillos Arriba, San Francisco | M63: 191280.56 | S63: 191280.56
J64: Coquillo, El Vallé, Antón | M64: 94952.01 | S64: 94952.01
J65: Loma El Guavo, El Prado, Las Palmas | M65: 100725.48 | S65: 100725.48
J66: Rascador, Entradero del Castillo, Ocú | M66: 164518.71 | S66: 164518.71
J67: Loma Chata, El Picacho, Olá | N67: 130173.42 | S67: 130173.42
J68: El Chorro, Llano grande, La Pintada | N68: 49197.32 | S68: 49197.32 | Z68: =Z55-S55/1000 -> 0
J69: Zapotal, Entradero del Castillo, Ocú | N69: 113190.16 | S69: 113190.16
J70: Bernardino Abajo El Arado, La Chorrera | N70: 55390.69 | S70: 55390.69
J71: La Chapa, San Juan de Dios, Antón | O71: 58861.56 | S71: 58861.56
J72: Sector Altos de los Gringos, Menchaca, Ocú | O72: 55779.1 | S72: 55779.1
J73: China Abajo, La Laguna, San Carlos | O73: 72830.62 | S73: 72830.62
J74: Guabito, La Laguna, San Carlos | O74: 65856.36 | S74: 65856.36
J75: Los Toretos, El Macano | P75: 90137.87 | S75: 90137.87
J76: Cerro Pelado, Pesé | P76: 17169.22 | S76: 17169.22
J77: Boca de Quema, Altos de Guerra | P77: 38394.81 | S77: =SUM(K77:Q77) -> 38394.81
J78: Colón, Los Santos | P78: 41299.86 | S78: =SUM(K78:Q78) -> 41299.86
J79: Bajo Montilla, Bajos de Guerra | Q79: 65451.9 | S79: =SUM(K79:Q79) -> 65451.9
J80: Plan Bonito, La tronosa, Tonosí | Q80: 19944.8 | S80: =SUM(K80:R80) -> 19944.8
J81: LaPintada, El Corteza | Q81: 26882.76 | S81: =SUM(K81:R81) -> 26882.76
J82: TOTAL | K82: =SUM(K59:K81) -> 0 | L82: =SUM(L59:L81) -> 1181877.71 | M82: =SUM(M59:M81) -> 551476.76 | N82: =SUM(N59:N81) -> 347951.59 | O82: 253327.64 | P82: 187001.76 | Q82: =SUM(Q59:Q81) -> 112279.46 | R82: 0 | S82: =SUM(S59:S81) -> 2633914.92

Sheet ACTIVOS
B2: EDEMET
B4: ACTIVOS TARIFARIOS PERMITIDOS
B5: En miles de Balboas
B7: BASE DE CAPITAL | D7: ACT.Dic25 | E7: AJUSTE ACTNOREG | F7: BASE | G7: 2026-06-01 | H7: =INVERSIONES!D22 -> JUL26/ JUN27 | I7: =INVERSIONES!E22 -> JUL27 / JUN28 | J7: =INVERSIONES!F22 -> JUL28 / JUN29 | K7: =INVERSIONES!G22 -> JUL29/ JUN30
B9: Valor Bruto Base de Capital Distribución | C9: BCD | D9: ='BC y Dep'!C68/1000 -> 1446947.59 | E9: =G29 -> 0.9747148037 | F9: =D9*E9 -> 1410361.237 | G9: =F9+INVERSIONES!D30 -> 1479401.957 | H9: =+G9+INVERSIONES!D8 -> 1540506.068 | I9: =+H9+INVERSIONES!E8 -> 1694901.923 | J9: =+I9+INVERSIONES!F8 -> 1729621.046 | K9: =+J9+INVERSIONES!G8 -> 1777798.615
B10: Valor Bruto Base de Capital Comercialización | C10: BCC | D10: ='BC y Dep'!C70/1000 -> 133399.6927 | E10: =+E9 -> 0.9747148037 | F10: =D10*E10 -> 130026.6553 | G10: =F10+INVERSIONES!D31 -> 138006.8119 | H10: =+G10+INVERSIONES!D9 -> 141304.5174 | I10: =+H10+INVERSIONES!E9 -> 144696.2074 | J10: =+I10+INVERSIONES!F9 -> 148184.5741 | K10: =+J10+INVERSIONES!G9 -> 151772.3789
B11: Valor Bruto Activos Fijos Alumbrado Público | C11: ACTalum | D11: ='BC y Dep'!C69/1000 -> 53443.87544 | E11: =+E9 -> 0.9747148037 | F11: =D11*E11 -> 52092.53656 | G11: =F11+INVERSIONES!D32 -> 55530.05656 | H11: =+G11+INVERSIONES!D10 -> 57930.05656 | I11: =+H11+INVERSIONES!E10 -> 60330.05656 | J11: =+I11+INVERSIONES!F10 -> 62730.05656 | K11: =+J11+INVERSIONES!G10 -> 65130.05656
D12: =SUM(D9:D11) -> 1633791.158 | F12: =SUM(F9:F11) -> 1592480.428 | G12: =SUM(G9:G11) -> 1672938.825 | H12: =SUM(H9:H11) -> 1739740.642 | I12: 1899928.187 | J12: 1940535.676 | K12: 1994701.05
B14: Valor Neto Base Capital Distribución | C14: BCND | D14: 804608.8105 | E14: =+E9 -> 0.9747148037 | F14: =D14*E14 -> 784264.1188 | G14: ='BC y Dep'!C76/1000*ACTIVOS!E14+(G9-F9)-((G9-F9)/4)*'BC y Dep'!C84 -> 832496.6629 | H14: =G14+(H9-G9)-'BC y Dep'!D80/1000-((H9-G9)/2)*'PERDIDAS y OTROS'!E$11-((G9-F9))*'BC y Dep'!C84 -> 849370.5967 | I14: =H14+(I9-H9)-'BC y Dep'!E80/1000-(H9-G9)*'PERDIDAS y OTROS'!E$11-((I9-H9)/2)*'PERDIDAS y OTROS'!F$11-((G9-F9))*'BC y Dep'!C84 -> 956806.3564 | J14: =I14+(J9-I9)-'BC y Dep'!F80/1000-(H9-G9)*'PERDIDAS y OTROS'!E$11-(I9-H9)*'PERDIDAS y OTROS'!F$11-((J9-I9)/2)*'PERDIDAS y OTROS'!G$11-((G9-F9))*'BC y Dep'!C84 -> 941687.5836 | K14: =J14+(K9-J9)-'BC y Dep'!G80/1000-(H9-G9)*'PERDIDAS y OTROS'!E$11-(I9-H9)*'PERDIDAS y OTROS'!F$11-(J9-I9)*'PERDIDAS y OTROS'!G$11-((K9-J9)/2)*'PERDIDAS y OTROS'!H$11-((G9-F9))*'BC y Dep'!C84 -> 939962.8187
B15: Valor Neto Base Capital Comercialización | C15: BCNC | D15: 64148.39322 | E15: =+E9 -> 0.9747148037 | F15: =D15*E15 -> 62526.38851 | G15: ='BC y Dep'!C78/1000*ACTIVOS!E15+(G10-F10)-((G10-F10)/4)*'BC y Dep'!C86 -> 68262.91303 | H15: =G15+(H10-G10)-'BC y Dep'!D82/1000-((H10-G10)/2)*'PERDIDAS y OTROS'!E$12-((G10-F10))*'BC y Dep'!C86 -> 66797.76313 | I15: =H15+(I10-H10)-'BC y Dep'!E82/1000-(H10-G10)*'PERDIDAS y OTROS'!E$12-((I10-H10)/2)*'PERDIDAS y OTROS'!F$12-((G10-F10))*'BC y Dep'!C86 -> 65385.16876 | J15: =I15+(J10-I10)-'BC y Dep'!F82/1000-(H10-G10)*'PERDIDAS y OTROS'!E$12-(I10-H10)*'PERDIDAS y OTROS'!F$12-((J10-I10)/2)*'PERDIDAS y OTROS'!G$12-((G10-F10))*'BC y Dep'!C86 -> 64018.9443 | K15: =J15+(K10-J10)-'BC y Dep'!G82/1000-(H10-G10)*'PERDIDAS y OTROS'!E$12-(I10-H10)*'PERDIDAS y OTROS'!F$12-(J10-I10)*'PERDIDAS y OTROS'!G$12-((K10-J10)/2)*'PERDIDAS y OTROS'!H$12-((G10-F10))*'BC y Dep'!C86 -> 62758.00204
B16: Valor Neto Activos Fijos Alumbrado Público | C16: ACTN alum | D16: 25408.44325 | E16: =+E9 -> 0.9747148037 | F16: =D16*E16 -> 24765.98577 | G16: ='BC y Dep'!C77/1000*ACTIVOS!E16+(G11-F11)-((G11-F11)/4)*'BC y Dep'!C85 -> 27184.71577 | H16: =G16+(H11-G11)-'BC y Dep'!D81/1000-((H11-G11)/2)*'PERDIDAS y OTROS'!E$13-((G11-F11))*'BC y Dep'!C85 -> 27417.80221 | I16: =H16+(I11-H11)-'BC y Dep'!E81/1000-(H11-G11)*'PERDIDAS y OTROS'!E$13-((I11-H11)/2)*'PERDIDAS y OTROS'!F$13-((G11-F11))*'BC y Dep'!C85 -> 27601.62062 | J16: =I16+(J11-I11)-'BC y Dep'!F81/1000-(H11-G11)*'PERDIDAS y OTROS'!E$13-(I11-H11)*'PERDIDAS y OTROS'!F$13-((J11-I11)/2)*'PERDIDAS y OTROS'!G$13-((G11-F11))*'BC y Dep'!C85 -> 27705.07218 | K16: =J16+(K11-J11)-'BC y Dep'!G81/1000-(H11-G11)*'PERDIDAS y OTROS'!E$13-(I11-H11)*'PERDIDAS y OTROS'!F$13-(J11-I11)*'PERDIDAS y OTROS'!G$13-((K11-J11)/2)*'PERDIDAS y OTROS'!H$13-((G11-F11))*'BC y Dep'!C85 -> 27727.38056
D17: =SUM(D14:D16) -> 894165.6469 | F17: =SUM(F14:F16) -> 871556.4931 | G17: =SUM(G14:G16) -> 927944.2917 | H17: =SUM(H14:H16) -> 943586.1621 | I17: 1049793.146 | J17: 1033411.6 | K17: 1030448.201
B18: Check | D18: 0 | H18: =G17+INVERSIONES!D11-(IMPD!D11+IMPCO!D11+ALUMPU!D11)-H17 -> 0 | I18: =H17+INVERSIONES!E11-(IMPD!E11+IMPCO!E11+ALUMPU!E11)-I17 -> 0 | J18: =I17+INVERSIONES!F11-(IMPD!F11+IMPCO!F11+ALUMPU!F11)-J17 -> 0 | K18: =J17+INVERSIONES!G11-(IMPD!G11+IMPCO!G11+ALUMPU!G11)-K17 -> 0
D19: 0
B20: Ajuste Activos no Regulados
B22: Detalle | C22: 2022 | D22: =C22+1 -> 2023 | E22: =D22+1 -> 2024 | F22: 2025 | G22: PROMEDIO
B23: Ingresos no regulados | C23: 4722189.47 | D23: 4769914.3 | E23: 5962925.08 | F23: 7440998.92 | G23: =AVERAGE(C23:F23) -> 5724006.943
B24: Ingresos por venta de energía | C24: 819662786 | D24: 753751771 | E24: 860123787 | F24: 893535117.3 | G24: =AVERAGE(C24:F24) -> 831768365.4
B25: Compras de energía | C25: -598200825 | D25: -569458717 | E25: -615692747.9 | F25: -661106024.2 | G25: -611114578.5
B26: otros ingresos
B27: Ingreso Neto por actividades reguladas | C27: =C24+C25+C26 -> 221461961 | D27: 184293054 | E27: 244431039.1 | F27: 232429093.1 | G27: 220653786.8
B29: Factor de ajuste | C29: =C27/(C27+C23) -> 0.9791223679 | D29: 0.9747707637 | E29: 0.9761858274 | F29: =F27/(F27+F23) -> 0.9689790467 | G29: =G27/(G27+G23) -> 0.9747148037

Sheet BC y Dep
A1: PLANILLA AA-01
A2: LÍNEA DE NEGOCIO | B2: CUENTAS | C2: Vida útil estándar | D2: t<2001 | G2: 2002 | K2: 2003 | O2: 2004 | S2: 2005 | W2: 2006 | AA2: 2007 | AE2: 2008 | AI2: 2009 | AM2: 2010 | AQ2: 2011 | AU2: 2012 | AY2: 2013 | BC2: 2014 | BG2: 2015 | BK2: 2016 | BO2: 2017 | BS2: 2018 | BW2: 2019 | CA2: 2020 | CE2: 2021 | CI2: =CE2+1 -> 2022 | CM2: =CI2+1 -> 2023 | CQ2: =CM2+1 -> 2024 | CU2: =CQ2+1 -> 2025 | DY2: 2025.5 | EE2: 2002 | EF2: =EE2+1 -> 2003 | EG2: =EF2+1 -> 2004 | EH2: 2005 | EI2: 2006 | EJ2: 2007 | EK2: 2008 | EL2: 2009 | EM2: 2010 | EN2: 2011 | EO2: 2012 | EP2: 2013 | EQ2: 2014 | ER2: 2015 | ES2: 2016 | ET2: 2017 | EU2: 2018 | EV2: 2019 | EW2: 2020 | EX2: 2021 | EY2: 2022 | EZ2: =EY2+1 -> 2023 | FA2: =EZ2+1 -> 2024 | FB2: 2025 | FC2: =DY2+1 -> 2026.5 | FE2: 2002 | FF2: =FE2+1 -> 2003 | FG2: =FF2+1 -> 2004 | FH2: 2005 | FI2: 2006 | FJ2: 2007 | FK2: 2008 | FL2: 2009 | FM2: 2010 | FN2: 2011 | FO2: 2012 | FP2: 2013 | FQ2: 2014 | FR2: 2015 | FS2: 2016 | FT2: 2017 | FU2: 2018 | FV2: 2019 | FW2: 2020 | FX2: 2021 | FY2: =EY2 -> 2022 | FZ2: =EZ2 -> 2023 | GA2: 2024 | GB2: 2025 | GC2: =FC2+1 -> 2027.5 | GE2: 2002 | GF2: =GE2+1 -> 2003 | GG2: =GF2+1 -> 2004 | GH2: 2005 | GI2: 2006 | GJ2: 2007 | GK2: 2008 | GL2: 2009 | GM2: 2010 | GN2: 2011 | GO2: 2012 | GP2: 2013 | GQ2: 2014 | GR2: 2015 | GS2: 2016 | GT2: 2017 | GU2: 2018 | GV2: 2019 | GW2: 2020 | GX2: 2021 | GY2: =FY2 -> 2022 | GZ2: =FZ2 -> 2023 | HA2: 2024 | HB2: 2025 | HC2: =GC2+1 -> 2028.5 | HE2: 2002 | HF2: =HE2+1 -> 2003 | HG2: =HF2+1 -> 2004 | HH2: 2005 | HI2: 2006 | HJ2: 2007 | HK2: 2008 | HL2: 2009 | HM2: 2010 | HN2: 2011 | HO2: 2012 | HP2: 2013 | HQ2: 2014 | HR2: 2015 | HS2: 2016 | HT2: 2017 | HU2: 2018 | HV2: 2019 | HW2: 2020 | HX2: 2021 | HY2: =GY2 -> 2022 | HZ2: =GZ2 -> 2023 | IA2: 2024 | IB2: 2025 | IC2: =HC2+1 -> 2029.5
D3: BC BRUTA 31/12/01 | E3: RETIROS ACUMUL | F3: BC NETA 31/12/01 | G3: ADICIONES | H3: ATR | I3: RETIROS ACUMUL | J3: ATR Retiros acumul | K3: ADICIONES | L3: ATR | M3: RETIROS ACUMUL | N3: ATR Retiros acumul | O3: ADICIONES | P3: ATR | Q3: RETIROS ACUMUL | R3: ATR Retiros acumul | S3: ADICIONES | T3: ATR | U3: RETIROS ACUMUL | V3: ATR Retiros acumul | W3: ADICIONES | X3: ATR | Y3: RETIROS ACUMUL | Z3: ATR Retiros acumul | AA3: ADICIONES | AB3: ATR | AC3: RETIROS ACUMUL | AD3: ATR Retiros acumul | AE3: ADICIONES | AF3: ATR | AG3: RETIROS ACUMUL | AH3: ATR Retiros acumul | AI3: ADICIONES | AJ3: ATR | AK3: RETIROS ACUMUL | AL3: ATR Retiros acumul | AM3: ADICIONES | AN3: ATR | AO3: RETIROS ACUMUL | AP3: Depr RETIROS ACUMUL | AQ3: ADICIONES | AR3: ATR | AS3: RETIROS ACUMUL | AT3: Depr RETIROS ACUMUL | AU3: ADICIONES | AV3: ATR | AW3: RETIROS ACUMUL | AX3: Depr RETIROS ACUMUL | AY3: ADICIONES | AZ3: ATR | BA3: RETIROS ACUMUL | BB3: Depr RETIROS ACUMUL | BC3: ADICIONES | BD3: ATR | BE3: RETIROS ACUMUL | BF3: Depr RETIROS ACUMUL | BG3: ADICIONES | BH3: ATR | BI3: RETIROS ACUMUL | BJ3: Depr RETIROS ACUMUL | BK3: ADICIONES | BL3: ATR | BM3: RETIROS ACUMUL | BN3: Depr RETIROS ACUMUL | BO3: ADICIONES | BP3: ATR | BQ3: RETIROS ACUMUL | BR3: Depr RETIROS ACUMUL | BS3: ADICIONES | BT3: ATR y AE | BU3: RETIROS ACUMUL | BV3: Depr RETIROS ACUMUL | BW3: ADICIONES | BX3: ATR y AE | BY3: RETIROS ACUMUL | BZ3: Depr RETIROS ACUMUL | CA3: ADICIONES | CB3: ATR y AE | CC3: RETIROS ACUMUL | CD3: Depr RETIROS ACUMUL | CE3: ADICIONES | CF3: ATR y AE | CG3: RETIROS ACUMUL | CH3: Depr RETIROS ACUMUL | CI3: ADICIONES | CJ3: ATR y AE | CK3: RETIROS ACUMUL | CL3: Depr RETIROS ACUMUL | CM3: ADICIONES | CN3: ATR y AE | CO3: RETIROS ACUMUL | CP3: Depr RETIROS ACUMUL | CQ3: ADICIONES | CR3: ATR y AE | CS3: RETIROS ACUMUL | CT3: Depr RETIROS ACUMUL | CU3: ADICIONES | CV3: ATR y AE | CW3: RETIROS ACUMUL | CX3: Depr RETIROS ACUMUL | CY3: Año de alta activos < 2005 | CZ3: Vida activos < 2001 | DA3: Vida activos 2002 | DB3: Vida activos 2003 | DC3: Vida activos 2004 | DD3: Vida activos 2005 | DE3: Vida activos 2006 | DF3: Vida activos 2007 | DG3: Vida activos 2008 | DH3: Vida activos 2009 | DI3: Vida activos 2010 | DJ3: Vida activos 2011 | DK3: Vida activos 2012 | DL3: Vida activos 2013 | DM3: Vida activos 2014 | DN3: Vida activos 2015 | DO3: Vida activos 2016 | DP3: Vida activos 2017 | DQ3: Vida activos 2018 | DR3: Vida activos 2019 | DS3: Vida activos 2020 | DT3: Vida activos 2021 | DU3: Vida activos 2022 | DV3: Vida activos 2023 | DW3: Vida activos 2024 | DX3: Vida activos 2025 | DY3: Depreciación | DZ3: BC BRUTA 30/06 | EA3: BC BRUTA tdep 30/06 | EB3: BC NETA 30/06 | EC3: Depreciación | ED3: Vida activos < 2001 | EE3: Vida activos 2002 | EF3: Vida activos 2003 | EG3: Vida activos 2004 | EH3: Vida activos 2005 | EI3: Vida activos 2006 | EJ3: Vida activos 2007 | EK3: Vida activos 2008 | EL3: Vida activos 2009 | EM3: Vida activos 2010 | EN3: Vida activos 2011 | EO3: Vida activos 2012 | EP3: Vida activos 2013 | EQ3: Vida activos 2014 | ER3: Vida activos 2015 | ES3: Vida activos 2016 | ET3: Vida activos 2017 | EU3: Vida activos 2018 | EV3: Vida activos 2019 | EW3: Vida activos 2020 | EX3: Vida activos 2021 | EY3: Vida activos 2022 | EZ3: Vida activos 2023 | FA3: Vida activos 2024 | FB3: Vida activos 2025 | FC3: Depreciación | FD3: Vida activos < 2001 | FE3: Vida activos 2002 | FF3: Vida activos 2003 | FG3: Vida activos 2004 | FH3: Vida activos 2005 | FI3: Vida activos 2006 | FJ3: Vida activos 2007 | FK3: Vida activos 2008 | FL3: Vida activos 2009 | FM3: Vida activos 2010 | FN3: Vida activos 2011 | FO3: Vida activos 2012 | FP3: Vida activos 2013 | FQ3: Vida activos 2014 | FR3: Vida activos 2015 | FS3: Vida activos 2016 | FT3: Vida activos 2017 | FU3: Vida activos 2018 | FV3: Vida activos 2019 | FW3: Vida activos 2020 | FX3: Vida activos 2021 | FY3: =EY3 -> Vida activos 2022 | FZ3: Vida activos 2023 | GA3: Vida activos 2024 | GB3: Vida activos 2025 | GC3: Depreciación | GD3: Vida activos < 2001 | GE3: Vida activos 2002 | GF3: Vida activos 2003 | GG3: Vida activos 2004 | GH3: Vida activos 2005 | GI3: Vida activos 2006 | GJ3: Vida activos 2007 | GK3: Vida activos 2008 | GL3: Vida activos 2009 | GM3: Vida activos 2010 | GN3: Vida activos 2011 | GO3: Vida activos 2012 | GP3: Vida activos 2013 | GQ3: Vida activos 2014 | GR3: Vida activos 2015 | GS3: Vida activos 2016 | GT3: Vida activos 2017 | GU3: Vida activos 2018 | GV3: Vida activos 2019 | GW3: Vida activos 2020 | GX3: Vida activos 2021 | GY3: =FY3 -> Vida activos 2022 | GZ3: Vida activos 2023 | HA3: Vida activos 2024 | HB3: Vida activos 2025 | HC3: Depreciación | HD3: Vida activos < 2001 | HE3: Vida activos 2002 | HF3: Vida activos 2003 | HG3: Vida activos 2004 | HH3: Vida activos 2005 | HI3: Vida activos 2006 | HJ3: Vida activos 2007 | HK3: Vida activos 2008 | HL3: Vida activos 2009 | HM3: Vida activos 2010 | HN3: Vida activos 2011 | HO3: Vida activos 2012 | HP3: Vida activos 2013 | HQ3: Vida activos 2014 | HR3: Vida activos 2015 | HS3: Vida activos 2016 | HT3: Vida activos 2017 | HU3: Vida activos 2018 | HV3: Vida activos 2019 | HW3: Vida activos 2020 | HX3: Vida activos 2021 | HY3: =GY3 -> Vida activos 2022 | HZ3: Vida activos 2023 | IA3: Vida activos 2024 | IB3: Vida activos 2025 | IC3: Depreciación
FY4: 0 | FZ4: 0 | GA4: 0 | GB4: 0 | GY4: 0 | GZ4: 0 | HA4: 0 | HB4: 0 | HY4: 0 | HZ4: 0 | IA4: 0 | IB4: 0
A5: PROPIEDADES Y PLANTA | B5: Planta Intangible | C5: 4 | D5: 16828362.29 | F5: 9367054.958 | G5: 724231.49 | K5: 275238.236 | L5: 0 | O5: 550652.571 | S5: 328758 | W5: 722469.45 | X5: 0 | AA5: 244601.91 | AB5: 0 | AE5: 568283.63 | AF5: 0 | AI5: 1730965.996 | AJ5: 0 | AM5: 355982.86 | AN5: 0 | AQ5: 759508.43 | AR5: 0 | AU5: 0 | AV5: 0 | AY5: 237791.62 | AZ5: 0 | BC5: 689668.14 | BD5: 0 | BG5: 2684060.79 | BH5: 0 | BK5: 4142248 | BL5: 0 | BO5: 2535228 | BS5: 3814577.8 | BT5: 0 | BW5: 9457276.18 | BX5: 0 | CA5: 1851055.6 | CB5: 0 | CE5: 1807673.39 | CF5: 0 | CI5: 1984535.38 | CK5: 0 | CL5: 0 | CM5: 759501.37 | CO5: 0 | CP5: 0 | CQ5: 862479 | CS5: 0 | CT5: 0 | CU5: 608528 | CV5: =IFERROR(IF((CJ5+CN5+CR5)/(CI5+CM5+CQ5)>0,((CJ5+CN5+CR5)/(CI5+CM5+CQ5))*CU5,0),0) -> 0 | CY5: =IF(D5=0,0,2001-(D5-F5)*C5/D5) -> 1999.226492 | CZ5: =IF((1-($DY$2-$CY5)/$C5)>0,(1-($DY$2-$CY5)/$C5),0) -> 0 | DA5: =IF((1-($DY$2-G$2)/$C5)>0,(1-($DY$2-G$2)/$C5),0) -> 0 | DB5: =IF((1-($DY$2-K$2)/$C5)>0,(1-($DY$2-K$2)/$C5),0) -> 0 | DC5: =IF((1-($DY$2-O$2)/$C5)>0,(1-($DY$2-O$2)/$C5),0) -> 0 | DD5: =IF((1-($DY$2-S$2)/$C5)>0,(1-($DY$2-S$2)/$C5),0) -> 0 | DE5: =IF((1-($DY$2-W$2)/$C5)>0,(1-($DY$2-W$2)/$C5),0) -> 0 | DF5: =IF((1-($DY$2-AA$2)/$C5)>0,(1-($DY$2-AA$2)/$C5),0) -> 0 | DG5: =IF((1-($DY$2-AE$2)/$C5)>0,(1-($DY$2-AE$2)/$C5),0) -> 0 | DH5: =IF((1-($DY$2-AI$2)/$C5)>0,(1-($DY$2-AI$2)/$C5),0) -> 0 | DI5: =IF((1-($DY$2-AM$2)/$C5)>0,(1-($DY$2-AM$2)/$C5),0) -> 0 | DJ5: =IF((1-($DY$2-AQ$2)/$C5)>0,(1-($DY$2-AQ$2)/$C5),0) -> 0 | DK5: =IF((1-($DY$2-AU$2)/$C5)>0,(1-($DY$2-AU$2)/$C5),0) -> 0 | DL5: =IF((1-($DY$2-AY$2)/$C5)>0,(1-($DY$2-AY$2)/$C5),0) -> 0 | DM5: =IF((1-($DY$2-BC$2)/$C5)>0,(1-($DY$2-BC$2)/$C5),0) -> 0 | DN5: =IF((1-($DY$2-BG$2)/$C5)>0,(1-($DY$2-BG$2)/$C5),0) -> 0 | DO5: =IF((1-($DY$2-BK$2)/$C5)>0,(1-($DY$2-BK$2)/$C5),0) -> 0 | DP5: =IF((1-($DY$2-BO$2)/$C5)>0,(1-($DY$2-BO$2)/$C5),0) -> 0 | DQ5: =IF((1-($DY$2-BS$2)/$C5)>0,(1-($DY$2-BS$2)/$C5),0) -> 0 | DR5: =IF((1-($DY$2-BW$2)/$C5)>0,(1-($DY$2-BW$2)/$C5),0) -> 0 | DS5: =IF((1-($DY$2-CA$2)/$C5)>0,(1-($DY$2-CA$2)/$C5),0) -> 0 | DT5: =IF((1-($DY$2-CE$2)/$C5)>0,(1-($DY$2-CE$2)/$C5),0) -> 0 | DU5: =IF((1-($DY$2-CI$2)/$C5)>0,(1-($DY$2-CI$2)/$C5),0) -> 0.125 | DV5: =IF((1-($DY$2-CM$2)/$C5)>0,(1-($DY$2-CM$2)/$C5),0) -> 0.375 | DW5: =IF((1-($DY$2-CQ$2)/$C5)>0,(1-($DY$2-CQ$2)/$C5),0) -> 0.625 | DX5: =IF((1-($DY$2-CU$2)/$C5)>0,(1-($DY$2-CU$2)/$C5),0) -> 0.875 | DY5: =IF(CZ5=0,0,($D5-$E5)*1/$C5)+IF(DA5=0,0,($G5-$H5-$I5)*$G$60*1/$C5)+IF(DB5=0,0,($K5-$L5-$M5)*$K$60*1/$C5)+IF(DC5=0,0,($O5-$P5-$Q5)*$O$60*1/$C5)+IF(DD5=0,0,($S5-$T5-$U5)*$S$60*1/$C5)+IF(DE5=0,0,($W5-$X5-$Y5)*$W$60*1/$C5)+IF(DF5=0,0,($AA5-$AB5-$AC5)*$AA$60*1/$C5)+IF(DG5=0,0,($AE5-$AF5-$AG5)*$AE$60*1/$C5)+IF(DH5=0,0,($AI5-$AJ5-$AK5)*$AI$60*1/$C5)+IF(DI5=0,0,($AM5-$AN5-$AO5)*$AM$60*1/$C5)+IF(DJ5=0,0,($AQ5-$AR5-$AS5)*$AQ$60*1/$C5)+IF(DK5=0,0,($AU5-$AV5-$AW5)*$AU$60*1/$C5)+IF(DL5=0,0,($AY5-$AZ5-$BA5)*$AY$60*1/$C5)+IF(DM5=0,0,($BC5-$BD5-$BE5)*$BC$60*1/$C5)+IF(DN5=0,0,($BG5-$BH5-$BI5)*$BG$60*1/$C5)+IF(DO5=0,0,($BK5-$BL5-$BM5)*$BK$60*1/$C5)+IF(DP5=0,0,($BO5-$BP5-$BQ5)*$BO$60*1/$C5)+IF(DQ5=0,0,($BS5-$BT5-$BU5)*$BS$60*1/$C5)+IF(DR5=0,0,($BW5-$BX5-$BY5)*$BW$60*1/$C5)+IF(DS5=0,0,($CA5-$CB5-$CC5)*$CA$60*1/$C5)+IF(DT5=0,0,($CE5-$CF5-$CG5)*$CE$60*1/$C5)+IF(DU5=0,0,($CI5-$CJ5-$CK5)*$CI$60*1/$C5)+IF(DV5=0,0,($CM5-$CN5-$CO5)*$CM$60*1/$C5)+IF(DW5=0,0,($CQ5-$CR5-$CS5)*$CQ$60*1/$C5)+IF(DX5=0,0,($CU5-$CV5-$CW5)*$CU$60*1/$C5) -> 895696.7969 | DZ5: =D5-E5+(G5-H5-I5)*G$60+(K5-L5-M5)*K$60+(O5-P5-Q5)*O$60+(S5-T5-U5)*S$60+(W5-X5-Y5)*W$60+(AA5-AB5-AC5)*AA$60+(AE5-AF5-AG5)*AE$60+(AI5-AJ5-AK5)*AI$60+(AM5-AN5-AO5)*AM$60+(AQ5-AR5-AS5)*$AQ$60+(AU5-AV5-AW5)*$AU$60+(AY5-AZ5-BA5)*$AY$60+(BC5-BD5-BE5)*$BC$60+(BG5-BH5-BI5)*$BG$60+(BK5-BL5-BM5)*$BK$60+(BO5-BP5-BQ5)*$BO$60+(BS5-BT5-BU5)*$BS$60+(BW5-BX5-BY5)*$BW$60+(CA5-CB5-CC5)*$CA$60+(CE5-CF5-CG5)*$CE$60+(CI5-CJ5-CK5)*$CI$60+(CM5-CN5-CO5)*$CM$60+(CQ5-CR5-CS5)*$CQ$60+(CU5-CV5-CW5)*$CU$60 -> 50309831.76 | EA5: =IF(CZ5=0,D5-E5,0)+IF(DA5=0,(G5-H5-I5)*G$60,0)+IF(DB5=0,(K5-L5-M5)*K$60,0)+IF(DC5=0,(O5-P5-Q5)*O$60,0)+IF(DD5=0,(S5-T5-U5)*S$60,0)+IF(DE5=0,(W5-X5-Y5)*W$60,0)+IF(DF5=0,(AA5-AB5-AC5)*AA$60,0)+IF(DG5=0,(AE5-AF5-AG5)*AE$60,0)+IF(DH5=0,(AI5-AJ5-AK5)*AI$60,0)+IF(DI5=0,(AM5-AN5-AO5)*AM$60,0)+IF(DJ5=0,(AQ5-AR5-AS5)*$AQ$60,0)+IF(DK5=0,(AU5-AV5-AW5)*$AU$60,0)+IF(DL5=0,(AY5-AZ5-BA5)*$AY$60,0)++IF(DM5=0,(BC5-BD5-BE5)*$BC$60,0)+IF(DN5=0,(BG5-BH5-BI5)*$BG$60,0)+IF(DO5=0,(BK5-BL5-BM5)*$BK$60,0)+IF(DP5=0,(BO5-BP5-BQ5)*$BO$60,0)+IF(DQ5=0,(BS5-BT5-BU5)*$BS$60,0)+IF(DR5=0,(BW5-BX5-BY5)*$BW$60,0)+IF(DS5=0,(CA5-CB5-CC5)*$CA$60,0)+IF(DT5=0,(CE5-CF5-CG5)*$CE$60,0)+IF(DU5=0,(CI5-CJ5-CK5)*$CI$60,0)+IF(DV5=0,(CM5-CN5-CO5)*$CM$60,0)+IF(DW5=0,(CQ5-CR5-CS5)*$CQ$60,0)+IF(DX5=0,(CU5-CV5-CW5)*$CU$60,0) -> 46727044.57 | EB5: =(D5-E5)*CZ5+((G5-H5-(I5-J5))*G$60)*DA5+((K5-L5-(M5-N5))*K$60)*DB5+((O5-P5-(Q5-R5))*O$60)*DC5+((S5-T5-(U5-V5))*S$60)*DD5+((W5-X5-(Y5-Z5))*W$60)*DE5+((AA5-AB5-(AC5-AD5))*AA$60)*DF5+((AE5-AF5-(AG5-AH5))*AE$60)*DG5+((AI5-AJ5-(AK5-AL5))*AI$60)*DH5+((AM5-AN5-(AO5-AP5))*$AM$60)*DI5+((AQ5-AR5-(AS5-AT5))*$AQ$60)*DJ5+((AU5-AV5-(AW5-AX5))*$AU$60)*DK5+((AY5-AZ5-(BA5-BB5))*$AY$60)*DL5+((BC5-BD5-(BE5-BF5))*$BC$60)*DM5+((BG5-BH5-(BI5-BJ5))*$BG$60)*DN5+((BK5-BL5-(BM5-BN5))*$BK$60)*DO5+((BO5-BP5-(BQ5-BR5))*$BO$60)*DP5+((BS5-BT5-(BU5-BV5))*$BS$60)*DQ5+((BW5-BX5-(BY5-BZ5))*$BW$60)*DR5+((CA5-CB5-(CC5-CD5))*$CA$60)*DS5+((CE5-CF5-(CG5-CH5))*$CE$60)*DT5+((CI5-CJ5-(CK5-CL5))*$CI$60)*DU5+((CM5-CN5-(CO5-CP5))*$CM$60)*DV5+((CQ5-CR5-(CS5-CT5))*$CQ$60)*DW5+((CU5-CV5-(CW5-CX5))*$CU$60)*DX5 -> 1363732.615 | EC5: =(DZ5-EA5)*1/C5 -> 895696.7969 | ED5: =IF((1-($FC$2-$CY5)/$C5)>0,(1-($FC$2-$CY5)/$C5),0) -> 0 | EE5: =IF((1-($FC$2-EE$2)/$C5)>0,(1-($FC$2-EE$2)/$C5),0) -> 0 | EF5: 0 | EG5: 0 | EH5: 0 | EI5: 0 | EJ5: 0 | EK5: 0 | EL5: 0 | EM5: 0 | EN5: 0 | EO5: =IF((1-($FC$2-EO$2)/$C5)>0,(1-($FC$2-EO$2)/$C5),0) -> 0 | EP5: 0 | EQ5: 0 | ER5: 0 | ES5: 0 | ET5: 0 | EU5: 0 | EV5: 0 | EW5: 0 | EX5: 0 | EY5: 0 | EZ5: =IF((1-($FC$2-EZ$2)/$C5)>0,(1-($FC$2-EZ$2)/$C5),0) -> 0.125 | FA5: 0.375 | FB5: =IF((1-($FC$2-FB$2)/$C5)>0,(1-($FC$2-FB$2)/$C5),0) -> 0.625 | FC5: =IF(ED5=0,0,($D5-$E5)*1/$C5)+IF(EE5=0,0,($G5-$H5-$I5)*$G$60*1/$C5)+IF(EF5=0,0,($K5-$L5-$M5)*$K$60*1/$C5)+IF(EG5=0,0,($O5-$P5-$Q5)*$O$60*1/$C5)+IF(EH5=0,0,($S5-$T5-$U5)*$S$60*1/$C5)+IF(EI5=0,0,($W5-$X5-$Y5)*$W$60*1/$C5)+IF(EJ5=0,0,($AA5-$AB5-$AC5)*$AA$60*1/$C5)+IF(EK5=0,0,($AE5-$AF5-$AG5)*$AE$60*1/$C5)+IF(EL5=0,0,($AI5-$AJ5-$AK5)*$AI$60*1/$C5)+IF(EM5=0,0,($AM5-$AN5-$AO5)*$AM$60*1/$C5)+IF(EN5=0,0,($AQ5-$AR5-$AS5)*$AQ$60*1/$C5)+IF(EO5=0,0,($AU5-$AV5-$AW5)*$AU$60*1/$C5)+IF(EP5=0,0,($AY5-$AZ5-$BA5)*$AY$60*1/$C5)+IF(EQ5=0,0,($BC5-$BD5-$BE5)*$BC$60*1/$C5)+IF(ER5=0,0,($BG5-$BH5-$BI5)*$BG$60*1/$C5)+IF(ES5=0,0,($BK5-$BL5-$BM5)*$BK$60*1/$C5)+IF(ET5=0,0,($BO5-$BP5-$BQ5)*$BO$60*1/$C5)+IF(EU5=0,0,($BS5-$BT5-$BU5)*$BS$60*1/$C5)+IF(EV5=0,0,($BW5-$BX5-$BY5)*$BW$60*1/$C5)+IF(EW5=0,0,($CA5-$CB5-$CC5)*$CA$60*1/$C5)+IF(EX5=0,0,($CE5-$CF5-$CG5)*$CE$60*1/$C5)+IF(EY5=0,0,($CI5-$CJ5-$CK5)*$CI$60*1/$C5)+IF(EZ5=0,0,($CM5-$CN5-$CO5)*$CM$60*1/$C5)+IF(FA5=0,0,($CQ5-$CR5-$CS5)*$CQ$60*1/$C5)+IF(FB5=0,0,($CU5-$CV5-$CW5)*$CU$60*1/$C5) -> 473983.0286 | FD5: =IF((1-($GC$2-$CY5)/$C5)>0,(1-($GC$2-$CY5)/$C5),0) -> 0 | FE5: =IF((1-($GC$2-FE$2)/$C5)>0,(1-($GC$2-FE$2)/$C5),0) -> 0 | FF5: 0 | FG5: 0 | FH5: 0 | FI5: 0 | FJ5: 0 | FK5: 0 | FL5: 0 | FM5: 0 | FN5: 0 | FO5: =IF((1-($GC$2-FO$2)/$C5)>0,(1-($GC$2-FO$2)/$C5),0) -> 0 | FP5: 0 | FQ5: 0 | FR5: 0 | FS5: 0 | FT5: 0 | FU5: 0 | FV5: 0 | FW5: 0 | FX5: 0 | FY5: 0 | FZ5: =IF((1-($GC$2-FZ$2)/$C5)>0,(1-($GC$2-FZ$2)/$C5),0) -> 0 | GA5: 0.125 | GB5: 0.375 | GC5: =IF(FD5=0,0,($D5-$E5)*1/$C5)+IF(FE5=0,0,($G5-$H5-$I5)*$G$60*1/$C5)+IF(FF5=0,0,($K5-$L5-$M5)*$K$60*1/$C5)+IF(FG5=0,0,($O5-$P5-$Q5)*$O$60*1/$C5)+IF(FH5=0,0,($S5-$T5-$U5)*$S$60*1/$C5)+IF(FI5=0,0,($W5-$X5-$Y5)*$W$60*1/$C5)+IF(FJ5=0,0,($AA5-$AB5-$AC5)*$AA$60*1/$C5)+IF(FK5=0,0,($AE5-$AF5-$AG5)*$AE$60*1/$C5)+IF(FL5=0,0,($AI5-$AJ5-$AK5)*$AI$60*1/$C5)+IF(FM5=0,0,($AM5-$AN5-$AO5)*$AM$60*1/$C5)+IF(FN5=0,0,($AQ5-$AR5-$AS5)*$AQ$60*1/$C5)+IF(FO5=0,0,($AU5-$AV5-$AW5)*$AU$60*1/$C5)+IF(FP5=0,0,($AY5-$AZ5-$BA5)*$AY$60*1/$C5)+IF(FQ5=0,0,($BC5-$BD5-$BE5)*$BC$60*1/$C5)+IF(FR5=0,0,($BG5-$BH5-$BI5)*$BG$60*1/$C5)+IF(FS5=0,0,($BK5-$BL5-$BM5)*$BK$60*1/$C5)+IF(FT5=0,0,($BO5-$BP5-$BQ5)*$BO$60*1/$C5)+IF(FU5=0,0,($BS5-$BT5-$BU5)*$BS$60*1/$C5)+IF(FV5=0,0,($BW5-$BX5-$BY5)*$BW$60*1/$C5)+IF(FW5=0,0,($CA5-$CB5-$CC5)*$CA$60*1/$C5)+IF(FX5=0,0,($CE5-$CF5-$CG5)*$CE$60*1/$C5)+IF(FY5=0,0,($CI5-$CJ5-$CK5)*$CI$60*1/$C5)+IF(FZ5=0,0,($CM5-$CN5-$CO5)*$CM$60*1/$C5)+IF(GA5=0,0,($CQ5-$CR5-$CS5)*$CQ$60*1/$C5)+IF(GB5=0,0,($CU5-$CV5-$CW5)*$CU$60*1/$C5) -> 312588.9875 | GD5: =IF((1-($HC$2-$CY5)/$C5)>0,(1-($HC$2-$CY5)/$C5),0) -> 0 | GE5: =IF((1-($HC$2-GE$2)/$C5)>0,(1-($HC$2-GE$2)/$C5),0) -> 0 | GF5: 0 | GG5: 0 | GH5: 0 | GI5: 0 | GJ5: 0 | GK5: 0 | GL5: 0 | GM5: 0 | GN5: 0 | GO5: =IF((1-($HC$2-GO$2)/$C5)>0,(1-($HC$2-GO$2)/$C5),0) -> 0 | GP5: 0 | GQ5: 0 | GR5: 0 | GS5: 0 | GT5: 0 | GU5: 0 | GV5: 0 | GW5: 0 | GX5: 0 | GY5: 0 | GZ5: =IF((1-($HC$2-GZ$2)/$C5)>0,(1-($HC$2-GZ$2)/$C5),0) -> 0 | HA5: 0 | HB5: 0.125 | HC5: =IF(GD5=0,0,($D5-$E5)*1/$C5)+IF(GE5=0,0,($G5-$H5-$I5)*$G$60*1/$C5)+IF(GF5=0,0,($K5-$L5-$M5)*$K$60*1/$C5)+IF(GG5=0,0,($O5-$P5-$Q5)*$O$60*1/$C5)+IF(GH5=0,0,($S5-$T5-$U5)*$S$60*1/$C5)+IF(GI5=0,0,($W5-$X5-$Y5)*$W$60*1/$C5)+IF(GJ5=0,0,($AA5-$AB5-$AC5)*$AA$60*1/$C5)+IF(GK5=0,0,($AE5-$AF5-$AG5)*$AE$60*1/$C5)+IF(GL5=0,0,($AI5-$AJ5-$AK5)*$AI$60*1/$C5)+IF(GM5=0,0,($AM5-$AN5-$AO5)*$AM$60*1/$C5)+IF(GN5=0,0,($AQ5-$AR5-$AS5)*$AQ$60*1/$C5)+IF(GO5=0,0,($AU5-$AV5-$AW5)*$AU$60*1/$C5)+IF(GP5=0,0,($AY5-$AZ5-$BA5)*$AY$60*1/$C5)+IF(GQ5=0,0,($BC5-$BD5-$BE5)*$BC$60*1/$C5)+IF(GR5=0,0,($BG5-$BH5-$BI5)*$BG$60*1/$C5)+IF(GS5=0,0,($BK5-$BL5-$BM5)*$BK$60*1/$C5)+IF(GT5=0,0,($BO5-$BP5-$BQ5)*$BO$60*1/$C5)+IF(GU5=0,0,($BS5-$BT5-$BU5)*$BS$60*1/$C5)+IF(GV5=0,0,($BW5-$BX5-$BY5)*$BW$60*1/$C5)+IF(GW5=0,0,($CA5-$CB5-$CC5)*$CA$60*1/$C5)+IF(GX5=0,0,($CE5-$CF5-$CG5)*$CE$60*1/$C5)+IF(GY5=0,0,($CI5-$CJ5-$CK5)*$CI$60*1/$C5)+IF(GZ5=0,0,($CM5-$CN5-$CO5)*$CM$60*1/$C5)+IF(HA5=0,0,($CQ5-$CR5-$CS5)*$CQ$60*1/$C5)+IF(HB5=0,0,($CU5-$CV5-$CW5)*$CU$60*1/$C5) -> 129312.2 | HD5: =IF((1-($IC$2-$CY5)/$C5)>0,(1-($IC$2-$CY5)/$C5),0) -> 0 | HE5: =IF((1-($IC$2-HE$2)/$C5)>0,(1-($IC$2-HE$2)/$C5),0) -> 0 | HF5: 0 | HG5: 0 | HH5: 0 | HI5: 0 | HJ5: 0 | HK5: 0 | HL5: 0 | HM5: 0 | HN5: 0 | HO5: =IF((1-($IC$2-HO$2)/$C5)>0,(1-($IC$2-HO$2)/$C5),0) -> 0 | HP5: 0 | HQ5: 0 | HR5: 0 | HS5: 0 | HT5: 0 | HU5: 0 | HV5: 0 | HW5: 0 | HX5: 0 | HY5: 0 | HZ5: =IF((1-($IC$2-HZ$2)/$C5)>0,(1-($IC$2-HZ$2)/$C5),0) -> 0 | IA5: 0 | IB5: 0 | IC5: =IF(HD5=0,0,($D5-$E5)*1/$C5)+IF(HE5=0,0,($G5-$H5-$I5)*$G$60*1/$C5)+IF(HF5=0,0,($K5-$L5-$M5)*$K$60*1/$C5)+IF(HG5=0,0,($O5-$P5-$Q5)*$O$60*1/$C5)+IF(HH5=0,0,($S5-$T5-$U5)*$S$60*1/$C5)+IF(HI5=0,0,($W5-$X5-$Y5)*$W$60*1/$C5)+IF(HJ5=0,0,($AA5-$AB5-$AC5)*$AA$60*1/$C5)+IF(HK5=0,0,($AE5-$AF5-$AG5)*$AE$60*1/$C5)+IF(HL5=0,0,($AI5-$AJ5-$AK5)*$AI$60*1/$C5)+IF(HM5=0,0,($AM5-$AN5-$AO5)*$AM$60*1/$C5)+IF(HN5=0,0,($AQ5-$AR5-$AS5)*$AQ$60*1/$C5)+IF(HO5=0,0,($AU5-$AV5-$AW5)*$AU$60*1/$C5)+IF(HP5=0,0,($AY5-$AZ5-$BA5)*$AY$60*1/$C5)+IF(HQ5=0,0,($BC5-$BD5-$BE5)*$BC$60*1/$C5)+IF(HR5=0,0,($BG5-$BH5-$BI5)*$BG$60*1/$C5)+IF(HS5=0,0,($BK5-$BL5-$BM5)*$BK$60*1/$C5)+IF(HT5=0,0,($BO5-$BP5-$BQ5)*$BO$60*1/$C5)+IF(HU5=0,0,($BS5-$BT5-$BU5)*$BS$60*1/$C5)+IF(HV5=0,0,($BW5-$BX5-$BY5)*$BW$60*1/$C5)+IF(HW5=0,0,($CA5-$CB5-$CC5)*$CA$60*1/$C5)+IF(HX5=0,0,($CE5-$CF5-$CG5)*$CE$60*1/$C5)+IF(HY5=0,0,($CI5-$CJ5-$CK5)*$CI$60*1/$C5)+IF(HZ5=0,0,($CM5-$CN5-$CO5)*$CM$60*1/$C5)+IF(IA5=0,0,($CQ5-$CR5-$CS5)*$CQ$60*1/$C5)+IF(IB5=0,0,($CU5-$CV5-$CW5)*$CU$60*1/$C5) -> 0
B6: Terrenos | C6: 1000 | D6: 1566646.764 | F6: 1566646.764 | G6: 0 | K6: 0 | L6: 0 | O6: 0 | S6: 0 | W6: 0 | X6: 0 | AA6: 0 | AB6: 0 | AE6: 0 | AF6: 0 | AI6: 0 | AJ6: 0 | AM6: 0 | AN6: 0 | AQ6: 0 | AR6: 0 | AU6: 0 | AV6: 0 | AY6: 200000 | AZ6: 0 | BC6: 0 | BD6: 0 | BG6: 5006825 | BH6: 0 | BK6: 0 | BL6: 0 | BO6: 2800000 | BS6: 0 | BT6: 0 | BW6: 14980 | BX6: 0 | CA6: 0 | CB6: 0 | CE6: 0 | CF6: 0 | CI6: 0 | CK6: 0 | CL6: 0 | CM6: 4740750 | CO6: 0 | CP6: 0 | CQ6: 0 | CS6: 0 | CT6: 0 | CU6: 1380751.56 | CV6: 0 | CY6: 2001 | CZ6: 0.9755 | DA6: 0.9765 | DB6: 0.9775 | DC6: 0.9785 | DD6: 0.9795 | DE6: 0.9805 | DF6: 0.9815 | DG6: 0.9825 | DH6: 0.9835 | DI6: 0.9845 | DJ6: 0.9855 | DK6: 0.9865 | DL6: 0.9875 | DM6: 0.9885 | DN6: 0.9895 | DO6: 0.9905 | DP6: 0.9915 | DQ6: 0.9925 | DR6: 0.9935 | DS6: 0.9945 | DT6: 0.9955 | DU6: 0.9965 | DV6: =IF((1-($DY$2-CM$2)/$C6)>0,(1-($DY$2-CM$2)/$C6),0) -> 0.9975 | DW6: =IF((1-($DY$2-CQ$2)/$C6)>0,(1-($DY$2-CQ$2)/$C6),0) -> 0.9985 | DX6: =IF((1-($DY$2-CU$2)/$C6)>0,(1-($DY$2-CU$2)/$C6),0) -> 0.9995 | DY6: =IF(CZ6=0,0,($D6-$E6)*1/$C6)+IF(DA6=0,0,($G6-$H6-$I6)*$G$60*1/$C6)+IF(DB6=0,0,($K6-$L6-$M6)*$K$60*1/$C6)+IF(DC6=0,0,($O6-$P6-$Q6)*$O$60*1/$C6)+IF(DD6=0,0,($S6-$T6-$U6)*$S$60*1/$C6)+IF(DE6=0,0,($W6-$X6-$Y6)*$W$60*1/$C6)+IF(DF6=0,0,($AA6-$AB6-$AC6)*$AA$60*1/$C6)+IF(DG6=0,0,($AE6-$AF6-$AG6)*$AE$60*1/$C6)+IF(DH6=0,0,($AI6-$AJ6-$AK6)*$AI$60*1/$C6)+IF(DI6=0,0,($AM6-$AN6-$AO6)*$AM$60*1/$C6)+IF(DJ6=0,0,($AQ6-$AR6-$AS6)*$AQ$60*1/$C6)+IF(DK6=0,0,($AU6-$AV6-$AW6)*$AU$60*1/$C6)+IF(DL6=0,0,($AY6-$AZ6-$BA6)*$AY$60*1/$C6)+IF(DM6=0,0,($BC6-$BD6-$BE6)*$BC$60*1/$C6)+IF(DN6=0,0,($BG6-$BH6-$BI6)*$BG$60*1/$C6)+IF(DO6=0,0,($BK6-$BL6-$BM6)*$BK$60*1/$C6)+IF(DP6=0,0,($BO6-$BP6-$BQ6)*$BO$60*1/$C6)+IF(DQ6=0,0,($BS6-$BT6-$BU6)*$BS$60*1/$C6)+IF(DR6=0,0,($BW6-$BX6-$BY6)*$BW$60*1/$C6)+IF(DS6=0,0,($CA6-$CB6-$CC6)*$CA$60*1/$C6)+IF(DT6=0,0,($CE6-$CF6-$CG6)*$CE$60*1/$C6)+IF(DU6=0,0,($CI6-$CJ6-$CK6)*$CI$60*1/$C6)+IF(DV6=0,0,($CM6-$CN6-$CO6)*$CM$60*1/$C6)+IF(DW6=0,0,($CQ6-$CR6-$CS6)*$CQ$60*1/$C6)+IF(DX6=0,0,($CU6-$CV6-$CW6)*$CU$60*1/$C6) -> 14187.93765 | DZ6: =D6-E6+(G6-H6-I6)*G$60+(K6-L6-M6)*K$60+(O6-P6-Q6)*O$60+(S6-T6-U6)*S$60+(W6-X6-Y6)*W$60+(AA6-AB6-AC6)*AA$60+(AE6-AF6-AG6)*AE$60+(AI6-AJ6-AK6)*AI$60+(AM6-AN6-AO6)*AM$60+(AQ6-AR6-AS6)*$AQ$60+(AU6-AV6-AW6)*$AU$60+(AY6-AZ6-BA6)*$AY$60+(BC6-BD6-BE6)*$BC$60+(BG6-BH6-BI6)*$BG$60+(BK6-BL6-BM6)*$BK$60+(BO6-BP6-BQ6)*$BO$60+(BS6-BT6-BU6)*$BS$60+(BW6-BX6-BY6)*$BW$60+(CA6-CB6-CC6)*$CA$60+(CE6-CF6-CG6)*$CE$60+(CI6-CJ6-CK6)*$CI$60+(CM6-CN6-CO6)*$CM$60+(CQ6-CR6-CS6)*$CQ$60+(CU6-CV6-CW6)*$CU$60 -> 14187937.65 | EA6: =IF(CZ6=0,D6-E6,0)+IF(DA6=0,(G6-H6-I6)*G$60,0)+IF(DB6=0,(K6-L6-M6)*K$60,0)+IF(DC6=0,(O6-P6-Q6)*O$60,0)+IF(DD6=0,(S6-T6-U6)*S$60,0)+IF(DE6=0,(W6-X6-Y6)*W$60,0)+IF(DF6=0,(AA6-AB6-AC6)*AA$60,0)+IF(DG6=0,(AE6-AF6-AG6)*AE$60,0)+IF(DH6=0,(AI6-AJ6-AK6)*AI$60,0)+IF(DI6=0,(AM6-AN6-AO6)*AM$60,0)+IF(DJ6=0,(AQ6-AR6-AS6)*$AQ$60,0)+IF(DK6=0,(AU6-AV6-AW6)*$AU$60,0)+IF(DL6=0,(AY6-AZ6-BA6)*$AY$60,0)++IF(DM6=0,(BC6-BD6-BE6)*$BC$60,0)+IF(DN6=0,(BG6-BH6-BI6)*$BG$60,0)+IF(DO6=0,(BK6-BL6-BM6)*$BK$60,0)+IF(DP6=0,(BO6-BP6-BQ6)*$BO$60,0)+IF(DQ6=0,(BS6-BT6-BU6)*$BS$60,0)+IF(DR6=0,(BW6-BX6-BY6)*$BW$60,0)+IF(DS6=0,(CA6-CB6-CC6)*$CA$60,0)+IF(DT6=0,(CE6-CF6-CG6)*$CE$60,0)+IF(DU6=0,(CI6-CJ6-CK6)*$CI$60,0)+IF(DV6=0,(CM6-CN6-CO6)*$CM$60,0)+IF(DW6=0,(CQ6-CR6-CS6)*$CQ$60,0)+IF(DX6=0,(CU6-CV6-CW6)*$CU$60,0) -> 0 | EB6: =(D6-E6)*CZ6+((G6-H6-(I6-J6))*G$60)*DA6+((K6-L6-(M6-N6))*K$60)*DB6+((O6-P6-(Q6-R6))*O$60)*DC6+((S6-T6-(U6-V6))*S$60)*DD6+((W6-X6-(Y6-Z6))*W$60)*DE6+((AA6-AB6-(AC6-AD6))*AA$60)*DF6+((AE6-AF6-(AG6-AH6))*AE$60)*DG6+((AI6-AJ6-(AK6-AL6))*AI$60)*DH6+((AM6-AN6-(AO6-AP6))*$AM$60)*DI6+((AQ6-AR6-(AS6-AT6))*$AQ$60)*DJ6+((AU6-AV6-(AW6-AX6))*$AU$60)*DK6+((AY6-AZ6-(BA6-BB6))*$AY$60)*DL6+((BC6-BD6-(BE6-BF6))*$BC$60)*DM6+((BG6-BH6-(BI6-BJ6))*$BG$60)*DN6+((BK6-BL6-(BM6-BN6))*$BK$60)*DO6+((BO6-BP6-(BQ6-BR6))*$BO$60)*DP6+((BS6-BT6-(BU6-BV6))*$BS$60)*DQ6+((BW6-BX6-(BY6-BZ6))*$BW$60)*DR6+((CA6-CB6-(CC6-CD6))*$CA$60)*DS6+((CE6-CF6-(CG6-CH6))*$CE$60)*DT6+((CI6-CJ6-(CK6-CL6))*$CI$60)*DU6+((CM6-CN6-(CO6-CP6))*$CM$60)*DV6+((CQ6-CR6-(CS6-CT6))*$CQ$60)*DW6+((CU6-CV6-(CW6-CX6))*$CU$60)*DX6 -> 14065699.48 | EC6: =(DZ6-EA6)*1/C6 -> 14187.93765 | ED6: 0.9745 | EE6: 0.9755 | EF6: 0.9765 | EG6: 0.9775 | EH6: 0.9785 | EI6: 0.9795 | EJ6: 0.9805 | EK6: 0.9815 | EL6: 0.9825 | EM6: 0.9835 | EN6: 0.9845 | EO6: 0.9855 | EP6: 0.9865 | EQ6: 0.9875 | ER6: 0.9885 | ES6: 0.9895 | ET6: 0.9905 | EU6: 0.9915 | EV6: 0.9925 | EW6: 0.9935 | EX6: 0.9945 | EY6: 0.9955 | EZ6: 0.9965 | FA6: 0.9975 | FB6: 0.9985 | FC6: =IF(ED6=0,0,($D6-$E6)*1/$C6)+IF(EE6=0,0,($G6-$H6-$I6)*$G$60*1/$C6)+IF(EF6=0,0,($K6-$L6-$M6)*$K$60*1/$C6)+IF(EG6=0,0,($O6-$P6-$Q6)*$O$60*1/$C6)+IF(EH6=0,0,($S6-$T6-$U6)*$S$60*1/$C6)+IF(EI6=0,0,($W6-$X6-$Y6)*$W$60*1/$C6)+IF(EJ6=0,0,($AA6-$AB6-$AC6)*$AA$60*1/$C6)+IF(EK6=0,0,($AE6-$AF6-$AG6)*$AE$60*1/$C6)+IF(EL6=0,0,($AI6-$AJ6-$AK6)*$AI$60*1/$C6)+IF(EM6=0,0,($AM6-$AN6-$AO6)*$AM$60*1/$C6)+IF(EN6=0,0,($AQ6-$AR6-$AS6)*$AQ$60*1/$C6)+IF(EO6=0,0,($AU6-$AV6-$AW6)*$AU$60*1/$C6)+IF(EP6=0,0,($AY6-$AZ6-$BA6)*$AY$60*1/$C6)+IF(EQ6=0,0,($BC6-$BD6-$BE6)*$BC$60*1/$C6)+IF(ER6=0,0,($BG6-$BH6-$BI6)*$BG$60*1/$C6)+IF(ES6=0,0,($BK6-$BL6-$BM6)*$BK$60*1/$C6)+IF(ET6=0,0,($BO6-$BP6-$BQ6)*$BO$60*1/$C6)+IF(EU6=0,0,($BS6-$BT6-$BU6)*$BS$60*1/$C6)+IF(EV6=0,0,($BW6-$BX6-$BY6)*$BW$60*1/$C6)+IF(EW6=0,0,($CA6-$CB6-$CC6)*$CA$60*1/$C6)+IF(EX6=0,0,($CE6-$CF6-$CG6)*$CE$60*1/$C6)+IF(EY6=0,0,($CI6-$CJ6-$CK6)*$CI$60*1/$C6)+IF(EZ6=0,0,($CM6-$CN6-$CO6)*$CM$60*1/$C6)+IF(FA6=0,0,($CQ6-$CR6-$CS6)*$CQ$60*1/$C6)+IF(FB6=0,0,($CU6-$CV6-$CW6)*$CU$60*1/$C6) -> 14187.93765 | FD6: 0.9735 | FE6: 0.9745 | FF6: 0.9755 | FG6: 0.9765 | FH6: 0.9775 | FI6: 0.9785 | FJ6: 0.9795 | FK6: 0.9805 | FL6: 0.9815 | FM6: 0.9825 | FN6: 0.9835 | FO6: 0.9845 | FP6: 0.9855 | FQ6: 0.9865 | FR6: 0.9875 | FS6: 0.9885 | FT6: 0.9895 | FU6: 0.9905 | FV6: 0.9915 | FW6: 0.9925 | FX6: 0.9935 | FY6: 0.9945 | FZ6: 0.9955 | GA6: 0.9965 | GB6: 0.9975 | GC6: =IF(FD6=0,0,($D6-$E6)*1/$C6)+IF(FE6=0,0,($G6-$H6-$I6)*$G$60*1/$C6)+IF(FF6=0,0,($K6-$L6-$M6)*$K$60*1/$C6)+IF(FG6=0,0,($O6-$P6-$Q6)*$O$60*1/$C6)+IF(FH6=0,0,($S6-$T6-$U6)*$S$60*1/$C6)+IF(FI6=0,0,($W6-$X6-$Y6)*$W$60*1/$C6)+IF(FJ6=0,0,($AA6-$AB6-$AC6)*$AA$60*1/$C6)+IF(FK6=0,0,($AE6-$AF6-$AG6)*$AE$60*1/$C6)+IF(FL6=0,0,($AI6-$AJ6-$AK6)*$AI$60*1/$C6)+IF(FM6=0,0,($AM6-$AN6-$AO6)*$AM$60*1/$C6)+IF(FN6=0,0,($AQ6-$AR6-$AS6)*$AQ$60*1/$C6)+IF(FO6=0,0,($AU6-$AV6-$AW6)*$AU$60*1/$C6)+IF(FP6=0,0,($AY6-$AZ6-$BA6)*$AY$60*1/$C6)+IF(FQ6=0,0,($BC6-$BD6-$BE6)*$BC$60*1/$C6)+IF(FR6=0,0,($BG6-$BH6-$BI6)*$BG$60*1/$C6)+IF(FS6=0,0,($BK6-$BL6-$BM6)*$BK$60*1/$C6)+IF(FT6=0,0,($BO6-$BP6-$BQ6)*$BO$60*1/$C6)+IF(FU6=0,0,($BS6-$BT6-$BU6)*$BS$60*1/$C6)+IF(FV6=0,0,($BW6-$BX6-$BY6)*$BW$60*1/$C6)+IF(FW6=0,0,($CA6-$CB6-$CC6)*$CA$60*1/$C6)+IF(FX6=0,0,($CE6-$CF6-$CG6)*$CE$60*1/$C6)+IF(FY6=0,0,($CI6-$CJ6-$CK6)*$CI$60*1/$C6)+IF(FZ6=0,0,($CM6-$CN6-$CO6)*$CM$60*1/$C6)+IF(GA6=0,0,($CQ6-$CR6-$CS6)*$CQ$60*1/$C6)+IF(GB6=0,0,($CU6-$CV6-$CW6)*$CU$60*1/$C6) -> 14187.93765 | GD6: 0.9725 | GE6: 0.9735 | GF6: 0.9745 | GG6: 0.9755 | GH6: 0.9765 | GI6: 0.9775 | GJ6: 0.9785 | GK6: 0.9795 | GL6: 0.9805 | GM6: 0.9815 | GN6: 0.9825 | GO6: 0.9835 | GP6: 0.9845 | GQ6: 0.9855 | GR6: 0.9865 | GS6: 0.9875 | GT6: 0.9885 | GU6: 0.9895 | GV6: 0.9905 | GW6: 0.9915 | GX6: 0.9925 | GY6: 0.9935 | GZ6: 0.9945 | HA6: 0.9955 | HB6: 0.9965 | HC6: =IF(GD6=0,0,($D6-$E6)*1/$C6)+IF(GE6=0,0,($G6-$H6-$I6)*$G$60*1/$C6)+IF(GF6=0,0,($K6-$L6-$M6)*$K$60*1/$C6)+IF(GG6=0,0,($O6-$P6-$Q6)*$O$60*1/$C6)+IF(GH6=0,0,($S6-$T6-$U6)*$S$60*1/$C6)+IF(GI6=0,0,($W6-$X6-$Y6)*$W$60*1/$C6)+IF(GJ6=0,0,($AA6-$AB6-$AC6)*$AA$60*1/$C6)+IF(GK6=0,0,($AE6-$AF6-$AG6)*$AE$60*1/$C6)+IF(GL6=0,0,($AI6-$AJ6-$AK6)*$AI$60*1/$C6)+IF(GM6=0,0,($AM6-$AN6-$AO6)*$AM$60*1/$C6)+IF(GN6=0,0,($AQ6-$AR6-$AS6)*$AQ$60*1/$C6)+IF(GO6=0,0,($AU6-$AV6-$AW6)*$AU$60*1/$C6)+IF(GP6=0,0,($AY6-$AZ6-$BA6)*$AY$60*1/$C6)+IF(GQ6=0,0,($BC6-$BD6-$BE6)*$BC$60*1/$C6)+IF(GR6=0,0,($BG6-$BH6-$BI6)*$BG$60*1/$C6)+IF(GS6=0,0,($BK6-$BL6-$BM6)*$BK$60*1/$C6)+IF(GT6=0,0,($BO6-$BP6-$BQ6)*$BO$60*1/$C6)+IF(GU6=0,0,($BS6-$BT6-$BU6)*$BS$60*1/$C6)+IF(GV6=0,0,($BW6-$BX6-$BY6)*$BW$60*1/$C6)+IF(GW6=0,0,($CA6-$CB6-$CC6)*$CA$60*1/$C6)+IF(GX6=0,0,($CE6-$CF6-$CG6)*$CE$60*1/$C6)+IF(GY6=0,0,($CI6-$CJ6-$CK6)*$CI$60*1/$C6)+IF(GZ6=0,0,($CM6-$CN6-$CO6)*$CM$60*1/$C6)+IF(HA6=0,0,($CQ6-$CR6-$CS6)*$CQ$60*1/$C6)+IF(HB6=0,0,($CU6-$CV6-$CW6)*$CU$60*1/$C6) -> 14187.93765 | HD6: 0.9715 | HE6: 0.9725 | HF6: 0.9735 | HG6: 0.9745 | HH6: 0.9755 | HI6: 0.9765 | HJ6: 0.9775 | HK6: 0.9785 | HL6: 0.9795 | HM6: 0.9805 | HN6: 0.9815 | HO6: 0.9825 | HP6: 0.9835 | HQ6: 0.9845 | HR6: 0.9855 | HS6: 0.9865 | HT6: 0.9875 | HU6: 0.9885 | HV6: 0.9895 | HW6: 0.9905 | HX6: 0.9915 | HY6: 0.9925 | HZ6: 0.9935 | IA6: 0.9945 | IB6: 0.9955 | IC6: =IF(HD6=0,0,($D6-$E6)*1/$C6)+IF(HE6=0,0,($G6-$H6-$I6)*$G$60*1/$C6)+IF(HF6=0,0,($K6-$L6-$M6)*$K$60*1/$C6)+IF(HG6=0,0,($O6-$P6-$Q6)*$O$60*1/$C6)+IF(HH6=0,0,($S6-$T6-$U6)*$S$60*1/$C6)+IF(HI6=0,0,($W6-$X6-$Y6)*$W$60*1/$C6)+IF(HJ6=0,0,($AA6-$AB6-$AC6)*$AA$60*1/$C6)+IF(HK6=0,0,($AE6-$AF6-$AG6)*$AE$60*1/$C6)+IF(HL6=0,0,($AI6-$AJ6-$AK6)*$AI$60*1/$C6)+IF(HM6=0,0,($AM6-$AN6-$AO6)*$AM$60*1/$C6)+IF(HN6=0,0,($AQ6-$AR6-$AS6)*$AQ$60*1/$C6)+IF(HO6=0,0,($AU6-$AV6-$AW6)*$AU$60*1/$C6)+IF(HP6=0,0,($AY6-$AZ6-$BA6)*$AY$60*1/$C6)+IF(HQ6=0,0,($BC6-$BD6-$BE6)*$BC$60*1/$C6)+IF(HR6=0,0,($BG6-$BH6-$BI6)*$BG$60*1/$C6)+IF(HS6=0,0,($BK6-$BL6-$BM6)*$BK$60*1/$C6)+IF(HT6=0,0,($BO6-$BP6-$BQ6)*$BO$60*1/$C6)+IF(HU6=0,0,($BS6-$BT6-$BU6)*$BS$60*1/$C6)+IF(HV6=0,0,($BW6-$BX6-$BY6)*$BW$60*1/$C6)+IF(HW6=0,0,($CA6-$CB6-$CC6)*$CA$60*1/$C6)+IF(HX6=0,0,($CE6-$CF6-$CG6)*$CE$60*1/$C6)+IF(HY6=0,0,($CI6-$CJ6-$CK6)*$CI$60*1/$C6)+IF(HZ6=0,0,($CM6-$CN6-$CO6)*$CM$60*1/$C6)+IF(IA6=0,0,($CQ6-$CR6-$CS6)*$CQ$60*1/$C6)+IF(IB6=0,0,($CU6-$CV6-$CW6)*$CU$60*1/$C6) -> 14187.93765
B7: Edificios y mejoras | C7: 40 | D7: 16418089.17 | F7: 9218567.559 | G7: 2075393.48 | K7: 23435.23 | L7: 0 | O7: 274437.07 | S7: 191778.05 | W7: 72957.28 | X7: 0 | AA7: 457283 | AB7: 0 | AE7: 31620.1 | AF7: 0 | AI7: 549574 | AJ7: 0 | AM7: 0 | AN7: 0 | AQ7: 28087.59 | AR7: 0 | AU7: 632396.81 | AV7: 0 | AY7: 2591 | AZ7: 0 | BC7: 88437.89 | BD7: 0 | BG7: 1401464.95 | BH7: 0 | BK7: 1095856.12 | BL7: 0 | BO7: 1108659.02 | BS7: 303567.86 | BT7: 0 | BW7: 599385.02 | BX7: 0 | CA7: 548535.33 | CB7: 0 | CE7: 419068.17 | CF7: 0 | CI7: 1251869.7 | CK7: 0 | CL7: 0 | CM7: 504821 | CO7: 0 | CP7: 0 | CQ7: 366381.89 | CS7: 0 | CT7: 0 | CU7: 66174.66 | CV7: 0 | CY7: 1983.459538 | CZ7: 0 | DA7: 0.4125 | DB7: 0.4375 | DC7: 0.4625 | DD7: 0.4875 | DE7: 0.5125 | DF7: 0.5375 | DG7: 0.5625 | DH7: 0.5875 | DI7: 0.6125 | DJ7: 0.6375 | DK7: 0.6625 | DL7: 0.6875 | DM7: 0.7125 | DN7: 0.7375 | DO7: 0.7625 | DP7: 0.7875 | DQ7: 0.8125 | DR7: 0.8375 | DS7: 0.8625 | DT7: 0.8875 | DU7: 0.9125 | DV7: 0.9375 | DW7: 0.9625 | DX7: 0.9875 | DY7: 261725.7208 | DZ7: 26887118 | EA7: 16418089.17 | EB7: 7444727.383 | EC7: 261725.7208 | ED7: 0 | EE7: 0.3875 | EF7: 0.4125 | EG7: 0.4375 | EH7: 0.4625 | EI7: 0.4875 | EJ7: 0.5125 | EK7: 0.5375 | EL7: 0.5625 | EM7: 0.5875 | EN7: 0.6125 | EO7: 0.6375 | EP7: 0.6625 | EQ7: 0.6875 | ER7: 0.7125 | ES7: 0.7375 | ET7: 0.7625 | EU7: 0.7875 | EV7: 0.8125 | EW7: 0.8375 | EX7: 0.8625 | EY7: 0.8875 | EZ7: 0.9125 | FA7: 0.9375 | FB7: 0.9625 | FC7: =IF(ED7=0,0,($D7-$E7)*1/$C7)+IF(EE7=0,0,($G7-$H7-$I7)*$G$60*1/$C7)+IF(EF7=0,0,($K7-$L7-$M7)*$K$60*1/$C7)+IF(EG7=0,0,($O7-$P7-$Q7)*$O$60*1/$C7)+IF(EH7=0,0,($S7-$T7-$U7)*$S$60*1/$C7)+IF(EI7=0,0,($W7-$X7-$Y7)*$W$60*1/$C7)+IF(EJ7=0,0,($AA7-$AB7-$AC7)*$AA$60*1/$C7)+IF(EK7=0,0,($AE7-$AF7-$AG7)*$AE$60*1/$C7)+IF(EL7=0,0,($AI7-$AJ7-$AK7)*$AI$60*1/$C7)+IF(EM7=0,0,($AM7-$AN7-$AO7)*$AM$60*1/$C7)+IF(EN7=0,0,($AQ7-$AR7-$AS7)*$AQ$60*1/$C7)+IF(EO7=0,0,($AU7-$AV7-$AW7)*$AU$60*1/$C7)+IF(EP7=0,0,($AY7-$AZ7-$BA7)*$AY$60*1/$C7)+IF(EQ7=0,0,($BC7-$BD7-$BE7)*$BC$60*1/$C7)+IF(ER7=0,0,($BG7-$BH7-$BI7)*$BG$60*1/$C7)+IF(ES7=0,0,($BK7-$BL7-$BM7)*$BK$60*1/$C7)+IF(ET7=0,0,($BO7-$BP7-$BQ7)*$BO$60*1/$C7)+IF(EU7=0,0,($BS7-$BT7-$BU7)*$BS$60*1/$C7)+IF(EV7=0,0,($BW7-$BX7-$BY7)*$BW$60*1/$C7)+IF(EW7=0,0,($CA7-$CB7-$CC7)*$CA$60*1/$C7)+IF(EX7=0,0,($CE7-$CF7-$CG7)*$CE$60*1/$C7)+IF(EY7=0,0,($CI7-$CJ7-$CK7)*$CI$60*1/$C7)+IF(EZ7=0,0,($CM7-$CN7-$CO7)*$CM$60*1/$C7)+IF(FA7=0,0,($CQ7-$CR7-$CS7)*$CQ$60*1/$C7)+IF(FB7=0,0,($CU7-$CV7-$CW7)*$CU$60*1/$C7) -> 261725.7208 | FD7: 0 | FE7: 0.3625 | FF7: 0.3875 | FG7: 0.4125 | FH7: 0.4375 | FI7: 0.4625 | FJ7: 0.4875 | FK7: 0.5125 | FL7: 0.5375 | FM7: 0.5625 | FN7: 0.5875 | FO7: 0.6125 | FP7: 0.6375 | FQ7: 0.6625 | FR7: 0.6875 | FS7: 0.7125 | FT7: 0.7375 | FU7: 0.7625 | FV7: 0.7875 | FW7: 0.8125 | FX7: 0.8375 | FY7: 0.8625 | FZ7: 0.8875 | GA7: 0.9125 | GB7: 0.9375 | GC7: 261725.7208 | GD7: 0 | GE7: 0.3375 | GF7: 0.3625 | GG7: 0.3875 | GH7: 0.4125 | GI7: 0.4375 | GJ7: 0.4625 | GK7: 0.4875 | GL7: 0.5125 | GM7: 0.5375 | GN7: 0.5625 | GO7: 0.5875 | GP7: 0.6125 | GQ7: 0.6375 | GR7: 0.6625 | GS7: 0.6875 | GT7: 0.7125 | GU7: 0.7375 | GV7: 0.7625 | GW7: 0.7875 | GX7: 0.8125 | GY7: 0.8375 | GZ7: 0.8625 | HA7: 0.8875 | HB7: 0.9125 | HC7: 261725.7208 | HD7: 0 | HE7: 0.3125 | HF7: 0.3375 | HG7: 0.3625 | HH7: 0.3875 | HI7: 0.4125 | HJ7: 0.4375 | HK7: 0.4625 | HL7: 0.4875 | HM7: 0.5125 | HN7: 0.5375 | HO7: 0.5625 | HP7: 0.5875 | HQ7: 0.6125 | HR7: 0.6375 | HS7: 0.6625 | HT7: 0.6875 | HU7: 0.7125 | HV7: 0.7375 | HW7: 0.7625 | HX7: 0.7875 | HY7: 0.8125 | HZ7: 0.8375 | IA7: 0.8625 | IB7: 0.8875 | IC7: 261725.7208
B8: Mobiliario y equipo de oficina | C8: 7 | D8: 3605931.366 | F8: 2006491.854 | G8: 516686.54 | K8: 20337.78 | L8: 0 | O8: 50764.86 | S8: 12982.75 | W8: 29305.8 | X8: 0 | AA8: 178964.1 | AB8: 0 | AE8: 60471.6 | AF8: 0 | AI8: 6430 | AJ8: 0 | AM8: 0 | AN8: 0 | AQ8: 6797.9 | AR8: 0 | AU8: 237363.9 | AV8: 0 | AY8: 11942 | AZ8: 0 | BC8: 7900.75 | BD8: 0 | BG8: 3235.56 | BH8: 0 | BK8: 577966.28 | BL8: 0 | BO8: 35211.26 | BS8: 38824.43 | BT8: 0 | BW8: 111824.94 | BX8: 0 | CA8: 78035.99 | CB8: 0 | CE8: 109394.17 | CF8: 0 | CI8: 0 | CK8: 0 | CL8: 0 | CM8: 136217 | CO8: 0 | CP8: 0 | CQ8: 221093.01 | CS8: 0 | CT8: 0 | CU8: 232152.66 | CV8: 0 | CY8: 1997.895094 | CZ8: 0 | DA8: 0 | DB8: 0 | DC8: 0 | DD8: 0 | DE8: 0 | DF8: 0 | DG8: 0 | DH8: 0 | DI8: 0 | DJ8: 0 | DK8: 0 | DL8: 0 | DM8: 0 | DN8: 0 | DO8: 0 | DP8: 0 | DQ8: 0 | DR8: 0.07142857143 | DS8: 0.2142857143 | DT8: 0.3571428571 | DU8: 0.5 | DV8: 0.6428571429 | DW8: 0.7857142857 | DX8: 0.9285714286 | DY8: 110049.1776 | DZ8: 5894849.961 | EA8: 5124505.718 | EB8: 462725.0967 | EC8: 110049.1776 | ED8: 0 | EE8: 0 | EF8: 0 | EG8: 0 | EH8: 0 | EI8: 0 | EJ8: 0 | EK8: 0 | EL8: 0 | EM8: 0 | EN8: 0 | EO8: 0 | EP8: 0 | EQ8: 0 | ER8: 0 | ES8: 0 | ET8: 0 | EU8: 0 | EV8: 0 | EW8: 0.07142857143 | EX8: 0.2142857143 | EY8: 0.3571428571 | EZ8: 0.5 | FA8: 0.6428571429 | FB8: 0.7857142857 | FC8: 95675.77336 | FD8: 0 | FE8: 0 | FF8: 0 | FG8: 0 | FH8: 0 | FI8: 0 | FJ8: 0 | FK8: 0 | FL8: 0 | FM8: 0 | FN8: 0 | FO8: 0 | FP8: 0 | FQ8: 0 | FR8: 0 | FS8: 0 | FT8: 0 | FU8: 0 | FV8: 0 | FW8: 0 | FX8: 0.07142857143 | FY8: 0.2142857143 | FZ8: 0.3571428571 | GA8: 0.5 | GB8: 0.6428571429 | GC8: 85642.57464 | GD8: 0 | GE8: 0 | GF8: 0 | GG8: 0 | GH8: 0 | GI8: 0 | GJ8: 0 | GK8: 0 | GL8: 0 | GM8: 0 | GN8: 0 | GO8: 0 | GP8: 0 | GQ8: 0 | GR8: 0 | GS8: 0 | GT8: 0 | GU8: 0 | GV8: 0 | GW8: 0 | GX8: 0 | GY8: 0.07142857143 | GZ8: 0.2142857143 | HA8: 0.3571428571 | HB8: 0.5 | HC8: 71577.60993 | HD8: 0 | HE8: 0 | HF8: 0 | HG8: 0 | HH8: 0 | HI8: 0 | HJ8: 0 | HK8: 0 | HL8: 0 | HM8: 0 | HN8: 0 | HO8: 0 | HP8: 0 | HQ8: 0 | HR8: 0 | HS8: 0 | HT8: 0 | HU8: 0 | HV8: 0 | HW8: 0 | HX8: 0 | HY8: 0 | HZ8: 0.07142857143 | IA8: 0.2142857143 | IB8: 0.3571428571 | IC8: 71577.60993
B9: Equipo de computación | C9: 4 | D9: 4696061.247 | F9: 2614696.191 | G9: 217025.03 | K9: 154928.79 | L9: 0 | O9: 173538.072 | S9: 226869.12 | W9: 459584.46 | X9: 0 | AA9: 254650.3 | AB9: 0 | AE9: 77820.41 | AF9: 0 | AI9: 288251.0075 | AJ9: 0 | AM9: 76228.29 | AN9: 0 | AQ9: 133801.85 | AR9: 0 | AU9: 0 | AV9: 0 | AY9: 272670.61 | AZ9: 0 | BC9: 607915.41 | BD9: 0 | BG9: 419201.62 | BH9: 0 | BK9: 158413.68 | BL9: 0 | BO9: 220222.81 | BS9: 508097.66 | BT9: 0 | BW9: 462657.25 | BX9: 0 | CA9: 1059113.99 | CB9: 0 | CE9: 818983.25 | CF9: 0 | CI9: 2229883.35 | CK9: 0 | CL9: 0 | CM9: 3207260.74 | CO9: 0 | CP9: 0 | CQ9: 1211948.62 | CS9: 0 | CT9: 0 | CU9: 5163780 | CV9: 0 | CY9: 1999.22714 | CZ9: 0 | DA9: 0 | DB9: 0 | DC9: 0 | DD9: 0 | DE9: 0 | DF9: 0 | DG9: 0 | DH9: 0 | DI9: 0 | DJ9: 0 | DK9: 0 | DL9: 0 | DM9: 0 | DN9: 0 | DO9: 0 | DP9: 0 | DQ9: 0 | DR9: 0 | DS9: 0 | DT9: 0 | DU9: 0.125 | DV9: 0.375 | DW9: 0.625 | DX9: 0.875 | DY9: 2510235.451 | DZ9: 20526638.76 | EA9: 10485696.96 | EB9: 5743648.546 | EC9: 2510235.451 | ED9: 0 | EE9: 0 | EF9: 0 | EG9: 0 | EH9: 0 | EI9: 0 | EJ9: 0 | EK9: 0 | EL9: 0 | EM9: 0 | EN9: 0 | EO9: 0 | EP9: 0 | EQ9: 0 | ER9: 0 | ES9: 0 | ET9: 0 | EU9: 0 | EV9: 0 | EW9: 0 | EX9: 0 | EY9: 0 | EZ9: 0.125 | FA9: 0.375 | FB9: 0.625 | FC9: 2036385.239 | FD9: 0 | FE9: 0 | FF9: 0 | FG9: 0 | FH9: 0 | FI9: 0 | FJ9: 0 | FK9: 0 | FL9: 0 | FM9: 0 | FN9: 0 | FO9: 0 | FP9: 0 | FQ9: 0 | FR9: 0 | FS9: 0 | FT9: 0 | FU9: 0 | FV9: 0 | FW9: 0 | FX9: 0 | FY9: 0 | FZ9: 0 | GA9: 0.125 | GB9: 0.375 | GC9: 1354842.332 | GD9: 0 | GE9: 0 | GF9: 0 | GG9: 0 | GH9: 0 | GI9: 0 | GJ9: 0 | GK9: 0 | GL9: 0 | GM9: 0 | GN9: 0 | GO9: 0 | GP9: 0 | GQ9: 0 | GR9: 0 | GS9: 0 | GT9: 0 | GU9: 0 | GV9: 0 | GW9: 0 | GX9: 0 | GY9: 0 | GZ9: 0 | HA9: 0 | HB9: 0.125 | HC9: 1097303.25 | HD9: 0 | HE9: 0 | HF9: 0 | HG9: 0 | HH9: 0 | HI9: 0 | HJ9: 0 | HK9: 0 | HL9: 0 | HM9: 0 | HN9: 0 | HO9: 0 | HP9: 0 | HQ9: 0 | HR9: 0 | HS9: 0 | HT9: 0 | HU9: 0 | HV9: 0 | HW9: 0 | HX9: 0 | HY9: 0 | HZ9: 0 | IA9: 0 | IB9: 0 | IC9: 0
B10: Equipos de transporte y carga | C10: 5 | D10: 5798560.324 | F10: 3227551.952 | G10: 0 | K10: 0 | L10: 0 | O10: 0 | S10: 0 | W10: 405378.07 | X10: 0 | AA10: 0 | AB10: 0 | AE10: 149314.29 | AF10: 0 | AI10: 0 | AJ10: 0 | AM10: 0 | AN10: 0 | AQ10: 370753.65 | AR10: 0 | AU10: 578298.94 | AV10: 0 | AY10: 474988 | AZ10: 0 | BC10: 0 | BD10: 0 | BG10: 1163538.24 | BH10: 0 | BK10: 905277.61 | BL10: 0 | BO10: 143384.65 | BS10: 274014.63 | BT10: 0 | BW10: 236000 | BX10: 0 | CA10: 486595.98 | CB10: 0 | CE10: 91956.5 | CF10: 0 | CI10: 0 | CK10: 0 | CL10: 0 | CM10: 0 | CO10: 0 | CP10: 0 | CQ10: 0 | CS10: 0 | CT10: 0 | CU10: 0 | CV10: =IFERROR(IF((CJ10+CN10+CR10)/(CI10+CM10+CQ10)>0,((CJ10+CN10+CR10)/(CI10+CM10+CQ10))*CU10,0),0) -> 0 | CY10: 1998.783063 | CZ10: 0 | DA10: 0 | DB10: 0 | DC10: 0 | DD10: 0 | DE10: 0 | DF10: 0 | DG10: 0 | DH10: 0 | DI10: 0 | DJ10: 0 | DK10: 0 | DL10: 0 | DM10: 0 | DN10: 0 | DO10: 0 | DP10: 0 | DQ10: 0 | DR10: 0 | DS10: 0 | DT10: 0.1 | DU10: 0.3 | DV10: 0.5 | DW10: 0.7 | DX10: 0.9 | DY10: 16552.17 | DZ10: 10463131.68 | EA10: 10380370.83 | EB10: 8276.085 | EC10: 16552.17 | ED10: 0 | EE10: 0 | EF10: 0 | EG10: 0 | EH10: 0 | EI10: 0 | EJ10: 0 | EK10: 0 | EL10: 0 | EM10: 0 | EN10: 0 | EO10: 0 | EP10: 0 | EQ10: 0 | ER10: 0 | ES10: 0 | ET10: 0 | EU10: 0 | EV10: 0 | EW10: 0 | EX10: 0 | EY10: 0.1 | EZ10: 0.3 | FA10: 0.5 | FB10: 0.7 | FC10: 0 | FD10: 0 | FE10: 0 | FF10: 0 | FG10: 0 | FH10: 0 | FI10: 0 | FJ10: 0 | FK10: 0 | FL10: 0 | FM10: 0 | FN10: 0 | FO10: 0 | FP10: 0 | FQ10: 0 | FR10: 0 | FS10: 0 | FT10: 0 | FU10: 0 | FV10: 0 | FW10: 0 | FX10: 0 | FY10: 0 | FZ10: 0.1 | GA10: 0.3 | GB10: 0.5 | GC10: 0 | GD10: 0 | GE10: 0 | GF10: 0 | GG10: 0 | GH10: 0 | GI10: 0 | GJ10: 0 | GK10: 0 | GL10: 0 | GM10: 0 | GN10: 0 | GO10: 0 | GP10: 0 | GQ10: 0 | GR10: 0 | GS10: 0 | GT10: 0 | GU10: 0 | GV10: 0 | GW10: 0 | GX10: 0 | GY10: 0 | GZ10: 0 | HA10: 0.1 | HB10: 0.3 | HC10: 0 | HD10: 0 | HE10: 0 | HF10: 0 | HG10: 0 | HH10: 0 | HI10: 0 | HJ10: 0 | HK10: 0 | HL10: 0 | HM10: 0 | HN10: 0 | HO10: 0 | HP10: 0 | HQ10: 0 | HR10: 0 | HS10: 0 | HT10: 0 | HU10: 0 | HV10: 0 | HW10: 0 | HX10: 0 | HY10: 0 | HZ10: 0 | IA10: 0 | IB10: 0.1 | IC10: 0
B11: Equipos de comunicaciones | C11: 8 | D11: 0 | F11: 0 | G11: 117405.06 | K11: 0 | L11: 0 | O11: 98287.80823 | S11: 182960.31 | W11: 6456.27 | X11: 0 | AA11: 0 | AB11: 0 | AE11: 0 | AF11: 0 | AI11: 110773.2465 | AJ11: 0 | AM11: 92773.35 | AN11: 0 | AQ11: 156532.67 | AR11: 0 | AU11: 105997.39 | AV11: 0 | AY11: 53332.92 | AZ11: 0 | BC11: 150723.88 | BD11: 0 | BG11: 60981.62 | BH11: 0 | BK11: 0 | BL11: 0 | BO11: 0 | BS11: 0 | BT11: 0 | BW11: 0 | BX11: 0 | CA11: 0 | CB11: 0 | CE11: 0 | CF11: 0 | CI11: 0 | CK11: 0 | CL11: 0 | CM11: 0 | CO11: 0 | CP11: 0 | CQ11: 0 | CS11: 0 | CT11: 0 | CU11: 115087.75 | CV11: =IFERROR(IF((CJ11+CN11+CR11)/(CI11+CM11+CQ11)>0,((CJ11+CN11+CR11)/(CI11+CM11+CQ11))*CU11,0),0) -> 0 | CY11: 0 | CZ11: 0 | DA11: 0 | DB11: 0 | DC11: 0 | DD11: 0 | DE11: 0 | DF11: 0 | DG11: 0 | DH11: 0 | DI11: 0 | DJ11: 0 | DK11: 0 | DL11: 0 | DM11: 0 | DN11: 0 | DO11: 0 | DP11: 0 | DQ11: 0.0625 | DR11: 0.1875 | DS11: 0.3125 | DT11: 0.4375 | DU11: 0.5625 | DV11: 0.6875 | DW11: 0.8125 | DX11: 0.9375 | DY11: 12228.07344 | DZ11: 1021918.346 | EA11: 924093.7581 | EB11: 91710.55078 | EC11: 12228.07344 | ED11: 0 | EE11: 0 | EF11: 0 | EG11: 0 | EH11: 0 | EI11: 0 | EJ11: 0 | EK11: 0 | EL11: 0 | EM11: 0 | EN11: 0 | EO11: 0 | EP11: 0 | EQ11: 0 | ER11: 0 | ES11: 0 | ET11: 0 | EU11: 0 | EV11: 0.0625 | EW11: 0.1875 | EX11: 0.3125 | EY11: 0.4375 | EZ11: 0.5625 | FA11: 0.6875 | FB11: 0.8125 | FC11: 12228.07344 | FD11: 0 | FE11: 0 | FF11: 0 | FG11: 0 | FH11: 0 | FI11: 0 | FJ11: 0 | FK11: 0 | FL11: 0 | FM11: 0 | FN11: 0 | FO11: 0 | FP11: 0 | FQ11: 0 | FR11: 0 | FS11: 0 | FT11: 0 | FU11: 0 | FV11: 0 | FW11: 0.0625 | FX11: 0.1875 | FY11: 0.3125 | FZ11: 0.4375 | GA11: 0.5625 | GB11: 0.6875 | GC11: 12228.07344 | GD11: 0 | GE11: 0 | GF11: 0 | GG11: 0 | GH11: 0 | GI11: 0 | GJ11: 0 | GK11: 0 | GL11: 0 | GM11: 0 | GN11: 0 | GO11: 0 | GP11: 0 | GQ11: 0 | GR11: 0 | GS11: 0 | GT11: 0 | GU11: 0 | GV11: 0 | GW11: 0 | GX11: 0.0625 | GY11: 0.1875 | GZ11: 0.3125 | HA11: 0.4375 | HB11: 0.5625 | HC11: 12228.07344 | HD11: 0 | HE11: 0 | HF11: 0 | HG11: 0 | HH11: 0 | HI11: 0 | HJ11: 0 | HK11: 0 | HL11: 0 | HM11: 0 | HN11: 0 | HO11: 0 | HP11: 0 | HQ11: 0 | HR11: 0 | HS11: 0 | HT11: 0 | HU11: 0 | HV11: 0 | HW11: 0 | HX11: 0 | HY11: 0.0625 | HZ11: 0.1875 | IA11: 0.3125 | IB11: 0.4375 | IC11: 12228.07344
B12: Otros equipos de uso general | C12: 17 | D12: 3671966.992 | F12: 2042944.214 | G12: 89880.83 | K12: 334921.35 | L12: 0 | O12: 128967.56 | S12: 170960.37 | W12: 501023.28 | X12: 0 | AA12: 294151.9 | AB12: 0 | AE12: 231400.88 | AF12: 0 | AI12: 79872.89 | AJ12: 0 | AM12: 0 | AN12: 0 | AQ12: 0 | AR12: 0 | AU12: 13823.33 | AV12: 0 | AY12: 0 | AZ12: 0 | BC12: 83034.83 | BD12: 0 | BG12: 46720.15 | BH12: 0 | BK12: 102771.54 | BL12: 0 | BO12: 3365 | BS12: 0 | BT12: 0 | BW12: 200341.37 | BX12: 0 | CA12: 178895.71 | CB12: 0 | CE12: 177074.79 | CF12: 0 | CI12: 179322.87 | CK12: 0 | CL12: 0 | CM12: 222490 | CO12: 0 | CP12: 0 | CQ12: 3157974.89 | CS12: 0 | CT12: 0 | CU12: 1662892.46 | CV12: 0 | CY12: 1993.45816 | CZ12: 0 | DA12: 0 | DB12: 0 | DC12: 0 | DD12: 0 | DE12: 0 | DF12: 0 | DG12: 0 | DH12: 0.02941176471 | DI12: 0.08823529412 | DJ12: 0.1470588235 | DK12: 0.2058823529 | DL12: 0.2647058824 | DM12: 0.3235294118 | DN12: 0.3823529412 | DO12: 0.4411764706 | DP12: 0.5 | DQ12: 0.5588235294 | DR12: 0.6176470588 | DS12: 0.6764705882 | DT12: 0.7352941176 | DU12: 0.7941176471 | DV12: 0.8529411765 | DW12: 0.9117647059 | DX12: 0.9705882353 | DY12: 307181.1377 | DZ12: 10350627.37 | EA12: 5128548.03 | EB12: 4523438.946 | EC12: 307181.1377 | ED12: 0 | EE12: 0 | EF12: 0 | EG12: 0 | EH12: 0 | EI12: 0 | EJ12: 0 | EK12: 0 | EL12: 0 | EM12: 0.02941176471 | EN12: 0.08823529412 | EO12: 0.1470588235 | EP12: 0.2058823529 | EQ12: 0.2647058824 | ER12: 0.3235294118 | ES12: 0.3823529412 | ET12: 0.4411764706 | EU12: 0.5 | EV12: 0.5588235294 | EW12: 0.6176470588 | EX12: 0.6764705882 | EY12: 0.7352941176 | EZ12: 0.7941176471 | FA12: 0.8529411765 | FB12: 0.9117647059 | FC12: 303202.8433 | FD12: 0 | FE12: 0 | FF12: 0 | FG12: 0 | FH12: 0 | FI12: 0 | FJ12: 0 | FK12: 0 | FL12: 0 | FM12: 0 | FN12: 0.02941176471 | FO12: 0.08823529412 | FP12: 0.1470588235 | FQ12: 0.2058823529 | FR12: 0.2647058824 | FS12: 0.3235294118 | FT12: 0.3823529412 | FU12: 0.4411764706 | FV12: 0.5 | FW12: 0.5588235294 | FX12: 0.6176470588 | FY12: 0.6764705882 | FZ12: 0.7352941176 | GA12: 0.7941176471 | GB12: 0.8529411765 | GC12: 303202.8433 | GD12: 0 | GE12: 0 | GF12: 0 | GG12: 0 | GH12: 0 | GI12: 0 | GJ12: 0 | GK12: 0 | GL12: 0 | GM12: 0 | GN12: 0 | GO12: 0.02941176471 | GP12: 0.08823529412 | GQ12: 0.1470588235 | GR12: 0.2058823529 | GS12: 0.2647058824 | GT12: 0.3235294118 | GU12: 0.3823529412 | GV12: 0.4411764706 | GW12: 0.5 | GX12: 0.5588235294 | GY12: 0.6176470588 | GZ12: 0.6764705882 | HA12: 0.7352941176 | HB12: 0.7941176471 | HC12: 303202.8433 | HD12: 0 | HE12: 0 | HF12: 0 | HG12: 0 | HH12: 0 | HI12: 0 | HJ12: 0 | HK12: 0 | HL12: 0 | HM12: 0 | HN12: 0 | HO12: 0 | HP12: 0.02941176471 | HQ12: 0.08823529412 | HR12: 0.1470588235 | HS12: 0.2058823529 | HT12: 0.2647058824 | HU12: 0.3235294118 | HV12: 0.3823529412 | HW12: 0.4411764706 | HX12: 0.5 | HY12: 0.5588235294 | HZ12: 0.6176470588 | IA12: 0.6764705882 | IB12: 0.7352941176 | IC12: 302717.681
B13: TOTAL PROPIEDADES Y PLANTA | D13: =SUM(D5:D12) -> 52585618.15 | E13: =SUM(E5:E12) -> 0 | F13: 30043953.49 | G13: 3740622.43 | H13: 0 | I13: 0 | J13: 0 | K13: 808861.386 | L13: 0 | M13: 0 | N13: 0 | O13: 1276647.941 | P13: 0 | Q13: 0 | R13: 0 | S13: 1114308.6 | T13: 0 | U13: 0 | V13: 0 | W13: 2197174.61 | X13: 0 | Y13: 0 | Z13: 0 | AA13: 1429651.21 | AB13: 0 | AC13: 0 | AD13: 0 | AE13: 1118910.91 | AF13: 0 | AG13: 0 | AH13: 0 | AI13: 2765867.14 | AJ13: 0 | AK13: 0 | AL13: 0 | AM13: 524984.5 | AN13: 0 | AO13: 0 | AP13: 0 | AQ13: 1455482.09 | AR13: 0 | AS13: 0 | AT13: 0 | AU13: 1567880.37 | AV13: 0 | AW13: 0 | AX13: 0 | AY13: 1253316.15 | AZ13: 0 | BA13: 0 | BB13: 0 | BC13: 1627680.9 | BD13: 0 | BE13: 0 | BF13: 0 | BG13: 10786027.93 | BH13: 0 | BI13: 0 | BJ13: 0 | BK13: 6982533.23 | BL13: 0 | BM13: 0 | BN13: 0 | BO13: 6846070.74 | BP13: 0 | BQ13: =SUM(BQ5:BQ12) -> 0 | BR13: 0 | BS13: 4939082.38 | BT13: =SUM(BT5:BT12) -> 0 | BU13: 0 | BV13: 0 | BW13: 11082464.76 | BX13: =SUM(BX5:BX12) -> 0 | BY13: 0 | BZ13: 0 | CA13: 4202232.6 | CB13: =SUM(CB5:CB12) -> 0 | CC13: 0 | CD13: 0 | CE13: 3424150.27 | CF13: =SUM(CF5:CF12) -> 0 | CG13: 0 | CH13: 0 | CI13: =SUM(CI5:CI12) -> 5645611.3 | CJ13: =SUM(CJ5:CJ12) -> 0 | CK13: 0 | CL13: 0 | CM13: =SUM(CM5:CM12) -> 9571040.11 | CN13: 0 | CO13: 0 | CP13: 0 | CQ13: =SUM(CQ5:CQ12) -> 5819877.41 | CR13: 0 | CS13: 0 | CT13: 0 | CU13: =SUM(CU5:CU12) -> 9229367.09 | CV13: =SUM(CV5:CV12) -> 0 | CW13: =SUM(CW5:CW12) -> 0 | CX13: =SUM(CX5:CX12) -> 0 | DY13: =SUM(DY5:DY12) -> 4127856.465 | DZ13: =SUM(DZ5:DZ12) -> 139642053.5 | EA13: =SUM(EA5:EA12) -> 95188349.03 | EB13: =SUM(EB5:EB12) -> 33703958.7 | EC13: =SUM(EC5:EC12) -> 4127856.465 | FC13: =SUM(FC5:FC12) -> 3197388.616 | GC13: =SUM(GC5:GC12) -> 2344418.469 | HC13: =SUM(HC5:HC12) -> 1889537.635 | IC13: =SUM(IC5:IC12) -> 662437.0228
B14: Alta tensión AT (230 y 115 Kv) | D14: 0 | F14: 0 | L14: 0 | S14: 0 | AM14: 0 | AN14: 0 | AQ14: 0 | AR14: 0 | AU14: 0 | AV14: 0 | AY14: 0 | AZ14: 0 | CK14: 0 | CL14: 0 | CO14: 0 | CP14: 0 | CS14: 0 | CT14: 0
B15: Líneas aéreas AT | C15: 30 | D15: 14258943.48 | F15: 8161634.987 | G15: 152319 | K15: 338129.06 | L15: 0 | O15: 0 | S15: 320245 | W15: 11341.38 | X15: 0 | AA15: 12304.695 | AB15: 0 | AE15: 29864.48 | AF15: 0 | AI15: 0 | AJ15: 0 | AM15: 116035.58 | AN15: 0 | AQ15: 1076464.81 | AR15: 0 | AU15: 0 | AV15: 0 | AY15: 0 | AZ15: 0 | BC15: 0 | BD15: 0 | BG15: 0 | BH15: 0 | BK15: 68791.2 | BL15: 0 | BO15: 0 | BS15: 0 | BT15: 0 | BW15: 7436186.73 | BX15: 0 | CA15: 0 | CB15: 0 | CE15: 0 | CF15: 0 | CI15: 51081.43 | CK15: 0 | CL15: 0 | CM15: 0 | CO15: 0 | CP15: 0 | CQ15: 0 | CS15: 0 | CT15: 0 | CU15: 0 | CV15: =IFERROR(IF((CJ15+CN15+CR15)/(CI15+CM15+CQ15)>0,((CJ15+CN15+CR15)/(CI15+CM15+CQ15))*CU15,0),0) -> 0 | CY15: =IF(D15=0,0,2001-(D15-F15)*C15/D15) -> 1988.171612 | CZ15: =IF((1-($DY$2-$CY15)/$C15)>0,(1-($DY$2-$CY15)/$C15),0) -> 0 | DA15: =IF((1-($DY$2-G$2)/$C15)>0,(1-($DY$2-G$2)/$C15),0) -> 0.2166666667 | DB15: =IF((1-($DY$2-K$2)/$C15)>0,(1-($DY$2-K$2)/$C15),0) -> 0.25 | DC15: =IF((1-($DY$2-O$2)/$C15)>0,(1-($DY$2-O$2)/$C15),0) -> 0.2833333333 | DD15: =IF((1-($DY$2-S$2)/$C15)>0,(1-($DY$2-S$2)/$C15),0) -> 0.3166666667 | DE15: =IF((1-($DY$2-W$2)/$C15)>0,(1-($DY$2-W$2)/$C15),0) -> 0.35 | DF15: =IF((1-($DY$2-AA$2)/$C15)>0,(1-($DY$2-AA$2)/$C15),0) -> 0.3833333333 | DG15: =IF((1-($DY$2-AE$2)/$C15)>0,(1-($DY$2-AE$2)/$C15),0) -> 0.4166666667 | DH15: =IF((1-($DY$2-AI$2)/$C15)>0,(1-($DY$2-AI$2)/$C15),0) -> 0.45 | DI15: =IF((1-($DY$2-AM$2)/$C15)>0,(1-($DY$2-AM$2)/$C15),0) -> 0.4833333333 | DJ15: =IF((1-($DY$2-AQ$2)/$C15)>0,(1-($DY$2-AQ$2)/$C15),0) -> 0.5166666667 | DK15: =IF((1-($DY$2-AU$2)/$C15)>0,(1-($DY$2-AU$2)/$C15),0) -> 0.55 | DL15: =IF((1-($DY$2-AY$2)/$C15)>0,(1-($DY$2-AY$2)/$C15),0) -> 0.5833333333 | DM15: =IF((1-($DY$2-BC$2)/$C15)>0,(1-($DY$2-BC$2)/$C15),0) -> 0.6166666667 | DN15: =IF((1-($DY$2-BG$2)/$C15)>0,(1-($DY$2-BG$2)/$C15),0) -> 0.65 | DO15: =IF((1-($DY$2-BK$2)/$C15)>0,(1-($DY$2-BK$2)/$C15),0) -> 0.6833333333 | DP15: =IF((1-($DY$2-BO$2)/$C15)>0,(1-($DY$2-BO$2)/$C15),0) -> 0.7166666667 | DQ15: =IF((1-($DY$2-BS$2)/$C15)>0,(1-($DY$2-BS$2)/$C15),0) -> 0.75 | DR15: =IF((1-($DY$2-BW$2)/$C15)>0,(1-($DY$2-BW$2)/$C15),0) -> 0.7833333333 | DS15: =IF((1-($DY$2-CA$2)/$C15)>0,(1-($DY$2-CA$2)/$C15),0) -> 0.8166666667 | DT15: =IF((1-($DY$2-CE$2)/$C15)>0,(1-($DY$2-CE$2)/$C15),0) -> 0.85 | DU15: =IF((1-($DY$2-CI$2)/$C15)>0,(1-($DY$2-CI$2)/$C15),0) -> 0.8833333333 | DV15: =IF((1-($DY$2-CM$2)/$C15)>0,(1-($DY$2-CM$2)/$C15),0) -> 0.9166666667 | DW15: =IF((1-($DY$2-CQ$2)/$C15)>0,(1-($DY$2-CQ$2)/$C15),0) -> 0.95 | DX15: =IF((1-($DY$2-CU$2)/$C15)>0,(1-($DY$2-CU$2)/$C15),0) -> 0.9833333333 | DY15: =IF(CZ15=0,0,($D15-$E15)*1/$C15)+IF(DA15=0,0,($G15-$H15-$I15)*$G$61*1/$C15)+IF(DB15=0,0,($K15-$L15-$M15)*$K$61*1/$C15)+IF(DC15=0,0,($O15-$P15-$Q15)*$O$61*1/$C15)+IF(DD15=0,0,($S15-$T15-$U15)*$S$61*1/$C15)+IF(DE15=0,0,($W15-$X15-$Y15)*$W$61*1/$C15)+IF(DF15=0,0,($AA15-$AB15-$AC15)*$AA$61*1/$C15)+IF(DG15=0,0,($AE15-$AF15-$AG15)*$AE$61*1/$C15)+IF(DH15=0,0,($AI15-$AJ15-$AK15)*$AI$61*1/$C15)+IF(DI15=0,0,($AM15-$AN15-$AO15)*$AM$61*1/$C15)+IF(DJ15=0,0,($AQ15-$AR15-$AS15)*$AQ$61*1/$C15)+IF(DK15=0,0,($AU15-$AV15-$AW15)*$AU$61*1/$C15)+IF(DL15=0,0,($AY15-$AZ15-$BA15)*$AY$61*1/$C15)+IF(DM15=0,0,($BC15-$BD15-$BE15)*$BC$61*1/$C15)+IF(DN15=0,0,($BG15-$BH15-$BI15)*$BG$61*1/$C15)+IF(DO15=0,0,($BK15-$BL15-$BM15)*$BK$61*1/$C15)+IF(DP15=0,0,($BO15-$BP15-$BQ15)*$BO$61*1/$C15)+IF(DQ15=0,0,($BS15-$BT15-$BU15)*$BS$61*1/$C15)+IF(DR15=0,0,($BW15-$BX15-$BY15)*$BW$61*1/$C15)+IF(DS15=0,0,($CA15-$CB15-$CC15)*$CA$61*1/$C15)+IF(DT15=0,0,($CE15-$CF15-$CG15)*$CE$61*1/$C15)+IF(DU15=0,0,($CI15-$CJ15-$CK15)*$CI$61*1/$C15)+IF(DV15=0,0,($CM15-$CN15-$CO15)*$CM$61*1/$C15)+IF(DW15=0,0,($CQ15-$CR15-$CS15)*$CQ$61*1/$C15)+IF(DX15=0,0,($CU15-$CV15-$CW15)*$CU$61*1/$C15) -> 281928.4441 | DZ15: =D15-E15+(G15-H15-I15)*G$61+(K15-L15-M15)*K$61+(O15-P15-Q15)*O$61+(S15-T15-U15)*S$61+(W15-X15-Y15)*W$61+(AA15-AB15-AC15)*AA$61+(AE15-AF15-AG15)*AE$61+(AI15-AJ15-AK15)*AI$61+(AM15-AN15-AO15)*AM$61+(AQ15-AR15-AS15)*$AQ$61+(AU15-AV15-AW15)*$AU$61+(AY15-AZ15-BA15)*$AY$61+(BC15-BD15-BE15)*$BC$61+(BG15-BH15-BI15)*$BG$61+(BK15-BL15-BM15)*$BK$61+(BO15-BP15-BQ15)*$BO$61+(BS15-BT15-BU15)*$BS$61+(BW15-BX15-BY15)*$BW$61+(CA15-CB15-CC15)*$CA$61+(CE15-CF15-CG15)*$CE$61+(CI15-CJ15-CK15)*$CI$61+(CM15-CN15-CO15)*$CM$61+(CQ15-CR15-CS15)*$CQ$61+(CU15-CV15-CW15)*$CU$61 -> 22716796.8 | EA15: =IF(CZ15=0,D15-E15,0)+IF(DA15=0,(G15-H15-I15)*G$61,0)+IF(DB15=0,(K15-L15-M15)*K$61,0)+IF(DC15=0,(O15-P15-Q15)*O$61,0)+IF(DD15=0,(S15-T15-U15)*S$61,0)+IF(DE15=0,(W15-X15-Y15)*W$61,0)+IF(DF15=0,(AA15-AB15-AC15)*AA$61,0)+IF(DG15=0,(AE15-AF15-AG15)*AE$61,0)+IF(DH15=0,(AI15-AJ15-AK15)*AI$61,0)+IF(DI15=0,(AM15-AN15-AO15)*AM$61,0)+IF(DJ15=0,(AQ15-AR15-AS15)*$AQ$61,0)+IF(DK15=0,(AU15-AV15-AW15)*$AU$61,0)+IF(DL15=0,(AY15-AZ15-BA15)*$AY$61,0)++IF(DM15=0,(BC15-BD15-BE15)*$BC$61,0)+IF(DN15=0,(BG15-BH15-BI15)*$BG$61,0)+IF(DO15=0,(BK15-BL15-BM15)*$BK$61,0)+IF(DP15=0,(BO15-BP15-BQ15)*$BO$61,0)+IF(DQ15=0,(BS15-BT15-BU15)*$BS$61,0)+IF(DR15=0,(BW15-BX15-BY15)*$BW$61,0)+IF(DS15=0,(CA15-CB15-CC15)*$CA$61,0)+IF(DT15=0,(CE15-CF15-CG15)*$CE$61,0)+IF(DU15=0,(CI15-CJ15-CK15)*$CI$61,0)+IF(DV15=0,(CM15-CN15-CO15)*$CM$61,0)+IF(DW15=0,(CQ15-CR15-CS15)*$CQ$61,0)+IF(DX15=0,(CU15-CV15-CW15)*$CU$61,0) -> 14258943.48 | EB15: =(D15-E15)*CZ15+((G15-H15-(I15-J15))*G$61)*DA15+((K15-L15-(M15-N15))*K$61)*DB15+((O15-P15-(Q15-R15))*O$61)*DC15+((S15-T15-(U15-V15))*S$61)*DD15+((W15-X15-(Y15-Z15))*W$61)*DE15+((AA15-AB15-(AC15-AD15))*AA$61)*DF15+((AE15-AF15-(AG15-AH15))*AE$61)*DG15+((AI15-AJ15-(AK15-AL15))*AI$61)*DH15+((AM15-AN15-(AO15-AP15))*$AM$61)*DI15+((AQ15-AR15-(AS15-AT15))*$AQ$61)*DJ15+((AU15-AV15-(AW15-AX15))*$AU$61)*DK15+((AY15-AZ15-(BA15-BB15))*$AY$61)*DL15+((BC15-BD15-(BE15-BF15))*$BC$61)*DM15+((BG15-BH15-(BI15-BJ15))*$BG$61)*DN15+((BK15-BL15-(BM15-BN15))*$BK$61)*DO15+((BO15-BP15-(BQ15-BR15))*$BO$61)*DP15+((BS15-BT15-(BU15-BV15))*$BS$61)*DQ15+((BW15-BX15-(BY15-BZ15))*$BW$61)*DR15+((CA15-CB15-(CC15-CD15))*$CA$61)*DS15+((CE15-CF15-(CG15-CH15))*$CE$61)*DT15+((CI15-CJ15-(CK15-CL15))*$CI$61)*DU15+((CM15-CN15-(CO15-CP15))*$CM$61)*DV15+((CQ15-CR15-(CS15-CT15))*$CQ$61)*DW15+((CU15-CV15-(CW15-CX15))*$CU$61)*DX15 -> 5961349.945 | EC15: =(DZ15-EA15)*1/C15 -> 281928.4441 | ED15: =IF((1-($FC$2-$CY15)/$C15)>0,(1-($FC$2-$CY15)/$C15),0) -> 0 | EE15: =IF((1-($FC$2-EE$2)/$C15)>0,(1-($FC$2-EE$2)/$C15),0) -> 0.1833333333 | EF15: 0.2166666667 | EG15: 0.25 | EH15: 0.2833333333 | EI15: 0.3166666667 | EJ15: 0.35 | EK15: 0.3833333333 | EL15: 0.4166666667 | EM15: 0.45 | EN15: 0.4833333333 | EO15: =IF((1-($FC$2-EO$2)/$C15)>0,(1-($FC$2-EO$2)/$C15),0) -> 0.5166666667 | EP15: 0.55 | EQ15: 0.5833333333 | ER15: 0.6166666667 | ES15: 0.65 | ET15: 0.6833333333 | EU15: 0.7166666667 | EV15: 0.75 | EW15: 0.7833333333 | EX15: 0.8166666667 | EY15: 0.85 | EZ15: =IF((1-($FC$2-EZ$2)/$C15)>0,(1-($FC$2-EZ$2)/$C15),0) -> 0.8833333333 | FA15: 0.9166666667 | FB15: 0.95 | FC15: =IF(ED15=0,0,($D15-$E15)*1/$C15)+IF(EE15=0,0,($G15-$H15-$I15)*$G$61*1/$C15)+IF(EF15=0,0,($K15-$L15-$M15)*$K$61*1/$C15)+IF(EG15=0,0,($O15-$P15-$Q15)*$O$61*1/$C15)+IF(EH15=0,0,($S15-$T15-$U15)*$S$61*1/$C15)+IF(EI15=0,0,($W15-$X15-$Y15)*$W$61*1/$C15)+IF(EJ15=0,0,($AA15-$AB15-$AC15)*$AA$61*1/$C15)+IF(EK15=0,0,($AE15-$AF15-$AG15)*$AE$61*1/$C15)+IF(EL15=0,0,($AI15-$AJ15-$AK15)*$AI$61*1/$C15)+IF(EM15=0,0,($AM15-$AN15-$AO15)*$AM$61*1/$C15)+IF(EN15=0,0,($AQ15-$AR15-$AS15)*$AQ$61*1/$C15)+IF(EO15=0,0,($AU15-$AV15-$AW15)*$AU$61*1/$C15)+IF(EP15=0,0,($AY15-$AZ15-$BA15)*$AY$61*1/$C15)+IF(EQ15=0,0,($BC15-$BD15-$BE15)*$BC$61*1/$C15)+IF(ER15=0,0,($BG15-$BH15-$BI15)*$BG$61*1/$C15)+IF(ES15=0,0,($BK15-$BL15-$BM15)*$BK$61*1/$C15)+IF(ET15=0,0,($BO15-$BP15-$BQ15)*$BO$61*1/$C15)+IF(EU15=0,0,($BS15-$BT15-$BU15)*$BS$61*1/$C15)+IF(EV15=0,0,($BW15-$BX15-$BY15)*$BW$61*1/$C15)+IF(EW15=0,0,($CA15-$CB15-$CC15)*$CA$61*1/$C15)+IF(EX15=0,0,($CE15-$CF15-$CG15)*$CE$61*1/$C15)+IF(EY15=0,0,($CI15-$CJ15-$CK15)*$CI$61*1/$C15)+IF(EZ15=0,0,($CM15-$CN15-$CO15)*$CM$61*1/$C15)+IF(FA15=0,0,($CQ15-$CR15-$CS15)*$CQ$61*1/$C15)+IF(FB15=0,0,($CU15-$CV15-$CW15)*$CU$61*1/$C15) -> 281928.4441 | FD15: =IF((1-($GC$2-$CY15)/$C15)>0,(1-($GC$2-$CY15)/$C15),0) -> 0 | FE15: =IF((1-($GC$2-FE$2)/$C15)>0,(1-($GC$2-FE$2)/$C15),0) -> 0.15 | FF15: 0.1833333333 | FG15: 0.2166666667 | FH15: 0.25 | FI15: 0.2833333333 | FJ15: 0.3166666667 | FK15: 0.35 | FL15: 0.3833333333 | FM15: 0.4166666667 | FN15: 0.45 | FO15: =IF((1-($GC$2-FO$2)/$C15)>0,(1-($GC$2-FO$2)/$C15),0) -> 0.4833333333 | FP15: 0.5166666667 | FQ15: 0.55 | FR15: 0.5833333333 | FS15: 0.6166666667 | FT15: 0.65 | FU15: 0.6833333333 | FV15: 0.7166666667 | FW15: 0.75 | FX15: 0.7833333333 | FY15: 0.8166666667 | FZ15: =IF((1-($GC$2-FZ$2)/$C15)>0,(1-($GC$2-FZ$2)/$C15),0) -> 0.85 | GA15: 0.8833333333 | GB15: 0.9166666667 | GC15: =IF(FD15=0,0,($D15-$E15)*1/$C15)+IF(FE15=0,0,($G15-$H15-$I15)*$G$61*1/$C15)+IF(FF15=0,0,($K15-$L15-$M15)*$K$61*1/$C15)+IF(FG15=0,0,($O15-$P15-$Q15)*$O$61*1/$C15)+IF(FH15=0,0,($S15-$T15-$U15)*$S$61*1/$C15)+IF(FI15=0,0,($W15-$X15-$Y15)*$W$61*1/$C15)+IF(FJ15=0,0,($AA15-$AB15-$AC15)*$AA$61*1/$C15)+IF(FK15=0,0,($AE15-$AF15-$AG15)*$AE$61*1/$C15)+IF(FL15=0,0,($AI15-$AJ15-$AK15)*$AI$61*1/$C15)+IF(FM15=0,0,($AM15-$AN15-$AO15)*$AM$61*1/$C15)+IF(FN15=0,0,($AQ15-$AR15-$AS15)*$AQ$61*1/$C15)+IF(FO15=0,0,($AU15-$AV15-$AW15)*$AU$61*1/$C15)+IF(FP15=0,0,($AY15-$AZ15-$BA15)*$AY$61*1/$C15)+IF(FQ15=0,0,($BC15-$BD15-$BE15)*$BC$61*1/$C15)+IF(FR15=0,0,($BG15-$BH15-$BI15)*$BG$61*1/$C15)+IF(FS15=0,0,($BK15-$BL15-$BM15)*$BK$61*1/$C15)+IF(FT15=0,0,($BO15-$BP15-$BQ15)*$BO$61*1/$C15)+IF(FU15=0,0,($BS15-$BT15-$BU15)*$BS$61*1/$C15)+IF(FV15=0,0,($BW15-$BX15-$BY15)*$BW$61*1/$C15)+IF(FW15=0,0,($CA15-$CB15-$CC15)*$CA$61*1/$C15)+IF(FX15=0,0,($CE15-$CF15-$CG15)*$CE$61*1/$C15)+IF(FY15=0,0,($CI15-$CJ15-$CK15)*$CI$61*1/$C15)+IF(FZ15=0,0,($CM15-$CN15-$CO15)*$CM$61*1/$C15)+IF(GA15=0,0,($CQ15-$CR15-$CS15)*$CQ$61*1/$C15)+IF(GB15=0,0,($CU15-$CV15-$CW15)*$CU$61*1/$C15) -> 281928.4441 | GD15: =IF((1-($HC$2-$CY15)/$C15)>0,(1-($HC$2-$CY15)/$C15),0) -> 0 | GE15: =IF((1-($HC$2-GE$2)/$C15)>0,(1-($HC$2-GE$2)/$C15),0) -> 0.1166666667 | GF15: 0.15 | GG15: 0.1833333333 | GH15: 0.2166666667 | GI15: 0.25 | GJ15: 0.2833333333 | GK15: 0.3166666667 | GL15: 0.35 | GM15: 0.3833333333 | GN15: 0.4166666667 | GO15: =IF((1-($HC$2-GO$2)/$C15)>0,(1-($HC$2-GO$2)/$C15),0) -> 0.45 | GP15: 0.4833333333 | GQ15: 0.5166666667 | GR15: 0.55 | GS15: 0.5833333333 | GT15: 0.6166666667 | GU15: 0.65 | GV15: 0.6833333333 | GW15: 0.7166666667 | GX15: 0.75 | GY15: 0.7833333333 | GZ15: =IF((1-($HC$2-GZ$2)/$C15)>0,(1-($HC$2-GZ$2)/$C15),0) -> 0.8166666667 | HA15: 0.85 | HB15: 0.8833333333 | HC15: =IF(GD15=0,0,($D15-$E15)*1/$C15)+IF(GE15=0,0,($G15-$H15-$I15)*$G$61*1/$C15)+IF(GF15=0,0,($K15-$L15-$M15)*$K$61*1/$C15)+IF(GG15=0,0,($O15-$P15-$Q15)*$O$61*1/$C15)+IF(GH15=0,0,($S15-$T15-$U15)*$S$61*1/$C15)+IF(GI15=0,0,($W15-$X15-$Y15)*$W$61*1/$C15)+IF(GJ15=0,0,($AA15-$AB15-$AC15)*$AA$61*1/$C15)+IF(GK15=0,0,($AE15-$AF15-$AG15)*$AE$61*1/$C15)+IF(GL15=0,0,($AI15-$AJ15-$AK15)*$AI$61*1/$C15)+IF(GM15=0,0,($AM15-$AN15-$AO15)*$AM$61*1/$C15)+IF(GN15=0,0,($AQ15-$AR15-$AS15)*$AQ$61*1/$C15)+IF(GO15=0,0,($AU15-$AV15-$AW15)*$AU$61*1/$C15)+IF(GP15=0,0,($AY15-$AZ15-$BA15)*$AY$61*1/$C15)+IF(GQ15=0,0,($BC15-$BD15-$BE15)*$BC$61*1/$C15)+IF(GR15=0,0,($BG15-$BH15-$BI15)*$BG$61*1/$C15)+IF(GS15=0,0,($BK15-$BL15-$BM15)*$BK$61*1/$C15)+IF(GT15=0,0,($BO15-$BP15-$BQ15)*$BO$61*1/$C15)+IF(GU15=0,0,($BS15-$BT15-$BU15)*$BS$61*1/$C15)+IF(GV15=0,0,($BW15-$BX15-$BY15)*$BW$61*1/$C15)+IF(GW15=0,0,($CA15-$CB15-$CC15)*$CA$61*1/$C15)+IF(GX15=0,0,($CE15-$CF15-$CG15)*$CE$61*1/$C15)+IF(GY15=0,0,($CI15-$CJ15-$CK15)*$CI$61*1/$C15)+IF(GZ15=0,0,($CM15-$CN15-$CO15)*$CM$61*1/$C15)+IF(HA15=0,0,($CQ15-$CR15-$CS15)*$CQ$61*1/$C15)+IF(HB15=0,0,($CU15-$CV15-$CW15)*$CU$61*1/$C15) -> 281928.4441 | HD15: =IF((1-($IC$2-$CY15)/$C15)>0,(1-($IC$2-$CY15)/$C15),0) -> 0 | HE15: =IF((1-($IC$2-HE$2)/$C15)>0,(1-($IC$2-HE$2)/$C15),0) -> 0.08333333333 | HF15: 0.1166666667 | HG15: 0.15 | HH15: 0.1833333333 | HI15: 0.2166666667 | HJ15: 0.25 | HK15: 0.2833333333 | HL15: 0.3166666667 | HM15: 0.35 | HN15: 0.3833333333 | HO15: =IF((1-($IC$2-HO$2)/$C15)>0,(1-($IC$2-HO$2)/$C15),0) -> 0.4166666667 | HP15: 0.45 | HQ15: 0.4833333333 | HR15: 0.5166666667 | HS15: 0.55 | HT15: 0.5833333333 | HU15: 0.6166666667 | HV15: 0.65 | HW15: 0.6833333333 | HX15: 0.7166666667 | HY15: 0.75 | HZ15: =IF((1-($IC$2-HZ$2)/$C15)>0,(1-($IC$2-HZ$2)/$C15),0) -> 0.7833333333 | IA15: 0.8166666667 | IB15: 0.85 | IC15: =IF(HD15=0,0,($D15-$E15)*1/$C15)+IF(HE15=0,0,($G15-$H15-$I15)*$G$61*1/$C15)+IF(HF15=0,0,($K15-$L15-$M15)*$K$61*1/$C15)+IF(HG15=0,0,($O15-$P15-$Q15)*$O$61*1/$C15)+IF(HH15=0,0,($S15-$T15-$U15)*$S$61*1/$C15)+IF(HI15=0,0,($W15-$X15-$Y15)*$W$61*1/$C15)+IF(HJ15=0,0,($AA15-$AB15-$AC15)*$AA$61*1/$C15)+IF(HK15=0,0,($AE15-$AF15-$AG15)*$AE$61*1/$C15)+IF(HL15=0,0,($AI15-$AJ15-$AK15)*$AI$61*1/$C15)+IF(HM15=0,0,($AM15-$AN15-$AO15)*$AM$61*1/$C15)+IF(HN15=0,0,($AQ15-$AR15-$AS15)*$AQ$61*1/$C15)+IF(HO15=0,0,($AU15-$AV15-$AW15)*$AU$61*1/$C15)+IF(HP15=0,0,($AY15-$AZ15-$BA15)*$AY$61*1/$C15)+IF(HQ15=0,0,($BC15-$BD15-$BE15)*$BC$61*1/$C15)+IF(HR15=0,0,($BG15-$BH15-$BI15)*$BG$61*1/$C15)+IF(HS15=0,0,($BK15-$BL15-$BM15)*$BK$61*1/$C15)+IF(HT15=0,0,($BO15-$BP15-$BQ15)*$BO$61*1/$C15)+IF(HU15=0,0,($BS15-$BT15-$BU15)*$BS$61*1/$C15)+IF(HV15=0,0,($BW15-$BX15-$BY15)*$BW$61*1/$C15)+IF(HW15=0,0,($CA15-$CB15-$CC15)*$CA$61*1/$C15)+IF(HX15=0,0,($CE15-$CF15-$CG15)*$CE$61*1/$C15)+IF(HY15=0,0,($CI15-$CJ15-$CK15)*$CI$61*1/$C15)+IF(HZ15=0,0,($CM15-$CN15-$CO15)*$CM$61*1/$C15)+IF(IA15=0,0,($CQ15-$CR15-$CS15)*$CQ$61*1/$C15)+IF(IB15=0,0,($CU15-$CV15-$CW15)*$CU$61*1/$C15) -> 281928.4441
B16: Líneas subterráneas AT | C16: 30 | D16: 0 | F16: 0 | G16: 0 | K16: 0 | L16: 0 | O16: 0 | S16: 2783529.55 | W16: 1604617.82 | X16: 0 | AA16: 0 | AB16: 0 | AE16: 2009540.01 | AF16: 0 | AI16: 0 | AJ16: 0 | AM16: 0 | AN16: 0 | AQ16: 0 | AR16: 0 | AU16: 0 | AV16: 0 | AY16: 865449.26 | AZ16: 0 | BC16: 0 | BD16: 0 | BG16: 0 | BH16: 0 | BK16: 0 | BL16: 0 | BO16: 0 | BS16: 0 | BT16: 0 | BW16: 10131388.35 | BX16: 0 | CA16: 0 | CB16: 0 | CE16: 0 | CF16: 0 | CI16: 4519562.72 | CK16: 0 | CL16: 0 | CM16: 4069999.73 | CO16: 0 | CP16: 0 | CQ16: 1394129.43 | CS16: 0 | CT16: 0 | CU16: 0 | CV16: 0 | CY16: =IF(D16=0,0,2001-(D16-F16)*C16/D16) -> 0 | CZ16: =IF((1-($DY$2-$CY16)/$C16)>0,(1-($DY$2-$CY16)/$C16),0) -> 0 | DA16: =IF((1-($DY$2-G$2)/$C16)>0,(1-($DY$2-G$2)/$C16),0) -> 0.2166666667 | DB16: =IF((1-($DY$2-K$2)/$C16)>0,(1-($DY$2-K$2)/$C16),0) -> 0.25 | DC16: =IF((1-($DY$2-O$2)/$C16)>0,(1-($DY$2-O$2)/$C16),0) -> 0.2833333333 | DD16: =IF((1-($DY$2-S$2)/$C16)>0,(1-($DY$2-S$2)/$C16),0) -> 0.3166666667 | DE16: =IF((1-($DY$2-W$2)/$C16)>0,(1-($DY$2-W$2)/$C16),0) -> 0.35 | DF16: =IF((1-($DY$2-AA$2)/$C16)>0,(1-($DY$2-AA$2)/$C16),0) -> 0.3833333333 | DG16: =IF((1-($DY$2-AE$2)/$C16)>0,(1-($DY$2-AE$2)/$C16),0) -> 0.4166666667 | DH16: =IF((1-($DY$2-AI$2)/$C16)>0,(1-($DY$2-AI$2)/$C16),0) -> 0.45 | DI16: =IF((1-($DY$2-AM$2)/$C16)>0,(1-($DY$2-AM$2)/$C16),0) -> 0.4833333333 | DJ16: =IF((1-($DY$2-AQ$2)/$C16)>0,(1-($DY$2-AQ$2)/$C16),0) -> 0.5166666667 | DK16: =IF((1-($DY$2-AU$2)/$C16)>0,(1-($DY$2-AU$2)/$C16),0) -> 0.55 | DL16: =IF((1-($DY$2-AY$2)/$C16)>0,(1-($DY$2-AY$2)/$C16),0) -> 0.5833333333 | DM16: =IF((1-($DY$2-BC$2)/$C16)>0,(1-($DY$2-BC$2)/$C16),0) -> 0.6166666667 | DN16: =IF((1-($DY$2-BG$2)/$C16)>0,(1-($DY$2-BG$2)/$C16),0) -> 0.65 | DO16: =IF((1-($DY$2-BK$2)/$C16)>0,(1-($DY$2-BK$2)/$C16),0) -> 0.6833333333 | DP16: =IF((1-($DY$2-BO$2)/$C16)>0,(1-($DY$2-BO$2)/$C16),0) -> 0.7166666667 | DQ16: =IF((1-($DY$2-BS$2)/$C16)>0,(1-($DY$2-BS$2)/$C16),0) -> 0.75 | DR16: =IF((1-($DY$2-BW$2)/$C16)>0,(1-($DY$2-BW$2)/$C16),0) -> 0.7833333333 | DS16: =IF((1-($DY$2-CA$2)/$C16)>0,(1-($DY$2-CA$2)/$C16),0) -> 0.8166666667 | DT16: =IF((1-($DY$2-CE$2)/$C16)>0,(1-($DY$2-CE$2)/$C16),0) -> 0.85 | DU16: 0.8833333333 | DV16: 0.9166666667 | DW16: 0.95 | DX16: 0.9833333333 | DY16: =IF(CZ16=0,0,($D16-$E16)*1/$C16)+IF(DA16=0,0,($G16-$H16-$I16)*$G$61*1/$C16)+IF(DB16=0,0,($K16-$L16-$M16)*$K$61*1/$C16)+IF(DC16=0,0,($O16-$P16-$Q16)*$O$61*1/$C16)+IF(DD16=0,0,($S16-$T16-$U16)*$S$61*1/$C16)+IF(DE16=0,0,($W16-$X16-$Y16)*$W$61*1/$C16)+IF(DF16=0,0,($AA16-$AB16-$AC16)*$AA$61*1/$C16)+IF(DG16=0,0,($AE16-$AF16-$AG16)*$AE$61*1/$C16)+IF(DH16=0,0,($AI16-$AJ16-$AK16)*$AI$61*1/$C16)+IF(DI16=0,0,($AM16-$AN16-$AO16)*$AM$61*1/$C16)+IF(DJ16=0,0,($AQ16-$AR16-$AS16)*$AQ$61*1/$C16)+IF(DK16=0,0,($AU16-$AV16-$AW16)*$AU$61*1/$C16)+IF(DL16=0,0,($AY16-$AZ16-$BA16)*$AY$61*1/$C16)+IF(DM16=0,0,($BC16-$BD16-$BE16)*$BC$61*1/$C16)+IF(DN16=0,0,($BG16-$BH16-$BI16)*$BG$61*1/$C16)+IF(DO16=0,0,($BK16-$BL16-$BM16)*$BK$61*1/$C16)+IF(DP16=0,0,($BO16-$BP16-$BQ16)*$BO$61*1/$C16)+IF(DQ16=0,0,($BS16-$BT16-$BU16)*$BS$61*1/$C16)+IF(DR16=0,0,($BW16-$BX16-$BY16)*$BW$61*1/$C16)+IF(DS16=0,0,($CA16-$CB16-$CC16)*$CA$61*1/$C16)+IF(DT16=0,0,($CE16-$CF16-$CG16)*$CE$61*1/$C16)+IF(DU16=0,0,($CI16-$CJ16-$CK16)*$CI$61*1/$C16)+IF(DV16=0,0,($CM16-$CN16-$CO16)*$CM$61*1/$C16)+IF(DW16=0,0,($CQ16-$CR16-$CS16)*$CQ$61*1/$C16)+IF(DX16=0,0,($CU16-$CV16-$CW16)*$CU$61*1/$C16) -> 781021.5294 | DZ16: =D16-E16+(G16-H16-I16)*G$61+(K16-L16-M16)*K$61+(O16-P16-Q16)*O$61+(S16-T16-U16)*S$61+(W16-X16-Y16)*W$61+(AA16-AB16-AC16)*AA$61+(AE16-AF16-AG16)*AE$61+(AI16-AJ16-AK16)*AI$61+(AM16-AN16-AO16)*AM$61+(AQ16-AR16-AS16)*$AQ$61+(AU16-AV16-AW16)*$AU$61+(AY16-AZ16-BA16)*$AY$61+(BC16-BD16-BE16)*$BC$61+(BG16-BH16-BI16)*$BG$61+(BK16-BL16-BM16)*$BK$61+(BO16-BP16-BQ16)*$BO$61+(BS16-BT16-BU16)*$BS$61+(BW16-BX16-BY16)*$BW$61+(CA16-CB16-CC16)*$CA$61+(CE16-CF16-CG16)*$CE$61+(CI16-CJ16-CK16)*$CI$61+(CM16-CN16-CO16)*$CM$61+(CQ16-CR16-CS16)*$CQ$61+(CU16-CV16-CW16)*$CU$61 -> 23430645.88 | EA16: =IF(CZ16=0,D16-E16,0)+IF(DA16=0,(G16-H16-I16)*G$61,0)+IF(DB16=0,(K16-L16-M16)*K$61,0)+IF(DC16=0,(O16-P16-Q16)*O$61,0)+IF(DD16=0,(S16-T16-U16)*S$61,0)+IF(DE16=0,(W16-X16-Y16)*W$61,0)+IF(DF16=0,(AA16-AB16-AC16)*AA$61,0)+IF(DG16=0,(AE16-AF16-AG16)*AE$61,0)+IF(DH16=0,(AI16-AJ16-AK16)*AI$61,0)+IF(DI16=0,(AM16-AN16-AO16)*AM$61,0)+IF(DJ16=0,(AQ16-AR16-AS16)*$AQ$61,0)+IF(DK16=0,(AU16-AV16-AW16)*$AU$61,0)+IF(DL16=0,(AY16-AZ16-BA16)*$AY$61,0)++IF(DM16=0,(BC16-BD16-BE16)*$BC$61,0)+IF(DN16=0,(BG16-BH16-BI16)*$BG$61,0)+IF(DO16=0,(BK16-BL16-BM16)*$BK$61,0)+IF(DP16=0,(BO16-BP16-BQ16)*$BO$61,0)+IF(DQ16=0,(BS16-BT16-BU16)*$BS$61,0)+IF(DR16=0,(BW16-BX16-BY16)*$BW$61,0)+IF(DS16=0,(CA16-CB16-CC16)*$CA$61,0)+IF(DT16=0,(CE16-CF16-CG16)*$CE$61,0)+IF(DU16=0,(CI16-CJ16-CK16)*$CI$61,0)+IF(DV16=0,(CM16-CN16-CO16)*$CM$61,0)+IF(DW16=0,(CQ16-CR16-CS16)*$CQ$61,0)+IF(DX16=0,(CU16-CV16-CW16)*$CU$61,0) -> 0 | EB16: =(D16-E16)*CZ16+((G16-H16-(I16-J16))*G$61)*DA16+((K16-L16-(M16-N16))*K$61)*DB16+((O16-P16-(Q16-R16))*O$61)*DC16+((S16-T16-(U16-V16))*S$61)*DD16+((W16-X16-(Y16-Z16))*W$61)*DE16+((AA16-AB16-(AC16-AD16))*AA$61)*DF16+((AE16-AF16-(AG16-AH16))*AE$61)*DG16+((AI16-AJ16-(AK16-AL16))*AI$61)*DH16+((AM16-AN16-(AO16-AP16))*$AM$61)*DI16+((AQ16-AR16-(AS16-AT16))*$AQ$61)*DJ16+((AU16-AV16-(AW16-AX16))*$AU$61)*DK16+((AY16-AZ16-(BA16-BB16))*$AY$61)*DL16+((BC16-BD16-(BE16-BF16))*$BC$61)*DM16+((BG16-BH16-(BI16-BJ16))*$BG$61)*DN16+((BK16-BL16-(BM16-BN16))*$BK$61)*DO16+((BO16-BP16-(BQ16-BR16))*$BO$61)*DP16+((BS16-BT16-(BU16-BV16))*$BS$61)*DQ16+((BW16-BX16-(BY16-BZ16))*$BW$61)*DR16+((CA16-CB16-(CC16-CD16))*$CA$61)*DS16+((CE16-CF16-(CG16-CH16))*$CE$61)*DT16+((CI16-CJ16-(CK16-CL16))*$CI$61)*DU16+((CM16-CN16-(CO16-CP16))*$CM$61)*DV16+((CQ16-CR16-(CS16-CT16))*$CQ$61)*DW16+((CU16-CV16-(CW16-CX16))*$CU$61)*DX16 -> 16858753.56 | EC16: 781021.5294 | ED16: =IF((1-($FC$2-$CY16)/$C16)>0,(1-($FC$2-$CY16)/$C16),0) -> 0 | EE16: 0.1833333333 | EF16: 0.2166666667 | EG16: 0.25 | EH16: 0.2833333333 | EI16: 0.3166666667 | EJ16: 0.35 | EK16: 0.3833333333 | EL16: 0.4166666667 | EM16: 0.45 | EN16: 0.4833333333 | EO16: 0.5166666667 | EP16: 0.55 | EQ16: 0.5833333333 | ER16: 0.6166666667 | ES16: 0.65 | ET16: 0.6833333333 | EU16: 0.7166666667 | EV16: 0.75 | EW16: 0.7833333333 | EX16: 0.8166666667 | EY16: 0.85 | EZ16: 0.8833333333 | FA16: 0.9166666667 | FB16: 0.95 | FC16: 781021.5294 | FD16: =IF((1-($GC$2-$CY16)/$C16)>0,(1-($GC$2-$CY16)/$C16),0) -> 0 | FE16: 0.15 | FF16: 0.1833333333 | FG16: 0.2166666667 | FH16: 0.25 | FI16: 0.2833333333 | FJ16: 0.3166666667 | FK16: 0.35 | FL16: 0.3833333333 | FM16: 0.4166666667 | FN16: 0.45 | FO16: 0.4833333333 | FP16: 0.5166666667 | FQ16: 0.55 | FR16: 0.5833333333 | FS16: 0.6166666667 | FT16: 0.65 | FU16: 0.6833333333 | FV16: 0.7166666667 | FW16: 0.75 | FX16: 0.7833333333 | FY16: 0.8166666667 | FZ16: 0.85 | GA16: 0.8833333333 | GB16: 0.9166666667 | GC16: 781021.5294 | GD16: =IF((1-($HC$2-$CY16)/$C16)>0,(1-($HC$2-$CY16)/$C16),0) -> 0 | GE16: 0.1166666667 | GF16: 0.15 | GG16: 0.1833333333 | GH16: 0.2166666667 | GI16: 0.25 | GJ16: 0.2833333333 | GK16: 0.3166666667 | GL16: 0.35 | GM16: 0.3833333333 | GN16: 0.4166666667 | GO16: 0.45 | GP16: 0.4833333333 | GQ16: 0.5166666667 | GR16: 0.55 | GS16: 0.5833333333 | GT16: 0.6166666667 | GU16: 0.65 | GV16: 0.6833333333 | GW16: 0.7166666667 | GX16: 0.75 | GY16: 0.7833333333 | GZ16: 0.8166666667 | HA16: 0.85 | HB16: 0.8833333333 | HC16: 781021.5294 | HD16: =IF((1-($IC$2-$CY16)/$C16)>0,(1-($IC$2-$CY16)/$C16),0) -> 0 | HE16: 0.08333333333 | HF16: 0.1166666667 | HG16: 0.15 | HH16: 0.1833333333 | HI16: 0.2166666667 | HJ16: 0.25 | HK16: 0.2833333333 | HL16: 0.3166666667 | HM16: 0.35 | HN16: 0.3833333333 | HO16: 0.4166666667 | HP16: 0.45 | HQ16: 0.4833333333 | HR16: 0.5166666667 | HS16: 0.55 | HT16: 0.5833333333 | HU16: 0.6166666667 | HV16: 0.65 | HW16: 0.6833333333 | HX16: 0.7166666667 | HY16: 0.75 | HZ16: 0.7833333333 | IA16: 0.8166666667 | IB16: 0.85 | IC16: 781021.5294
B17: Subestaciones AT / MT | C17: 30 | D17: 18156752.04 | F17: 10392690.24 | G17: 4326524.08 | K17: 157348.18 | L17: 0 | O17: 1381720.04 | S17: 6562191 | W17: 1779943 | X17: 0 | AA17: 0 | AB17: 0 | AE17: 166644.7334 | AF17: 0 | AI17: 0 | AJ17: 0 | AM17: 334932 | AN17: 0 | AQ17: 6198413.53 | AR17: 0 | AU17: 151071 | AV17: 0 | AY17: 4576000.19 | AZ17: 0 | BC17: 142571.36 | BD17: 0 | BG17: 627083.91 | BH17: 0 | BK17: 3314374 | BL17: 0 | BO17: 26484224.05 | BS17: 0 | BT17: 0 | BW17: 23784412.84 | BX17: 0 | CA17: 0 | CB17: 0 | CE17: 0 | CF17: 0 | CI17: 0 | CK17: 0 | CL17: 0 | CM17: 18547608.4 | CO17: 0 | CP17: 0 | CQ17: 486530.36 | CS17: 0 | CT17: 0 | CU17: 0 | CV17: 0 | CY17: =IF(D17=0,0,2001-(D17-F17)*C17/D17) -> 1988.171612 | CZ17: =IF((1-($DY$2-$CY17)/$C17)>0,(1-($DY$2-$CY17)/$C17),0) -> 0 | DA17: =IF((1-($DY$2-G$2)/$C17)>0,(1-($DY$2-G$2)/$C17),0) -> 0.2166666667 | DB17: =IF((1-($DY$2-K$2)/$C17)>0,(1-($DY$2-K$2)/$C17),0) -> 0.25 | DC17: =IF((1-($DY$2-O$2)/$C17)>0,(1-($DY$2-O$2)/$C17),0) -> 0.2833333333 | DD17: =IF((1-($DY$2-S$2)/$C17)>0,(1-($DY$2-S$2)/$C17),0) -> 0.3166666667 | DE17: =IF((1-($DY$2-W$2)/$C17)>0,(1-($DY$2-W$2)/$C17),0) -> 0.35 | DF17: =IF((1-($DY$2-AA$2)/$C17)>0,(1-($DY$2-AA$2)/$C17),0) -> 0.3833333333 | DG17: =IF((1-($DY$2-AE$2)/$C17)>0,(1-($DY$2-AE$2)/$C17),0) -> 0.4166666667 | DH17: =IF((1-($DY$2-AI$2)/$C17)>0,(1-($DY$2-AI$2)/$C17),0) -> 0.45 | DI17: =IF((1-($DY$2-AM$2)/$C17)>0,(1-($DY$2-AM$2)/$C17),0) -> 0.4833333333 | DJ17: =IF((1-($DY$2-AQ$2)/$C17)>0,(1-($DY$2-AQ$2)/$C17),0) -> 0.5166666667 | DK17: =IF((1-($DY$2-AU$2)/$C17)>0,(1-($DY$2-AU$2)/$C17),0) -> 0.55 | DL17: =IF((1-($DY$2-AY$2)/$C17)>0,(1-($DY$2-AY$2)/$C17),0) -> 0.5833333333 | DM17: =IF((1-($DY$2-BC$2)/$C17)>0,(1-($DY$2-BC$2)/$C17),0) -> 0.6166666667 | DN17: =IF((1-($DY$2-BG$2)/$C17)>0,(1-($DY$2-BG$2)/$C17),0) -> 0.65 | DO17: =IF((1-($DY$2-BK$2)/$C17)>0,(1-($DY$2-BK$2)/$C17),0) -> 0.6833333333 | DP17: =IF((1-($DY$2-BO$2)/$C17)>0,(1-($DY$2-BO$2)/$C17),0) -> 0.7166666667 | DQ17: =IF((1-($DY$2-BS$2)/$C17)>0,(1-($DY$2-BS$2)/$C17),0) -> 0.75 | DR17: =IF((1-($DY$2-BW$2)/$C17)>0,(1-($DY$2-BW$2)/$C17),0) -> 0.7833333333 | DS17: =IF((1-($DY$2-CA$2)/$C17)>0,(1-($DY$2-CA$2)/$C17),0) -> 0.8166666667 | DT17: =IF((1-($DY$2-CE$2)/$C17)>0,(1-($DY$2-CE$2)/$C17),0) -> 0.85 | DU17: 0.8833333333 | DV17: 0.9166666667 | DW17: 0.95 | DX17: 0.9833333333 | DY17: =IF(CZ17=0,0,($D17-$E17)*1/$C17)+IF(DA17=0,0,($G17-$H17-$I17)*$G$61*1/$C17)+IF(DB17=0,0,($K17-$L17-$M17)*$K$61*1/$C17)+IF(DC17=0,0,($O17-$P17-$Q17)*$O$61*1/$C17)+IF(DD17=0,0,($S17-$T17-$U17)*$S$61*1/$C17)+IF(DE17=0,0,($W17-$X17-$Y17)*$W$61*1/$C17)+IF(DF17=0,0,($AA17-$AB17-$AC17)*$AA$61*1/$C17)+IF(DG17=0,0,($AE17-$AF17-$AG17)*$AE$61*1/$C17)+IF(DH17=0,0,($AI17-$AJ17-$AK17)*$AI$61*1/$C17)+IF(DI17=0,0,($AM17-$AN17-$AO17)*$AM$61*1/$C17)+IF(DJ17=0,0,($AQ17-$AR17-$AS17)*$AQ$61*1/$C17)+IF(DK17=0,0,($AU17-$AV17-$AW17)*$AU$61*1/$C17)+IF(DL17=0,0,($AY17-$AZ17-$BA17)*$AY$61*1/$C17)+IF(DM17=0,0,($BC17-$BD17-$BE17)*$BC$61*1/$C17)+IF(DN17=0,0,($BG17-$BH17-$BI17)*$BG$61*1/$C17)+IF(DO17=0,0,($BK17-$BL17-$BM17)*$BK$61*1/$C17)+IF(DP17=0,0,($BO17-$BP17-$BQ17)*$BO$61*1/$C17)+IF(DQ17=0,0,($BS17-$BT17-$BU17)*$BS$61*1/$C17)+IF(DR17=0,0,($BW17-$BX17-$BY17)*$BW$61*1/$C17)+IF(DS17=0,0,($CA17-$CB17-$CC17)*$CA$61*1/$C17)+IF(DT17=0,0,($CE17-$CF17-$CG17)*$CE$61*1/$C17)+IF(DU17=0,0,($CI17-$CJ17-$CK17)*$CI$61*1/$C17)+IF(DV17=0,0,($CM17-$CN17-$CO17)*$CM$61*1/$C17)+IF(DW17=0,0,($CQ17-$CR17-$CS17)*$CQ$61*1/$C17)+IF(DX17=0,0,($CU17-$CV17-$CW17)*$CU$61*1/$C17) -> 2877497.708 | DZ17: =D17-E17+(G17-H17-I17)*G$61+(K17-L17-M17)*K$61+(O17-P17-Q17)*O$61+(S17-T17-U17)*S$61+(W17-X17-Y17)*W$61+(AA17-AB17-AC17)*AA$61+(AE17-AF17-AG17)*AE$61+(AI17-AJ17-AK17)*AI$61+(AM17-AN17-AO17)*AM$61+(AQ17-AR17-AS17)*$AQ$61+(AU17-AV17-AW17)*$AU$61+(AY17-AZ17-BA17)*$AY$61+(BC17-BD17-BE17)*$BC$61+(BG17-BH17-BI17)*$BG$61+(BK17-BL17-BM17)*$BK$61+(BO17-BP17-BQ17)*$BO$61+(BS17-BT17-BU17)*$BS$61+(BW17-BX17-BY17)*$BW$61+(CA17-CB17-CC17)*$CA$61+(CE17-CF17-CG17)*$CE$61+(CI17-CJ17-CK17)*$CI$61+(CM17-CN17-CO17)*$CM$61+(CQ17-CR17-CS17)*$CQ$61+(CU17-CV17-CW17)*$CU$61 -> 104481683.3 | EA17: =IF(CZ17=0,D17-E17,0)+IF(DA17=0,(G17-H17-I17)*G$61,0)+IF(DB17=0,(K17-L17-M17)*K$61,0)+IF(DC17=0,(O17-P17-Q17)*O$61,0)+IF(DD17=0,(S17-T17-U17)*S$61,0)+IF(DE17=0,(W17-X17-Y17)*W$61,0)+IF(DF17=0,(AA17-AB17-AC17)*AA$61,0)+IF(DG17=0,(AE17-AF17-AG17)*AE$61,0)+IF(DH17=0,(AI17-AJ17-AK17)*AI$61,0)+IF(DI17=0,(AM17-AN17-AO17)*AM$61,0)+IF(DJ17=0,(AQ17-AR17-AS17)*$AQ$61,0)+IF(DK17=0,(AU17-AV17-AW17)*$AU$61,0)+IF(DL17=0,(AY17-AZ17-BA17)*$AY$61,0)++IF(DM17=0,(BC17-BD17-BE17)*$BC$61,0)+IF(DN17=0,(BG17-BH17-BI17)*$BG$61,0)+IF(DO17=0,(BK17-BL17-BM17)*$BK$61,0)+IF(DP17=0,(BO17-BP17-BQ17)*$BO$61,0)+IF(DQ17=0,(BS17-BT17-BU17)*$BS$61,0)+IF(DR17=0,(BW17-BX17-BY17)*$BW$61,0)+IF(DS17=0,(CA17-CB17-CC17)*$CA$61,0)+IF(DT17=0,(CE17-CF17-CG17)*$CE$61,0)+IF(DU17=0,(CI17-CJ17-CK17)*$CI$61,0)+IF(DV17=0,(CM17-CN17-CO17)*$CM$61,0)+IF(DW17=0,(CQ17-CR17-CS17)*$CQ$61,0)+IF(DX17=0,(CU17-CV17-CW17)*$CU$61,0) -> 18156752.04 | EB17: =(D17-E17)*CZ17+((G17-H17-(I17-J17))*G$61)*DA17+((K17-L17-(M17-N17))*K$61)*DB17+((O17-P17-(Q17-R17))*O$61)*DC17+((S17-T17-(U17-V17))*S$61)*DD17+((W17-X17-(Y17-Z17))*W$61)*DE17+((AA17-AB17-(AC17-AD17))*AA$61)*DF17+((AE17-AF17-(AG17-AH17))*AE$61)*DG17+((AI17-AJ17-(AK17-AL17))*AI$61)*DH17+((AM17-AN17-(AO17-AP17))*$AM$61)*DI17+((AQ17-AR17-(AS17-AT17))*$AQ$61)*DJ17+((AU17-AV17-(AW17-AX17))*$AU$61)*DK17+((AY17-AZ17-(BA17-BB17))*$AY$61)*DL17+((BC17-BD17-(BE17-BF17))*$BC$61)*DM17+((BG17-BH17-(BI17-BJ17))*$BG$61)*DN17+((BK17-BL17-(BM17-BN17))*$BK$61)*DO17+((BO17-BP17-(BQ17-BR17))*$BO$61)*DP17+((BS17-BT17-(BU17-BV17))*$BS$61)*DQ17+((BW17-BX17-(BY17-BZ17))*$BW$61)*DR17+((CA17-CB17-(CC17-CD17))*$CA$61)*DS17+((CE17-CF17-(CG17-CH17))*$CE$61)*DT17+((CI17-CJ17-(CK17-CL17))*$CI$61)*DU17+((CM17-CN17-(CO17-CP17))*$CM$61)*DV17+((CQ17-CR17-(CS17-CT17))*$CQ$61)*DW17+((CU17-CV17-(CW17-CX17))*$CU$61)*DX17 -> 59288558.28 | EC17: 2877497.708 | ED17: =IF((1-($FC$2-$CY17)/$C17)>0,(1-($FC$2-$CY17)/$C17),0) -> 0 | EE17: 0.1833333333 | EF17: 0.2166666667 | EG17: 0.25 | EH17: 0.2833333333 | EI17: 0.3166666667 | EJ17: 0.35 | EK17: 0.3833333333 | EL17: 0.4166666667 | EM17: 0.45 | EN17: 0.4833333333 | EO17: 0.5166666667 | EP17: 0.55 | EQ17: 0.5833333333 | ER17: 0.6166666667 | ES17: 0.65 | ET17: 0.6833333333 | EU17: 0.7166666667 | EV17: 0.75 | EW17: 0.7833333333 | EX17: 0.8166666667 | EY17: 0.85 | EZ17: 0.8833333333 | FA17: 0.9166666667 | FB17: 0.95 | FC17: 2877497.708 | FD17: =IF((1-($GC$2-$CY17)/$C17)>0,(1-($GC$2-$CY17)/$C17),0) -> 0 | FE17: 0.15 | FF17: 0.1833333333 | FG17: 0.2166666667 | FH17: 0.25 | FI17: 0.2833333333 | FJ17: 0.3166666667 | FK17: 0.35 | FL17: 0.3833333333 | FM17: 0.4166666667 | FN17: 0.45 | FO17: 0.4833333333 | FP17: 0.5166666667 | FQ17: 0.55 | FR17: 0.5833333333 | FS17: 0.6166666667 | FT17: 0.65 | FU17: 0.6833333333 | FV17: 0.7166666667 | FW17: 0.75 | FX17: 0.7833333333 | FY17: 0.8166666667 | FZ17: 0.85 | GA17: 0.8833333333 | GB17: 0.9166666667 | GC17: 2877497.708 | GD17: =IF((1-($HC$2-$CY17)/$C17)>0,(1-($HC$2-$CY17)/$C17),0) -> 0 | GE17: 0.1166666667 | GF17: 0.15 | GG17: 0.1833333333 | GH17: 0.2166666667 | GI17: 0.25 | GJ17: 0.2833333333 | GK17: 0.3166666667 | GL17: 0.35 | GM17: 0.3833333333 | GN17: 0.4166666667 | GO17: 0.45 | GP17: 0.4833333333 | GQ17: 0.5166666667 | GR17: 0.55 | GS17: 0.5833333333 | GT17: 0.6166666667 | GU17: 0.65 | GV17: 0.6833333333 | GW17: 0.7166666667 | GX17: 0.75 | GY17: 0.7833333333 | GZ17: 0.8166666667 | HA17: 0.85 | HB17: 0.8833333333 | HC17: 2877497.708 | HD17: =IF((1-($IC$2-$CY17)/$C17)>0,(1-($IC$2-$CY17)/$C17),0) -> 0 | HE17: 0.08333333333 | HF17: 0.1166666667 | HG17: 0.15 | HH17: 0.1833333333 | HI17: 0.2166666667 | HJ17: 0.25 | HK17: 0.2833333333 | HL17: 0.3166666667 | HM17: 0.35 | HN17: 0.3833333333 | HO17: 0.4166666667 | HP17: 0.45 | HQ17: 0.4833333333 | HR17: 0.5166666667 | HS17: 0.55 | HT17: 0.5833333333 | HU17: 0.6166666667 | HV17: 0.65 | HW17: 0.6833333333 | HX17: 0.7166666667 | HY17: 0.75 | HZ17: 0.7833333333 | IA17: 0.8166666667 | IB17: 0.85 | IC17: 2877497.708
B18: Media tensión MT | D18: 0 | F18: 0 | L18: 0 | S18: 0 | AM18: 0 | AN18: 0 | AQ18: 0 | AR18: 0 | AU18: 0 | AV18: 0 | AY18: 0 | AZ18: 0 | BT18: 0 | CK18: 0 | CL18: 0 | CO18: 0 | CP18: 0 | CS18: 0 | CT18: 0 | CU18: 0 | CV18: 0 | FC18: 0 | GC18: 0 | HC18: 0 | IC18: 0
B19: Líneas aéreas de 34,5 kV | C19: 30 | D19: 45104668.05 | F19: 25817329.13 | G19: 2914508.15 | I19: 0 | K19: 3062464.14 | L19: 1808541 | O19: 1498368 | S19: 1733828 | W19: 1547007.83 | X19: 0 | AA19: 2952333.6 | AB19: 2113411.09 | AE19: 1377326.58 | AF19: 0 | AI19: 1034198.062 | AJ19: 0 | AM19: 1234757.036 | AN19: 0 | AQ19: 1681984.59 | AR19: 0 | AU19: 2780704.24 | AV19: 0 | AY19: 4280570.02 | AZ19: 0 | BC19: 3354499.77 | BD19: 0 | BG19: 5909381.01 | BH19: 0 | BK19: 6619649.3 | BL19: 0 | BO19: 4833550.55 | BP19: 118750.13 | BS19: 4797715.83 | BT19: 2055532.858 | BW19: 4806193.38 | BX19: 603046.7516 | CA19: 3077749.28 | CB19: 286168.8197 | CE19: 6323802.02 | CF19: 636787.3964 | CI19: 10271082.12 | CJ19: 760900.49 | CK19: 0 | CL19: 0 | CM19: 21166987.66 | CN19: 22189.49 | CO19: 0 | CP19: 0 | CQ19: 13591984.56 | CR19: 880080.27 | CS19: 0 | CT19: 0 | CU19: 20917584.59 | CV19: 772584.1086 | CY19: =IF(D19=0,0,2001-(D19-F19)*C19/D19) -> 1988.171612 | CZ19: =IF((1-($DY$2-$CY19)/$C19)>0,(1-($DY$2-$CY19)/$C19),0) -> 0 | DA19: =IF((1-($DY$2-G$2)/$C19)>0,(1-($DY$2-G$2)/$C19),0) -> 0.2166666667 | DB19: =IF((1-($DY$2-K$2)/$C19)>0,(1-($DY$2-K$2)/$C19),0) -> 0.25 | DC19: =IF((1-($DY$2-O$2)/$C19)>0,(1-($DY$2-O$2)/$C19),0) -> 0.2833333333 | DD19: =IF((1-($DY$2-S$2)/$C19)>0,(1-($DY$2-S$2)/$C19),0) -> 0.3166666667 | DE19: =IF((1-($DY$2-W$2)/$C19)>0,(1-($DY$2-W$2)/$C19),0) -> 0.35 | DF19: =IF((1-($DY$2-AA$2)/$C19)>0,(1-($DY$2-AA$2)/$C19),0) -> 0.3833333333 | DG19: =IF((1-($DY$2-AE$2)/$C19)>0,(1-($DY$2-AE$2)/$C19),0) -> 0.4166666667 | DH19: =IF((1-($DY$2-AI$2)/$C19)>0,(1-($DY$2-AI$2)/$C19),0) -> 0.45 | DI19: =IF((1-($DY$2-AM$2)/$C19)>0,(1-($DY$2-AM$2)/$C19),0) -> 0.4833333333 | DJ19: =IF((1-($DY$2-AQ$2)/$C19)>0,(1-($DY$2-AQ$2)/$C19),0) -> 0.5166666667 | DK19: =IF((1-($DY$2-AU$2)/$C19)>0,(1-($DY$2-AU$2)/$C19),0) -> 0.55 | DL19: =IF((1-($DY$2-AY$2)/$C19)>0,(1-($DY$2-AY$2)/$C19),0) -> 0.5833333333 | DM19: =IF((1-($DY$2-BC$2)/$C19)>0,(1-($DY$2-BC$2)/$C19),0) -> 0.6166666667 | DN19: =IF((1-($DY$2-BG$2)/$C19)>0,(1-($DY$2-BG$2)/$C19),0) -> 0.65 | DO19: =IF((1-($DY$2-BK$2)/$C19)>0,(1-($DY$2-BK$2)/$C19),0) -> 0.6833333333 | DP19: =IF((1-($DY$2-BO$2)/$C19)>0,(1-($DY$2-BO$2)/$C19),0) -> 0.7166666667 | DQ19: =IF((1-($DY$2-BS$2)/$C19)>0,(1-($DY$2-BS$2)/$C19),0) -> 0.75 | DR19: =IF((1-($DY$2-BW$2)/$C19)>0,(1-($DY$2-BW$2)/$C19),0) -> 0.7833333333 | DS19: =IF((1-($DY$2-CA$2)/$C19)>0,(1-($DY$2-CA$2)/$C19),0) -> 0.8166666667 | DT19: =IF((1-($DY$2-CE$2)/$C19)>0,(1-($DY$2-CE$2)/$C19),0) -> 0.85 | DU19: =IF((1-($DY$2-CI$2)/$C19)>0,(1-($DY$2-CI$2)/$C19),0) -> 0.8833333333 | DV19: =IF((1-($DY$2-CM$2)/$C19)>0,(1-($DY$2-CM$2)/$C19),0) -> 0.9166666667 | DW19: =IF((1-($DY$2-CQ$2)/$C19)>0,(1-($DY$2-CQ$2)/$C19),0) -> 0.95 | DX19: =IF((1-($DY$2-CU$2)/$C19)>0,(1-($DY$2-CU$2)/$C19),0) -> 0.9833333333 | DY19: =IF(CZ19=0,0,($D19-$E19)*1/$C19)+IF(DA19=0,0,($G19-$H19-$I19)*$G$61*1/$C19)+IF(DB19=0,0,($K19-$L19-$M19)*$K$61*1/$C19)+IF(DC19=0,0,($O19-$P19-$Q19)*$O$61*1/$C19)+IF(DD19=0,0,($S19-$T19-$U19)*$S$61*1/$C19)+IF(DE19=0,0,($W19-$X19-$Y19)*$W$61*1/$C19)+IF(DF19=0,0,($AA19-$AB19-$AC19)*$AA$61*1/$C19)+IF(DG19=0,0,($AE19-$AF19-$AG19)*$AE$61*1/$C19)+IF(DH19=0,0,($AI19-$AJ19-$AK19)*$AI$61*1/$C19)+IF(DI19=0,0,($AM19-$AN19-$AO19)*$AM$61*1/$C19)+IF(DJ19=0,0,($AQ19-$AR19-$AS19)*$AQ$61*1/$C19)+IF(DK19=0,0,($AU19-$AV19-$AW19)*$AU$61*1/$C19)+IF(DL19=0,0,($AY19-$AZ19-$BA19)*$AY$61*1/$C19)+IF(DM19=0,0,($BC19-$BD19-$BE19)*$BC$61*1/$C19)+IF(DN19=0,0,($BG19-$BH19-$BI19)*$BG$61*1/$C19)+IF(DO19=0,0,($BK19-$BL19-$BM19)*$BK$61*1/$C19)+IF(DP19=0,0,($BO19-$BP19-$BQ19)*$BO$61*1/$C19)+IF(DQ19=0,0,($BS19-$BT19-$BU19)*$BS$61*1/$C19)+IF(DR19=0,0,($BW19-$BX19-$BY19)*$BW$61*1/$C19)+IF(DS19=0,0,($CA19-$CB19-$CC19)*$CA$61*1/$C19)+IF(DT19=0,0,($CE19-$CF19-$CG19)*$CE$61*1/$C19)+IF(DU19=0,0,($CI19-$CJ19-$CK19)*$CI$61*1/$C19)+IF(DV19=0,0,($CM19-$CN19-$CO19)*$CM$61*1/$C19)+IF(DW19=0,0,($CQ19-$CR19-$CS19)*$CQ$61*1/$C19)+IF(DX19=0,0,($CU19-$CV19-$CW19)*$CU$61*1/$C19) -> 3427595.856 | DZ19: =D19-E19+(G19-H19-I19)*G$61+(K19-L19-M19)*K$61+(O19-P19-Q19)*O$61+(S19-T19-U19)*S$61+(W19-X19-Y19)*W$61+(AA19-AB19-AC19)*AA$61+(AE19-AF19-AG19)*AE$61+(AI19-AJ19-AK19)*AI$61+(AM19-AN19-AO19)*AM$61+(AQ19-AR19-AS19)*$AQ$61+(AU19-AV19-AW19)*$AU$61+(AY19-AZ19-BA19)*$AY$61+(BC19-BD19-BE19)*$BC$61+(BG19-BH19-BI19)*$BG$61+(BK19-BL19-BM19)*$BK$61+(BO19-BP19-BQ19)*$BO$61+(BS19-BT19-BU19)*$BS$61+(BW19-BX19-BY19)*$BW$61+(CA19-CB19-CC19)*$CA$61+(CE19-CF19-CG19)*$CE$61+(CI19-CJ19-CK19)*$CI$61+(CM19-CN19-CO19)*$CM$61+(CQ19-CR19-CS19)*$CQ$61+(CU19-CV19-CW19)*$CU$61 -> 147932543.7 | EA19: =IF(CZ19=0,D19-E19,0)+IF(DA19=0,(G19-H19-I19)*G$61,0)+IF(DB19=0,(K19-L19-M19)*K$61,0)+IF(DC19=0,(O19-P19-Q19)*O$61,0)+IF(DD19=0,(S19-T19-U19)*S$61,0)+IF(DE19=0,(W19-X19-Y19)*W$61,0)+IF(DF19=0,(AA19-AB19-AC19)*AA$61,0)+IF(DG19=0,(AE19-AF19-AG19)*AE$61,0)+IF(DH19=0,(AI19-AJ19-AK19)*AI$61,0)+IF(DI19=0,(AM19-AN19-AO19)*AM$61,0)+IF(DJ19=0,(AQ19-AR19-AS19)*$AQ$61,0)+IF(DK19=0,(AU19-AV19-AW19)*$AU$61,0)+IF(DL19=0,(AY19-AZ19-BA19)*$AY$61,0)++IF(DM19=0,(BC19-BD19-BE19)*$BC$61,0)+IF(DN19=0,(BG19-BH19-BI19)*$BG$61,0)+IF(DO19=0,(BK19-BL19-BM19)*$BK$61,0)+IF(DP19=0,(BO19-BP19-BQ19)*$BO$61,0)+IF(DQ19=0,(BS19-BT19-BU19)*$BS$61,0)+IF(DR19=0,(BW19-BX19-BY19)*$BW$61,0)+IF(DS19=0,(CA19-CB19-CC19)*$CA$61,0)+IF(DT19=0,(CE19-CF19-CG19)*$CE$61,0)+IF(DU19=0,(CI19-CJ19-CK19)*$CI$61,0)+IF(DV19=0,(CM19-CN19-CO19)*$CM$61,0)+IF(DW19=0,(CQ19-CR19-CS19)*$CQ$61,0)+IF(DX19=0,(CU19-CV19-CW19)*$CU$61,0) -> 45104668.05 | EB19: =(D19-E19)*CZ19+((G19-H19-(I19-J19))*G$61)*DA19+((K19-L19-(M19-N19))*K$61)*DB19+((O19-P19-(Q19-R19))*O$61)*DC19+((S19-T19-(U19-V19))*S$61)*DD19+((W19-X19-(Y19-Z19))*W$61)*DE19+((AA19-AB19-(AC19-AD19))*AA$61)*DF19+((AE19-AF19-(AG19-AH19))*AE$61)*DG19+((AI19-AJ19-(AK19-AL19))*AI$61)*DH19+((AM19-AN19-(AO19-AP19))*$AM$61)*DI19+((AQ19-AR19-(AS19-AT19))*$AQ$61)*DJ19+((AU19-AV19-(AW19-AX19))*$AU$61)*DK19+((AY19-AZ19-(BA19-BB19))*$AY$61)*DL19+((BC19-BD19-(BE19-BF19))*$BC$61)*DM19+((BG19-BH19-(BI19-BJ19))*$BG$61)*DN19+((BK19-BL19-(BM19-BN19))*$BK$61)*DO19+((BO19-BP19-(BQ19-BR19))*$BO$61)*DP19+((BS19-BT19-(BU19-BV19))*$BS$61)*DQ19+((BW19-BX19-(BY19-BZ19))*$BW$61)*DR19+((CA19-CB19-(CC19-CD19))*$CA$61)*DS19+((CE19-CF19-(CG19-CH19))*$CE$61)*DT19+((CI19-CJ19-(CK19-CL19))*$CI$61)*DU19+((CM19-CN19-(CO19-CP19))*$CM$61)*DV19+((CQ19-CR19-(CS19-CT19))*$CQ$61)*DW19+((CU19-CV19-(CW19-CX19))*$CU$61)*DX19 -> 80101145.34 | EC19: 3427595.856 | ED19: =IF((1-($FC$2-$CY19)/$C19)>0,(1-($FC$2-$CY19)/$C19),0) -> 0 | EE19: =IF((1-($FC$2-EE$2)/$C19)>0,(1-($FC$2-EE$2)/$C19),0) -> 0.1833333333 | EF19: 0.2166666667 | EG19: 0.25 | EH19: 0.2833333333 | EI19: 0.3166666667 | EJ19: 0.35 | EK19: 0.3833333333 | EL19: 0.4166666667 | EM19: 0.45 | EN19: 0.4833333333 | EO19: =IF((1-($FC$2-EO$2)/$C19)>0,(1-($FC$2-EO$2)/$C19),0) -> 0.5166666667 | EP19: 0.55 | EQ19: 0.5833333333 | ER19: 0.6166666667 | ES19: 0.65 | ET19: 0.6833333333 | EU19: 0.7166666667 | EV19: 0.75 | EW19: 0.7833333333 | EX19: 0.8166666667 | EY19: 0.85 | EZ19: =IF((1-($FC$2-EZ$2)/$C19)>0,(1-($FC$2-EZ$2)/$C19),0) -> 0.8833333333 | FA19: 0.9166666667 | FB19: 0.95 | FC19: 3427595.856 | FD19: =IF((1-($GC$2-$CY19)/$C19)>0,(1-($GC$2-$CY19)/$C19),0) -> 0 | FE19: =IF((1-($GC$2-FE$2)/$C19)>0,(1-($GC$2-FE$2)/$C19),0) -> 0.15 | FF19: 0.1833333333 | FG19: 0.2166666667 | FH19: 0.25 | FI19: 0.2833333333 | FJ19: 0.3166666667 | FK19: 0.35 | FL19: 0.3833333333 | FM19: 0.4166666667 | FN19: 0.45 | FO19: =IF((1-($GC$2-FO$2)/$C19)>0,(1-($GC$2-FO$2)/$C19),0) -> 0.4833333333 | FP19: 0.5166666667 | FQ19: 0.55 | FR19: 0.5833333333 | FS19: 0.6166666667 | FT19: 0.65 | FU19: 0.6833333333 | FV19: 0.7166666667 | FW19: 0.75 | FX19: 0.7833333333 | FY19: 0.8166666667 | FZ19: =IF((1-($GC$2-FZ$2)/$C19)>0,(1-($GC$2-FZ$2)/$C19),0) -> 0.85 | GA19: 0.8833333333 | GB19: 0.9166666667 | GC19: 3427595.856 | GD19: =IF((1-($HC$2-$CY19)/$C19)>0,(1-($HC$2-$CY19)/$C19),0) -> 0 | GE19: =IF((1-($HC$2-GE$2)/$C19)>0,(1-($HC$2-GE$2)/$C19),0) -> 0.1166666667 | GF19: 0.15 | GG19: 0.1833333333 | GH19: 0.2166666667 | GI19: 0.25 | GJ19: 0.2833333333 | GK19: 0.3166666667 | GL19: 0.35 | GM19: 0.3833333333 | GN19: 0.4166666667 | GO19: =IF((1-($HC$2-GO$2)/$C19)>0,(1-($HC$2-GO$2)/$C19),0) -> 0.45 | GP19: 0.4833333333 | GQ19: 0.5166666667 | GR19: 0.55 | GS19: 0.5833333333 | GT19: 0.6166666667 | GU19: 0.65 | GV19: 0.6833333333 | GW19: 0.7166666667 | GX19: 0.75 | GY19: 0.7833333333 | GZ19: =IF((1-($HC$2-GZ$2)/$C19)>0,(1-($HC$2-GZ$2)/$C19),0) -> 0.8166666667 | HA19: 0.85 | HB19: 0.8833333333 | HC19: 3427595.856 | HD19: =IF((1-($IC$2-$CY19)/$C19)>0,(1-($IC$2-$CY19)/$C19),0) -> 0 | HE19: =IF((1-($IC$2-HE$2)/$C19)>0,(1-($IC$2-HE$2)/$C19),0) -> 0.08333333333 | HF19: 0.1166666667 | HG19: 0.15 | HH19: 0.1833333333 | HI19: 0.2166666667 | HJ19: 0.25 | HK19: 0.2833333333 | HL19: 0.3166666667 | HM19: 0.35 | HN19: 0.3833333333 | HO19: =IF((1-($IC$2-HO$2)/$C19)>0,(1-($IC$2-HO$2)/$C19),0) -> 0.4166666667 | HP19: 0.45 | HQ19: 0.4833333333 | HR19: 0.5166666667 | HS19: 0.55 | HT19: 0.5833333333 | HU19: 0.6166666667 | HV19: 0.65 | HW19: 0.6833333333 | HX19: 0.7166666667 | HY19: 0.75 | HZ19: =IF((1-($IC$2-HZ$2)/$C19)>0,(1-($IC$2-HZ$2)/$C19),0) -> 0.7833333333 | IA19: 0.8166666667 | IB19: 0.85 | IC19: 3427595.856
A20: SISTEMA DE | B20: Líneas aéreas de 13,8 kV | C20: 30 | D20: 100883795.7 | F20: 57744581.01 | G20: 1741512.35 | K20: 2384819.88 | L20: 3414229 | O20: 2124392.57 | S20: 2093227 | W20: 1399144.93 | X20: 0 | AA20: 1584434.51 | AB20: 0 | AE20: 1996551.18 | AF20: 0 | AI20: 983938.8204 | AJ20: 0 | AM20: 1839009.653 | AN20: 0 | AQ20: 2262361.055 | AR20: 0 | AU20: 3050666.73 | AV20: 0 | AY20: 3331989.86 | AZ20: 0 | BC20: 4128251.36 | BD20: 530.95 | BG20: 6311478.26 | BH20: 0 | BK20: 4644619.17 | BL20: 0 | BO20: 12759446.23 | BP20: 96386.4 | BS20: 5705683.61 | BT20: 735802.572 | BW20: 4115472.98 | BX20: 798963.0786 | CA20: 5854286.54 | CB20: 1242203.851 | CE20: 6072353.75 | CF20: 137610.1895 | CI20: 7336315.49 | CJ20: 16050.65 | CK20: 0 | CL20: 0 | CM20: 7993093.18 | CN20: 163790.34 | CO20: 0 | CP20: 0 | CQ20: 8731356.86 | CR20: 510446.21 | CS20: 0 | CT20: 0 | CU20: 9754096.67 | CV20: 279838.4811 | CY20: 1988.171612 | CZ20: 0 | DA20: 0.2166666667 | DB20: 0.25 | DC20: 0.2833333333 | DD20: 0.3166666667 | DE20: 0.35 | DF20: 0.3833333333 | DG20: 0.4166666667 | DH20: 0.45 | DI20: 0.4833333333 | DJ20: 0.5166666667 | DK20: 0.55 | DL20: 0.5833333333 | DM20: 0.6166666667 | DN20: 0.65 | DO20: 0.6833333333 | DP20: 0.7166666667 | DQ20: 0.75 | DR20: 0.7833333333 | DS20: 0.8166666667 | DT20: 0.85 | DU20: 0.8833333333 | DV20: 0.9166666667 | DW20: 0.95 | DX20: 0.9833333333 | DY20: 2870656.457 | DZ20: 187003489.4 | EA20: 100883795.7 | EB20: 63209371.22 | EC20: 2870656.457 | ED20: 0 | EE20: 0.1833333333 | EF20: 0.2166666667 | EG20: 0.25 | EH20: 0.2833333333 | EI20: 0.3166666667 | EJ20: 0.35 | EK20: 0.3833333333 | EL20: 0.4166666667 | EM20: 0.45 | EN20: 0.4833333333 | EO20: 0.5166666667 | EP20: 0.55 | EQ20: 0.5833333333 | ER20: 0.6166666667 | ES20: 0.65 | ET20: 0.6833333333 | EU20: 0.7166666667 | EV20: 0.75 | EW20: 0.7833333333 | EX20: 0.8166666667 | EY20: 0.85 | EZ20: 0.8833333333 | FA20: 0.9166666667 | FB20: 0.95 | FC20: 2870656.457 | FD20: 0 | FE20: 0.15 | FF20: 0.1833333333 | FG20: 0.2166666667 | FH20: 0.25 | FI20: 0.2833333333 | FJ20: 0.3166666667 | FK20: 0.35 | FL20: 0.3833333333 | FM20: 0.4166666667 | FN20: 0.45 | FO20: 0.4833333333 | FP20: 0.5166666667 | FQ20: 0.55 | FR20: 0.5833333333 | FS20: 0.6166666667 | FT20: 0.65 | FU20: 0.6833333333 | FV20: 0.7166666667 | FW20: 0.75 | FX20: 0.7833333333 | FY20: 0.8166666667 | FZ20: 0.85 | GA20: 0.8833333333 | GB20: 0.9166666667 | GC20: 2870656.457 | GD20: 0 | GE20: 0.1166666667 | GF20: 0.15 | GG20: 0.1833333333 | GH20: 0.2166666667 | GI20: 0.25 | GJ20: 0.2833333333 | GK20: 0.3166666667 | GL20: 0.35 | GM20: 0.3833333333 | GN20: 0.4166666667 | GO20: 0.45 | GP20: 0.4833333333 | GQ20: 0.5166666667 | GR20: 0.55 | GS20: 0.5833333333 | GT20: 0.6166666667 | GU20: 0.65 | GV20: 0.6833333333 | GW20: 0.7166666667 | GX20: 0.75 | GY20: 0.7833333333 | GZ20: 0.8166666667 | HA20: 0.85 | HB20: 0.8833333333 | HC20: 2870656.457 | HD20: 0 | HE20: 0.08333333333 | HF20: 0.1166666667 | HG20: 0.15 | HH20: 0.1833333333 | HI20: 0.2166666667 | HJ20: 0.25 | HK20: 0.2833333333 | HL20: 0.3166666667 | HM20: 0.35 | HN20: 0.3833333333 | HO20: 0.4166666667 | HP20: 0.45 | HQ20: 0.4833333333 | HR20: 0.5166666667 | HS20: 0.55 | HT20: 0.5833333333 | HU20: 0.6166666667 | HV20: 0.65 | HW20: 0.6833333333 | HX20: 0.7166666667 | HY20: 0.75 | HZ20: 0.7833333333 | IA20: 0.8166666667 | IB20: 0.85 | IC20: 2870656.457
A21: DISTRIBUCION | B21: Líneas aéreas de otras tensiones | C21: 30 | D21: 10502599.28 | F21: 6011557.798 | G21: 0 | K21: 0 | L21: 0 | O21: 0 | S21: 1587005 | T21: 1587005 | W21: 0 | X21: 0 | AA21: 0 | AB21: 0 | AE21: 0 | AF21: 0 | AI21: 0 | AJ21: 0 | AM21: 0 | AN21: 0 | AQ21: 0 | AR21: 0 | AU21: 0 | AV21: 0 | AY21: 0 | AZ21: 0 | BC21: 0 | BD21: 0 | BG21: 0 | BH21: 0 | BK21: 0 | BL21: 0 | BO21: 0 | BP21: 0 | BS21: 0 | BT21: 0 | BW21: 0 | BX21: 0 | CA21: 0 | CB21: 0 | CE21: 0 | CF21: 0 | CI21: 0 | CK21: 0 | CL21: 0 | CM21: 0 | CO21: 0 | CP21: 0 | CQ21: 0 | CS21: 0 | CT21: 0 | CU21: 756242.96 | CV21: 0 | CY21: 1988.171629 | CZ21: 0 | DA21: 0.2166666667 | DB21: 0.25 | DC21: 0.2833333333 | DD21: 0.3166666667 | DE21: 0.35 | DF21: 0.3833333333 | DG21: 0.4166666667 | DH21: 0.45 | DI21: 0.4833333333 | DJ21: 0.5166666667 | DK21: 0.55 | DL21: 0.5833333333 | DM21: 0.6166666667 | DN21: 0.65 | DO21: 0.6833333333 | DP21: 0.7166666667 | DQ21: 0.75 | DR21: 0.7833333333 | DS21: 0.8166666667 | DT21: 0.85 | DU21: 0.8833333333 | DV21: 0.9166666667 | DW21: 0.95 | DX21: 0.9833333333 | DY21: 20660.34238 | DZ21: 11122409.55 | EA21: 10502599.28 | EB21: 609480.1003 | EC21: 20660.34238 | ED21: 0 | EE21: 0.1833333333 | EF21: 0.2166666667 | EG21: 0.25 | EH21: 0.2833333333 | EI21: 0.3166666667 | EJ21: 0.35 | EK21: 0.3833333333 | EL21: 0.4166666667 | EM21: 0.45 | EN21: 0.4833333333 | EO21: 0.5166666667 | EP21: 0.55 | EQ21: 0.5833333333 | ER21: 0.6166666667 | ES21: 0.65 | ET21: 0.6833333333 | EU21: 0.7166666667 | EV21: 0.75 | EW21: 0.7833333333 | EX21: 0.8166666667 | EY21: 0.85 | EZ21: 0.8833333333 | FA21: 0.9166666667 | FB21: 0.95 | FC21: 20660.34238 | FD21: 0 | FE21: 0.15 | FF21: 0.1833333333 | FG21: 0.2166666667 | FH21: 0.25 | FI21: 0.2833333333 | FJ21: 0.3166666667 | FK21: 0.35 | FL21: 0.3833333333 | FM21: 0.4166666667 | FN21: 0.45 | FO21: 0.4833333333 | FP21: 0.5166666667 | FQ21: 0.55 | FR21: 0.5833333333 | FS21: 0.6166666667 | FT21: 0.65 | FU21: 0.6833333333 | FV21: 0.7166666667 | FW21: 0.75 | FX21: 0.7833333333 | FY21: 0.8166666667 | FZ21: 0.85 | GA21: 0.8833333333 | GB21: 0.9166666667 | GC21: 20660.34238 | GD21: 0 | GE21: 0.1166666667 | GF21: 0.15 | GG21: 0.1833333333 | GH21: 0.2166666667 | GI21: 0.25 | GJ21: 0.2833333333 | GK21: 0.3166666667 | GL21: 0.35 | GM21: 0.3833333333 | GN21: 0.4166666667 | GO21: 0.45 | GP21: 0.4833333333 | GQ21: 0.5166666667 | GR21: 0.55 | GS21: 0.5833333333 | GT21: 0.6166666667 | GU21: 0.65 | GV21: 0.6833333333 | GW21: 0.7166666667 | GX21: 0.75 | GY21: 0.7833333333 | GZ21: 0.8166666667 | HA21: 0.85 | HB21: 0.8833333333 | HC21: 20660.34238 | HD21: 0 | HE21: 0.08333333333 | HF21: 0.1166666667 | HG21: 0.15 | HH21: 0.1833333333 | HI21: 0.2166666667 | HJ21: 0.25 | HK21: 0.2833333333 | HL21: 0.3166666667 | HM21: 0.35 | HN21: 0.3833333333 | HO21: 0.4166666667 | HP21: 0.45 | HQ21: 0.4833333333 | HR21: 0.5166666667 | HS21: 0.55 | HT21: 0.5833333333 | HU21: 0.6166666667 | HV21: 0.65 | HW21: 0.6833333333 | HX21: 0.7166666667 | HY21: 0.75 | HZ21: 0.7833333333 | IA21: 0.8166666667 | IB21: 0.85 | IC21: 20660.34238
B22: Líneas subterráneas de 34,5 kV | C22: 30 | D22: 0 | F22: 0 | G22: 8243.08 | K22: 107822.54 | L22: 0 | O22: 14342 | S22: 40902.2 | W22: 105842.357 | X22: 0 | AA22: 51925 | AB22: 0 | AE22: 329931.08 | AF22: 0 | AI22: 698785.9325 | AJ22: 0 | AM22: 703903.87 | AN22: 0 | AQ22: 1218864.87 | AR22: 0 | AU22: 1378168.08 | AV22: 0 | AY22: 2304144.9 | AZ22: 0 | BC22: 636574.14 | BD22: 0 | BG22: 1089814.49 | BH22: 0 | BK22: 2864804.4 | BL22: 0 | BO22: 3568242.03 | BP22: 0 | BS22: 5052388.86 | BT22: 534.1688639 | BW22: 4373991.28 | BX22: 123702.2916 | CA22: 1687195.05 | CB22: 0 | CE22: 1433187.02 | CF22: 31268.68981 | CI22: 944793.67 | CK22: 0 | CL22: 0 | CM22: 1462050.35 | CO22: 0 | CP22: 0 | CQ22: 4762619.3 | CR22: 454901.22 | CS22: 0 | CT22: 0 | CU22: 3123753.1 | CV22: 198201.5993 | CY22: 0 | CZ22: 0 | DA22: 0.2166666667 | DB22: 0.25 | DC22: 0.2833333333 | DD22: 0.3166666667 | DE22: 0.35 | DF22: 0.3833333333 | DG22: 0.4166666667 | DH22: 0.45 | DI22: 0.4833333333 | DJ22: 0.5166666667 | DK22: 0.55 | DL22: 0.5833333333 | DM22: 0.6166666667 | DN22: 0.65 | DO22: 0.6833333333 | DP22: 0.7166666667 | DQ22: 0.75 | DR22: 0.7833333333 | DS22: 0.8166666667 | DT22: 0.85 | DU22: 0.8833333333 | DV22: 0.9166666667 | DW22: 0.95 | DX22: 0.9833333333 | DY22: 1062203.353 | DZ22: 31866100.6 | EA22: 0 | EB22: 24012286.82 | EC22: 1062203.353 | ED22: 0 | EE22: 0.1833333333 | EF22: 0.2166666667 | EG22: 0.25 | EH22: 0.2833333333 | EI22: 0.3166666667 | EJ22: 0.35 | EK22: 0.3833333333 | EL22: 0.4166666667 | EM22: 0.45 | EN22: 0.4833333333 | EO22: 0.5166666667 | EP22: 0.55 | EQ22: 0.5833333333 | ER22: 0.6166666667 | ES22: 0.65 | ET22: 0.6833333333 | EU22: 0.7166666667 | EV22: 0.75 | EW22: 0.7833333333 | EX22: 0.8166666667 | EY22: 0.85 | EZ22: 0.8833333333 | FA22: 0.9166666667 | FB22: 0.95 | FC22: 1062203.353 | FD22: 0 | FE22: 0.15 | FF22: 0.1833333333 | FG22: 0.2166666667 | FH22: 0.25 | FI22: 0.2833333333 | FJ22: 0.3166666667 | FK22: 0.35 | FL22: 0.3833333333 | FM22: 0.4166666667 | FN22: 0.45 | FO22: 0.4833333333 | FP22: 0.5166666667 | FQ22: 0.55 | FR22: 0.5833333333 | FS22: 0.6166666667 | FT22: 0.65 | FU22: 0.6833333333 | FV22: 0.7166666667 | FW22: 0.75 | FX22: 0.7833333333 | FY22: 0.8166666667 | FZ22: 0.85 | GA22: 0.8833333333 | GB22: 0.9166666667 | GC22: 1062203.353 | GD22: 0 | GE22: 0.1166666667 | GF22: 0.15 | GG22: 0.1833333333 | GH22: 0.2166666667 | GI22: 0.25 | GJ22: 0.2833333333 | GK22: 0.3166666667 | GL22: 0.35 | GM22: 0.3833333333 | GN22: 0.4166666667 | GO22: 0.45 | GP22: 0.4833333333 | GQ22: 0.5166666667 | GR22: 0.55 | GS22: 0.5833333333 | GT22: 0.6166666667 | GU22: 0.65 | GV22: 0.6833333333 | GW22: 0.7166666667 | GX22: 0.75 | GY22: 0.7833333333 | GZ22: 0.8166666667 | HA22: 0.85 | HB22: 0.8833333333 | HC22: 1062203.353 | HD22: 0 | HE22: 0.08333333333 | HF22: 0.1166666667 | HG22: 0.15 | HH22: 0.1833333333 | HI22: 0.2166666667 | HJ22: 0.25 | HK22: 0.2833333333 | HL22: 0.3166666667 | HM22: 0.35 | HN22: 0.3833333333 | HO22: 0.4166666667 | HP22: 0.45 | HQ22: 0.4833333333 | HR22: 0.5166666667 | HS22: 0.55 | HT22: 0.5833333333 | HU22: 0.6166666667 | HV22: 0.65 | HW22: 0.6833333333 | HX22: 0.7166666667 | HY22: 0.75 | HZ22: 0.7833333333 | IA22: 0.8166666667 | IB22: 0.85 | IC22: 1062203.353
B23: Líneas subterráneas de 13,8 kV | C23: 30 | D23: 0 | F23: 0 | G23: 1472247.99 | K23: 3838199.57 | L23: 0 | O23: 1377632.68 | S23: 2456072 | W23: 3090247.853 | X23: 0 | AA23: 3365313 | AB23: 0 | AE23: 3107834.99 | AF23: 0 | AI23: 4921819.294 | AJ23: 0 | AM23: 4251329 | AN23: 0 | AQ23: 3671640.23 | AR23: 0 | AU23: 7538643.9 | AV23: 0 | AY23: 6958840.28 | AZ23: 0 | BC23: 12170665.8 | BD23: 478353.08 | BG23: 5933814.64 | BH23: 0 | BK23: 5356550.3 | BL23: 0 | BO23: 5843959.26 | BP23: 406107.12 | BS23: 10054434.03 | BT23: 662756.1645 | BW23: 10425595.39 | BX23: 785332.7495 | CA23: 15796364.14 | CB23: 332188.9776 | CE23: 14610646.7 | CF23: 42531.55081 | CI23: 10787186.26 | CK23: 0 | CL23: 0 | CM23: 9611244.46 | CO23: 0 | CP23: 0 | CQ23: 10804013.23 | CR23: 5890.64 | CS23: 0 | CT23: 0 | CU23: 14521577.52 | CV23: 2741.496324 | CY23: 0 | CZ23: 0 | DA23: 0.2166666667 | DB23: 0.25 | DC23: 0.2833333333 | DD23: 0.3166666667 | DE23: 0.35 | DF23: 0.3833333333 | DG23: 0.4166666667 | DH23: 0.45 | DI23: 0.4833333333 | DJ23: 0.5166666667 | DK23: 0.55 | DL23: 0.5833333333 | DM23: 0.6166666667 | DN23: 0.65 | DO23: 0.6833333333 | DP23: 0.7166666667 | DQ23: 0.75 | DR23: 0.7833333333 | DS23: 0.8166666667 | DT23: 0.85 | DU23: 0.8833333333 | DV23: 0.9166666667 | DW23: 0.95 | DX23: 0.9833333333 | DY23: 4826930.766 | DZ23: 144807923 | EA23: 0 | EB23: 103763507.9 | EC23: 4826930.766 | ED23: 0 | EE23: 0.1833333333 | EF23: 0.2166666667 | EG23: 0.25 | EH23: 0.2833333333 | EI23: 0.3166666667 | EJ23: 0.35 | EK23: 0.3833333333 | EL23: 0.4166666667 | EM23: 0.45 | EN23: 0.4833333333 | EO23: 0.5166666667 | EP23: 0.55 | EQ23: 0.5833333333 | ER23: 0.6166666667 | ES23: 0.65 | ET23: 0.6833333333 | EU23: 0.7166666667 | EV23: 0.75 | EW23: 0.7833333333 | EX23: 0.8166666667 | EY23: 0.85 | EZ23: 0.8833333333 | FA23: 0.9166666667 | FB23: 0.95 | FC23: 4826930.766 | FD23: 0 | FE23: 0.15 | FF23: 0.1833333333 | FG23: 0.2166666667 | FH23: 0.25 | FI23: 0.2833333333 | FJ23: 0.3166666667 | FK23: 0.35 | FL23: 0.3833333333 | FM23: 0.4166666667 | FN23: 0.45 | FO23: 0.4833333333 | FP23: 0.5166666667 | FQ23: 0.55 | FR23: 0.5833333333 | FS23: 0.6166666667 | FT23: 0.65 | FU23: 0.6833333333 | FV23: 0.7166666667 | FW23: 0.75 | FX23: 0.7833333333 | FY23: 0.8166666667 | FZ23: 0.85 | GA23: 0.8833333333 | GB23: 0.9166666667 | GC23: 4826930.766 | GD23: 0 | GE23: 0.1166666667 | GF23: 0.15 | GG23: 0.1833333333 | GH23: 0.2166666667 | GI23: 0.25 | GJ23: 0.2833333333 | GK23: 0.3166666667 | GL23: 0.35 | GM23: 0.3833333333 | GN23: 0.4166666667 | GO23: 0.45 | GP23: 0.4833333333 | GQ23: 0.5166666667 | GR23: 0.55 | GS23: 0.5833333333 | GT23: 0.6166666667 | GU23: 0.65 | GV23: 0.6833333333 | GW23: 0.7166666667 | GX23: 0.75 | GY23: 0.7833333333 | GZ23: 0.8166666667 | HA23: 0.85 | HB23: 0.8833333333 | HC23: 4826930.766 | HD23: 0 | HE23: 0.08333333333 | HF23: 0.1166666667 | HG23: 0.15 | HH23: 0.1833333333 | HI23: 0.2166666667 | HJ23: 0.25 | HK23: 0.2833333333 | HL23: 0.3166666667 | HM23: 0.35 | HN23: 0.3833333333 | HO23: 0.4166666667 | HP23: 0.45 | HQ23: 0.4833333333 | HR23: 0.5166666667 | HS23: 0.55 | HT23: 0.5833333333 | HU23: 0.6166666667 | HV23: 0.65 | HW23: 0.6833333333 | HX23: 0.7166666667 | HY23: 0.75 | HZ23: 0.7833333333 | IA23: 0.8166666667 | IB23: 0.85 | IC23: 4826930.766
B24: Líneas subterráneas de otras tensiones | C24: 30 | D24: 0 | F24: 0 | G24: 0 | K24: 0 | L24: 0 | O24: 0 | S24: 0 | W24: 0 | X24: 0 | AA24: 0 | AB24: 0 | AE24: 0 | AF24: 0 | AI24: 0 | AJ24: 0 | AM24: 0 | AN24: 0 | AQ24: 0 | AR24: 0 | AU24: 0 | AV24: 0 | AY24: 0 | AZ24: 0 | BC24: 1366746.74 | BD24: 0 | BG24: 109.42 | BH24: 0 | BK24: 0 | BL24: 0 | BO24: 0 | BP24: 0 | BS24: 0 | BT24: 0 | BW24: 79492.33 | BX24: 0 | CA24: 143770.49 | CB24: 0 | CE24: 19786.24 | CF24: 0 | CI24: 94208.18 | CK24: 0 | CL24: 0 | CM24: 2133143.27 | CO24: 0 | CP24: 0 | CQ24: 33535.74 | CS24: 0 | CT24: 0 | CU24: 380400 | CV24: 0 | CY24: 0 | CZ24: 0 | DA24: 0.2166666667 | DB24: 0.25 | DC24: 0.2833333333 | DD24: 0.3166666667 | DE24: 0.35 | DF24: 0.3833333333 | DG24: 0.4166666667 | DH24: 0.45 | DI24: 0.4833333333 | DJ24: 0.5166666667 | DK24: 0.55 | DL24: 0.5833333333 | DM24: 0.6166666667 | DN24: 0.65 | DO24: 0.6833333333 | DP24: 0.7166666667 | DQ24: 0.75 | DR24: 0.7833333333 | DS24: 0.8166666667 | DT24: 0.85 | DU24: 0.8833333333 | DV24: 0.9166666667 | DW24: 0.95 | DX24: 0.9833333333 | DY24: 121380.2976 | DZ24: 3641408.928 | EA24: 0 | EB24: 2969158.5 | EC24: 121380.2976 | ED24: 0 | EE24: 0.1833333333 | EF24: 0.2166666667 | EG24: 0.25 | EH24: 0.2833333333 | EI24: 0.3166666667 | EJ24: 0.35 | EK24: 0.3833333333 | EL24: 0.4166666667 | EM24: 0.45 | EN24: 0.4833333333 | EO24: 0.5166666667 | EP24: 0.55 | EQ24: 0.5833333333 | ER24: 0.6166666667 | ES24: 0.65 | ET24: 0.6833333333 | EU24: 0.7166666667 | EV24: 0.75 | EW24: 0.7833333333 | EX24: 0.8166666667 | EY24: 0.85 | EZ24: 0.8833333333 | FA24: 0.9166666667 | FB24: 0.95 | FC24: 121380.2976 | FD24: 0 | FE24: 0.15 | FF24: 0.1833333333 | FG24: 0.2166666667 | FH24: 0.25 | FI24: 0.2833333333 | FJ24: 0.3166666667 | FK24: 0.35 | FL24: 0.3833333333 | FM24: 0.4166666667 | FN24: 0.45 | FO24: 0.4833333333 | FP24: 0.5166666667 | FQ24: 0.55 | FR24: 0.5833333333 | FS24: 0.6166666667 | FT24: 0.65 | FU24: 0.6833333333 | FV24: 0.7166666667 | FW24: 0.75 | FX24: 0.7833333333 | FY24: 0.8166666667 | FZ24: 0.85 | GA24: 0.8833333333 | GB24: 0.9166666667 | GC24: 121380.2976 | GD24: 0 | GE24: 0.1166666667 | GF24: 0.15 | GG24: 0.1833333333 | GH24: 0.2166666667 | GI24: 0.25 | GJ24: 0.2833333333 | GK24: 0.3166666667 | GL24: 0.35 | GM24: 0.3833333333 | GN24: 0.4166666667 | GO24: 0.45 | GP24: 0.4833333333 | GQ24: 0.5166666667 | GR24: 0.55 | GS24: 0.5833333333 | GT24: 0.6166666667 | GU24: 0.65 | GV24: 0.6833333333 | GW24: 0.7166666667 | GX24: 0.75 | GY24: 0.7833333333 | GZ24: 0.8166666667 | HA24: 0.85 | HB24: 0.8833333333 | HC24: 121380.2976 | HD24: 0 | HE24: 0.08333333333 | HF24: 0.1166666667 | HG24: 0.15 | HH24: 0.1833333333 | HI24: 0.2166666667 | HJ24: 0.25 | HK24: 0.2833333333 | HL24: 0.3166666667 | HM24: 0.35 | HN24: 0.3833333333 | HO24: 0.4166666667 | HP24: 0.45 | HQ24: 0.4833333333 | HR24: 0.5166666667 | HS24: 0.55 | HT24: 0.5833333333 | HU24: 0.6166666667 | HV24: 0.65 | HW24: 0.6833333333 | HX24: 0.7166666667 | HY24: 0.75 | HZ24: 0.7833333333 | IA24: 0.8166666667 | IB24: 0.85 | IC24: 121380.2976
B25: Subestaciones 34,5 kV / MT | C25: 30 | D25: 17407504.25 | F25: 9963827.377 | G25: 971291.34 | K25: 500978.81 | L25: 0 | O25: 82711.3 | S25: 196573.92 | W25: 85078 | X25: 0 | AA25: 359524 | AB25: 0 | AE25: 29930 | AF25: 0 | AI25: 134179.56 | AJ25: 0 | AM25: 90583 | AN25: 0 | AQ25: 171534.52 | AR25: 0 | AU25: 944923.23 | AV25: 0 | AY25: 3898824.7 | AZ25: 0 | BC25: 972435.57 | BD25: 0 | BG25: 1163308 | BH25: 0 | BK25: 30881.94 | BL25: 0 | BO25: 2187634 | BP25: 0 | BS25: 342347.92 | BT25: 0 | BW25: 67883.61 | BX25: 0 | CA25: 199439.7 | CB25: 0 | CE25: 831146.56 | CF25: 0 | CI25: 842972.33 | CK25: 0 | CL25: 0 | CM25: 1506126.98 | CO25: 0 | CP25: 0 | CQ25: 3619946.73 | CS25: 0 | CT25: 0 | CU25: 2235091.84 | CV25: 0 | CY25: 1988.171607 | CZ25: 0 | DA25: 0.2166666667 | DB25: 0.25 | DC25: 0.2833333333 | DD25: 0.3166666667 | DE25: 0.35 | DF25: 0.3833333333 | DG25: 0.4166666667 | DH25: 0.45 | DI25: 0.4833333333 | DJ25: 0.5166666667 | DK25: 0.55 | DL25: 0.5833333333 | DM25: 0.6166666667 | DN25: 0.65 | DO25: 0.6833333333 | DP25: 0.7166666667 | DQ25: 0.75 | DR25: 0.7833333333 | DS25: 0.8166666667 | DT25: 0.85 | DU25: 0.8833333333 | DV25: 0.9166666667 | DW25: 0.95 | DX25: 0.9833333333 | DY25: 604111.3131 | DZ25: 35530843.65 | EA25: 17407504.25 | EB25: 12985165.57 | EC25: 604111.3131 | ED25: 0 | EE25: 0.1833333333 | EF25: 0.2166666667 | EG25: 0.25 | EH25: 0.2833333333 | EI25: 0.3166666667 | EJ25: 0.35 | EK25: 0.3833333333 | EL25: 0.4166666667 | EM25: 0.45 | EN25: 0.4833333333 | EO25: 0.5166666667 | EP25: 0.55 | EQ25: 0.5833333333 | ER25: 0.6166666667 | ES25: 0.65 | ET25: 0.6833333333 | EU25: 0.7166666667 | EV25: 0.75 | EW25: 0.7833333333 | EX25: 0.8166666667 | EY25: 0.85 | EZ25: 0.8833333333 | FA25: 0.9166666667 | FB25: 0.95 | FC25: 604111.3131 | FD25: 0 | FE25: 0.15 | FF25: 0.1833333333 | FG25: 0.2166666667 | FH25: 0.25 | FI25: 0.2833333333 | FJ25: 0.3166666667 | FK25: 0.35 | FL25: 0.3833333333 | FM25: 0.4166666667 | FN25: 0.45 | FO25: 0.4833333333 | FP25: 0.5166666667 | FQ25: 0.55 | FR25: 0.5833333333 | FS25: 0.6166666667 | FT25: 0.65 | FU25: 0.6833333333 | FV25: 0.7166666667 | FW25: 0.75 | FX25: 0.7833333333 | FY25: 0.8166666667 | FZ25: 0.85 | GA25: 0.8833333333 | GB25: 0.9166666667 | GC25: 604111.3131 | GD25: 0 | GE25: 0.1166666667 | GF25: 0.15 | GG25: 0.1833333333 | GH25: 0.2166666667 | GI25: 0.25 | GJ25: 0.2833333333 | GK25: 0.3166666667 | GL25: 0.35 | GM25: 0.3833333333 | GN25: 0.4166666667 | GO25: 0.45 | GP25: 0.4833333333 | GQ25: 0.5166666667 | GR25: 0.55 | GS25: 0.5833333333 | GT25: 0.6166666667 | GU25: 0.65 | GV25: 0.6833333333 | GW25: 0.7166666667 | GX25: 0.75 | GY25: 0.7833333333 | GZ25: 0.8166666667 | HA25: 0.85 | HB25: 0.8833333333 | HC25: 604111.3131 | HD25: 0 | HE25: 0.08333333333 | HF25: 0.1166666667 | HG25: 0.15 | HH25: 0.1833333333 | HI25: 0.2166666667 | HJ25: 0.25 | HK25: 0.2833333333 | HL25: 0.3166666667 | HM25: 0.35 | HN25: 0.3833333333 | HO25: 0.4166666667 | HP25: 0.45 | HQ25: 0.4833333333 | HR25: 0.5166666667 | HS25: 0.55 | HT25: 0.5833333333 | HU25: 0.6166666667 | HV25: 0.65 | HW25: 0.6833333333 | HX25: 0.7166666667 | HY25: 0.75 | HZ25: 0.7833333333 | IA25: 0.8166666667 | IB25: 0.85 | IC25: 604111.3131
B26: Subestaciones 13,8 kV / MT | C26: 30 | D26: 0 | F26: 0 | G26: 0 | K26: 0 | L26: 0 | O26: 0 | S26: 0 | W26: 0 | X26: 0 | AA26: 0 | AB26: 0 | AE26: 0 | AF26: 0 | AI26: 0 | AJ26: 0 | AM26: 0 | AN26: 0 | AQ26: 0 | AR26: 0 | AU26: 0 | AV26: 0 | AY26: 0 | AZ26: 0 | BC26: 0 | BD26: 0 | BG26: 0 | BH26: 0 | BK26: 0 | BL26: 0 | BO26: 0 | BP26: 0 | BS26: 0 | BT26: 0 | BW26: 0 | BX26: 0 | CA26: 0 | CB26: 0 | CE26: 0 | CF26: 0 | CI26: 0 | CK26: 0 | CL26: 0 | CM26: 1099722.54 | CO26: 0 | CP26: 0 | CQ26: 0 | CS26: 0 | CT26: 0 | CU26: 0 | CV26: 0 | CY26: 0 | CZ26: 0 | DA26: 0.2166666667 | DB26: 0.25 | DC26: 0.2833333333 | DD26: 0.3166666667 | DE26: 0.35 | DF26: 0.3833333333 | DG26: 0.4166666667 | DH26: 0.45 | DI26: 0.4833333333 | DJ26: 0.5166666667 | DK26: 0.55 | DL26: 0.5833333333 | DM26: 0.6166666667 | DN26: 0.65 | DO26: 0.6833333333 | DP26: 0.7166666667 | DQ26: 0.75 | DR26: 0.7833333333 | DS26: 0.8166666667 | DT26: 0.85 | DU26: 0.8833333333 | DV26: 0.9166666667 | DW26: 0.95 | DX26: 0.9833333333 | DY26: 30860.98405 | DZ26: 925829.5214 | EA26: 0 | EB26: 848677.0613 | EC26: 30860.98405 | ED26: 0 | EE26: 0.1833333333 | EF26: 0.2166666667 | EG26: 0.25 | EH26: 0.2833333333 | EI26: 0.3166666667 | EJ26: 0.35 | EK26: 0.3833333333 | EL26: 0.4166666667 | EM26: 0.45 | EN26: 0.4833333333 | EO26: 0.5166666667 | EP26: 0.55 | EQ26: 0.5833333333 | ER26: 0.6166666667 | ES26: 0.65 | ET26: 0.6833333333 | EU26: 0.7166666667 | EV26: 0.75 | EW26: 0.7833333333 | EX26: 0.8166666667 | EY26: 0.85 | EZ26: 0.8833333333 | FA26: 0.9166666667 | FB26: 0.95 | FC26: 30860.98405 | FD26: 0 | FE26: 0.15 | FF26: 0.1833333333 | FG26: 0.2166666667 | FH26: 0.25 | FI26: 0.2833333333 | FJ26: 0.3166666667 | FK26: 0.35 | FL26: 0.3833333333 | FM26: 0.4166666667 | FN26: 0.45 | FO26: 0.4833333333 | FP26: 0.5166666667 | FQ26: 0.55 | FR26: 0.5833333333 | FS26: 0.6166666667 | FT26: 0.65 | FU26: 0.6833333333 | FV26: 0.7166666667 | FW26: 0.75 | FX26: 0.7833333333 | FY26: 0.8166666667 | FZ26: 0.85 | GA26: 0.8833333333 | GB26: 0.9166666667 | GC26: 30860.98405 | GD26: 0 | GE26: 0.1166666667 | GF26: 0.15 | GG26: 0.1833333333 | GH26: 0.2166666667 | GI26: 0.25 | GJ26: 0.2833333333 | GK26: 0.3166666667 | GL26: 0.35 | GM26: 0.3833333333 | GN26: 0.4166666667 | GO26: 0.45 | GP26: 0.4833333333 | GQ26: 0.5166666667 | GR26: 0.55 | GS26: 0.5833333333 | GT26: 0.6166666667 | GU26: 0.65 | GV26: 0.6833333333 | GW26: 0.7166666667 | GX26: 0.75 | GY26: 0.7833333333 | GZ26: 0.8166666667 | HA26: 0.85 | HB26: 0.8833333333 | HC26: 30860.98405 | HD26: 0 | HE26: 0.08333333333 | HF26: 0.1166666667 | HG26: 0.15 | HH26: 0.1833333333 | HI26: 0.2166666667 | HJ26: 0.25 | HK26: 0.2833333333 | HL26: 0.3166666667 | HM26: 0.35 | HN26: 0.3833333333 | HO26: 0.4166666667 | HP26: 0.45 | HQ26: 0.4833333333 | HR26: 0.5166666667 | HS26: 0.55 | HT26: 0.5833333333 | HU26: 0.6166666667 | HV26: 0.65 | HW26: 0.6833333333 | HX26: 0.7166666667 | HY26: 0.75 | HZ26: 0.7833333333 | IA26: 0.8166666667 | IB26: 0.85 | IC26: 30860.98405
B27: Otras subestaciones MT/MT | C27: 30 | D27: 436488.8419 | F27: 249840.5726 | G27: 0 | K27: 0 | L27: 0 | O27: 0 | S27: 0 | W27: 0 | X27: 0 | AA27: 0 | AB27: 0 | AE27: 39584.84 | AF27: 0 | AI27: 0 | AJ27: 0 | AM27: 0 | AN27: 0 | AQ27: 0 | AR27: 0 | AU27: 0 | AV27: 0 | AY27: 0 | AZ27: 0 | BC27: 4801158.07 | BD27: 178855.01 | BG27: 4337045.64 | BH27: 0 | BK27: 2628149.1 | BL27: 0 | BO27: 0 | BP27: 0 | BS27: 0 | BT27: 0 | BW27: 0 | BX27: 0 | CA27: 0 | CB27: 0 | CE27: 0 | CF27: 0 | CI27: 0 | CK27: 0 | CL27: 0 | CM27: 0 | CO27: 0 | CP27: 0 | CQ27: 0 | CS27: 0 | CT27: 0 | CU27: 1246906.06 | CV27: 0 | CY27: 1988.171612 | CZ27: 0 | DA27: 0.2166666667 | DB27: 0.25 | DC27: 0.2833333333 | DD27: 0.3166666667 | DE27: 0.35 | DF27: 0.3833333333 | DG27: 0.4166666667 | DH27: 0.45 | DI27: 0.4833333333 | DJ27: 0.5166666667 | DK27: 0.55 | DL27: 0.5833333333 | DM27: 0.6166666667 | DN27: 0.65 | DO27: 0.6833333333 | DP27: 0.7166666667 | DQ27: 0.75 | DR27: 0.7833333333 | DS27: 0.8166666667 | DT27: 0.85 | DU27: 0.8833333333 | DV27: 0.9166666667 | DW27: 0.95 | DX27: 0.9833333333 | DY27: 374501.3769 | DZ27: 11671530.15 | EA27: 436488.8419 | EB27: 7575886.297 | EC27: 374501.3769 | ED27: 0 | EE27: 0.1833333333 | EF27: 0.2166666667 | EG27: 0.25 | EH27: 0.2833333333 | EI27: 0.3166666667 | EJ27: 0.35 | EK27: 0.3833333333 | EL27: 0.4166666667 | EM27: 0.45 | EN27: 0.4833333333 | EO27: 0.5166666667 | EP27: 0.55 | EQ27: 0.5833333333 | ER27: 0.6166666667 | ES27: 0.65 | ET27: 0.6833333333 | EU27: 0.7166666667 | EV27: 0.75 | EW27: 0.7833333333 | EX27: 0.8166666667 | EY27: 0.85 | EZ27: 0.8833333333 | FA27: 0.9166666667 | FB27: 0.95 | FC27: 374501.3769 | FD27: 0 | FE27: 0.15 | FF27: 0.1833333333 | FG27: 0.2166666667 | FH27: 0.25 | FI27: 0.2833333333 | FJ27: 0.3166666667 | FK27: 0.35 | FL27: 0.3833333333 | FM27: 0.4166666667 | FN27: 0.45 | FO27: 0.4833333333 | FP27: 0.5166666667 | FQ27: 0.55 | FR27: 0.5833333333 | FS27: 0.6166666667 | FT27: 0.65 | FU27: 0.6833333333 | FV27: 0.7166666667 | FW27: 0.75 | FX27: 0.7833333333 | FY27: 0.8166666667 | FZ27: 0.85 | GA27: 0.8833333333 | GB27: 0.9166666667 | GC27: 374501.3769 | GD27: 0 | GE27: 0.1166666667 | GF27: 0.15 | GG27: 0.1833333333 | GH27: 0.2166666667 | GI27: 0.25 | GJ27: 0.2833333333 | GK27: 0.3166666667 | GL27: 0.35 | GM27: 0.3833333333 | GN27: 0.4166666667 | GO27: 0.45 | GP27: 0.4833333333 | GQ27: 0.5166666667 | GR27: 0.55 | GS27: 0.5833333333 | GT27: 0.6166666667 | GU27: 0.65 | GV27: 0.6833333333 | GW27: 0.7166666667 | GX27: 0.75 | GY27: 0.7833333333 | GZ27: 0.8166666667 | HA27: 0.85 | HB27: 0.8833333333 | HC27: 374501.3769 | HD27: 0 | HE27: 0.08333333333 | HF27: 0.1166666667 | HG27: 0.15 | HH27: 0.1833333333 | HI27: 0.2166666667 | HJ27: 0.25 | HK27: 0.2833333333 | HL27: 0.3166666667 | HM27: 0.35 | HN27: 0.3833333333 | HO27: 0.4166666667 | HP27: 0.45 | HQ27: 0.4833333333 | HR27: 0.5166666667 | HS27: 0.55 | HT27: 0.5833333333 | HU27: 0.6166666667 | HV27: 0.65 | HW27: 0.6833333333 | HX27: 0.7166666667 | HY27: 0.75 | HZ27: 0.7833333333 | IA27: 0.8166666667 | IB27: 0.85 | IC27: 374501.3769
B28: Centros de reflexión MT | C28: 30 | D28: 0 | F28: 0 | G28: 0 | K28: 0 | L28: 0 | O28: 138983.5 | S28: 0 | W28: 0 | X28: 0 | AA28: 0 | AB28: 0 | AE28: 0 | AF28: 0 | AI28: 0 | AJ28: 0 | AM28: 309329.035 | AN28: 0 | AQ28: 0 | AR28: 0 | AU28: 292858.75 | AV28: 0 | AY28: 875696.712 | AZ28: 0 | BS28: 0 | BT28: 202180.9464 | BW28: 0 | BX28: 495991.9107 | CA28: 0 | CB28: 0 | CE28: 0 | CF28: 0 | CI28: 0 | CK28: 0 | CL28: 0 | CM28: 0 | CO28: 0 | CP28: 0 | CQ28: 0 | CS28: 0 | CT28: 0 | CU28: 0 | CV28: 0 | CY28: 0 | CZ28: 0 | DA28: 0.2166666667 | DB28: 0.25 | DC28: 0.2833333333 | DD28: 0.3166666667 | DE28: 0.35 | DF28: 0.3833333333 | DG28: 0.4166666667 | DH28: 0.45 | DI28: 0.4833333333 | DJ28: 0.5166666667 | DK28: 0.55 | DL28: 0.5833333333 | DM28: 0.6166666667 | DN28: 0.65 | DO28: 0.6833333333 | DP28: 0.7166666667 | DQ28: 0.75 | DR28: 0.7833333333 | DS28: 0.8166666667 | DT28: 0.85 | DU28: 0.8833333333 | DV28: 0.9166666667 | DW28: 0.95 | DX28: 0.9833333333 | DY28: 23816.51633 | DZ28: 714495.4898 | EA28: 0 | EB28: 232867.4317 | EC28: 23816.51633 | ED28: 0 | EE28: 0.1833333333 | EF28: 0.2166666667 | EG28: 0.25 | EH28: 0.2833333333 | EI28: 0.3166666667 | EJ28: 0.35 | EK28: 0.3833333333 | EL28: 0.4166666667 | EM28: 0.45 | EN28: 0.4833333333 | EO28: 0.5166666667 | EP28: 0.55 | EQ28: 0.5833333333 | ER28: 0.6166666667 | ES28: 0.65 | ET28: 0.6833333333 | EU28: 0.7166666667 | EV28: 0.75 | EW28: 0.7833333333 | EX28: 0.8166666667 | EY28: 0.85 | EZ28: 0.8833333333 | FA28: 0.9166666667 | FB28: 0.95 | FC28: 23816.51633 | FD28: 0 | FE28: 0.15 | FF28: 0.1833333333 | FG28: 0.2166666667 | FH28: 0.25 | FI28: 0.2833333333 | FJ28: 0.3166666667 | FK28: 0.35 | FL28: 0.3833333333 | FM28: 0.4166666667 | FN28: 0.45 | FO28: 0.4833333333 | FP28: 0.5166666667 | FQ28: 0.55 | FR28: 0.5833333333 | FS28: 0.6166666667 | FT28: 0.65 | FU28: 0.6833333333 | FV28: 0.7166666667 | FW28: 0.75 | FX28: 0.7833333333 | FY28: 0.8166666667 | FZ28: 0.85 | GA28: 0.8833333333 | GB28: 0.9166666667 | GC28: 23816.51633 | GD28: 0 | GE28: 0.1166666667 | GF28: 0.15 | GG28: 0.1833333333 | GH28: 0.2166666667 | GI28: 0.25 | GJ28: 0.2833333333 | GK28: 0.3166666667 | GL28: 0.35 | GM28: 0.3833333333 | GN28: 0.4166666667 | GO28: 0.45 | GP28: 0.4833333333 | GQ28: 0.5166666667 | GR28: 0.55 | GS28: 0.5833333333 | GT28: 0.6166666667 | GU28: 0.65 | GV28: 0.6833333333 | GW28: 0.7166666667 | GX28: 0.75 | GY28: 0.7833333333 | GZ28: 0.8166666667 | HA28: 0.85 | HB28: 0.8833333333 | HC28: 23816.51633 | HD28: 0 | HE28: 0.08333333333 | HF28: 0.1166666667 | HG28: 0.15 | HH28: 0.1833333333 | HI28: 0.2166666667 | HJ28: 0.25 | HK28: 0.2833333333 | HL28: 0.3166666667 | HM28: 0.35 | HN28: 0.3833333333 | HO28: 0.4166666667 | HP28: 0.45 | HQ28: 0.4833333333 | HR28: 0.5166666667 | HS28: 0.55 | HT28: 0.5833333333 | HU28: 0.6166666667 | HV28: 0.65 | HW28: 0.6833333333 | HX28: 0.7166666667 | HY28: 0.75 | HZ28: 0.7833333333 | IA28: 0.8166666667 | IB28: 0.85 | IC28: 23816.51633
B29: Centro de transformación 34,5 kV / BT | C29: 30 | D29: 10062100.12 | F29: 5759416.081 | G29: 400749 | K29: 818396.9 | L29: 136692 | O29: 223453 | S29: 454292 | W29: 544331.815 | X29: 0 | AA29: 1616820.73 | AB29: 603831.73 | AE29: 1594911.08 | AF29: 0 | AI29: 1445245.85 | AJ29: 0 | AM29: 1265176.236 | AN29: 0 | AQ29: 3057222.647 | AR29: 0 | AU29: 3302899.73 | AV29: 0 | AY29: 3337520.68 | AZ29: 0 | BC29: 4378428.3 | BD29: 0 | BG29: 6700401.28 | BH29: 0 | BK29: 6078098.32 | BL29: 0 | BO29: 6512836.6 | BP29: 10265.34 | BS29: 7164632.41 | BT29: 259528.8353 | BW29: 6312171.27 | BX29: 57799.79087 | CA29: 6104989.42 | CB29: 50286.75717 | CE29: 6757482.31 | CF29: 101452.5505 | CI29: 7993449.91 | CJ29: 152959 | CK29: 0 | CL29: 0 | CM29: 5187535.97 | CN29: 6413.11 | CO29: 0 | CP29: 0 | CQ29: 9207176.12 | CR29: 188901.56 | CS29: 0 | CT29: 0 | CU29: 10255458.76 | CV29: 159535.484 | CY29: 1988.171612 | CZ29: 0 | DA29: 0.2166666667 | DB29: 0.25 | DC29: 0.2833333333 | DD29: 0.3166666667 | DE29: 0.35 | DF29: 0.3833333333 | DG29: 0.4166666667 | DH29: 0.45 | DI29: 0.4833333333 | DJ29: 0.5166666667 | DK29: 0.55 | DL29: 0.5833333333 | DM29: 0.6166666667 | DN29: 0.65 | DO29: 0.6833333333 | DP29: 0.7166666667 | DQ29: 0.75 | DR29: 0.7833333333 | DS29: 0.8166666667 | DT29: 0.85 | DU29: 0.8833333333 | DV29: 0.9166666667 | DW29: 0.95 | DX29: 0.9833333333 | DY29: 2820613.157 | DZ29: 94680494.82 | EA29: 10062100.12 | EB29: 63907688.15 | EC29: 2820613.157 | ED29: 0 | EE29: 0.1833333333 | EF29: 0.2166666667 | EG29: 0.25 | EH29: 0.2833333333 | EI29: 0.3166666667 | EJ29: 0.35 | EK29: 0.3833333333 | EL29: 0.4166666667 | EM29: 0.45 | EN29: 0.4833333333 | EO29: 0.5166666667 | EP29: 0.55 | EQ29: 0.5833333333 | ER29: 0.6166666667 | ES29: 0.65 | ET29: 0.6833333333 | EU29: 0.7166666667 | EV29: 0.75 | EW29: 0.7833333333 | EX29: 0.8166666667 | EY29: 0.85 | EZ29: 0.8833333333 | FA29: 0.9166666667 | FB29: 0.95 | FC29: 2820613.157 | FD29: 0 | FE29: 0.15 | FF29: 0.1833333333 | FG29: 0.2166666667 | FH29: 0.25 | FI29: 0.2833333333 | FJ29: 0.3166666667 | FK29: 0.35 | FL29: 0.3833333333 | FM29: 0.4166666667 | FN29: 0.45 | FO29: 0.4833333333 | FP29: 0.5166666667 | FQ29: 0.55 | FR29: 0.5833333333 | FS29: 0.6166666667 | FT29: 0.65 | FU29: 0.6833333333 | FV29: 0.7166666667 | FW29: 0.75 | FX29: 0.7833333333 | FY29: 0.8166666667 | FZ29: 0.85 | GA29: 0.8833333333 | GB29: 0.9166666667 | GC29: 2820613.157 | GD29: 0 | GE29: 0.1166666667 | GF29: 0.15 | GG29: 0.1833333333 | GH29: 0.2166666667 | GI29: 0.25 | GJ29: 0.2833333333 | GK29: 0.3166666667 | GL29: 0.35 | GM29: 0.3833333333 | GN29: 0.4166666667 | GO29: 0.45 | GP29: 0.4833333333 | GQ29: 0.5166666667 | GR29: 0.55 | GS29: 0.5833333333 | GT29: 0.6166666667 | GU29: 0.65 | GV29: 0.6833333333 | GW29: 0.7166666667 | GX29: 0.75 | GY29: 0.7833333333 | GZ29: 0.8166666667 | HA29: 0.85 | HB29: 0.8833333333 | HC29: 2820613.157 | HD29: 0 | HE29: 0.08333333333 | HF29: 0.1166666667 | HG29: 0.15 | HH29: 0.1833333333 | HI29: 0.2166666667 | HJ29: 0.25 | HK29: 0.2833333333 | HL29: 0.3166666667 | HM29: 0.35 | HN29: 0.3833333333 | HO29: 0.4166666667 | HP29: 0.45 | HQ29: 0.4833333333 | HR29: 0.5166666667 | HS29: 0.55 | HT29: 0.5833333333 | HU29: 0.6166666667 | HV29: 0.65 | HW29: 0.6833333333 | HX29: 0.7166666667 | HY29: 0.75 | HZ29: 0.7833333333 | IA29: 0.8166666667 | IB29: 0.85 | IC29: 2820613.157
B30: Centro de transformación 13,8 kV / BT | C30: 30 | D30: 29511992.58 | F30: 16892281.14 | G30: 1379418 | K30: 1651456.33 | L30: 516726 | O30: 1200043 | S30: 1565519 | W30: 1349434.165 | X30: 0 | AA30: 2810332.85 | AB30: 0 | AE30: 4510685.64 | AF30: 0 | AI30: 3312431.64 | AJ30: 0 | AM30: 3983743.602 | AN30: 0 | AQ30: 6428941.772 | AR30: 0 | AU30: 7718895.345 | AV30: 0 | AY30: 6685412.69 | AZ30: 0 | BC30: 10332631.54 | BD30: 224171.67 | BG30: 7443701.39 | BH30: 0 | BK30: 9935701.33 | BL30: 0 | BO30: 8287640.25 | BP30: 159587.02 | BS30: 11694439.14 | BT30: 417592.4012 | BW30: 7877132.85 | BX30: 147396.0136 | CA30: 9079675.39 | CB30: 187944.5514 | CE30: 8452079.58 | CF30: 38574.33528 | CI30: 10927010.75 | CJ30: 5034.6 | CK30: 0 | CL30: 0 | CM30: 6368522.76 | CN30: 28284.11 | CO30: 0 | CP30: 0 | CQ30: 9537451.05 | CR30: 56642.5 | CS30: 0 | CT30: 0 | CU30: 12423394.37 | CV30: 41651.10994 | CY30: 1988.17161 | CZ30: 0 | DA30: 0.2166666667 | DB30: 0.25 | DC30: 0.2833333333 | DD30: 0.3166666667 | DE30: 0.35 | DF30: 0.3833333333 | DG30: 0.4166666667 | DH30: 0.45 | DI30: 0.4833333333 | DJ30: 0.5166666667 | DK30: 0.55 | DL30: 0.5833333333 | DM30: 0.6166666667 | DN30: 0.65 | DO30: 0.6833333333 | DP30: 0.7166666667 | DQ30: 0.75 | DR30: 0.7833333333 | DS30: 0.8166666667 | DT30: 0.85 | DU30: 0.8833333333 | DV30: 0.9166666667 | DW30: 0.95 | DX30: 0.9833333333 | DY30: 4370457.549 | DZ30: 160625719 | EA30: 29511992.58 | EB30: 93060495.02 | EC30: 4370457.549 | ED30: 0 | EE30: 0.1833333333 | EF30: 0.2166666667 | EG30: 0.25 | EH30: 0.2833333333 | EI30: 0.3166666667 | EJ30: 0.35 | EK30: 0.3833333333 | EL30: 0.4166666667 | EM30: 0.45 | EN30: 0.4833333333 | EO30: 0.5166666667 | EP30: 0.55 | EQ30: 0.5833333333 | ER30: 0.6166666667 | ES30: 0.65 | ET30: 0.6833333333 | EU30: 0.7166666667 | EV30: 0.75 | EW30: 0.7833333333 | EX30: 0.8166666667 | EY30: 0.85 | EZ30: 0.8833333333 | FA30: 0.9166666667 | FB30: 0.95 | FC30: 4370457.549 | FD30: 0 | FE30: 0.15 | FF30: 0.1833333333 | FG30: 0.2166666667 | FH30: 0.25 | FI30: 0.2833333333 | FJ30: 0.3166666667 | FK30: 0.35 | FL30: 0.3833333333 | FM30: 0.4166666667 | FN30: 0.45 | FO30: 0.4833333333 | FP30: 0.5166666667 | FQ30: 0.55 | FR30: 0.5833333333 | FS30: 0.6166666667 | FT30: 0.65 | FU30: 0.6833333333 | FV30: 0.7166666667 | FW30: 0.75 | FX30: 0.7833333333 | FY30: 0.8166666667 | FZ30: 0.85 | GA30: 0.8833333333 | GB30: 0.9166666667 | GC30: 4370457.549 | GD30: 0 | GE30: 0.1166666667 | GF30: 0.15 | GG30: 0.1833333333 | GH30: 0.2166666667 | GI30: 0.25 | GJ30: 0.2833333333 | GK30: 0.3166666667 | GL30: 0.35 | GM30: 0.3833333333 | GN30: 0.4166666667 | GO30: 0.45 | GP30: 0.4833333333 | GQ30: 0.5166666667 | GR30: 0.55 | GS30: 0.5833333333 | GT30: 0.6166666667 | GU30: 0.65 | GV30: 0.6833333333 | GW30: 0.7166666667 | GX30: 0.75 | GY30: 0.7833333333 | GZ30: 0.8166666667 | HA30: 0.85 | HB30: 0.8833333333 | HC30: 4370457.549 | HD30: 0 | HE30: 0.08333333333 | HF30: 0.1166666667 | HG30: 0.15 | HH30: 0.1833333333 | HI30: 0.2166666667 | HJ30: 0.25 | HK30: 0.2833333333 | HL30: 0.3166666667 | HM30: 0.35 | HN30: 0.3833333333 | HO30: 0.4166666667 | HP30: 0.45 | HQ30: 0.4833333333 | HR30: 0.5166666667 | HS30: 0.55 | HT30: 0.5833333333 | HU30: 0.6166666667 | HV30: 0.65 | HW30: 0.6833333333 | HX30: 0.7166666667 | HY30: 0.75 | HZ30: 0.7833333333 | IA30: 0.8166666667 | IB30: 0.85 | IC30: 4370457.549
B31: Otros centros de transformación MT/BT | C31: 30 | D31: 0 | F31: 0 | G31: 0 | K31: 0 | L31: 0 | O31: 0 | S31: 396751 | T31: 396751 | W31: 0 | X31: 0 | AA31: 0 | AB31: 0 | AE31: 0 | AF31: 0 | AI31: 0 | AJ31: 0 | AM31: 0 | AN31: 0 | AQ31: 0 | AR31: 0 | AU31: 0 | AV31: 0 | AY31: 0 | AZ31: 0 | BC31: 749962.31 | BD31: 0 | BG31: 1047835.45 | BH31: 0 | BK31: 1262504.47 | BL31: 0 | BO31: 742045.51 | BP31: 4581.63 | BS31: 862098.46 | BT31: 0 | BW31: 622906.74 | BX31: 0 | CA31: 1094301.52 | CB31: 4071.105996 | CE31: 1175224.78 | CF31: 36410.04423 | CI31: 1004149.48 | CK31: 0 | CL31: 0 | CM31: 882739.23 | CO31: 0 | CP31: 0 | CQ31: 1642864.58 | CS31: 0 | CT31: 0 | CU31: 0 | CV31: 0 | CY31: 0 | CZ31: 0 | DA31: 0.2166666667 | DB31: 0.25 | DC31: 0.2833333333 | DD31: 0.3166666667 | DE31: 0.35 | DF31: 0.3833333333 | DG31: 0.4166666667 | DH31: 0.45 | DI31: 0.4833333333 | DJ31: 0.5166666667 | DK31: 0.55 | DL31: 0.5833333333 | DM31: 0.6166666667 | DN31: 0.65 | DO31: 0.6833333333 | DP31: 0.7166666667 | DQ31: 0.75 | DR31: 0.7833333333 | DS31: 0.8166666667 | DT31: 0.85 | DU31: 0.8833333333 | DV31: 0.9166666667 | DW31: 0.95 | DX31: 0.9833333333 | DY31: 316557.754 | DZ31: 9496732.621 | EA31: 0 | EB31: 7525180.7 | EC31: 316557.754 | ED31: 0 | EE31: 0.1833333333 | EF31: 0.2166666667 | EG31: 0.25 | EH31: 0.2833333333 | EI31: 0.3166666667 | EJ31: 0.35 | EK31: 0.3833333333 | EL31: 0.4166666667 | EM31: 0.45 | EN31: 0.4833333333 | EO31: 0.5166666667 | EP31: 0.55 | EQ31: 0.5833333333 | ER31: 0.6166666667 | ES31: 0.65 | ET31: 0.6833333333 | EU31: 0.7166666667 | EV31: 0.75 | EW31: 0.7833333333 | EX31: 0.8166666667 | EY31: 0.85 | EZ31: 0.8833333333 | FA31: 0.9166666667 | FB31: 0.95 | FC31: 316557.754 | FD31: 0 | FE31: 0.15 | FF31: 0.1833333333 | FG31: 0.2166666667 | FH31: 0.25 | FI31: 0.2833333333 | FJ31: 0.3166666667 | FK31: 0.35 | FL31: 0.3833333333 | FM31: 0.4166666667 | FN31: 0.45 | FO31: 0.4833333333 | FP31: 0.5166666667 | FQ31: 0.55 | FR31: 0.5833333333 | FS31: 0.6166666667 | FT31: 0.65 | FU31: 0.6833333333 | FV31: 0.7166666667 | FW31: 0.75 | FX31: 0.7833333333 | FY31: 0.8166666667 | FZ31: 0.85 | GA31: 0.8833333333 | GB31: 0.9166666667 | GC31: 316557.754 | GD31: 0 | GE31: 0.1166666667 | GF31: 0.15 | GG31: 0.1833333333 | GH31: 0.2166666667 | GI31: 0.25 | GJ31: 0.2833333333 | GK31: 0.3166666667 | GL31: 0.35 | GM31: 0.3833333333 | GN31: 0.4166666667 | GO31: 0.45 | GP31: 0.4833333333 | GQ31: 0.5166666667 | GR31: 0.55 | GS31: 0.5833333333 | GT31: 0.6166666667 | GU31: 0.65 | GV31: 0.6833333333 | GW31: 0.7166666667 | GX31: 0.75 | GY31: 0.7833333333 | GZ31: 0.8166666667 | HA31: 0.85 | HB31: 0.8833333333 | HC31: 316557.754 | HD31: 0 | HE31: 0.08333333333 | HF31: 0.1166666667 | HG31: 0.15 | HH31: 0.1833333333 | HI31: 0.2166666667 | HJ31: 0.25 | HK31: 0.2833333333 | HL31: 0.3166666667 | HM31: 0.35 | HN31: 0.3833333333 | HO31: 0.4166666667 | HP31: 0.45 | HQ31: 0.4833333333 | HR31: 0.5166666667 | HS31: 0.55 | HT31: 0.5833333333 | HU31: 0.6166666667 | HV31: 0.65 | HW31: 0.6833333333 | HX31: 0.7166666667 | HY31: 0.75 | HZ31: 0.7833333333 | IA31: 0.8166666667 | IB31: 0.85 | IC31: 316557.754
B32: Baja tensión BT (<600V) | D32: 0 | F32: 0 | L32: 0 | S32: 0 | AM32: 0 | AN32: 0 | AQ32: 0 | AR32: 0 | AU32: 0 | AV32: 0 | AY32: 0 | AZ32: 0 | BT32: 0 | CI32: 0 | CK32: 0 | CL32: 0 | CM32: 0 | CO32: 0 | CP32: 0 | CQ32: 0 | CS32: 0 | CT32: 0 | CU32: 0 | CV32: 0 | FC32: 0 | GC32: 0 | HC32: 0 | IC32: 0
B33: Líneas aéreas BT | C33: 30 | D33: 0 | F33: 0 | G33: 1285072.88 | K33: 2072771.05 | L33: 258363 | O33: 1886503.04 | S33: 1463480 | W33: 2939631.76 | X33: 0 | AA33: 3301608.87 | AB33: 301915.87 | AE33: 3871083 | AF33: 0 | AI33: 2328610.45 | AJ33: 0 | AM33: 2976594.569 | AN33: 0 | AQ33: 3633577.27 | AR33: 0 | AU33: 3837750.66 | AV33: 0 | AY33: 5075299.85 | AZ33: 0 | BC33: 4519863.3 | BD33: 0 | BG33: 7753684.51 | BH33: 0 | BK33: 7915446.48 | BL33: 0 | BO33: 6046004.58 | BP33: 41910.94 | BS33: 7454917.98 | BT33: 842144.3322 | BW33: 8528034.99 | BX33: 657058.8576 | CA33: 8851450.39 | CB33: 714173.1647 | CE33: 7813332.44 | CF33: 297807.7251 | CI33: 11400990.66 | CJ33: 324626.61 | CK33: 0 | CL33: 0 | CM33: 7869911.99 | CN33: 122679.18 | CO33: 0 | CP33: 0 | CQ33: 13178235.77 | CR33: 571597.66 | CS33: 0 | CT33: 0 | CU33: 14840137.54 | CV33: 465980.5491 | CY33: =IF(D33=0,0,2001-(D33-F33)*C33/D33) -> 0 | CZ33: =IF((1-($DY$2-$CY33)/$C33)>0,(1-($DY$2-$CY33)/$C33),0) -> 0 | DA33: =IF((1-($DY$2-G$2)/$C33)>0,(1-($DY$2-G$2)/$C33),0) -> 0.2166666667 | DB33: =IF((1-($DY$2-K$2)/$C33)>0,(1-($DY$2-K$2)/$C33),0) -> 0.25 | DC33: =IF((1-($DY$2-O$2)/$C33)>0,(1-($DY$2-O$2)/$C33),0) -> 0.2833333333 | DD33: =IF((1-($DY$2-S$2)/$C33)>0,(1-($DY$2-S$2)/$C33),0) -> 0.3166666667 | DE33: =IF((1-($DY$2-W$2)/$C33)>0,(1-($DY$2-W$2)/$C33),0) -> 0.35 | DF33: =IF((1-($DY$2-AA$2)/$C33)>0,(1-($DY$2-AA$2)/$C33),0) -> 0.3833333333 | DG33: =IF((1-($DY$2-AE$2)/$C33)>0,(1-($DY$2-AE$2)/$C33),0) -> 0.4166666667 | DH33: =IF((1-($DY$2-AI$2)/$C33)>0,(1-($DY$2-AI$2)/$C33),0) -> 0.45 | DI33: =IF((1-($DY$2-AM$2)/$C33)>0,(1-($DY$2-AM$2)/$C33),0) -> 0.4833333333 | DJ33: =IF((1-($DY$2-AQ$2)/$C33)>0,(1-($DY$2-AQ$2)/$C33),0) -> 0.5166666667 | DK33: =IF((1-($DY$2-AU$2)/$C33)>0,(1-($DY$2-AU$2)/$C33),0) -> 0.55 | DL33: =IF((1-($DY$2-AY$2)/$C33)>0,(1-($DY$2-AY$2)/$C33),0) -> 0.5833333333 | DM33: =IF((1-($DY$2-BC$2)/$C33)>0,(1-($DY$2-BC$2)/$C33),0) -> 0.6166666667 | DN33: =IF((1-($DY$2-BG$2)/$C33)>0,(1-($DY$2-BG$2)/$C33),0) -> 0.65 | DO33: =IF((1-($DY$2-BK$2)/$C33)>0,(1-($DY$2-BK$2)/$C33),0) -> 0.6833333333 | DP33: =IF((1-($DY$2-BO$2)/$C33)>0,(1-($DY$2-BO$2)/$C33),0) -> 0.7166666667 | DQ33: =IF((1-($DY$2-BS$2)/$C33)>0,(1-($DY$2-BS$2)/$C33),0) -> 0.75 | DR33: =IF((1-($DY$2-BW$2)/$C33)>0,(1-($DY$2-BW$2)/$C33),0) -> 0.7833333333 | DS33: =IF((1-($DY$2-CA$2)/$C33)>0,(1-($DY$2-CA$2)/$C33),0) -> 0.8166666667 | DT33: =IF((1-($DY$2-CE$2)/$C33)>0,(1-($DY$2-CE$2)/$C33),0) -> 0.85 | DU33: =IF((1-($DY$2-CI$2)/$C33)>0,(1-($DY$2-CI$2)/$C33),0) -> 0.8833333333 | DV33: =IF((1-($DY$2-CM$2)/$C33)>0,(1-($DY$2-CM$2)/$C33),0) -> 0.9166666667 | DW33: =IF((1-($DY$2-CQ$2)/$C33)>0,(1-($DY$2-CQ$2)/$C33),0) -> 0.95 | DX33: =IF((1-($DY$2-CU$2)/$C33)>0,(1-($DY$2-CU$2)/$C33),0) -> 0.9833333333 | DY33: =IF(CZ33=0,0,($D33-$E33)*1/$C33)+IF(DA33=0,0,($G33-$H33-$I33)*$G$61*1/$C33)+IF(DB33=0,0,($K33-$L33-$M33)*$K$61*1/$C33)+IF(DC33=0,0,($O33-$P33-$Q33)*$O$61*1/$C33)+IF(DD33=0,0,($S33-$T33-$U33)*$S$61*1/$C33)+IF(DE33=0,0,($W33-$X33-$Y33)*$W$61*1/$C33)+IF(DF33=0,0,($AA33-$AB33-$AC33)*$AA$61*1/$C33)+IF(DG33=0,0,($AE33-$AF33-$AG33)*$AE$61*1/$C33)+IF(DH33=0,0,($AI33-$AJ33-$AK33)*$AI$61*1/$C33)+IF(DI33=0,0,($AM33-$AN33-$AO33)*$AM$61*1/$C33)+IF(DJ33=0,0,($AQ33-$AR33-$AS33)*$AQ$61*1/$C33)+IF(DK33=0,0,($AU33-$AV33-$AW33)*$AU$61*1/$C33)+IF(DL33=0,0,($AY33-$AZ33-$BA33)*$AY$61*1/$C33)+IF(DM33=0,0,($BC33-$BD33-$BE33)*$BC$61*1/$C33)+IF(DN33=0,0,($BG33-$BH33-$BI33)*$BG$61*1/$C33)+IF(DO33=0,0,($BK33-$BL33-$BM33)*$BK$61*1/$C33)+IF(DP33=0,0,($BO33-$BP33-$BQ33)*$BO$61*1/$C33)+IF(DQ33=0,0,($BS33-$BT33-$BU33)*$BS$61*1/$C33)+IF(DR33=0,0,($BW33-$BX33-$BY33)*$BW$61*1/$C33)+IF(DS33=0,0,($CA33-$CB33-$CC33)*$CA$61*1/$C33)+IF(DT33=0,0,($CE33-$CF33-$CG33)*$CE$61*1/$C33)+IF(DU33=0,0,($CI33-$CJ33-$CK33)*$CI$61*1/$C33)+IF(DV33=0,0,($CM33-$CN33-$CO33)*$CM$61*1/$C33)+IF(DW33=0,0,($CQ33-$CR33-$CS33)*$CQ$61*1/$C33)+IF(DX33=0,0,($CU33-$CV33-$CW33)*$CU$61*1/$C33) -> 3867437.198 | DZ33: =D33-E33+(G33-H33-I33)*G$61+(K33-L33-M33)*K$61+(O33-P33-Q33)*O$61+(S33-T33-U33)*S$61+(W33-X33-Y33)*W$61+(AA33-AB33-AC33)*AA$61+(AE33-AF33-AG33)*AE$61+(AI33-AJ33-AK33)*AI$61+(AM33-AN33-AO33)*AM$61+(AQ33-AR33-AS33)*$AQ$61+(AU33-AV33-AW33)*$AU$61+(AY33-AZ33-BA33)*$AY$61+(BC33-BD33-BE33)*$BC$61+(BG33-BH33-BI33)*$BG$61+(BK33-BL33-BM33)*$BK$61+(BO33-BP33-BQ33)*$BO$61+(BS33-BT33-BU33)*$BS$61+(BW33-BX33-BY33)*$BW$61+(CA33-CB33-CC33)*$CA$61+(CE33-CF33-CG33)*$CE$61+(CI33-CJ33-CK33)*$CI$61+(CM33-CN33-CO33)*$CM$61+(CQ33-CR33-CS33)*$CQ$61+(CU33-CV33-CW33)*$CU$61 -> 116023115.9 | EA33: =IF(CZ33=0,D33-E33,0)+IF(DA33=0,(G33-H33-I33)*G$61,0)+IF(DB33=0,(K33-L33-M33)*K$61,0)+IF(DC33=0,(O33-P33-Q33)*O$61,0)+IF(DD33=0,(S33-T33-U33)*S$61,0)+IF(DE33=0,(W33-X33-Y33)*W$61,0)+IF(DF33=0,(AA33-AB33-AC33)*AA$61,0)+IF(DG33=0,(AE33-AF33-AG33)*AE$61,0)+IF(DH33=0,(AI33-AJ33-AK33)*AI$61,0)+IF(DI33=0,(AM33-AN33-AO33)*AM$61,0)+IF(DJ33=0,(AQ33-AR33-AS33)*$AQ$61,0)+IF(DK33=0,(AU33-AV33-AW33)*$AU$61,0)+IF(DL33=0,(AY33-AZ33-BA33)*$AY$61,0)++IF(DM33=0,(BC33-BD33-BE33)*$BC$61,0)+IF(DN33=0,(BG33-BH33-BI33)*$BG$61,0)+IF(DO33=0,(BK33-BL33-BM33)*$BK$61,0)+IF(DP33=0,(BO33-BP33-BQ33)*$BO$61,0)+IF(DQ33=0,(BS33-BT33-BU33)*$BS$61,0)+IF(DR33=0,(BW33-BX33-BY33)*$BW$61,0)+IF(DS33=0,(CA33-CB33-CC33)*$CA$61,0)+IF(DT33=0,(CE33-CF33-CG33)*$CE$61,0)+IF(DU33=0,(CI33-CJ33-CK33)*$CI$61,0)+IF(DV33=0,(CM33-CN33-CO33)*$CM$61,0)+IF(DW33=0,(CQ33-CR33-CS33)*$CQ$61,0)+IF(DX33=0,(CU33-CV33-CW33)*$CU$61,0) -> 0 | EB33: =(D33-E33)*CZ33+((G33-H33-(I33-J33))*G$61)*DA33+((K33-L33-(M33-N33))*K$61)*DB33+((O33-P33-(Q33-R33))*O$61)*DC33+((S33-T33-(U33-V33))*S$61)*DD33+((W33-X33-(Y33-Z33))*W$61)*DE33+((AA33-AB33-(AC33-AD33))*AA$61)*DF33+((AE33-AF33-(AG33-AH33))*AE$61)*DG33+((AI33-AJ33-(AK33-AL33))*AI$61)*DH33+((AM33-AN33-(AO33-AP33))*$AM$61)*DI33+((AQ33-AR33-(AS33-AT33))*$AQ$61)*DJ33+((AU33-AV33-(AW33-AX33))*$AU$61)*DK33+((AY33-AZ33-(BA33-BB33))*$AY$61)*DL33+((BC33-BD33-(BE33-BF33))*$BC$61)*DM33+((BG33-BH33-(BI33-BJ33))*$BG$61)*DN33+((BK33-BL33-(BM33-BN33))*$BK$61)*DO33+((BO33-BP33-(BQ33-BR33))*$BO$61)*DP33+((BS33-BT33-(BU33-BV33))*$BS$61)*DQ33+((BW33-BX33-(BY33-BZ33))*$BW$61)*DR33+((CA33-CB33-(CC33-CD33))*$CA$61)*DS33+((CE33-CF33-(CG33-CH33))*$CE$61)*DT33+((CI33-CJ33-(CK33-CL33))*$CI$61)*DU33+((CM33-CN33-(CO33-CP33))*$CM$61)*DV33+((CQ33-CR33-(CS33-CT33))*$CQ$61)*DW33+((CU33-CV33-(CW33-CX33))*$CU$61)*DX33 -> 84540891.21 | EC33: 3867437.198 | ED33: =IF((1-($FC$2-$CY33)/$C33)>0,(1-($FC$2-$CY33)/$C33),0) -> 0 | EE33: =IF((1-($FC$2-EE$2)/$C33)>0,(1-($FC$2-EE$2)/$C33),0) -> 0.1833333333 | EF33: 0.2166666667 | EG33: 0.25 | EH33: 0.2833333333 | EI33: 0.3166666667 | EJ33: 0.35 | EK33: 0.3833333333 | EL33: 0.4166666667 | EM33: 0.45 | EN33: 0.4833333333 | EO33: =IF((1-($FC$2-EO$2)/$C33)>0,(1-($FC$2-EO$2)/$C33),0) -> 0.5166666667 | EP33: 0.55 | EQ33: 0.5833333333 | ER33: 0.6166666667 | ES33: 0.65 | ET33: 0.6833333333 | EU33: 0.7166666667 | EV33: 0.75 | EW33: 0.7833333333 | EX33: 0.8166666667 | EY33: 0.85 | EZ33: =IF((1-($FC$2-EZ$2)/$C33)>0,(1-($FC$2-EZ$2)/$C33),0) -> 0.8833333333 | FA33: 0.9166666667 | FB33: 0.95 | FC33: 3867437.198 | FD33: =IF((1-($GC$2-$CY33)/$C33)>0,(1-($GC$2-$CY33)/$C33),0) -> 0 | FE33: =IF((1-($GC$2-FE$2)/$C33)>0,(1-($GC$2-FE$2)/$C33),0) -> 0.15 | FF33: 0.1833333333 | FG33: 0.2166666667 | FH33: 0.25 | FI33: 0.2833333333 | FJ33: 0.3166666667 | FK33: 0.35 | FL33: 0.3833333333 | FM33: 0.4166666667 | FN33: 0.45 | FO33: =IF((1-($GC$2-FO$2)/$C33)>0,(1-($GC$2-FO$2)/$C33),0) -> 0.4833333333 | FP33: 0.5166666667 | FQ33: 0.55 | FR33: 0.5833333333 | FS33: 0.6166666667 | FT33: 0.65 | FU33: 0.6833333333 | FV33: 0.7166666667 | FW33: 0.75 | FX33: 0.7833333333 | FY33: 0.8166666667 | FZ33: =IF((1-($GC$2-FZ$2)/$C33)>0,(1-($GC$2-FZ$2)/$C33),0) -> 0.85 | GA33: 0.8833333333 | GB33: 0.9166666667 | GC33: 3867437.198 | GD33: =IF((1-($HC$2-$CY33)/$C33)>0,(1-($HC$2-$CY33)/$C33),0) -> 0 | GE33: =IF((1-($HC$2-GE$2)/$C33)>0,(1-($HC$2-GE$2)/$C33),0) -> 0.1166666667 | GF33: 0.15 | GG33: 0.1833333333 | GH33: 0.2166666667 | GI33: 0.25 | GJ33: 0.2833333333 | GK33: 0.3166666667 | GL33: 0.35 | GM33: 0.3833333333 | GN33: 0.4166666667 | GO33: =IF((1-($HC$2-GO$2)/$C33)>0,(1-($HC$2-GO$2)/$C33),0) -> 0.45 | GP33: 0.4833333333 | GQ33: 0.5166666667 | GR33: 0.55 | GS33: 0.5833333333 | GT33: 0.6166666667 | GU33: 0.65 | GV33: 0.6833333333 | GW33: 0.7166666667 | GX33: 0.75 | GY33: 0.7833333333 | GZ33: =IF((1-($HC$2-GZ$2)/$C33)>0,(1-($HC$2-GZ$2)/$C33),0) -> 0.8166666667 | HA33: 0.85 | HB33: 0.8833333333 | HC33: 3867437.198 | HD33: =IF((1-($IC$2-$CY33)/$C33)>0,(1-($IC$2-$CY33)/$C33),0) -> 0 | HE33: =IF((1-($IC$2-HE$2)/$C33)>0,(1-($IC$2-HE$2)/$C33),0) -> 0.08333333333 | HF33: 0.1166666667 | HG33: 0.15 | HH33: 0.1833333333 | HI33: 0.2166666667 | HJ33: 0.25 | HK33: 0.2833333333 | HL33: 0.3166666667 | HM33: 0.35 | HN33: 0.3833333333 | HO33: =IF((1-($IC$2-HO$2)/$C33)>0,(1-($IC$2-HO$2)/$C33),0) -> 0.4166666667 | HP33: 0.45 | HQ33: 0.4833333333 | HR33: 0.5166666667 | HS33: 0.55 | HT33: 0.5833333333 | HU33: 0.6166666667 | HV33: 0.65 | HW33: 0.6833333333 | HX33: 0.7166666667 | HY33: 0.75 | HZ33: =IF((1-($IC$2-HZ$2)/$C33)>0,(1-($IC$2-HZ$2)/$C33),0) -> 0.7833333333 | IA33: 0.8166666667 | IB33: 0.85 | IC33: 3867437.198
B34: Líneas subterráneas BT | C34: 30 | D34: 0 | F34: 0 | G34: 437850.63 | K34: 671324.49 | L34: 0 | O34: 960384 | S34: 940637.82 | W34: 621948.79 | X34: 0 | AA34: 883748 | AB34: 0 | AE34: 1005264.78 | AF34: 0 | AI34: 1338430.16 | AJ34: 0 | AM34: 1400445.46 | AN34: 0 | AQ34: 1803654.99 | AR34: 0 | AU34: 2325298.21 | AV34: 0 | AY34: 2988468.23 | AZ34: 0 | BC34: 6726124.57 | BD34: 421352.73 | BG34: 6440848.23 | BH34: 0 | BK34: 7550418.71 | BL34: 0 | BO34: 12172967.75 | BP34: 170935.55 | BS34: 15362864.81 | BT34: 110117.0592 | BW34: 6122679.59 | BX34: 115933.4003 | CA34: 9077366.42 | CB34: 409336.6337 | CE34: 10530544.03 | CF34: 96772.74159 | CI34: 8797851.49 | CK34: 0 | CL34: 0 | CM34: 8891873.65 | CN34: 26984.6 | CO34: 0 | CP34: 0 | CQ34: 12440211.13 | CS34: 0 | CT34: 0 | CU34: 13845063.72 | CV34: 12399.74433 | CY34: =IF(D34=0,0,2001-(D34-F34)*C34/D34) -> 0 | CZ34: =IF((1-($DY$2-$CY34)/$C34)>0,(1-($DY$2-$CY34)/$C34),0) -> 0 | DA34: =IF((1-($DY$2-G$2)/$C34)>0,(1-($DY$2-G$2)/$C34),0) -> 0.2166666667 | DB34: =IF((1-($DY$2-K$2)/$C34)>0,(1-($DY$2-K$2)/$C34),0) -> 0.25 | DC34: =IF((1-($DY$2-O$2)/$C34)>0,(1-($DY$2-O$2)/$C34),0) -> 0.2833333333 | DD34: =IF((1-($DY$2-S$2)/$C34)>0,(1-($DY$2-S$2)/$C34),0) -> 0.3166666667 | DE34: =IF((1-($DY$2-W$2)/$C34)>0,(1-($DY$2-W$2)/$C34),0) -> 0.35 | DF34: =IF((1-($DY$2-AA$2)/$C34)>0,(1-($DY$2-AA$2)/$C34),0) -> 0.3833333333 | DG34: =IF((1-($DY$2-AE$2)/$C34)>0,(1-($DY$2-AE$2)/$C34),0) -> 0.4166666667 | DH34: =IF((1-($DY$2-AI$2)/$C34)>0,(1-($DY$2-AI$2)/$C34),0) -> 0.45 | DI34: =IF((1-($DY$2-AM$2)/$C34)>0,(1-($DY$2-AM$2)/$C34),0) -> 0.4833333333 | DJ34: =IF((1-($DY$2-AQ$2)/$C34)>0,(1-($DY$2-AQ$2)/$C34),0) -> 0.5166666667 | DK34: =IF((1-($DY$2-AU$2)/$C34)>0,(1-($DY$2-AU$2)/$C34),0) -> 0.55 | DL34: =IF((1-($DY$2-AY$2)/$C34)>0,(1-($DY$2-AY$2)/$C34),0) -> 0.5833333333 | DM34: =IF((1-($DY$2-BC$2)/$C34)>0,(1-($DY$2-BC$2)/$C34),0) -> 0.6166666667 | DN34: =IF((1-($DY$2-BG$2)/$C34)>0,(1-($DY$2-BG$2)/$C34),0) -> 0.65 | DO34: =IF((1-($DY$2-BK$2)/$C34)>0,(1-($DY$2-BK$2)/$C34),0) -> 0.6833333333 | DP34: =IF((1-($DY$2-BO$2)/$C34)>0,(1-($DY$2-BO$2)/$C34),0) -> 0.7166666667 | DQ34: =IF((1-($DY$2-BS$2)/$C34)>0,(1-($DY$2-BS$2)/$C34),0) -> 0.75 | DR34: =IF((1-($DY$2-BW$2)/$C34)>0,(1-($DY$2-BW$2)/$C34),0) -> 0.7833333333 | DS34: =IF((1-($DY$2-CA$2)/$C34)>0,(1-($DY$2-CA$2)/$C34),0) -> 0.8166666667 | DT34: =IF((1-($DY$2-CE$2)/$C34)>0,(1-($DY$2-CE$2)/$C34),0) -> 0.85 | DU34: 0.8833333333 | DV34: 0.9166666667 | DW34: 0.95 | DX34: 0.9833333333 | DY34: =IF(CZ34=0,0,($D34-$E34)*1/$C34)+IF(DA34=0,0,($G34-$H34-$I34)*$G$61*1/$C34)+IF(DB34=0,0,($K34-$L34-$M34)*$K$61*1/$C34)+IF(DC34=0,0,($O34-$P34-$Q34)*$O$61*1/$C34)+IF(DD34=0,0,($S34-$T34-$U34)*$S$61*1/$C34)+IF(DE34=0,0,($W34-$X34-$Y34)*$W$61*1/$C34)+IF(DF34=0,0,($AA34-$AB34-$AC34)*$AA$61*1/$C34)+IF(DG34=0,0,($AE34-$AF34-$AG34)*$AE$61*1/$C34)+IF(DH34=0,0,($AI34-$AJ34-$AK34)*$AI$61*1/$C34)+IF(DI34=0,0,($AM34-$AN34-$AO34)*$AM$61*1/$C34)+IF(DJ34=0,0,($AQ34-$AR34-$AS34)*$AQ$61*1/$C34)+IF(DK34=0,0,($AU34-$AV34-$AW34)*$AU$61*1/$C34)+IF(DL34=0,0,($AY34-$AZ34-$BA34)*$AY$61*1/$C34)+IF(DM34=0,0,($BC34-$BD34-$BE34)*$BC$61*1/$C34)+IF(DN34=0,0,($BG34-$BH34-$BI34)*$BG$61*1/$C34)+IF(DO34=0,0,($BK34-$BL34-$BM34)*$BK$61*1/$C34)+IF(DP34=0,0,($BO34-$BP34-$BQ34)*$BO$61*1/$C34)+IF(DQ34=0,0,($BS34-$BT34-$BU34)*$BS$61*1/$C34)+IF(DR34=0,0,($BW34-$BX34-$BY34)*$BW$61*1/$C34)+IF(DS34=0,0,($CA34-$CB34-$CC34)*$CA$61*1/$C34)+IF(DT34=0,0,($CE34-$CF34-$CG34)*$CE$61*1/$C34)+IF(DU34=0,0,($CI34-$CJ34-$CK34)*$CI$61*1/$C34)+IF(DV34=0,0,($CM34-$CN34-$CO34)*$CM$61*1/$C34)+IF(DW34=0,0,($CQ34-$CR34-$CS34)*$CQ$61*1/$C34)+IF(DX34=0,0,($CU34-$CV34-$CW34)*$CU$61*1/$C34) -> 3770361.677 | DZ34: =D34-E34+(G34-H34-I34)*G$61+(K34-L34-M34)*K$61+(O34-P34-Q34)*O$61+(S34-T34-U34)*S$61+(W34-X34-Y34)*W$61+(AA34-AB34-AC34)*AA$61+(AE34-AF34-AG34)*AE$61+(AI34-AJ34-AK34)*AI$61+(AM34-AN34-AO34)*AM$61+(AQ34-AR34-AS34)*$AQ$61+(AU34-AV34-AW34)*$AU$61+(AY34-AZ34-BA34)*$AY$61+(BC34-BD34-BE34)*$BC$61+(BG34-BH34-BI34)*$BG$61+(BK34-BL34-BM34)*$BK$61+(BO34-BP34-BQ34)*$BO$61+(BS34-BT34-BU34)*$BS$61+(BW34-BX34-BY34)*$BW$61+(CA34-CB34-CC34)*$CA$61+(CE34-CF34-CG34)*$CE$61+(CI34-CJ34-CK34)*$CI$61+(CM34-CN34-CO34)*$CM$61+(CQ34-CR34-CS34)*$CQ$61+(CU34-CV34-CW34)*$CU$61 -> 113110850.3 | EA34: =IF(CZ34=0,D34-E34,0)+IF(DA34=0,(G34-H34-I34)*G$61,0)+IF(DB34=0,(K34-L34-M34)*K$61,0)+IF(DC34=0,(O34-P34-Q34)*O$61,0)+IF(DD34=0,(S34-T34-U34)*S$61,0)+IF(DE34=0,(W34-X34-Y34)*W$61,0)+IF(DF34=0,(AA34-AB34-AC34)*AA$61,0)+IF(DG34=0,(AE34-AF34-AG34)*AE$61,0)+IF(DH34=0,(AI34-AJ34-AK34)*AI$61,0)+IF(DI34=0,(AM34-AN34-AO34)*AM$61,0)+IF(DJ34=0,(AQ34-AR34-AS34)*$AQ$61,0)+IF(DK34=0,(AU34-AV34-AW34)*$AU$61,0)+IF(DL34=0,(AY34-AZ34-BA34)*$AY$61,0)++IF(DM34=0,(BC34-BD34-BE34)*$BC$61,0)+IF(DN34=0,(BG34-BH34-BI34)*$BG$61,0)+IF(DO34=0,(BK34-BL34-BM34)*$BK$61,0)+IF(DP34=0,(BO34-BP34-BQ34)*$BO$61,0)+IF(DQ34=0,(BS34-BT34-BU34)*$BS$61,0)+IF(DR34=0,(BW34-BX34-BY34)*$BW$61,0)+IF(DS34=0,(CA34-CB34-CC34)*$CA$61,0)+IF(DT34=0,(CE34-CF34-CG34)*$CE$61,0)+IF(DU34=0,(CI34-CJ34-CK34)*$CI$61,0)+IF(DV34=0,(CM34-CN34-CO34)*$CM$61,0)+IF(DW34=0,(CQ34-CR34-CS34)*$CQ$61,0)+IF(DX34=0,(CU34-CV34-CW34)*$CU$61,0) -> 0 | EB34: =(D34-E34)*CZ34+((G34-H34-(I34-J34))*G$61)*DA34+((K34-L34-(M34-N34))*K$61)*DB34+((O34-P34-(Q34-R34))*O$61)*DC34+((S34-T34-(U34-V34))*S$61)*DD34+((W34-X34-(Y34-Z34))*W$61)*DE34+((AA34-AB34-(AC34-AD34))*AA$61)*DF34+((AE34-AF34-(AG34-AH34))*AE$61)*DG34+((AI34-AJ34-(AK34-AL34))*AI$61)*DH34+((AM34-AN34-(AO34-AP34))*$AM$61)*DI34+((AQ34-AR34-(AS34-AT34))*$AQ$61)*DJ34+((AU34-AV34-(AW34-AX34))*$AU$61)*DK34+((AY34-AZ34-(BA34-BB34))*$AY$61)*DL34+((BC34-BD34-(BE34-BF34))*$BC$61)*DM34+((BG34-BH34-(BI34-BJ34))*$BG$61)*DN34+((BK34-BL34-(BM34-BN34))*$BK$61)*DO34+((BO34-BP34-(BQ34-BR34))*$BO$61)*DP34+((BS34-BT34-(BU34-BV34))*$BS$61)*DQ34+((BW34-BX34-(BY34-BZ34))*$BW$61)*DR34+((CA34-CB34-(CC34-CD34))*$CA$61)*DS34+((CE34-CF34-(CG34-CH34))*$CE$61)*DT34+((CI34-CJ34-(CK34-CL34))*$CI$61)*DU34+((CM34-CN34-(CO34-CP34))*$CM$61)*DV34+((CQ34-CR34-(CS34-CT34))*$CQ$61)*DW34+((CU34-CV34-(CW34-CX34))*$CU$61)*DX34 -> 87350524.48 | EC34: 3770361.677 | ED34: =IF((1-($FC$2-$CY34)/$C34)>0,(1-($FC$2-$CY34)/$C34),0) -> 0 | EE34: 0.1833333333 | EF34: 0.2166666667 | EG34: 0.25 | EH34: 0.2833333333 | EI34: 0.3166666667 | EJ34: 0.35 | EK34: 0.3833333333 | EL34: 0.4166666667 | EM34: 0.45 | EN34: 0.4833333333 | EO34: 0.5166666667 | EP34: 0.55 | EQ34: 0.5833333333 | ER34: 0.6166666667 | ES34: 0.65 | ET34: 0.6833333333 | EU34: 0.7166666667 | EV34: 0.75 | EW34: 0.7833333333 | EX34: 0.8166666667 | EY34: 0.85 | EZ34: 0.8833333333 | FA34: 0.9166666667 | FB34: 0.95 | FC34: 3770361.677 | FD34: =IF((1-($GC$2-$CY34)/$C34)>0,(1-($GC$2-$CY34)/$C34),0) -> 0 | FE34: 0.15 | FF34: 0.1833333333 | FG34: 0.2166666667 | FH34: 0.25 | FI34: 0.2833333333 | FJ34: 0.3166666667 | FK34: 0.35 | FL34: 0.3833333333 | FM34: 0.4166666667 | FN34: 0.45 | FO34: 0.4833333333 | FP34: 0.5166666667 | FQ34: 0.55 | FR34: 0.5833333333 | FS34: 0.6166666667 | FT34: 0.65 | FU34: 0.6833333333 | FV34: 0.7166666667 | FW34: 0.75 | FX34: 0.7833333333 | FY34: 0.8166666667 | FZ34: 0.85 | GA34: 0.8833333333 | GB34: 0.9166666667 | GC34: 3770361.677 | GD34: =IF((1-($HC$2-$CY34)/$C34)>0,(1-($HC$2-$CY34)/$C34),0) -> 0 | GE34: 0.1166666667 | GF34: 0.15 | GG34: 0.1833333333 | GH34: 0.2166666667 | GI34: 0.25 | GJ34: 0.2833333333 | GK34: 0.3166666667 | GL34: 0.35 | GM34: 0.3833333333 | GN34: 0.4166666667 | GO34: 0.45 | GP34: 0.4833333333 | GQ34: 0.5166666667 | GR34: 0.55 | GS34: 0.5833333333 | GT34: 0.6166666667 | GU34: 0.65 | GV34: 0.6833333333 | GW34: 0.7166666667 | GX34: 0.75 | GY34: 0.7833333333 | GZ34: 0.8166666667 | HA34: 0.85 | HB34: 0.8833333333 | HC34: 3770361.677 | HD34: =IF((1-($IC$2-$CY34)/$C34)>0,(1-($IC$2-$CY34)/$C34),0) -> 0 | HE34: 0.08333333333 | HF34: 0.1166666667 | HG34: 0.15 | HH34: 0.1833333333 | HI34: 0.2166666667 | HJ34: 0.25 | HK34: 0.2833333333 | HL34: 0.3166666667 | HM34: 0.35 | HN34: 0.3833333333 | HO34: 0.4166666667 | HP34: 0.45 | HQ34: 0.4833333333 | HR34: 0.5166666667 | HS34: 0.55 | HT34: 0.5833333333 | HU34: 0.6166666667 | HV34: 0.65 | HW34: 0.6833333333 | HX34: 0.7166666667 | HY34: 0.75 | HZ34: 0.7833333333 | IA34: 0.8166666667 | IB34: 0.85 | IC34: 3770361.677
B35: Acometidas BT | C35: 30 | D35: 24778308.94 | F35: 14182783.76 | G35: 231683.19 | K35: 387938.67 | L35: 0 | O35: 598221.71 | S35: 460185 | W35: 626007 | X35: 0 | AA35: 527992 | AB35: 0 | AE35: 730660 | AF35: 0 | AI35: 876711.11 | AJ35: 0 | AM35: 1228086.06 | AN35: 0 | AQ35: 1413598.51 | AR35: 0 | AU35: 1243931.51 | AV35: 0 | AY35: 1164225.13 | AZ35: 0 | BC35: 1525975.59 | BD35: 0 | BG35: 1352225.08 | BH35: 0 | BK35: 1120259.75 | BL35: 0 | BO35: 924034.12 | BP35: 0 | BS35: 844285.58 | BT35: 0 | BW35: 949135.52 | BX35: 0 | CA35: 468567.95 | CB35: 0 | CE35: 949135.52 | CF35: 0 | CI35: 645789.85 | CK35: 0 | CL35: 0 | CM35: 616433.48 | CO35: 0 | CP35: 0 | CQ35: 492410.52 | CS35: 0 | CT35: 0 | CU35: 698688.03 | CV35: 0 | CY35: =IF(D35=0,0,2001-(D35-F35)*C35/D35) -> 1988.171612 | CZ35: =IF((1-($DY$2-$CY35)/$C35)>0,(1-($DY$2-$CY35)/$C35),0) -> 0 | DA35: =IF((1-($DY$2-G$2)/$C35)>0,(1-($DY$2-G$2)/$C35),0) -> 0.2166666667 | DB35: =IF((1-($DY$2-K$2)/$C35)>0,(1-($DY$2-K$2)/$C35),0) -> 0.25 | DC35: =IF((1-($DY$2-O$2)/$C35)>0,(1-($DY$2-O$2)/$C35),0) -> 0.2833333333 | DD35: =IF((1-($DY$2-S$2)/$C35)>0,(1-($DY$2-S$2)/$C35),0) -> 0.3166666667 | DE35: =IF((1-($DY$2-W$2)/$C35)>0,(1-($DY$2-W$2)/$C35),0) -> 0.35 | DF35: =IF((1-($DY$2-AA$2)/$C35)>0,(1-($DY$2-AA$2)/$C35),0) -> 0.3833333333 | DG35: =IF((1-($DY$2-AE$2)/$C35)>0,(1-($DY$2-AE$2)/$C35),0) -> 0.4166666667 | DH35: =IF((1-($DY$2-AI$2)/$C35)>0,(1-($DY$2-AI$2)/$C35),0) -> 0.45 | DI35: =IF((1-($DY$2-AM$2)/$C35)>0,(1-($DY$2-AM$2)/$C35),0) -> 0.4833333333 | DJ35: =IF((1-($DY$2-AQ$2)/$C35)>0,(1-($DY$2-AQ$2)/$C35),0) -> 0.5166666667 | DK35: =IF((1-($DY$2-AU$2)/$C35)>0,(1-($DY$2-AU$2)/$C35),0) -> 0.55 | DL35: =IF((1-($DY$2-AY$2)/$C35)>0,(1-($DY$2-AY$2)/$C35),0) -> 0.5833333333 | DM35: =IF((1-($DY$2-BC$2)/$C35)>0,(1-($DY$2-BC$2)/$C35),0) -> 0.6166666667 | DN35: =IF((1-($DY$2-BG$2)/$C35)>0,(1-($DY$2-BG$2)/$C35),0) -> 0.65 | DO35: =IF((1-($DY$2-BK$2)/$C35)>0,(1-($DY$2-BK$2)/$C35),0) -> 0.6833333333 | DP35: =IF((1-($DY$2-BO$2)/$C35)>0,(1-($DY$2-BO$2)/$C35),0) -> 0.7166666667 | DQ35: =IF((1-($DY$2-BS$2)/$C35)>0,(1-($DY$2-BS$2)/$C35),0) -> 0.75 | DR35: =IF((1-($DY$2-BW$2)/$C35)>0,(1-($DY$2-BW$2)/$C35),0) -> 0.7833333333 | DS35: =IF((1-($DY$2-CA$2)/$C35)>0,(1-($DY$2-CA$2)/$C35),0) -> 0.8166666667 | DT35: =IF((1-($DY$2-CE$2)/$C35)>0,(1-($DY$2-CE$2)/$C35),0) -> 0.85 | DU35: 0.8833333333 | DV35: 0.9166666667 | DW35: 0.95 | DX35: 0.9833333333 | DY35: =IF(CZ35=0,0,($D35-$E35)*1/$C35)+IF(DA35=0,0,($G35-$H35-$I35)*$G$61*1/$C35)+IF(DB35=0,0,($K35-$L35-$M35)*$K$61*1/$C35)+IF(DC35=0,0,($O35-$P35-$Q35)*$O$61*1/$C35)+IF(DD35=0,0,($S35-$T35-$U35)*$S$61*1/$C35)+IF(DE35=0,0,($W35-$X35-$Y35)*$W$61*1/$C35)+IF(DF35=0,0,($AA35-$AB35-$AC35)*$AA$61*1/$C35)+IF(DG35=0,0,($AE35-$AF35-$AG35)*$AE$61*1/$C35)+IF(DH35=0,0,($AI35-$AJ35-$AK35)*$AI$61*1/$C35)+IF(DI35=0,0,($AM35-$AN35-$AO35)*$AM$61*1/$C35)+IF(DJ35=0,0,($AQ35-$AR35-$AS35)*$AQ$61*1/$C35)+IF(DK35=0,0,($AU35-$AV35-$AW35)*$AU$61*1/$C35)+IF(DL35=0,0,($AY35-$AZ35-$BA35)*$AY$61*1/$C35)+IF(DM35=0,0,($BC35-$BD35-$BE35)*$BC$61*1/$C35)+IF(DN35=0,0,($BG35-$BH35-$BI35)*$BG$61*1/$C35)+IF(DO35=0,0,($BK35-$BL35-$BM35)*$BK$61*1/$C35)+IF(DP35=0,0,($BO35-$BP35-$BQ35)*$BO$61*1/$C35)+IF(DQ35=0,0,($BS35-$BT35-$BU35)*$BS$61*1/$C35)+IF(DR35=0,0,($BW35-$BX35-$BY35)*$BW$61*1/$C35)+IF(DS35=0,0,($CA35-$CB35-$CC35)*$CA$61*1/$C35)+IF(DT35=0,0,($CE35-$CF35-$CG35)*$CE$61*1/$C35)+IF(DU35=0,0,($CI35-$CJ35-$CK35)*$CI$61*1/$C35)+IF(DV35=0,0,($CM35-$CN35-$CO35)*$CM$61*1/$C35)+IF(DW35=0,0,($CQ35-$CR35-$CS35)*$CQ$61*1/$C35)+IF(DX35=0,0,($CU35-$CV35-$CW35)*$CU$61*1/$C35) -> 573510.8786 | DZ35: =D35-E35+(G35-H35-I35)*G$61+(K35-L35-M35)*K$61+(O35-P35-Q35)*O$61+(S35-T35-U35)*S$61+(W35-X35-Y35)*W$61+(AA35-AB35-AC35)*AA$61+(AE35-AF35-AG35)*AE$61+(AI35-AJ35-AK35)*AI$61+(AM35-AN35-AO35)*AM$61+(AQ35-AR35-AS35)*$AQ$61+(AU35-AV35-AW35)*$AU$61+(AY35-AZ35-BA35)*$AY$61+(BC35-BD35-BE35)*$BC$61+(BG35-BH35-BI35)*$BG$61+(BK35-BL35-BM35)*$BK$61+(BO35-BP35-BQ35)*$BO$61+(BS35-BT35-BU35)*$BS$61+(BW35-BX35-BY35)*$BW$61+(CA35-CB35-CC35)*$CA$61+(CE35-CF35-CG35)*$CE$61+(CI35-CJ35-CK35)*$CI$61+(CM35-CN35-CO35)*$CM$61+(CQ35-CR35-CS35)*$CQ$61+(CU35-CV35-CW35)*$CU$61 -> 41983635.3 | EA35: =IF(CZ35=0,D35-E35,0)+IF(DA35=0,(G35-H35-I35)*G$61,0)+IF(DB35=0,(K35-L35-M35)*K$61,0)+IF(DC35=0,(O35-P35-Q35)*O$61,0)+IF(DD35=0,(S35-T35-U35)*S$61,0)+IF(DE35=0,(W35-X35-Y35)*W$61,0)+IF(DF35=0,(AA35-AB35-AC35)*AA$61,0)+IF(DG35=0,(AE35-AF35-AG35)*AE$61,0)+IF(DH35=0,(AI35-AJ35-AK35)*AI$61,0)+IF(DI35=0,(AM35-AN35-AO35)*AM$61,0)+IF(DJ35=0,(AQ35-AR35-AS35)*$AQ$61,0)+IF(DK35=0,(AU35-AV35-AW35)*$AU$61,0)+IF(DL35=0,(AY35-AZ35-BA35)*$AY$61,0)++IF(DM35=0,(BC35-BD35-BE35)*$BC$61,0)+IF(DN35=0,(BG35-BH35-BI35)*$BG$61,0)+IF(DO35=0,(BK35-BL35-BM35)*$BK$61,0)+IF(DP35=0,(BO35-BP35-BQ35)*$BO$61,0)+IF(DQ35=0,(BS35-BT35-BU35)*$BS$61,0)+IF(DR35=0,(BW35-BX35-BY35)*$BW$61,0)+IF(DS35=0,(CA35-CB35-CC35)*$CA$61,0)+IF(DT35=0,(CE35-CF35-CG35)*$CE$61,0)+IF(DU35=0,(CI35-CJ35-CK35)*$CI$61,0)+IF(DV35=0,(CM35-CN35-CO35)*$CM$61,0)+IF(DW35=0,(CQ35-CR35-CS35)*$CQ$61,0)+IF(DX35=0,(CU35-CV35-CW35)*$CU$61,0) -> 24778308.94 | EB35: =(D35-E35)*CZ35+((G35-H35-(I35-J35))*G$61)*DA35+((K35-L35-(M35-N35))*K$61)*DB35+((O35-P35-(Q35-R35))*O$61)*DC35+((S35-T35-(U35-V35))*S$61)*DD35+((W35-X35-(Y35-Z35))*W$61)*DE35+((AA35-AB35-(AC35-AD35))*AA$61)*DF35+((AE35-AF35-(AG35-AH35))*AE$61)*DG35+((AI35-AJ35-(AK35-AL35))*AI$61)*DH35+((AM35-AN35-(AO35-AP35))*$AM$61)*DI35+((AQ35-AR35-(AS35-AT35))*$AQ$61)*DJ35+((AU35-AV35-(AW35-AX35))*$AU$61)*DK35+((AY35-AZ35-(BA35-BB35))*$AY$61)*DL35+((BC35-BD35-(BE35-BF35))*$BC$61)*DM35+((BG35-BH35-(BI35-BJ35))*$BG$61)*DN35+((BK35-BL35-(BM35-BN35))*$BK$61)*DO35+((BO35-BP35-(BQ35-BR35))*$BO$61)*DP35+((BS35-BT35-(BU35-BV35))*$BS$61)*DQ35+((BW35-BX35-(BY35-BZ35))*$BW$61)*DR35+((CA35-CB35-(CC35-CD35))*$CA$61)*DS35+((CE35-CF35-(CG35-CH35))*$CE$61)*DT35+((CI35-CJ35-(CK35-CL35))*$CI$61)*DU35+((CM35-CN35-(CO35-CP35))*$CM$61)*DV35+((CQ35-CR35-(CS35-CT35))*$CQ$61)*DW35+((CU35-CV35-(CW35-CX35))*$CU$61)*DX35 -> 10606353.31 | EC35: 573510.8786 | ED35: =IF((1-($FC$2-$CY35)/$C35)>0,(1-($FC$2-$CY35)/$C35),0) -> 0 | EE35: 0.1833333333 | EF35: 0.2166666667 | EG35: 0.25 | EH35: 0.2833333333 | EI35: 0.3166666667 | EJ35: 0.35 | EK35: 0.3833333333 | EL35: 0.4166666667 | EM35: 0.45 | EN35: 0.4833333333 | EO35: 0.5166666667 | EP35: 0.55 | EQ35: 0.5833333333 | ER35: 0.6166666667 | ES35: 0.65 | ET35: 0.6833333333 | EU35: 0.7166666667 | EV35: 0.75 | EW35: 0.7833333333 | EX35: 0.8166666667 | EY35: 0.85 | EZ35: 0.8833333333 | FA35: 0.9166666667 | FB35: 0.95 | FC35: 573510.8786 | FD35: =IF((1-($GC$2-$CY35)/$C35)>0,(1-($GC$2-$CY35)/$C35),0) -> 0 | FE35: 0.15 | FF35: 0.1833333333 | FG35: 0.2166666667 | FH35: 0.25 | FI35: 0.2833333333 | FJ35: 0.3166666667 | FK35: 0.35 | FL35: 0.3833333333 | FM35: 0.4166666667 | FN35: 0.45 | FO35: 0.4833333333 | FP35: 0.5166666667 | FQ35: 0.55 | FR35: 0.5833333333 | FS35: 0.6166666667 | FT35: 0.65 | FU35: 0.6833333333 | FV35: 0.7166666667 | FW35: 0.75 | FX35: 0.7833333333 | FY35: 0.8166666667 | FZ35: 0.85 | GA35: 0.8833333333 | GB35: 0.9166666667 | GC35: 573510.8786 | GD35: =IF((1-($HC$2-$CY35)/$C35)>0,(1-($HC$2-$CY35)/$C35),0) -> 0 | GE35: 0.1166666667 | GF35: 0.15 | GG35: 0.1833333333 | GH35: 0.2166666667 | GI35: 0.25 | GJ35: 0.2833333333 | GK35: 0.3166666667 | GL35: 0.35 | GM35: 0.3833333333 | GN35: 0.4166666667 | GO35: 0.45 | GP35: 0.4833333333 | GQ35: 0.5166666667 | GR35: 0.55 | GS35: 0.5833333333 | GT35: 0.6166666667 | GU35: 0.65 | GV35: 0.6833333333 | GW35: 0.7166666667 | GX35: 0.75 | GY35: 0.7833333333 | GZ35: 0.8166666667 | HA35: 0.85 | HB35: 0.8833333333 | HC35: 573510.8786 | HD35: =IF((1-($IC$2-$CY35)/$C35)>0,(1-($IC$2-$CY35)/$C35),0) -> 0 | HE35: 0.08333333333 | HF35: 0.1166666667 | HG35: 0.15 | HH35: 0.1833333333 | HI35: 0.2166666667 | HJ35: 0.25 | HK35: 0.2833333333 | HL35: 0.3166666667 | HM35: 0.35 | HN35: 0.3833333333 | HO35: 0.4166666667 | HP35: 0.45 | HQ35: 0.4833333333 | HR35: 0.5166666667 | HS35: 0.55 | HT35: 0.5833333333 | HU35: 0.6166666667 | HV35: 0.65 | HW35: 0.6833333333 | HX35: 0.7166666667 | HY35: 0.75 | HZ35: 0.7833333333 | IA35: 0.8166666667 | IB35: 0.85 | IC35: 573510.8786
B36: Otros equipos del sistema de distribución | D36: 0 | F36: 0 | L36: 0 | S36: 0 | AM36: 0 | AN36: 0 | AQ36: 0 | AR36: 0 | AU36: 0 | AV36: 0 | AY36: 0 | AZ36: 0 | BS36: 0 | BT36: 0 | BW36: 0 | BX36: 0 | CA36: 0 | CB36: 0 | CE36: 0 | CF36: 0 | CI36: 0 | CK36: 0 | CL36: 0 | CM36: 0 | CO36: 0 | CP36: 0 | CQ36: 0 | CS36: 0 | CT36: 0 | CU36: 0 | CV36: 0 | FC36: 0 | GC36: 0 | HC36: 0 | IC36: 0
B37: Otros equipos del sistema de Distribución | C37: 10 | D37: 0 | F37: 0 | G37: 0 | K37: 0 | L37: 0 | O37: 0 | S37: 0 | W37: 0 | X37: 0 | AA37: 0 | AB37: 0 | AE37: 111989 | AF37: 0 | AI37: 0 | AJ37: 0 | AM37: 0 | AN37: 0 | AQ37: 0 | AR37: 0 | AU37: 229985 | AV37: 0 | AY37: 0 | AZ37: 0 | BC37: 0 | BD37: 0 | BG37: 34579 | BH37: 0 | BK37: 0 | BL37: 0 | BO37: 0 | BS37: 0 | BT37: 0 | BW37: 0 | BX37: 0 | CA37: 0 | CB37: 0 | CE37: 0 | CF37: 0 | CI37: 0 | CK37: 0 | CL37: 0 | CM37: 0 | CO37: 0 | CP37: 0 | CQ37: 0 | CS37: 0 | CT37: 0 | CU37: 0 | CV37: 0 | CY37: =IF(D37=0,0,2001-(D37-F37)*C37/D37) -> 0 | CZ37: =IF((1-($DY$2-$CY37)/$C37)>0,(1-($DY$2-$CY37)/$C37),0) -> 0 | DA37: =IF((1-($DY$2-G$2)/$C37)>0,(1-($DY$2-G$2)/$C37),0) -> 0 | DB37: =IF((1-($DY$2-K$2)/$C37)>0,(1-($DY$2-K$2)/$C37),0) -> 0 | DC37: =IF((1-($DY$2-O$2)/$C37)>0,(1-($DY$2-O$2)/$C37),0) -> 0 | DD37: =IF((1-($DY$2-S$2)/$C37)>0,(1-($DY$2-S$2)/$C37),0) -> 0 | DE37: =IF((1-($DY$2-W$2)/$C37)>0,(1-($DY$2-W$2)/$C37),0) -> 0 | DF37: =IF((1-($DY$2-AA$2)/$C37)>0,(1-($DY$2-AA$2)/$C37),0) -> 0 | DG37: =IF((1-($DY$2-AE$2)/$C37)>0,(1-($DY$2-AE$2)/$C37),0) -> 0 | DH37: =IF((1-($DY$2-AI$2)/$C37)>0,(1-($DY$2-AI$2)/$C37),0) -> 0 | DI37: =IF((1-($DY$2-AM$2)/$C37)>0,(1-($DY$2-AM$2)/$C37),0) -> 0 | DJ37: =IF((1-($DY$2-AQ$2)/$C37)>0,(1-($DY$2-AQ$2)/$C37),0) -> 0 | DK37: =IF((1-($DY$2-AU$2)/$C37)>0,(1-($DY$2-AU$2)/$C37),0) -> 0 | DL37: =IF((1-($DY$2-AY$2)/$C37)>0,(1-($DY$2-AY$2)/$C37),0) -> 0 | DM37: =IF((1-($DY$2-BC$2)/$C37)>0,(1-($DY$2-BC$2)/$C37),0) -> 0 | DN37: =IF((1-($DY$2-BG$2)/$C37)>0,(1-($DY$2-BG$2)/$C37),0) -> 0 | DO37: =IF((1-($DY$2-BK$2)/$C37)>0,(1-($DY$2-BK$2)/$C37),0) -> 0.05 | DP37: =IF((1-($DY$2-BO$2)/$C37)>0,(1-($DY$2-BO$2)/$C37),0) -> 0.15 | DQ37: =IF((1-($DY$2-BS$2)/$C37)>0,(1-($DY$2-BS$2)/$C37),0) -> 0.25 | DR37: =IF((1-($DY$2-BW$2)/$C37)>0,(1-($DY$2-BW$2)/$C37),0) -> 0.35 | DS37: =IF((1-($DY$2-CA$2)/$C37)>0,(1-($DY$2-CA$2)/$C37),0) -> 0.45 | DT37: =IF((1-($DY$2-CE$2)/$C37)>0,(1-($DY$2-CE$2)/$C37),0) -> 0.55 | DU37: =IF((1-($DY$2-CI$2)/$C37)>0,(1-($DY$2-CI$2)/$C37),0) -> 0.65 | DV37: =IF((1-($DY$2-CM$2)/$C37)>0,(1-($DY$2-CM$2)/$C37),0) -> 0.75 | DW37: =IF((1-($DY$2-CQ$2)/$C37)>0,(1-($DY$2-CQ$2)/$C37),0) -> 0.85 | DX37: =IF((1-($DY$2-CU$2)/$C37)>0,(1-($DY$2-CU$2)/$C37),0) -> 0.95 | DY37: =IF(CZ37=0,0,($D37-$E37)*1/$C37)+IF(DA37=0,0,($G37-$H37-$I37)*$G$61*1/$C37)+IF(DB37=0,0,($K37-$L37-$M37)*$K$61*1/$C37)+IF(DC37=0,0,($O37-$P37-$Q37)*$O$61*1/$C37)+IF(DD37=0,0,($S37-$T37-$U37)*$S$61*1/$C37)+IF(DE37=0,0,($W37-$X37-$Y37)*$W$61*1/$C37)+IF(DF37=0,0,($AA37-$AB37-$AC37)*$AA$61*1/$C37)+IF(DG37=0,0,($AE37-$AF37-$AG37)*$AE$61*1/$C37)+IF(DH37=0,0,($AI37-$AJ37-$AK37)*$AI$61*1/$C37)+IF(DI37=0,0,($AM37-$AN37-$AO37)*$AM$61*1/$C37)+IF(DJ37=0,0,($AQ37-$AR37-$AS37)*$AQ$61*1/$C37)+IF(DK37=0,0,($AU37-$AV37-$AW37)*$AU$61*1/$C37)+IF(DL37=0,0,($AY37-$AZ37-$BA37)*$AY$61*1/$C37)+IF(DM37=0,0,($BC37-$BD37-$BE37)*$BC$61*1/$C37)+IF(DN37=0,0,($BG37-$BH37-$BI37)*$BG$61*1/$C37)+IF(DO37=0,0,($BK37-$BL37-$BM37)*$BK$61*1/$C37)+IF(DP37=0,0,($BO37-$BP37-$BQ37)*$BO$61*1/$C37)+IF(DQ37=0,0,($BS37-$BT37-$BU37)*$BS$61*1/$C37)+IF(DR37=0,0,($BW37-$BX37-$BY37)*$BW$61*1/$C37)+IF(DS37=0,0,($CA37-$CB37-$CC37)*$CA$61*1/$C37)+IF(DT37=0,0,($CE37-$CF37-$CG37)*$CE$61*1/$C37)+IF(DU37=0,0,($CI37-$CJ37-$CK37)*$CI$61*1/$C37)+IF(DV37=0,0,($CM37-$CN37-$CO37)*$CM$61*1/$C37)+IF(DW37=0,0,($CQ37-$CR37-$CS37)*$CQ$61*1/$C37)+IF(DX37=0,0,($CU37-$CV37-$CW37)*$CU$61*1/$C37) -> 0 | DZ37: =D37-E37+(G37-H37-I37)*G$61+(K37-L37-M37)*K$61+(O37-P37-Q37)*O$61+(S37-T37-U37)*S$61+(W37-X37-Y37)*W$61+(AA37-AB37-AC37)*AA$61+(AE37-AF37-AG37)*AE$61+(AI37-AJ37-AK37)*AI$61+(AM37-AN37-AO37)*AM$61+(AQ37-AR37-AS37)*$AQ$61+(AU37-AV37-AW37)*$AU$61+(AY37-AZ37-BA37)*$AY$61+(BC37-BD37-BE37)*$BC$61+(BG37-BH37-BI37)*$BG$61+(BK37-BL37-BM37)*$BK$61+(BO37-BP37-BQ37)*$BO$61+(BS37-BT37-BU37)*$BS$61+(BW37-BX37-BY37)*$BW$61+(CA37-CB37-CC37)*$CA$61+(CE37-CF37-CG37)*$CE$61+(CI37-CJ37-CK37)*$CI$61+(CM37-CN37-CO37)*$CM$61+(CQ37-CR37-CS37)*$CQ$61+(CU37-CV37-CW37)*$CU$61 -> 314170.8526 | EA37: =IF(CZ37=0,D37-E37,0)+IF(DA37=0,(G37-H37-I37)*G$61,0)+IF(DB37=0,(K37-L37-M37)*K$61,0)+IF(DC37=0,(O37-P37-Q37)*O$61,0)+IF(DD37=0,(S37-T37-U37)*S$61,0)+IF(DE37=0,(W37-X37-Y37)*W$61,0)+IF(DF37=0,(AA37-AB37-AC37)*AA$61,0)+IF(DG37=0,(AE37-AF37-AG37)*AE$61,0)+IF(DH37=0,(AI37-AJ37-AK37)*AI$61,0)+IF(DI37=0,(AM37-AN37-AO37)*AM$61,0)+IF(DJ37=0,(AQ37-AR37-AS37)*$AQ$61,0)+IF(DK37=0,(AU37-AV37-AW37)*$AU$61,0)+IF(DL37=0,(AY37-AZ37-BA37)*$AY$61,0)++IF(DM37=0,(BC37-BD37-BE37)*$BC$61,0)+IF(DN37=0,(BG37-BH37-BI37)*$BG$61,0)+IF(DO37=0,(BK37-BL37-BM37)*$BK$61,0)+IF(DP37=0,(BO37-BP37-BQ37)*$BO$61,0)+IF(DQ37=0,(BS37-BT37-BU37)*$BS$61,0)+IF(DR37=0,(BW37-BX37-BY37)*$BW$61,0)+IF(DS37=0,(CA37-CB37-CC37)*$CA$61,0)+IF(DT37=0,(CE37-CF37-CG37)*$CE$61,0)+IF(DU37=0,(CI37-CJ37-CK37)*$CI$61,0)+IF(DV37=0,(CM37-CN37-CO37)*$CM$61,0)+IF(DW37=0,(CQ37-CR37-CS37)*$CQ$61,0)+IF(DX37=0,(CU37-CV37-CW37)*$CU$61,0) -> 314170.8526 | EB37: =(D37-E37)*CZ37+((G37-H37-(I37-J37))*G$61)*DA37+((K37-L37-(M37-N37))*K$61)*DB37+((O37-P37-(Q37-R37))*O$61)*DC37+((S37-T37-(U37-V37))*S$61)*DD37+((W37-X37-(Y37-Z37))*W$61)*DE37+((AA37-AB37-(AC37-AD37))*AA$61)*DF37+((AE37-AF37-(AG37-AH37))*AE$61)*DG37+((AI37-AJ37-(AK37-AL37))*AI$61)*DH37+((AM37-AN37-(AO37-AP37))*$AM$61)*DI37+((AQ37-AR37-(AS37-AT37))*$AQ$61)*DJ37+((AU37-AV37-(AW37-AX37))*$AU$61)*DK37+((AY37-AZ37-(BA37-BB37))*$AY$61)*DL37+((BC37-BD37-(BE37-BF37))*$BC$61)*DM37+((BG37-BH37-(BI37-BJ37))*$BG$61)*DN37+((BK37-BL37-(BM37-BN37))*$BK$61)*DO37+((BO37-BP37-(BQ37-BR37))*$BO$61)*DP37+((BS37-BT37-(BU37-BV37))*$BS$61)*DQ37+((BW37-BX37-(BY37-BZ37))*$BW$61)*DR37+((CA37-CB37-(CC37-CD37))*$CA$61)*DS37+((CE37-CF37-(CG37-CH37))*$CE$61)*DT37+((CI37-CJ37-(CK37-CL37))*$CI$61)*DU37+((CM37-CN37-(CO37-CP37))*$CM$61)*DV37+((CQ37-CR37-(CS37-CT37))*$CQ$61)*DW37+((CU37-CV37-(CW37-CX37))*$CU$61)*DX37 -> 0 | EC37: 0 | ED37: =IF((1-($FC$2-$CY37)/$C37)>0,(1-($FC$2-$CY37)/$C37),0) -> 0 | EE37: =IF((1-($FC$2-EE$2)/$C37)>0,(1-($FC$2-EE$2)/$C37),0) -> 0 | EF37: 0 | EG37: 0 | EH37: 0 | EI37: 0 | EJ37: 0 | EK37: 0 | EL37: 0 | EM37: 0 | EN37: 0 | EO37: =IF((1-($FC$2-EO$2)/$C37)>0,(1-($FC$2-EO$2)/$C37),0) -> 0 | EP37: 0 | EQ37: 0 | ER37: 0 | ES37: 0 | ET37: 0.05 | EU37: 0.15 | EV37: 0.25 | EW37: 0.35 | EX37: 0.45 | EY37: 0.55 | EZ37: =IF((1-($FC$2-EZ$2)/$C37)>0,(1-($FC$2-EZ$2)/$C37),0) -> 0.65 | FA37: 0.75 | FB37: 0.85 | FC37: 0 | FD37: =IF((1-($GC$2-$CY37)/$C37)>0,(1-($GC$2-$CY37)/$C37),0) -> 0 | FE37: =IF((1-($GC$2-FE$2)/$C37)>0,(1-($GC$2-FE$2)/$C37),0) -> 0 | FF37: 0 | FG37: 0 | FH37: 0 | FI37: 0 | FJ37: 0 | FK37: 0 | FL37: 0 | FM37: 0 | FN37: 0 | FO37: =IF((1-($GC$2-FO$2)/$C37)>0,(1-($GC$2-FO$2)/$C37),0) -> 0 | FP37: 0 | FQ37: 0 | FR37: 0 | FS37: 0 | FT37: 0 | FU37: 0.05 | FV37: 0.15 | FW37: 0.25 | FX37: 0.35 | FY37: 0.45 | FZ37: =IF((1-($GC$2-FZ$2)/$C37)>0,(1-($GC$2-FZ$2)/$C37),0) -> 0.55 | GA37: 0.65 | GB37: 0.75 | GC37: 0 | GD37: =IF((1-($HC$2-$CY37)/$C37)>0,(1-($HC$2-$CY37)/$C37),0) -> 0 | GE37: =IF((1-($HC$2-GE$2)/$C37)>0,(1-($HC$2-GE$2)/$C37),0) -> 0 | GF37: 0 | GG37: 0 | GH37: 0 | GI37: 0 | GJ37: 0 | GK37: 0 | GL37: 0 | GM37: 0 | GN37: 0 | GO37: =IF((1-($HC$2-GO$2)/$C37)>0,(1-($HC$2-GO$2)/$C37),0) -> 0 | GP37: 0 | GQ37: 0 | GR37: 0 | GS37: 0 | GT37: 0 | GU37: 0 | GV37: 0.05 | GW37: 0.15 | GX37: 0.25 | GY37: 0.35 | GZ37: =IF((1-($HC$2-GZ$2)/$C37)>0,(1-($HC$2-GZ$2)/$C37),0) -> 0.45 | HA37: 0.55 | HB37: 0.65 | HC37: 0 | HD37: =IF((1-($IC$2-$CY37)/$C37)>0,(1-($IC$2-$CY37)/$C37),0) -> 0 | HE37: =IF((1-($IC$2-HE$2)/$C37)>0,(1-($IC$2-HE$2)/$C37),0) -> 0 | HF37: 0 | HG37: 0 | HH37: 0 | HI37: 0 | HJ37: 0 | HK37: 0 | HL37: 0 | HM37: 0 | HN37: 0 | HO37: =IF((1-($IC$2-HO$2)/$C37)>0,(1-($IC$2-HO$2)/$C37),0) -> 0 | HP37: 0 | HQ37: 0 | HR37: 0 | HS37: 0 | HT37: 0 | HU37: 0 | HV37: 0 | HW37: 0.05 | HX37: 0.15 | HY37: 0.25 | HZ37: =IF((1-($IC$2-HZ$2)/$C37)>0,(1-($IC$2-HZ$2)/$C37),0) -> 0.35 | IA37: 0.45 | IB37: 0.55 | IC37: 0
B38: Equipos de transporte y carga | C38: 5 | D38: 0 | F38: 0 | G38: 0 | K38: 0 | L38: 0 | O38: 0 | S38: 0 | W38: 0 | X38: 0 | AA38: 0 | AB38: 0 | AE38: 0 | AF38: 0 | AI38: 0 | AJ38: 0 | AM38: 0 | AN38: 0 | AQ38: 0 | AR38: 0 | AU38: 0 | AV38: 0 | AY38: 133705.86 | AZ38: 0 | CI38: 0 | CK38: 0 | CL38: 0 | CM38: 0 | CO38: 0 | CP38: 0 | CQ38: 0 | CS38: 0 | CT38: 0 | CU38: 0 | CV38: 0 | CY38: 0 | CZ38: 0 | DA38: 0 | DB38: 0 | DC38: 0 | DD38: 0 | DE38: 0 | DF38: 0 | DG38: 0 | DH38: 0 | DI38: 0 | DJ38: 0 | DK38: 0 | DL38: 0 | DM38: 0 | DN38: 0 | DO38: 0 | DP38: 0 | DQ38: 0 | DR38: 0 | DS38: 0 | DT38: 0.1 | DU38: 0.3 | DV38: 0.5 | DW38: 0.7 | DX38: 0.9 | DY38: 0 | DZ38: 112490.5775 | EA38: 112490.5775 | EB38: 0 | EC38: 0 | ED38: 0 | EE38: 0 | EF38: 0 | EG38: 0 | EH38: 0 | EI38: 0 | EJ38: 0 | EK38: 0 | EL38: 0 | EM38: 0 | EN38: 0 | EO38: 0 | EP38: 0 | EQ38: 0 | ER38: 0 | ES38: 0 | ET38: 0 | EU38: 0 | EV38: 0 | EW38: 0 | EX38: 0 | EY38: 0.1 | EZ38: 0.3 | FA38: 0.5 | FB38: 0.7 | FC38: 0 | FD38: 0 | FE38: 0 | FF38: 0 | FG38: 0 | FH38: 0 | FI38: 0 | FJ38: 0 | FK38: 0 | FL38: 0 | FM38: 0 | FN38: 0 | FO38: 0 | FP38: 0 | FQ38: 0 | FR38: 0 | FS38: 0 | FT38: 0 | FU38: 0 | FV38: 0 | FW38: 0 | FX38: 0 | FY38: 0 | FZ38: 0.1 | GA38: 0.3 | GB38: 0.5 | GC38: 0 | GD38: 0 | GE38: 0 | GF38: 0 | GG38: 0 | GH38: 0 | GI38: 0 | GJ38: 0 | GK38: 0 | GL38: 0 | GM38: 0 | GN38: 0 | GO38: 0 | GP38: 0 | GQ38: 0 | GR38: 0 | GS38: 0 | GT38: 0 | GU38: 0 | GV38: 0 | GW38: 0 | GX38: 0 | GY38: 0 | GZ38: 0 | HA38: 0.1 | HB38: 0.3 | HC38: 0 | HD38: 0 | HE38: 0 | HF38: 0 | HG38: 0 | HH38: 0 | HI38: 0 | HJ38: 0 | HK38: 0 | HL38: 0 | HM38: 0 | HN38: 0 | HO38: 0 | HP38: 0 | HQ38: 0 | HR38: 0 | HS38: 0 | HT38: 0 | HU38: 0 | HV38: 0 | HW38: 0 | HX38: 0 | HY38: 0 | HZ38: 0 | IA38: 0 | IB38: 0.1 | IC38: 0
B39: Terrenos | C39: 1000 | D39: 0 | F39: 0 | G39: 0 | K39: 0 | L39: 0 | O39: 0 | S39: 0 | W39: 0 | X39: 0 | AA39: 0 | AB39: 0 | AE39: 0 | AF39: 0 | AI39: 0 | AJ39: 0 | AM39: 0 | AN39: 0 | AQ39: 0 | AR39: 0 | AU39: 0 | AV39: 0 | AY39: 0 | AZ39: 0 | CI39: 0 | CK39: 0 | CL39: 0 | CM39: 0 | CO39: 0 | CP39: 0 | CQ39: 0 | CS39: 0 | CT39: 0 | CV39: 0 | CY39: 0 | CZ39: 0 | DA39: 0.9765 | DB39: 0.9775 | DC39: 0.9785 | DD39: 0.9795 | DE39: 0.9805 | DF39: 0.9815 | DG39: 0.9825 | DH39: 0.9835 | DI39: 0.9845 | DJ39: 0.9855 | DK39: 0.9865 | DL39: 0.9875 | DM39: 0.9885 | DN39: 0.9895 | DO39: 0.9905 | DP39: 0.9915 | DQ39: 0.9925 | DR39: 0.9935 | DS39: 0.9945 | DT39: 0.9955 | DU39: 0.9965 | DV39: 0.9975 | DW39: 0.9985 | DX39: 0.9995 | DY39: 0 | DZ39: 0 | EA39: 0 | EB39: 0 | EC39: 0 | ED39: 0 | EE39: 0.9755 | EF39: 0.9765 | EG39: 0.9775 | EH39: 0.9785 | EI39: 0.9795 | EJ39: 0.9805 | EK39: 0.9815 | EL39: 0.9825 | EM39: 0.9835 | EN39: 0.9845 | EO39: 0.9855 | EP39: 0.9865 | EQ39: 0.9875 | ER39: 0.9885 | ES39: 0.9895 | ET39: 0.9905 | EU39: 0.9915 | EV39: 0.9925 | EW39: 0.9935 | EX39: 0.9945 | EY39: 0.9955 | EZ39: 0.9965 | FA39: 0.9975 | FB39: 0.9985 | FC39: 0 | FD39: 0 | FE39: 0.9745 | FF39: 0.9755 | FG39: 0.9765 | FH39: 0.9775 | FI39: 0.9785 | FJ39: 0.9795 | FK39: 0.9805 | FL39: 0.9815 | FM39: 0.9825 | FN39: 0.9835 | FO39: 0.9845 | FP39: 0.9855 | FQ39: 0.9865 | FR39: 0.9875 | FS39: 0.9885 | FT39: 0.9895 | FU39: 0.9905 | FV39: 0.9915 | FW39: 0.9925 | FX39: 0.9935 | FY39: 0.9945 | FZ39: 0.9955 | GA39: 0.9965 | GB39: 0.9975 | GC39: 0 | GD39: 0 | GE39: 0.9735 | GF39: 0.9745 | GG39: 0.9755 | GH39: 0.9765 | GI39: 0.9775 | GJ39: 0.9785 | GK39: 0.9795 | GL39: 0.9805 | GM39: 0.9815 | GN39: 0.9825 | GO39: 0.9835 | GP39: 0.9845 | GQ39: 0.9855 | GR39: 0.9865 | GS39: 0.9875 | GT39: 0.9885 | GU39: 0.9895 | GV39: 0.9905 | GW39: 0.9915 | GX39: 0.9925 | GY39: 0.9935 | GZ39: 0.9945 | HA39: 0.9955 | HB39: 0.9965 | HC39: 0 | HD39: 0 | HE39: 0.9725 | HF39: 0.9735 | HG39: 0.9745 | HH39: 0.9755 | HI39: 0.9765 | HJ39: 0.9775 | HK39: 0.9785 | HL39: 0.9795 | HM39: 0.9805 | HN39: 0.9815 | HO39: 0.9825 | HP39: 0.9835 | HQ39: 0.9845 | HR39: 0.9855 | HS39: 0.9865 | HT39: 0.9875 | HU39: 0.9885 | HV39: 0.9895 | HW39: 0.9905 | HX39: 0.9915 | HY39: 0.9925 | HZ39: 0.9935 | IA39: 0.9945 | IB39: 0.9955 | IC39: 0
B40: Edificios y mejoras | C40: 40 | D40: 0 | F40: 0 | G40: 0 | K40: 0 | L40: 0 | O40: 0 | S40: 0 | W40: 0 | X40: 0 | AA40: 0 | AB40: 0 | AE40: 0 | AF40: 0 | AI40: 0 | AJ40: 0 | AM40: 0 | AN40: 0 | AQ40: 0 | AR40: 0 | AU40: 0 | AV40: 0 | AY40: 0 | AZ40: 0 | CK40: 0 | CL40: 0 | CO40: 0 | CP40: 0 | CS40: 0 | CT40: 0 | CV40: 0 | CY40: 0 | CZ40: 0 | DA40: 0.4125 | DB40: 0.4375 | DC40: 0.4625 | DD40: 0.4875 | DE40: 0.5125 | DF40: 0.5375 | DG40: 0.5625 | DH40: 0.5875 | DI40: 0.6125 | DJ40: 0.6375 | DK40: 0.6625 | DL40: 0.6875 | DM40: 0.7125 | DN40: 0.7375 | DO40: 0.7625 | DP40: 0.7875 | DQ40: 0.8125 | DR40: 0.8375 | DS40: 0.8625 | DT40: 0.8875 | DU40: 0.9125 | DV40: 0.9375 | DW40: 0.9625 | DX40: 0.9875 | DY40: 0 | DZ40: 0 | EA40: 0 | EB40: 0 | EC40: 0 | ED40: 0 | EE40: 0.3875 | EF40: 0.4125 | EG40: 0.4375 | EH40: 0.4625 | EI40: 0.4875 | EJ40: 0.5125 | EK40: 0.5375 | EL40: 0.5625 | EM40: 0.5875 | EN40: 0.6125 | EO40: 0.6375 | EP40: 0.6625 | EQ40: 0.6875 | ER40: 0.7125 | ES40: 0.7375 | ET40: 0.7625 | EU40: 0.7875 | EV40: 0.8125 | EW40: 0.8375 | EX40: 0.8625 | EY40: 0.8875 | EZ40: 0.9125 | FA40: 0.9375 | FB40: 0.9625 | FC40: 0 | FD40: 0 | FE40: 0.3625 | FF40: 0.3875 | FG40: 0.4125 | FH40: 0.4375 | FI40: 0.4625 | FJ40: 0.4875 | FK40: 0.5125 | FL40: 0.5375 | FM40: 0.5625 | FN40: 0.5875 | FO40: 0.6125 | FP40: 0.6375 | FQ40: 0.6625 | FR40: 0.6875 | FS40: 0.7125 | FT40: 0.7375 | FU40: 0.7625 | FV40: 0.7875 | FW40: 0.8125 | FX40: 0.8375 | FY40: 0.8625 | FZ40: 0.8875 | GA40: 0.9125 | GB40: 0.9375 | GC40: 0 | GD40: 0 | GE40: 0.3375 | GF40: 0.3625 | GG40: 0.3875 | GH40: 0.4125 | GI40: 0.4375 | GJ40: 0.4625 | GK40: 0.4875 | GL40: 0.5125 | GM40: 0.5375 | GN40: 0.5625 | GO40: 0.5875 | GP40: 0.6125 | GQ40: 0.6375 | GR40: 0.6625 | GS40: 0.6875 | GT40: 0.7125 | GU40: 0.7375 | GV40: 0.7625 | GW40: 0.7875 | GX40: 0.8125 | GY40: 0.8375 | GZ40: 0.8625 | HA40: 0.8875 | HB40: 0.9125 | HC40: 0 | HD40: 0 | HE40: 0.3125 | HF40: 0.3375 | HG40: 0.3625 | HH40: 0.3875 | HI40: 0.4125 | HJ40: 0.4375 | HK40: 0.4625 | HL40: 0.4875 | HM40: 0.5125 | HN40: 0.5375 | HO40: 0.5625 | HP40: 0.5875 | HQ40: 0.6125 | HR40: 0.6375 | HS40: 0.6625 | HT40: 0.6875 | HU40: 0.7125 | HV40: 0.7375 | HW40: 0.7625 | HX40: 0.7875 | HY40: 0.8125 | HZ40: 0.8375 | IA40: 0.8625 | IB40: 0.8875 | IC40: 0
B41: Despachos de maniobra y SCADA | C41: 10 | D41: 4033267.434 | F41: 2307950.33 | G41: 167172.85 | K41: 59988.72 | L41: 0 | O41: 138768.94 | S41: 107394 | W41: 96549 | X41: 0 | AA41: 375159 | AB41: 0 | AE41: 299121 | AF41: 0 | AI41: 231902.89 | AJ41: 62404.32 | AM41: 243375.604 | AN41: 0 | AQ41: 102709.38 | AR41: 0 | AU41: 237649.92 | AV41: 0 | AY41: 133705.86 | AZ41: 0 | BC41: 27834.38 | BD41: 0 | BG41: 178367 | BH41: 0 | BK41: 246443.27 | BL41: 0 | BO41: 6825683.33 | BS41: 3577794.55 | BT41: 0 | BW41: 4586165.25 | BX41: 0 | CA41: 5577527.64 | CB41: 0 | CE41: 6545516.38 | CF41: 0 | CI41: 6078010.31 | CK41: 0 | CL41: 0 | CM41: 6579297.4 | CO41: 0 | CP41: 0 | CQ41: 8093002.2 | CS41: 0 | CT41: 0 | CU41: 1306683.2 | CV41: 0 | CY41: 1996.722284 | CZ41: 0 | DA41: 0 | DB41: 0 | DC41: 0 | DD41: 0 | DE41: 0 | DF41: 0 | DG41: 0 | DH41: 0 | DI41: 0 | DJ41: 0 | DK41: 0 | DL41: 0 | DM41: 0 | DN41: 0 | DO41: 0.05 | DP41: 0.15 | DQ41: 0.25 | DR41: 0.35 | DS41: 0.45 | DT41: 0.55 | DU41: 0.65 | DV41: 0.75 | DW41: 0.85 | DX41: 0.95 | DY41: 4222582.917 | DZ41: 48246859.87 | EA41: 6021030.696 | EB41: 22406844.95 | EC41: 4222582.917 | ED41: 0 | EE41: 0 | EF41: 0 | EG41: 0 | EH41: 0 | EI41: 0 | EJ41: 0 | EK41: 0 | EL41: 0 | EM41: 0 | EN41: 0 | EO41: 0 | EP41: 0 | EQ41: 0 | ER41: 0 | ES41: 0 | ET41: 0.05 | EU41: 0.15 | EV41: 0.25 | EW41: 0.35 | EX41: 0.45 | EY41: 0.55 | EZ41: 0.65 | FA41: 0.75 | FB41: 0.85 | FC41: 4200806.707 | FD41: 0 | FE41: 0 | FF41: 0 | FG41: 0 | FH41: 0 | FI41: 0 | FJ41: 0 | FK41: 0 | FL41: 0 | FM41: 0 | FN41: 0 | FO41: 0 | FP41: 0 | FQ41: 0 | FR41: 0 | FS41: 0 | FT41: 0 | FU41: 0.05 | FV41: 0.15 | FW41: 0.25 | FX41: 0.35 | FY41: 0.45 | FZ41: 0.55 | GA41: 0.65 | GB41: 0.75 | GC41: 3593908.069 | GD41: 0 | GE41: 0 | GF41: 0 | GG41: 0 | GH41: 0 | GI41: 0 | GJ41: 0 | GK41: 0 | GL41: 0 | GM41: 0 | GN41: 0 | GO41: 0 | GP41: 0 | GQ41: 0 | GR41: 0 | GS41: 0 | GT41: 0 | GU41: 0 | GV41: 0.05 | GW41: 0.15 | GX41: 0.25 | GY41: 0.35 | GZ41: 0.45 | HA41: 0.55 | HB41: 0.65 | HC41: 3276398.882 | HD41: 0 | HE41: 0 | HF41: 0 | HG41: 0 | HH41: 0 | HI41: 0 | HJ41: 0 | HK41: 0 | HL41: 0 | HM41: 0 | HN41: 0 | HO41: 0 | HP41: 0 | HQ41: 0 | HR41: 0 | HS41: 0 | HT41: 0 | HU41: 0 | HV41: 0 | HW41: 0.05 | HX41: 0.15 | HY41: 0.25 | HZ41: 0.35 | IA41: 0.45 | IB41: 0.55 | IC41: 2871907.677
B42: Equipos de medición y control de la calidad del suministro | C42: 22 | D42: 0 | F42: 0 | G42: 0 | K42: 0 | L42: 0 | O42: 0 | S42: 0 | W42: 34591 | X42: 0 | AA42: 50860 | AB42: 0 | AE42: 0 | AF42: 0 | AI42: 650763.39 | AJ42: 107188.24 | AM42: 0 | AN42: 0 | AQ42: 12397.44 | AR42: 0 | AU42: 0 | AV42: 0 | AY42: 208769.04 | AZ42: 0 | BC42: 0 | BD42: 0 | BG42: 665465.83 | BH42: 0 | BK42: 278103.82 | BL42: 0 | BO42: 661403.88 | BS42: 0 | BT42: 0 | BW42: 1660524.15 | BX42: 0 | CA42: 841332.53 | CB42: 0 | CE42: 945627.69 | CF42: 0 | CI42: 464507.01 | CK42: 0 | CL42: 0 | CM42: 1024635.57 | CO42: 0 | CP42: 0 | CQ42: 731120.99 | CS42: 0 | CT42: 0 | CU42: 0 | CV42: 0 | CY42: 0 | CZ42: 0 | DA42: 0 | DB42: 0 | DC42: 0.02272727273 | DD42: 0.06818181818 | DE42: 0.1136363636 | DF42: 0.1590909091 | DG42: 0.2045454545 | DH42: 0.25 | DI42: 0.2954545455 | DJ42: 0.3409090909 | DK42: 0.3863636364 | DL42: 0.4318181818 | DM42: 0.4772727273 | DN42: 0.5227272727 | DO42: 0.5681818182 | DP42: 0.6136363636 | DQ42: 0.6590909091 | DR42: 0.7045454545 | DS42: 0.75 | DT42: 0.7954545455 | DU42: =IF((1-($DY$2-CI$2)/$C42)>0,(1-($DY$2-CI$2)/$C42),0) -> 0.8409090909 | DV42: 0.8863636364 | DW42: 0.9318181818 | DX42: 0.9772727273 | DY42: 318353.4989 | DZ42: 7003776.976 | EA42: 0 | EB42: 4886292.387 | EC42: 318353.4989 | ED42: 0 | EE42: 0 | EF42: 0 | EG42: 0 | EH42: 0.02272727273 | EI42: 0.06818181818 | EJ42: 0.1136363636 | EK42: 0.1590909091 | EL42: 0.2045454545 | EM42: 0.25 | EN42: 0.2954545455 | EO42: 0.3409090909 | EP42: 0.3863636364 | EQ42: 0.4318181818 | ER42: 0.4772727273 | ES42: 0.5227272727 | ET42: 0.5681818182 | EU42: 0.6136363636 | EV42: 0.6590909091 | EW42: 0.7045454545 | EX42: 0.75 | EY42: 0.7954545455 | EZ42: 0.8409090909 | FA42: 0.8863636364 | FB42: 0.9318181818 | FC42: 318353.4989 | FD42: 0 | FE42: 0 | FF42: 0 | FG42: 0 | FH42: 0 | FI42: 0.02272727273 | FJ42: 0.06818181818 | FK42: 0.1136363636 | FL42: 0.1590909091 | FM42: 0.2045454545 | FN42: 0.25 | FO42: 0.2954545455 | FP42: 0.3409090909 | FQ42: 0.3863636364 | FR42: 0.4318181818 | FS42: 0.4772727273 | FT42: 0.5227272727 | FU42: 0.5681818182 | FV42: 0.6136363636 | FW42: 0.6590909091 | FX42: 0.7045454545 | FY42: 0.75 | FZ42: 0.7954545455 | GA42: 0.8409090909 | GB42: 0.8863636364 | GC42: 318353.4989 | GD42: 0 | GE42: 0 | GF42: 0 | GG42: 0 | GH42: 0 | GI42: 0 | GJ42: 0.02272727273 | GK42: 0.06818181818 | GL42: 0.1136363636 | GM42: 0.1590909091 | GN42: 0.2045454545 | GO42: 0.25 | GP42: 0.2954545455 | GQ42: 0.3409090909 | GR42: 0.3863636364 | GS42: 0.4318181818 | GT42: 0.4772727273 | GU42: 0.5227272727 | GV42: 0.5681818182 | GW42: 0.6136363636 | GX42: 0.6590909091 | GY42: 0.7045454545 | GZ42: 0.75 | HA42: 0.7954545455 | HB42: 0.8409090909 | HC42: 317017.3091 | HD42: 0 | HE42: 0 | HF42: 0 | HG42: 0 | HH42: 0 | HI42: 0 | HJ42: 0 | HK42: 0.02272727273 | HL42: 0.06818181818 | HM42: 0.1136363636 | HN42: 0.1590909091 | HO42: 0.2045454545 | HP42: 0.25 | HQ42: 0.2954545455 | HR42: 0.3409090909 | HS42: 0.3863636364 | HT42: 0.4318181818 | HU42: 0.4772727273 | HV42: 0.5227272727 | HW42: 0.5681818182 | HX42: 0.6136363636 | HY42: 0.6590909091 | HZ42: 0.7045454545 | IA42: 0.75 | IB42: 0.7954545455 | IC42: 314980.0864
B43: Equipos de computación | C43: 4 | D43: 0 | F43: 0 | G43: 0 | K43: 0 | L43: 0 | O43: 0 | S43: 0 | W43: 0 | X43: 0 | AA43: 0 | AB43: 0 | AE43: 0 | AF43: 0 | AI43: 0 | AJ43: 0 | AM43: 0 | AN43: 0 | AQ43: 0 | AR43: 0 | AU43: 0 | AV43: 0 | AY43: 0 | AZ43: 0 | CI43: 0 | CK43: 0 | CL43: 0 | CM43: 0 | CO43: 0 | CP43: 0 | CQ43: 0 | CS43: 0 | CT43: 0 | CU43: 0 | CV43: 0 | CY43: 0 | CZ43: 0 | DA43: 0 | DB43: 0 | DC43: 0 | DD43: 0 | DE43: 0 | DF43: 0 | DG43: 0 | DH43: 0 | DI43: 0 | DJ43: 0 | DK43: 0 | DL43: 0 | DM43: 0 | DN43: 0 | DO43: 0 | DP43: 0 | DQ43: 0 | DR43: 0 | DS43: 0 | DT43: 0 | DU43: 0.125 | DV43: 0.375 | DW43: 0.625 | DX43: 0.875 | DY43: 0 | DZ43: 0 | EA43: 0 | EB43: 0 | EC43: 0 | ED43: 0 | EE43: 0 | EF43: 0 | EG43: 0 | EH43: 0 | EI43: 0 | EJ43: 0 | EK43: 0 | EL43: 0 | EM43: 0 | EN43: 0 | EO43: 0 | EP43: 0 | EQ43: 0 | ER43: 0 | ES43: 0 | ET43: 0 | EU43: 0 | EV43: 0 | EW43: 0 | EX43: 0 | EY43: 0 | EZ43: 0.125 | FA43: 0.375 | FB43: 0.625 | FC43: 0 | FD43: 0 | FE43: 0 | FF43: 0 | FG43: 0 | FH43: 0 | FI43: 0 | FJ43: 0 | FK43: 0 | FL43: 0 | FM43: 0 | FN43: 0 | FO43: 0 | FP43: 0 | FQ43: 0 | FR43: 0 | FS43: 0 | FT43: 0 | FU43: 0 | FV43: 0 | FW43: 0 | FX43: 0 | FY43: 0 | FZ43: 0 | GA43: 0.125 | GB43: 0.375 | GC43: 0 | GD43: 0 | GE43: 0 | GF43: 0 | GG43: 0 | GH43: 0 | GI43: 0 | GJ43: 0 | GK43: 0 | GL43: 0 | GM43: 0 | GN43: 0 | GO43: 0 | GP43: 0 | GQ43: 0 | GR43: 0 | GS43: 0 | GT43: 0 | GU43: 0 | GV43: 0 | GW43: 0 | GX43: 0 | GY43: 0 | GZ43: 0 | HA43: 0 | HB43: 0.125 | HC43: 0 | HD43: 0 | HE43: 0 | HF43: 0 | HG43: 0 | HH43: 0 | HI43: 0 | HJ43: 0 | HK43: 0 | HL43: 0 | HM43: 0 | HN43: 0 | HO43: 0 | HP43: 0 | HQ43: 0 | HR43: 0 | HS43: 0 | HT43: 0 | HU43: 0 | HV43: 0 | HW43: 0 | HX43: 0 | HY43: 0 | HZ43: 0 | IA43: 0 | IB43: 0 | IC43: 0
B44: Equipos de comunicaciones | C44: 8 | D44: 0 | F44: 0 | G44: 557960.6689 | K44: 574507.0262 | L44: 0 | O44: 109706.7478 | S44: 0 | W44: 157954.37 | X44: 0 | AA44: 286847.365 | AB44: 0 | AE44: 217452.49 | AF44: 0 | AI44: 0 | AJ44: 0 | AM44: 0 | AN44: 0 | AQ44: 0 | AR44: 0 | AU44: 0 | AV44: 0 | AY44: 0 | AZ44: 0 | CI44: 0 | CK44: 0 | CL44: 0 | CM44: 0 | CO44: 0 | CP44: 0 | CQ44: 0 | CS44: 0 | CT44: 0 | CV44: 0 | CY44: 0 | CZ44: 0 | DA44: 0 | DB44: 0 | DC44: 0 | DD44: 0 | DE44: 0 | DF44: 0 | DG44: 0 | DH44: 0 | DI44: 0 | DJ44: 0 | DK44: 0 | DL44: 0 | DM44: 0 | DN44: 0 | DO44: 0 | DP44: 0 | DQ44: 0.0625 | DR44: 0.1875 | DS44: 0.3125 | DT44: 0.4375 | DU44: 0.5625 | DV44: 0.6875 | DW44: 0.8125 | DX44: 0.9375 | DY44: 0 | DZ44: 1649404.078 | EA44: 1649404.078 | EB44: 0 | EC44: 0 | ED44: 0 | EE44: 0 | EF44: 0 | EG44: 0 | EH44: 0 | EI44: 0 | EJ44: 0 | EK44: 0 | EL44: 0 | EM44: 0 | EN44: 0 | EO44: 0 | EP44: 0 | EQ44: 0 | ER44: 0 | ES44: 0 | ET44: 0 | EU44: 0 | EV44: 0.0625 | EW44: 0.1875 | EX44: 0.3125 | EY44: 0.4375 | EZ44: 0.5625 | FA44: 0.6875 | FB44: 0.8125 | FC44: 0 | FD44: 0 | FE44: 0 | FF44: 0 | FG44: 0 | FH44: 0 | FI44: 0 | FJ44: 0 | FK44: 0 | FL44: 0 | FM44: 0 | FN44: 0 | FO44: 0 | FP44: 0 | FQ44: 0 | FR44: 0 | FS44: 0 | FT44: 0 | FU44: 0 | FV44: 0 | FW44: 0.0625 | FX44: 0.1875 | FY44: 0.3125 | FZ44: 0.4375 | GA44: 0.5625 | GB44: 0.6875 | GC44: 0 | GD44: 0 | GE44: 0 | GF44: 0 | GG44: 0 | GH44: 0 | GI44: 0 | GJ44: 0 | GK44: 0 | GL44: 0 | GM44: 0 | GN44: 0 | GO44: 0 | GP44: 0 | GQ44: 0 | GR44: 0 | GS44: 0 | GT44: 0 | GU44: 0 | GV44: 0 | GW44: 0 | GX44: 0.0625 | GY44: 0.1875 | GZ44: 0.3125 | HA44: 0.4375 | HB44: 0.5625 | HC44: 0 | HD44: 0 | HE44: 0 | HF44: 0 | HG44: 0 | HH44: 0 | HI44: 0 | HJ44: 0 | HK44: 0 | HL44: 0 | HM44: 0 | HN44: 0 | HO44: 0 | HP44: 0 | HQ44: 0 | HR44: 0 | HS44: 0 | HT44: 0 | HU44: 0 | HV44: 0 | HW44: 0 | HX44: 0 | HY44: 0.0625 | HZ44: 0.1875 | IA44: 0.3125 | IB44: 0.4375 | IC44: 0
B45: TOTAL SISTEMA DE DISTRIBUCIÓN | D45: =SUM(D14:D44) -> 275136420.7 | E45: =SUM(E14:E44) -> 0 | F45: 157483892.4 | G45: 16046553.21 | H45: 0 | I45: 0 | J45: 0 | K45: 16626145.37 | L45: 6134551 | M45: 0 | N45: 0 | O45: 11735230.53 | P45: 0 | Q45: 0 | R45: 0 | S45: 23161832.49 | T45: 1983756 | U45: 0 | V45: 0 | W45: 15993671.07 | X45: 0 | Y45: 0 | Z45: 0 | AA45: 18179203.62 | AB45: 3019158.69 | AC45: 0 | AD45: 0 | AE45: 21428374.88 | AF45: 0 | AG45: 0 | AH45: 0 | AI45: 17957017.16 | AJ45: 169592.56 | AK45: 0 | AL45: 0 | AM45: 19977300.71 | AN45: 0 | AO45: 0 | AP45: 0 | AQ45: 32733365.61 | AR45: 0 | AS45: 0 | AT45: 0 | AU45: 35033446.31 | AV45: 0 | AW45: 0 | AX45: 0 | AY45: 46818623.26 | AZ45: 0 | BA45: 0 | BB45: 0 | BC45: 55833722.8 | BD45: 1303263.44 | BE45: 0 | BF45: 0 | BG45: 56989143.14 | BH45: 0 | BI45: 0 | BJ45: 0 | BK45: 59914795.56 | BL45: 0 | BM45: 0 | BN45: 0 | BO45: 97849672.14 | BP45: 1008524.13 | BQ45: =SUM(BQ14:BQ44) -> 0 | BR45: 0 | BS45: 72913603.18 | BT45: =SUM(BT14:BT44) -> 5286189.338 | BU45: 0 | BV45: 0 | BW45: 101879367.2 | BX45: =SUM(BX14:BX44) -> 3785224.844 | BY45: 0 | BZ45: 0 | CA45: 67854016.46 | CB45: =SUM(CB14:CB44) -> 3226373.861 | CC45: 0 | CD45: 0 | CE45: 72459865.02 | CF45: =SUM(CF14:CF44) -> 1419215.223 | CG45: 0 | CH45: 0 | CI45: =SUM(CI14:CI44) -> 82158961.66 | CJ45: =SUM(CJ14:CJ44) -> 1259571.35 | CK45: 0 | CL45: 0 | CM45: =SUM(CM14:CM44) -> 105010926.6 | CN45: 370340.83 | CO45: 0 | CP45: 0 | CQ45: =SUM(CQ14:CQ44) -> 98746588.57 | CR45: 2668460.06 | CS45: 0 | CT45: 0 | CU45: =SUM(CU14:CU44) -> 106305078.4 | CV45: =SUM(CV14:CV44) -> 1932932.573 | CW45: =SUM(CW14:CW44) -> 0 | CX45: =SUM(CX14:CX44) -> 0 | DY45: =SUM(DY14:DY44) -> 37563039.57 | DZ45: =SUM(DZ14:DZ44) -> 1319092950 | EA45: =SUM(EA14:EA44) -> 279200249.5 | EB45: =SUM(EB14:EB44) -> 752700478.2 | EC45: =SUM(EC14:EC44) -> 37563039.57 | FC45: =SUM(FC14:FC44) -> 37541263.36 | GC45: =SUM(GC14:GC44) -> 36934364.73 | HC45: =SUM(HC14:HC44) -> 36615519.35 | IC45: =SUM(IC14:IC44) -> 36208990.92
A46: ALUMBRADO PÚBLICO | B46: Lámparas, accesorios y postes de alumbrado público | C46: 22 | D46: 7205098.617 | F46: 3981273.073 | G46: 774562.58 | K46: 1965026.04 | L46: 727082 | O46: 1191692.04 | S46: 1316103.04 | W46: 686879.94 | X46: 0 | AA46: 668315.16 | AB46: 0 | AE46: 892642.38 | AF46: 0 | AI46: 454090.55 | AJ46: 0 | AM46: 553944 | AN46: 0 | AQ46: 1972355.669 | AR46: 0 | AU46: 3621094.83 | AV46: 0 | AY46: 3377058.99 | AZ46: 0 | BC46: 3404296.68 | BD46: 131148.37 | BG46: 4772008.97 | BK46: 3252026.82 | BL46: 0 | BO46: 4886811.27 | BS46: 3406767.82 | BT46: 0 | BW46: 1855696.04 | BX46: 0 | CA46: 2559277.73 | CB46: 0 | CE46: 1639903.02 | CF46: 0 | CI46: 2212437.5 | CK46: 0 | CL46: 0 | CM46: 1566109.22 | CO46: 0 | CP46: 0 | CQ46: 1550369.42 | CS46: 0 | CT46: 0 | CU46: 2467756.64 | CV46: 0 | CY46: =IF(D46=0,0,2001-(D46-F46)*C46/D46) -> 1991.156393 | CZ46: =IF((1-($DY$2-$CY46)/$C46)>0,(1-($DY$2-$CY46)/$C46),0) -> 0 | DA46: =IF((1-($DY$2-G$2)/$C46)>0,(1-($DY$2-G$2)/$C46),0) -> 0 | DB46: =IF((1-($DY$2-K$2)/$C46)>0,(1-($DY$2-K$2)/$C46),0) -> 0 | DC46: =IF((1-($DY$2-O$2)/$C46)>0,(1-($DY$2-O$2)/$C46),0) -> 0.02272727273 | DD46: =IF((1-($DY$2-S$2)/$C46)>0,(1-($DY$2-S$2)/$C46),0) -> 0.06818181818 | DE46: =IF((1-($DY$2-W$2)/$C46)>0,(1-($DY$2-W$2)/$C46),0) -> 0.1136363636 | DF46: =IF((1-($DY$2-AA$2)/$C46)>0,(1-($DY$2-AA$2)/$C46),0) -> 0.1590909091 | DG46: =IF((1-($DY$2-AE$2)/$C46)>0,(1-($DY$2-AE$2)/$C46),0) -> 0.2045454545 | DH46: =IF((1-($DY$2-AI$2)/$C46)>0,(1-($DY$2-AI$2)/$C46),0) -> 0.25 | DI46: =IF((1-($DY$2-AM$2)/$C46)>0,(1-($DY$2-AM$2)/$C46),0) -> 0.2954545455 | DJ46: =IF((1-($DY$2-AQ$2)/$C46)>0,(1-($DY$2-AQ$2)/$C46),0) -> 0.3409090909 | DK46: =IF((1-($DY$2-AU$2)/$C46)>0,(1-($DY$2-AU$2)/$C46),0) -> 0.3863636364 | DL46: =IF((1-($DY$2-AY$2)/$C46)>0,(1-($DY$2-AY$2)/$C46),0) -> 0.4318181818 | DM46: =IF((1-($DY$2-BC$2)/$C46)>0,(1-($DY$2-BC$2)/$C46),0) -> 0.4772727273 | DN46: =IF((1-($DY$2-BG$2)/$C46)>0,(1-($DY$2-BG$2)/$C46),0) -> 0.5227272727 | DO46: =IF((1-($DY$2-BK$2)/$C46)>0,(1-($DY$2-BK$2)/$C46),0) -> 0.5681818182 | DP46: =IF((1-($DY$2-BO$2)/$C46)>0,(1-($DY$2-BO$2)/$C46),0) -> 0.6136363636 | DQ46: =IF((1-($DY$2-BS$2)/$C46)>0,(1-($DY$2-BS$2)/$C46),0) -> 0.6590909091 | DR46: =IF((1-($DY$2-BW$2)/$C46)>0,(1-($DY$2-BW$2)/$C46),0) -> 0.7045454545 | DS46: =IF((1-($DY$2-CA$2)/$C46)>0,(1-($DY$2-CA$2)/$C46),0) -> 0.75 | DT46: =IF((1-($DY$2-CE$2)/$C46)>0,(1-($DY$2-CE$2)/$C46),0) -> 0.7954545455 | DU46: =IF((1-($DY$2-CI$2)/$C46)>0,(1-($DY$2-CI$2)/$C46),0) -> 0.8409090909 | DV46: =IF((1-($DY$2-CM$2)/$C46)>0,(1-($DY$2-CM$2)/$C46),0) -> 0.8863636364 | DW46: =IF((1-($DY$2-CQ$2)/$C46)>0,(1-($DY$2-CQ$2)/$C46),0) -> 0.9318181818 | DX46: =IF((1-($DY$2-CU$2)/$C46)>0,(1-($DY$2-CU$2)/$C46),0) -> 0.9772727273 | DY46: =IF(CZ46=0,0,($D46-$E46)*1/$C46)+IF(DA46=0,0,($G46-$H46-$I46)*$G$62*1/$C46)+IF(DB46=0,0,($K46-$L46-$M46)*$K$62*1/$C46)+IF(DC46=0,0,($O46-$P46-$Q46)*$O$62*1/$C46)+IF(DD46=0,0,($S46-$T46-$U46)*$S$62*1/$C46)+IF(DE46=0,0,($W46-$X46-$Y46)*$W$62*1/$C46)+IF(DF46=0,0,($AA46-$AB46-$AC46)*$AA$62*1/$C46)+IF(DG46=0,0,($AE46-$AF46-$AG46)*$AE$62*1/$C46)+IF(DH46=0,0,($AI46-$AJ46-$AK46)*$AI$62*1/$C46)+IF(DI46=0,0,($AM46-$AN46-$AO46)*$AM$62*1/$C46)+IF(DJ46=0,0,($AQ46-$AR46-$AS46)*$AQ$62*1/$C46)+IF(DK46=0,0,($AU46-$AV46-$AW46)*$AU$62*1/$C46)+IF(DL46=0,0,($AY46-$AZ46-$BA46)*$AY$62*1/$C46)+IF(DM46=0,0,($BC46-$BD46-$BE46)*$BC$62*1/$C46)+IF(DN46=0,0,($BG46-$BH46-$BI46)*$BG$62*1/$C46)+IF(DO46=0,0,($BK46-$BL46-$BM46)*$BK$62*1/$C46)+IF(DP46=0,0,($BO46-$BP46-$BQ46)*$BO$62*1/$C46)+IF(DQ46=0,0,($BS46-$BT46-$BU46)*$BS$62*1/$C46)+IF(DR46=0,0,($BW46-$BX46-$BY46)*$BW$62*1/$C46)+IF(DS46=0,0,($CA46-$CB46-$CC46)*$CA$62*1/$C46)+IF(DT46=0,0,($CE46-$CF46-$CG46)*$CE$62*1/$C46)+IF(DU46=0,0,($CI46-$CJ46-$CK46)*$CI$62*1/$C46)+IF(DV46=0,0,($CM46-$CN46-$CO46)*$CM$62*1/$C46)+IF(DW46=0,0,($CQ46-$CR46-$CS46)*$CQ$62*1/$C46)+IF(DX46=0,0,($CU46-$CV46-$CW46)*$CU$62*1/$C46) -> 2010285.009 | DZ46: =D46-E46+(G46-H46-I46)*G$62+(K46-L46-M46)*K$62+(O46-P46-Q46)*O$62+(S46-T46-U46)*S$62+(W46-X46-Y46)*W$62+(AA46-AB46-AC46)*AA$62+(AE46-AF46-AG46)*AE$62+(AI46-AJ46-AK46)*AI$62+(AM46-AN46-AO46)*AM$62+(AQ46-AR46-AS46)*$AQ$62+(AU46-AV46-AW46)*$AU$62+(AY46-AZ46-BA46)*$AY$62+(BC46-BD46-BE46)*$BC$62+(BG46-BH46-BI46)*$BG$62+(BK46-BL46-BM46)*$BK$62+(BO46-BP46-BQ46)*$BO$62+(BS46-BT46-BU46)*$BS$62+(BW46-BX46-BY46)*$BW$62+(CA46-CB46-CC46)*$CA$62+(CE46-CF46-CG46)*$CE$62+(CI46-CJ46-CK46)*$CI$62+(CM46-CN46-CO46)*$CM$62+(CQ46-CR46-CS46)*$CQ$62+(CU46-CV46-CW46)*$CU$62 -> 53443875.44 | EA46: =IF(CZ46=0,D46-E46,0)+IF(DA46=0,(G46-H46-I46)*G$62,0)+IF(DB46=0,(K46-L46-M46)*K$62,0)+IF(DC46=0,(O46-P46-Q46)*O$62,0)+IF(DD46=0,(S46-T46-U46)*S$62,0)+IF(DE46=0,(W46-X46-Y46)*W$62,0)+IF(DF46=0,(AA46-AB46-AC46)*AA$62,0)+IF(DG46=0,(AE46-AF46-AG46)*AE$62,0)+IF(DH46=0,(AI46-AJ46-AK46)*AI$62,0)+IF(DI46=0,(AM46-AN46-AO46)*AM$62,0)+IF(DJ46=0,(AQ46-AR46-AS46)*$AQ$62,0)+IF(DK46=0,(AU46-AV46-AW46)*$AU$62,0)+IF(DL46=0,(AY46-AZ46-BA46)*$AY$62,0)++IF(DM46=0,(BC46-BD46-BE46)*$BC$62,0)+IF(DN46=0,(BG46-BH46-BI46)*$BG$62,0)+IF(DO46=0,(BK46-BL46-BM46)*$BK$62,0)+IF(DP46=0,(BO46-BP46-BQ46)*$BO$62,0)+IF(DQ46=0,(BS46-BT46-BU46)*$BS$62,0)+IF(DR46=0,(BW46-BX46-BY46)*$BW$62,0)+IF(DS46=0,(CA46-CB46-CC46)*$CA$62,0)+IF(DT46=0,(CE46-CF46-CG46)*$CE$62,0)+IF(DU46=0,(CI46-CJ46-CK46)*$CI$62,0)+IF(DV46=0,(CM46-CN46-CO46)*$CM$62,0)+IF(DW46=0,(CQ46-CR46-CS46)*$CQ$62,0)+IF(DX46=0,(CU46-CV46-CW46)*$CU$62,0) -> 9217605.237 | EB46: =(D46-E46)*CZ46+((G46-H46-(I46-J46))*G$62)*DA46+((K46-L46-(M46-N46))*K$62)*DB46+((O46-P46-(Q46-R46))*O$62)*DC46+((S46-T46-(U46-V46))*S$62)*DD46+((W46-X46-(Y46-Z46))*W$62)*DE46+((AA46-AB46-(AC46-AD46))*AA$62)*DF46+((AE46-AF46-(AG46-AH46))*AE$62)*DG46+((AI46-AJ46-(AK46-AL46))*AI$62)*DH46+((AM46-AN46-(AO46-AP46))*$AM$62)*DI46+((AQ46-AR46-(AS46-AT46))*$AQ$62)*DJ46+((AU46-AV46-(AW46-AX46))*$AU$62)*DK46+((AY46-AZ46-(BA46-BB46))*$AY$62)*DL46+((BC46-BD46-(BE46-BF46))*$BC$62)*DM46+((BG46-BH46-(BI46-BJ46))*$BG$62)*DN46+((BK46-BL46-(BM46-BN46))*$BK$62)*DO46+((BO46-BP46-(BQ46-BR46))*$BO$62)*DP46+((BS46-BT46-(BU46-BV46))*$BS$62)*DQ46+((BW46-BX46-(BY46-BZ46))*$BW$62)*DR46+((CA46-CB46-(CC46-CD46))*$CA$62)*DS46+((CE46-CF46-(CG46-CH46))*$CE$62)*DT46+((CI46-CJ46-(CK46-CL46))*$CI$62)*DU46+((CM46-CN46-(CO46-CP46))*$CM$62)*DV46+((CQ46-CR46-(CS46-CT46))*$CQ$62)*DW46+((CU46-CV46-(CW46-CX46))*$CU$62)*DX46 -> 24403300.74 | EC46: =(DZ46-EA46)*1/C46 -> 2010285.009 | ED46: =IF((1-($FC$2-$CY46)/$C46)>0,(1-($FC$2-$CY46)/$C46),0) -> 0 | EE46: =IF((1-($FC$2-EE$2)/$C46)>0,(1-($FC$2-EE$2)/$C46),0) -> 0 | EF46: 0 | EG46: 0 | EH46: 0.02272727273 | EI46: 0.06818181818 | EJ46: 0.1136363636 | EK46: 0.1590909091 | EL46: 0.2045454545 | EM46: 0.25 | EN46: 0.2954545455 | EO46: 0.3409090909 | EP46: 0.3863636364 | EQ46: 0.4318181818 | ER46: 0.4772727273 | ES46: 0.5227272727 | ET46: 0.5681818182 | EU46: 0.6136363636 | EV46: 0.6590909091 | EW46: 0.7045454545 | EX46: 0.75 | EY46: 0.7954545455 | EZ46: =IF((1-($FC$2-EZ$2)/$C46)>0,(1-($FC$2-EZ$2)/$C46),0) -> 0.8409090909 | FA46: 0.8863636364 | FB46: 0.9318181818 | FC46: =IF(ED46=0,0,($D46-$E46)*1/$C46)+IF(EE46=0,0,($G46-$H46-$I46)*$G$62*1/$C46)+IF(EF46=0,0,($K46-$L46-$M46)*$K$62*1/$C46)+IF(EG46=0,0,($O46-$P46-$Q46)*$O$62*1/$C46)+IF(EH46=0,0,($S46-$T46-$U46)*$S$62*1/$C46)+IF(EI46=0,0,($W46-$X46-$Y46)*$W$62*1/$C46)+IF(EJ46=0,0,($AA46-$AB46-$AC46)*$AA$62*1/$C46)+IF(EK46=0,0,($AE46-$AF46-$AG46)*$AE$62*1/$C46)+IF(EL46=0,0,($AI46-$AJ46-$AK46)*$AI$62*1/$C46)+IF(EM46=0,0,($AM46-$AN46-$AO46)*$AM$62*1/$C46)+IF(EN46=0,0,($AQ46-$AR46-$AS46)*$AQ$62*1/$C46)+IF(EO46=0,0,($AU46-$AV46-$AW46)*$AU$62*1/$C46)+IF(EP46=0,0,($AY46-$AZ46-$BA46)*$AY$62*1/$C46)+IF(EQ46=0,0,($BC46-$BD46-$BE46)*$BC$62*1/$C46)+IF(ER46=0,0,($BG46-$BH46-$BI46)*$BG$62*1/$C46)+IF(ES46=0,0,($BK46-$BL46-$BM46)*$BK$62*1/$C46)+IF(ET46=0,0,($BO46-$BP46-$BQ46)*$BO$62*1/$C46)+IF(EU46=0,0,($BS46-$BT46-$BU46)*$BS$62*1/$C46)+IF(EV46=0,0,($BW46-$BX46-$BY46)*$BW$62*1/$C46)+IF(EW46=0,0,($CA46-$CB46-$CC46)*$CA$62*1/$C46)+IF(EX46=0,0,($CE46-$CF46-$CG46)*$CE$62*1/$C46)+IF(EY46=0,0,($CI46-$CJ46-$CK46)*$CI$62*1/$C46)+IF(EZ46=0,0,($CM46-$CN46-$CO46)*$CM$62*1/$C46)+IF(FA46=0,0,($CQ46-$CR46-$CS46)*$CQ$62*1/$C46)+IF(FB46=0,0,($CU46-$CV46-$CW46)*$CU$62*1/$C46) -> 1956117.189 | FD46: =IF((1-($GC$2-$CY46)/$C46)>0,(1-($GC$2-$CY46)/$C46),0) -> 0 | FE46: =IF((1-($GC$2-FE$2)/$C46)>0,(1-($GC$2-FE$2)/$C46),0) -> 0 | FF46: 0 | FG46: 0 | FH46: 0 | FI46: 0.02272727273 | FJ46: 0.06818181818 | FK46: 0.1136363636 | FL46: 0.1590909091 | FM46: 0.2045454545 | FN46: 0.25 | FO46: 0.2954545455 | FP46: 0.3409090909 | FQ46: 0.3863636364 | FR46: 0.4318181818 | FS46: 0.4772727273 | FT46: 0.5227272727 | FU46: 0.5681818182 | FV46: 0.6136363636 | FW46: 0.6590909091 | FX46: 0.7045454545 | FY46: 0.75 | FZ46: =IF((1-($GC$2-FZ$2)/$C46)>0,(1-($GC$2-FZ$2)/$C46),0) -> 0.7954545455 | GA46: 0.8409090909 | GB46: 0.8863636364 | GC46: =IF(FD46=0,0,($D46-$E46)*1/$C46)+IF(FE46=0,0,($G46-$H46-$I46)*$G$62*1/$C46)+IF(FF46=0,0,($K46-$L46-$M46)*$K$62*1/$C46)+IF(FG46=0,0,($O46-$P46-$Q46)*$O$62*1/$C46)+IF(FH46=0,0,($S46-$T46-$U46)*$S$62*1/$C46)+IF(FI46=0,0,($W46-$X46-$Y46)*$W$62*1/$C46)+IF(FJ46=0,0,($AA46-$AB46-$AC46)*$AA$62*1/$C46)+IF(FK46=0,0,($AE46-$AF46-$AG46)*$AE$62*1/$C46)+IF(FL46=0,0,($AI46-$AJ46-$AK46)*$AI$62*1/$C46)+IF(FM46=0,0,($AM46-$AN46-$AO46)*$AM$62*1/$C46)+IF(FN46=0,0,($AQ46-$AR46-$AS46)*$AQ$62*1/$C46)+IF(FO46=0,0,($AU46-$AV46-$AW46)*$AU$62*1/$C46)+IF(FP46=0,0,($AY46-$AZ46-$BA46)*$AY$62*1/$C46)+IF(FQ46=0,0,($BC46-$BD46-$BE46)*$BC$62*1/$C46)+IF(FR46=0,0,($BG46-$BH46-$BI46)*$BG$62*1/$C46)+IF(FS46=0,0,($BK46-$BL46-$BM46)*$BK$62*1/$C46)+IF(FT46=0,0,($BO46-$BP46-$BQ46)*$BO$62*1/$C46)+IF(FU46=0,0,($BS46-$BT46-$BU46)*$BS$62*1/$C46)+IF(FV46=0,0,($BW46-$BX46-$BY46)*$BW$62*1/$C46)+IF(FW46=0,0,($CA46-$CB46-$CC46)*$CA$62*1/$C46)+IF(FX46=0,0,($CE46-$CF46-$CG46)*$CE$62*1/$C46)+IF(FY46=0,0,($CI46-$CJ46-$CK46)*$CI$62*1/$C46)+IF(FZ46=0,0,($CM46-$CN46-$CO46)*$CM$62*1/$C46)+IF(GA46=0,0,($CQ46-$CR46-$CS46)*$CQ$62*1/$C46)+IF(GB46=0,0,($CU46-$CV46-$CW46)*$CU$62*1/$C46) -> 1896294.324 | GD46: =IF((1-($HC$2-$CY46)/$C46)>0,(1-($HC$2-$CY46)/$C46),0) -> 0 | GE46: =IF((1-($HC$2-GE$2)/$C46)>0,(1-($HC$2-GE$2)/$C46),0) -> 0 | GF46: 0 | GG46: 0 | GH46: 0 | GI46: 0 | GJ46: 0.02272727273 | GK46: 0.06818181818 | GL46: 0.1136363636 | GM46: 0.1590909091 | GN46: 0.2045454545 | GO46: 0.25 | GP46: 0.2954545455 | GQ46: 0.3409090909 | GR46: 0.3863636364 | GS46: 0.4318181818 | GT46: 0.4772727273 | GU46: 0.5227272727 | GV46: 0.5681818182 | GW46: 0.6136363636 | GX46: 0.6590909091 | GY46: 0.7045454545 | GZ46: =IF((1-($HC$2-GZ$2)/$C46)>0,(1-($HC$2-GZ$2)/$C46),0) -> 0.75 | HA46: 0.7954545455 | HB46: 0.8409090909 | HC46: =IF(GD46=0,0,($D46-$E46)*1/$C46)+IF(GE46=0,0,($G46-$H46-$I46)*$G$62*1/$C46)+IF(GF46=0,0,($K46-$L46-$M46)*$K$62*1/$C46)+IF(GG46=0,0,($O46-$P46-$Q46)*$O$62*1/$C46)+IF(GH46=0,0,($S46-$T46-$U46)*$S$62*1/$C46)+IF(GI46=0,0,($W46-$X46-$Y46)*$W$62*1/$C46)+IF(GJ46=0,0,($AA46-$AB46-$AC46)*$AA$62*1/$C46)+IF(GK46=0,0,($AE46-$AF46-$AG46)*$AE$62*1/$C46)+IF(GL46=0,0,($AI46-$AJ46-$AK46)*$AI$62*1/$C46)+IF(GM46=0,0,($AM46-$AN46-$AO46)*$AM$62*1/$C46)+IF(GN46=0,0,($AQ46-$AR46-$AS46)*$AQ$62*1/$C46)+IF(GO46=0,0,($AU46-$AV46-$AW46)*$AU$62*1/$C46)+IF(GP46=0,0,($AY46-$AZ46-$BA46)*$AY$62*1/$C46)+IF(GQ46=0,0,($BC46-$BD46-$BE46)*$BC$62*1/$C46)+IF(GR46=0,0,($BG46-$BH46-$BI46)*$BG$62*1/$C46)+IF(GS46=0,0,($BK46-$BL46-$BM46)*$BK$62*1/$C46)+IF(GT46=0,0,($BO46-$BP46-$BQ46)*$BO$62*1/$C46)+IF(GU46=0,0,($BS46-$BT46-$BU46)*$BS$62*1/$C46)+IF(GV46=0,0,($BW46-$BX46-$BY46)*$BW$62*1/$C46)+IF(GW46=0,0,($CA46-$CB46-$CC46)*$CA$62*1/$C46)+IF(GX46=0,0,($CE46-$CF46-$CG46)*$CE$62*1/$C46)+IF(GY46=0,0,($CI46-$CJ46-$CK46)*$CI$62*1/$C46)+IF(GZ46=0,0,($CM46-$CN46-$CO46)*$CM$62*1/$C46)+IF(HA46=0,0,($CQ46-$CR46-$CS46)*$CQ$62*1/$C46)+IF(HB46=0,0,($CU46-$CV46-$CW46)*$CU$62*1/$C46) -> 1867570.253 | HD46: =IF((1-($IC$2-$CY46)/$C46)>0,(1-($IC$2-$CY46)/$C46),0) -> 0 | HE46: =IF((1-($IC$2-HE$2)/$C46)>0,(1-($IC$2-HE$2)/$C46),0) -> 0 | HF46: 0 | HG46: 0 | HH46: 0 | HI46: 0 | HJ46: 0 | HK46: 0.02272727273 | HL46: 0.06818181818 | HM46: 0.1136363636 | HN46: 0.1590909091 | HO46: 0.2045454545 | HP46: 0.25 | HQ46: 0.2954545455 | HR46: 0.3409090909 | HS46: 0.3863636364 | HT46: 0.4318181818 | HU46: 0.4772727273 | HV46: 0.5227272727 | HW46: 0.5681818182 | HX46: 0.6136363636 | HY46: 0.6590909091 | HZ46: =IF((1-($IC$2-HZ$2)/$C46)>0,(1-($IC$2-HZ$2)/$C46),0) -> 0.7045454545 | IA46: 0.75 | IB46: 0.7954545455 | IC46: =IF(HD46=0,0,($D46-$E46)*1/$C46)+IF(HE46=0,0,($G46-$H46-$I46)*$G$62*1/$C46)+IF(HF46=0,0,($K46-$L46-$M46)*$K$62*1/$C46)+IF(HG46=0,0,($O46-$P46-$Q46)*$O$62*1/$C46)+IF(HH46=0,0,($S46-$T46-$U46)*$S$62*1/$C46)+IF(HI46=0,0,($W46-$X46-$Y46)*$W$62*1/$C46)+IF(HJ46=0,0,($AA46-$AB46-$AC46)*$AA$62*1/$C46)+IF(HK46=0,0,($AE46-$AF46-$AG46)*$AE$62*1/$C46)+IF(HL46=0,0,($AI46-$AJ46-$AK46)*$AI$62*1/$C46)+IF(HM46=0,0,($AM46-$AN46-$AO46)*$AM$62*1/$C46)+IF(HN46=0,0,($AQ46-$AR46-$AS46)*$AQ$62*1/$C46)+IF(HO46=0,0,($AU46-$AV46-$AW46)*$AU$62*1/$C46)+IF(HP46=0,0,($AY46-$AZ46-$BA46)*$AY$62*1/$C46)+IF(HQ46=0,0,($BC46-$BD46-$BE46)*$BC$62*1/$C46)+IF(HR46=0,0,($BG46-$BH46-$BI46)*$BG$62*1/$C46)+IF(HS46=0,0,($BK46-$BL46-$BM46)*$BK$62*1/$C46)+IF(HT46=0,0,($BO46-$BP46-$BQ46)*$BO$62*1/$C46)+IF(HU46=0,0,($BS46-$BT46-$BU46)*$BS$62*1/$C46)+IF(HV46=0,0,($BW46-$BX46-$BY46)*$BW$62*1/$C46)+IF(HW46=0,0,($CA46-$CB46-$CC46)*$CA$62*1/$C46)+IF(HX46=0,0,($CE46-$CF46-$CG46)*$CE$62*1/$C46)+IF(HY46=0,0,($CI46-$CJ46-$CK46)*$CI$62*1/$C46)+IF(HZ46=0,0,($CM46-$CN46-$CO46)*$CM$62*1/$C46)+IF(IA46=0,0,($CQ46-$CR46-$CS46)*$CQ$62*1/$C46)+IF(IB46=0,0,($CU46-$CV46-$CW46)*$CU$62*1/$C46) -> 1839622.529
B47: TOTAL ALUMBRADO PÚBLICO | D47: =D46 -> 7205098.617 | E47: 0 | F47: 3981273.073 | G47: 774562.58 | H47: 0 | I47: 0 | J47: 0 | K47: 1965026.04 | L47: 727082 | M47: 0 | N47: 0 | O47: 1191692.04 | P47: 0 | Q47: 0 | R47: 0 | S47: 1316103.04 | T47: 0 | U47: 0 | V47: 0 | W47: 686879.94 | X47: 0 | Y47: 0 | Z47: 0 | AA47: 668315.16 | AB47: 0 | AC47: 0 | AD47: 0 | AE47: 892642.38 | AF47: 0 | AG47: 0 | AH47: 0 | AI47: 454090.55 | AJ47: 0 | AK47: 0 | AL47: 0 | AM47: 553944 | AN47: 0 | AO47: 0 | AP47: 0 | AQ47: 1972355.669 | AR47: 0 | AS47: 0 | AT47: 0 | AU47: 3621094.83 | AV47: 0 | AW47: 0 | AX47: 0 | AY47: 3377058.99 | AZ47: 0 | BA47: 0 | BB47: 0 | BC47: 3404296.68 | BD47: 131148.37 | BE47: 0 | BF47: 0 | BG47: 4772008.97 | BH47: 0 | BI47: 0 | BJ47: 0 | BK47: 3252026.82 | BL47: 0 | BM47: 0 | BN47: 0 | BO47: 4886811.27 | BP47: =BP46 -> 0 | BQ47: 0 | BR47: 0 | BS47: 3406767.82 | BT47: 0 | BU47: 0 | BV47: 0 | BW47: 1855696.04 | BX47: 0 | BY47: 0 | BZ47: 0 | CA47: 2559277.73 | CB47: 0 | CC47: 0 | CD47: 0 | CE47: 1639903.02 | CF47: 0 | CG47: 0 | CH47: 0 | CI47: =CI46 -> 2212437.5 | CJ47: =CJ46 -> 0 | CK47: 0 | CL47: 0 | CM47: =CM46 -> 1566109.22 | CN47: 0 | CO47: 0 | CP47: 0 | CQ47: =CQ46 -> 1550369.42 | CR47: 0 | CS47: 0 | CT47: 0 | CU47: =CU46 -> 2467756.64 | CV47: =CV46 -> 0 | CW47: =CW46 -> 0 | CX47: =CX46 -> 0 | DY47: =DY46 -> 2010285.009 | DZ47: =DZ46 -> 53443875.44 | EA47: =EA46 -> 9217605.237 | EB47: =EB46 -> 24403300.74 | EC47: =EC46 -> 2010285.009 | FC47: =FC46 -> 1956117.189 | GC47: =GC46 -> 1896294.324 | HC47: =HC46 -> 1867570.253 | IC47: =IC46 -> 1839622.529
A48: COMERCIALIZACIÓN | B48: Activos intangibles (software) | C48: 4 | D48: 0 | F48: 0 | G48: 0 | K48: 0 | L48: 0 | O48: 0 | S48: 0 | W48: 0 | X48: 0 | AA48: 0 | AB48: 0 | AE48: 0 | AF48: 0 | AI48: 0 | AJ48: 0 | AM48: 0 | AN48: 0 | AQ48: 0 | AR48: 0 | AU48: 0 | AV48: 0 | AY48: 0 | AZ48: 0 | CI48: 0 | CK48: 0 | CL48: 0 | CM48: 0 | CO48: 0 | CP48: 0 | CQ48: 0 | CS48: 0 | CT48: 0 | CU48: 0 | CV48: =IFERROR(IF((CJ48+CN48+CR48)/(CI48+CM48+CQ48)>0,((CJ48+CN48+CR48)/(CI48+CM48+CQ48))*CU48,0),0) -> 0 | CY48: =IF(D48=0,0,2001-(D48-F48)*C48/D48) -> 0 | CZ48: =IF((1-($DY$2-$CY48)/$C48)>0,(1-($DY$2-$CY48)/$C48),0) -> 0 | DA48: =IF((1-($DY$2-G$2)/$C48)>0,(1-($DY$2-G$2)/$C48),0) -> 0 | DB48: =IF((1-($DY$2-K$2)/$C48)>0,(1-($DY$2-K$2)/$C48),0) -> 0 | DC48: =IF((1-($DY$2-O$2)/$C48)>0,(1-($DY$2-O$2)/$C48),0) -> 0 | DD48: =IF((1-($DY$2-S$2)/$C48)>0,(1-($DY$2-S$2)/$C48),0) -> 0 | DE48: =IF((1-($DY$2-W$2)/$C48)>0,(1-($DY$2-W$2)/$C48),0) -> 0 | DF48: =IF((1-($DY$2-AA$2)/$C48)>0,(1-($DY$2-AA$2)/$C48),0) -> 0 | DG48: =IF((1-($DY$2-AE$2)/$C48)>0,(1-($DY$2-AE$2)/$C48),0) -> 0 | DH48: =IF((1-($DY$2-AI$2)/$C48)>0,(1-($DY$2-AI$2)/$C48),0) -> 0 | DI48: =IF((1-($DY$2-AM$2)/$C48)>0,(1-($DY$2-AM$2)/$C48),0) -> 0 | DJ48: =IF((1-($DY$2-AQ$2)/$C48)>0,(1-($DY$2-AQ$2)/$C48),0) -> 0 | DK48: =IF((1-($DY$2-AU$2)/$C48)>0,(1-($DY$2-AU$2)/$C48),0) -> 0 | DL48: =IF((1-($DY$2-AY$2)/$C48)>0,(1-($DY$2-AY$2)/$C48),0) -> 0 | DM48: =IF((1-($DY$2-BC$2)/$C48)>0,(1-($DY$2-BC$2)/$C48),0) -> 0 | DN48: =IF((1-($DY$2-BG$2)/$C48)>0,(1-($DY$2-BG$2)/$C48),0) -> 0 | DO48: =IF((1-($DY$2-BK$2)/$C48)>0,(1-($DY$2-BK$2)/$C48),0) -> 0 | DP48: =IF((1-($DY$2-BO$2)/$C48)>0,(1-($DY$2-BO$2)/$C48),0) -> 0 | DQ48: =IF((1-($DY$2-BS$2)/$C48)>0,(1-($DY$2-BS$2)/$C48),0) -> 0 | DR48: =IF((1-($DY$2-BW$2)/$C48)>0,(1-($DY$2-BW$2)/$C48),0) -> 0 | DS48: =IF((1-($DY$2-CA$2)/$C48)>0,(1-($DY$2-CA$2)/$C48),0) -> 0 | DT48: =IF((1-($DY$2-CE$2)/$C48)>0,(1-($DY$2-CE$2)/$C48),0) -> 0 | DU48: =IF((1-($DY$2-CI$2)/$C48)>0,(1-($DY$2-CI$2)/$C48),0) -> 0.125 | DV48: =IF((1-($DY$2-CM$2)/$C48)>0,(1-($DY$2-CM$2)/$C48),0) -> 0.375 | DW48: =IF((1-($DY$2-CQ$2)/$C48)>0,(1-($DY$2-CQ$2)/$C48),0) -> 0.625 | DX48: =IF((1-($DY$2-CU$2)/$C48)>0,(1-($DY$2-CU$2)/$C48),0) -> 0.875 | DY48: =IF(CZ48=0,0,($D48-$E48)*1/$C48)+IF(DA48=0,0,($G48-$H48-$I48)*$G$63*1/$C48)+IF(DB48=0,0,($K48-$L48-$M48)*$K$63*1/$C48)+IF(DC48=0,0,($O48-$P48-$Q48)*$O$63*1/$C48)+IF(DD48=0,0,($S48-$T48-$U48)*$S$63*1/$C48)+IF(DE48=0,0,($W48-$X48-$Y48)*$W$63*1/$C48)+IF(DF48=0,0,($AA48-$AB48-$AC48)*$AA$63*1/$C48)+IF(DG48=0,0,($AE48-$AF48-$AG48)*$AE$63*1/$C48)+IF(DH48=0,0,($AI48-$AJ48-$AK48)*$AI$63*1/$C48)+IF(DI48=0,0,($AM48-$AN48-$AO48)*$AM$63*1/$C48)+IF(DJ48=0,0,($AQ48-$AR48-$AS48)*$AQ$63*1/$C48)+IF(DK48=0,0,($AU48-$AV48-$AW48)*$AU$63*1/$C48)+IF(DL48=0,0,($AY48-$AZ48-$BA48)*$AY$63*1/$C48)+IF(DM48=0,0,($BC48-$BD48-$BE48)*$BC$63*1/$C48)+IF(DN48=0,0,($BG48-$BH48-$BI48)*$BG$63*1/$C48)+IF(DO48=0,0,($BK48-$BL48-$BM48)*$BK$63*1/$C48)+IF(DP48=0,0,($BO48-$BP48-$BQ48)*$BO$63*1/$C48)+IF(DQ48=0,0,($BS48-$BT48-$BU48)*$BS$63*1/$C48)+IF(DR48=0,0,($BW48-$BX48-$BY48)*$BW$63*1/$C48)+IF(DS48=0,0,($CA48-$CB48-$CC48)*$CA$63*1/$C48)+IF(DT48=0,0,($CE48-$CF48-$CG48)*$CE$63*1/$C48)+IF(DU48=0,0,($CI48-$CJ48-$CK48)*$CI$63*1/$C48)+IF(DV48=0,0,($CM48-$CN48-$CO48)*$CM$63*1/$C48)+IF(DW48=0,0,($CQ48-$CR48-$CS48)*$CQ$63*1/$C48)+IF(DX48=0,0,($CU48-$CV48-$CW48)*$CU$63*1/$C48) -> 0 | DZ48: =D48-E48+(G48-H48-I48)*G$63+(K48-L48-M48)*K$63+(O48-P48-Q48)*O$63+(S48-T48-U48)*S$63+(W48-X48-Y48)*W$63+(AA48-AB48-AC48)*AA$63+(AE48-AF48-AG48)*AE$63+(AI48-AJ48-AK48)*AI$63+(AM48-AN48-AO48)*AM$63+(AQ48-AR48-AS48)*$AQ$63+(AU48-AV48-AW48)*$AU$63+(AY48-AZ48-BA48)*$AY$63+(BC48-BD48-BE48)*$BC$63+(BG48-BH48-BI48)*$BG$63+(BK48-BL48-BM48)*$BK$63+(BO48-BP48-BQ48)*$BO$63+(BS48-BT48-BU48)*$BS$63+(BW48-BX48-BY48)*$BW$63+(CA48-CB48-CC48)*$CA$63+(CE48-CF48-CG48)*$CE$63+(CI48-CJ48-CK48)*$CI$63+(CM48-CN48-CO48)*$CM$63+(CQ48-CR48-CS48)*$CQ$63+(CU48-CV48-CW48)*$CU$63 -> 0 | EA48: =IF(CZ48=0,D48-E48,0)+IF(DA48=0,(G48-H48-I48)*G$63,0)+IF(DB48=0,(K48-L48-M48)*K$63,0)+IF(DC48=0,(O48-P48-Q48)*O$63,0)+IF(DD48=0,(S48-T48-U48)*S$63,0)+IF(DE48=0,(W48-X48-Y48)*W$63,0)+IF(DF48=0,(AA48-AB48-AC48)*AA$63,0)+IF(DG48=0,(AE48-AF48-AG48)*AE$63,0)+IF(DH48=0,(AI48-AJ48-AK48)*AI$63,0)+IF(DI48=0,(AM48-AN48-AO48)*AM$63,0)+IF(DJ48=0,(AQ48-AR48-AS48)*$AQ$63,0)+IF(DK48=0,(AU48-AV48-AW48)*$AU$63,0)+IF(DL48=0,(AY48-AZ48-BA48)*$AY$63,0)++IF(DM48=0,(BC48-BD48-BE48)*$BC$63,0)+IF(DN48=0,(BG48-BH48-BI48)*$BG$63,0)+IF(DO48=0,(BK48-BL48-BM48)*$BK$63,0)+IF(DP48=0,(BO48-BP48-BQ48)*$BO$63,0)+IF(DQ48=0,(BS48-BT48-BU48)*$BS$63,0)+IF(DR48=0,(BW48-BX48-BY48)*$BW$63,0)+IF(DS48=0,(CA48-CB48-CC48)*$CA$63,0)+IF(DT48=0,(CE48-CF48-CG48)*$CE$63,0)+IF(DU48=0,(CI48-CJ48-CK48)*$CI$63,0)+IF(DV48=0,(CM48-CN48-CO48)*$CM$63,0)+IF(DW48=0,(CQ48-CR48-CS48)*$CQ$63,0)+IF(DX48=0,(CU48-CV48-CW48)*$CU$63,0) -> 0 | EB48: =(D48-E48)*CZ48+((G48-H48-(I48-J48))*G$63)*DA48+((K48-L48-(M48-N48))*K$63)*DB48+((O48-P48-(Q48-R48))*O$63)*DC48+((S48-T48-(U48-V48))*S$63)*DD48+((W48-X48-(Y48-Z48))*W$63)*DE48+((AA48-AB48-(AC48-AD48))*AA$63)*DF48+((AE48-AF48-(AG48-AH48))*AE$63)*DG48+((AI48-AJ48-(AK48-AL48))*AI$63)*DH48+((AM48-AN48-(AO48-AP48))*$AM$63)*DI48+((AQ48-AR48-(AS48-AT48))*$AQ$63)*DJ48+((AU48-AV48-(AW48-AX48))*$AU$63)*DK48+((AY48-AZ48-(BA48-BB48))*$AY$63)*DL48+((BC48-BD48-(BE48-BF48))*$BC$63)*DM48+((BG48-BH48-(BI48-BJ48))*$BG$63)*DN48+((BK48-BL48-(BM48-BN48))*$BK$63)*DO48+((BO48-BP48-(BQ48-BR48))*$BO$63)*DP48+((BS48-BT48-(BU48-BV48))*$BS$63)*DQ48+((BW48-BX48-(BY48-BZ48))*$BW$63)*DR48+((CA48-CB48-(CC48-CD48))*$CA$63)*DS48+((CE48-CF48-(CG48-CH48))*$CE$63)*DT48+((CI48-CJ48-(CK48-CL48))*$CI$63)*DU48+((CM48-CN48-(CO48-CP48))*$CM$63)*DV48+((CQ48-CR48-(CS48-CT48))*$CQ$63)*DW48+((CU48-CV48-(CW48-CX48))*$CU$63)*DX48 -> 0 | EC48: =(DZ48-EA48)*1/C48 -> 0 | ED48: =IF((1-($FC$2-$CY48)/$C48)>0,(1-($FC$2-$CY48)/$C48),0) -> 0 | EE48: =IF((1-($FC$2-EE$2)/$C48)>0,(1-($FC$2-EE$2)/$C48),0) -> 0 | EF48: 0 | EG48: 0 | EH48: 0 | EI48: 0 | EJ48: 0 | EK48: 0 | EL48: 0 | EM48: 0 | EN48: 0 | EO48: =IF((1-($FC$2-EO$2)/$C48)>0,(1-($FC$2-EO$2)/$C48),0) -> 0 | EP48: 0 | EQ48: 0 | ER48: 0 | ES48: 0 | ET48: 0 | EU48: 0 | EV48: 0 | EW48: 0 | EX48: 0 | EY48: 0 | EZ48: =IF((1-($FC$2-EZ$2)/$C48)>0,(1-($FC$2-EZ$2)/$C48),0) -> 0.125 | FA48: 0.375 | FB48: 0.625 | FC48: =IF(ED48=0,0,($D48-$E48)*1/$C48)+IF(EE48=0,0,($G48-$H48-$I48)*$G$63*1/$C48)+IF(EF48=0,0,($K48-$L48-$M48)*$K$63*1/$C48)+IF(EG48=0,0,($O48-$P48-$Q48)*$O$63*1/$C48)+IF(EH48=0,0,($S48-$T48-$U48)*$S$63*1/$C48)+IF(EI48=0,0,($W48-$X48-$Y48)*$W$63*1/$C48)+IF(EJ48=0,0,($AA48-$AB48-$AC48)*$AA$63*1/$C48)+IF(EK48=0,0,($AE48-$AF48-$AG48)*$AE$63*1/$C48)+IF(EL48=0,0,($AI48-$AJ48-$AK48)*$AI$63*1/$C48)+IF(EM48=0,0,($AM48-$AN48-$AO48)*$AM$63*1/$C48)+IF(EN48=0,0,($AQ48-$AR48-$AS48)*$AQ$63*1/$C48)+IF(EO48=0,0,($AU48-$AV48-$AW48)*$AU$63*1/$C48)+IF(EP48=0,0,($AY48-$AZ48-$BA48)*$AY$63*1/$C48)+IF(EQ48=0,0,($BC48-$BD48-$BE48)*$BC$63*1/$C48)+IF(ER48=0,0,($BG48-$BH48-$BI48)*$BG$63*1/$C48)+IF(ES48=0,0,($BK48-$BL48-$BM48)*$BK$63*1/$C48)+IF(ET48=0,0,($BO48-$BP48-$BQ48)*$BO$63*1/$C48)+IF(EU48=0,0,($BS48-$BT48-$BU48)*$BS$63*1/$C48)+IF(EV48=0,0,($BW48-$BX48-$BY48)*$BW$63*1/$C48)+IF(EW48=0,0,($CA48-$CB48-$CC48)*$CA$63*1/$C48)+IF(EX48=0,0,($CE48-$CF48-$CG48)*$CE$63*1/$C48)+IF(EY48=0,0,($CI48-$CJ48-$CK48)*$CI$63*1/$C48)+IF(EZ48=0,0,($CM48-$CN48-$CO48)*$CM$63*1/$C48)+IF(FA48=0,0,($CQ48-$CR48-$CS48)*$CQ$63*1/$C48)+IF(FB48=0,0,($CU48-$CV48-$CW48)*$CU$63*1/$C48) -> 0 | FD48: =IF((1-($GC$2-$CY48)/$C48)>0,(1-($GC$2-$CY48)/$C48),0) -> 0 | FE48: =IF((1-($GC$2-FE$2)/$C48)>0,(1-($GC$2-FE$2)/$C48),0) -> 0 | FF48: 0 | FG48: 0 | FH48: 0 | FI48: 0 | FJ48: 0 | FK48: 0 | FL48: 0 | FM48: 0 | FN48: 0 | FO48: =IF((1-($GC$2-FO$2)/$C48)>0,(1-($GC$2-FO$2)/$C48),0) -> 0 | FP48: 0 | FQ48: 0 | FR48: 0 | FS48: 0 | FT48: 0 | FU48: 0 | FV48: 0 | FW48: 0 | FX48: 0 | FY48: 0 | FZ48: =IF((1-($GC$2-FZ$2)/$C48)>0,(1-($GC$2-FZ$2)/$C48),0) -> 0 | GA48: 0.125 | GB48: 0.375 | GC48: =IF(FD48=0,0,($D48-$E48)*1/$C48)+IF(FE48=0,0,($G48-$H48-$I48)*$G$63*1/$C48)+IF(FF48=0,0,($K48-$L48-$M48)*$K$63*1/$C48)+IF(FG48=0,0,($O48-$P48-$Q48)*$O$63*1/$C48)+IF(FH48=0,0,($S48-$T48-$U48)*$S$63*1/$C48)+IF(FI48=0,0,($W48-$X48-$Y48)*$W$63*1/$C48)+IF(FJ48=0,0,($AA48-$AB48-$AC48)*$AA$63*1/$C48)+IF(FK48=0,0,($AE48-$AF48-$AG48)*$AE$63*1/$C48)+IF(FL48=0,0,($AI48-$AJ48-$AK48)*$AI$63*1/$C48)+IF(FM48=0,0,($AM48-$AN48-$AO48)*$AM$63*1/$C48)+IF(FN48=0,0,($AQ48-$AR48-$AS48)*$AQ$63*1/$C48)+IF(FO48=0,0,($AU48-$AV48-$AW48)*$AU$63*1/$C48)+IF(FP48=0,0,($AY48-$AZ48-$BA48)*$AY$63*1/$C48)+IF(FQ48=0,0,($BC48-$BD48-$BE48)*$BC$63*1/$C48)+IF(FR48=0,0,($BG48-$BH48-$BI48)*$BG$63*1/$C48)+IF(FS48=0,0,($BK48-$BL48-$BM48)*$BK$63*1/$C48)+IF(FT48=0,0,($BO48-$BP48-$BQ48)*$BO$63*1/$C48)+IF(FU48=0,0,($BS48-$BT48-$BU48)*$BS$63*1/$C48)+IF(FV48=0,0,($BW48-$BX48-$BY48)*$BW$63*1/$C48)+IF(FW48=0,0,($CA48-$CB48-$CC48)*$CA$63*1/$C48)+IF(FX48=0,0,($CE48-$CF48-$CG48)*$CE$63*1/$C48)+IF(FY48=0,0,($CI48-$CJ48-$CK48)*$CI$63*1/$C48)+IF(FZ48=0,0,($CM48-$CN48-$CO48)*$CM$63*1/$C48)+IF(GA48=0,0,($CQ48-$CR48-$CS48)*$CQ$63*1/$C48)+IF(GB48=0,0,($CU48-$CV48-$CW48)*$CU$63*1/$C48) -> 0 | GD48: =IF((1-($HC$2-$CY48)/$C48)>0,(1-($HC$2-$CY48)/$C48),0) -> 0 | GE48: =IF((1-($HC$2-GE$2)/$C48)>0,(1-($HC$2-GE$2)/$C48),0) -> 0 | GF48: 0 | GG48: 0 | GH48: 0 | GI48: 0 | GJ48: 0 | GK48: 0 | GL48: 0 | GM48: 0 | GN48: 0 | GO48: =IF((1-($HC$2-GO$2)/$C48)>0,(1-($HC$2-GO$2)/$C48),0) -> 0 | GP48: 0 | GQ48: 0 | GR48: 0 | GS48: 0 | GT48: 0 | GU48: 0 | GV48: 0 | GW48: 0 | GX48: 0 | GY48: 0 | GZ48: =IF((1-($HC$2-GZ$2)/$C48)>0,(1-($HC$2-GZ$2)/$C48),0) -> 0 | HA48: 0 | HB48: 0.125 | HC48: =IF(GD48=0,0,($D48-$E48)*1/$C48)+IF(GE48=0,0,($G48-$H48-$I48)*$G$63*1/$C48)+IF(GF48=0,0,($K48-$L48-$M48)*$K$63*1/$C48)+IF(GG48=0,0,($O48-$P48-$Q48)*$O$63*1/$C48)+IF(GH48=0,0,($S48-$T48-$U48)*$S$63*1/$C48)+IF(GI48=0,0,($W48-$X48-$Y48)*$W$63*1/$C48)+IF(GJ48=0,0,($AA48-$AB48-$AC48)*$AA$63*1/$C48)+IF(GK48=0,0,($AE48-$AF48-$AG48)*$AE$63*1/$C48)+IF(GL48=0,0,($AI48-$AJ48-$AK48)*$AI$63*1/$C48)+IF(GM48=0,0,($AM48-$AN48-$AO48)*$AM$63*1/$C48)+IF(GN48=0,0,($AQ48-$AR48-$AS48)*$AQ$63*1/$C48)+IF(GO48=0,0,($AU48-$AV48-$AW48)*$AU$63*1/$C48)+IF(GP48=0,0,($AY48-$AZ48-$BA48)*$AY$63*1/$C48)+IF(GQ48=0,0,($BC48-$BD48-$BE48)*$BC$63*1/$C48)+IF(GR48=0,0,($BG48-$BH48-$BI48)*$BG$63*1/$C48)+IF(GS48=0,0,($BK48-$BL48-$BM48)*$BK$63*1/$C48)+IF(GT48=0,0,($BO48-$BP48-$BQ48)*$BO$63*1/$C48)+IF(GU48=0,0,($BS48-$BT48-$BU48)*$BS$63*1/$C48)+IF(GV48=0,0,($BW48-$BX48-$BY48)*$BW$63*1/$C48)+IF(GW48=0,0,($CA48-$CB48-$CC48)*$CA$63*1/$C48)+IF(GX48=0,0,($CE48-$CF48-$CG48)*$CE$63*1/$C48)+IF(GY48=0,0,($CI48-$CJ48-$CK48)*$CI$63*1/$C48)+IF(GZ48=0,0,($CM48-$CN48-$CO48)*$CM$63*1/$C48)+IF(HA48=0,0,($CQ48-$CR48-$CS48)*$CQ$63*1/$C48)+IF(HB48=0,0,($CU48-$CV48-$CW48)*$CU$63*1/$C48) -> 0 | HD48: =IF((1-($IC$2-$CY48)/$C48)>0,(1-($IC$2-$CY48)/$C48),0) -> 0 | HE48: =IF((1-($IC$2-HE$2)/$C48)>0,(1-($IC$2-HE$2)/$C48),0) -> 0 | HF48: 0 | HG48: 0 | HH48: 0 | HI48: 0 | HJ48: 0 | HK48: 0 | HL48: 0 | HM48: 0 | HN48: 0 | HO48: =IF((1-($IC$2-HO$2)/$C48)>0,(1-($IC$2-HO$2)/$C48),0) -> 0 | HP48: 0 | HQ48: 0 | HR48: 0 | HS48: 0 | HT48: 0 | HU48: 0 | HV48: 0 | HW48: 0 | HX48: 0 | HY48: 0 | HZ48: =IF((1-($IC$2-HZ$2)/$C48)>0,(1-($IC$2-HZ$2)/$C48),0) -> 0 | IA48: 0 | IB48: 0 | IC48: =IF(HD48=0,0,($D48-$E48)*1/$C48)+IF(HE48=0,0,($G48-$H48-$I48)*$G$63*1/$C48)+IF(HF48=0,0,($K48-$L48-$M48)*$K$63*1/$C48)+IF(HG48=0,0,($O48-$P48-$Q48)*$O$63*1/$C48)+IF(HH48=0,0,($S48-$T48-$U48)*$S$63*1/$C48)+IF(HI48=0,0,($W48-$X48-$Y48)*$W$63*1/$C48)+IF(HJ48=0,0,($AA48-$AB48-$AC48)*$AA$63*1/$C48)+IF(HK48=0,0,($AE48-$AF48-$AG48)*$AE$63*1/$C48)+IF(HL48=0,0,($AI48-$AJ48-$AK48)*$AI$63*1/$C48)+IF(HM48=0,0,($AM48-$AN48-$AO48)*$AM$63*1/$C48)+IF(HN48=0,0,($AQ48-$AR48-$AS48)*$AQ$63*1/$C48)+IF(HO48=0,0,($AU48-$AV48-$AW48)*$AU$63*1/$C48)+IF(HP48=0,0,($AY48-$AZ48-$BA48)*$AY$63*1/$C48)+IF(HQ48=0,0,($BC48-$BD48-$BE48)*$BC$63*1/$C48)+IF(HR48=0,0,($BG48-$BH48-$BI48)*$BG$63*1/$C48)+IF(HS48=0,0,($BK48-$BL48-$BM48)*$BK$63*1/$C48)+IF(HT48=0,0,($BO48-$BP48-$BQ48)*$BO$63*1/$C48)+IF(HU48=0,0,($BS48-$BT48-$BU48)*$BS$63*1/$C48)+IF(HV48=0,0,($BW48-$BX48-$BY48)*$BW$63*1/$C48)+IF(HW48=0,0,($CA48-$CB48-$CC48)*$CA$63*1/$C48)+IF(HX48=0,0,($CE48-$CF48-$CG48)*$CE$63*1/$C48)+IF(HY48=0,0,($CI48-$CJ48-$CK48)*$CI$63*1/$C48)+IF(HZ48=0,0,($CM48-$CN48-$CO48)*$CM$63*1/$C48)+IF(IA48=0,0,($CQ48-$CR48-$CS48)*$CQ$63*1/$C48)+IF(IB48=0,0,($CU48-$CV48-$CW48)*$CU$63*1/$C48) -> 0
B49: Terrenos | C49: 1000 | D49: 3359.980469 | F49: 3360 | G49: 0 | K49: 0 | L49: 0 | O49: 0 | S49: 0 | W49: 0 | X49: 0 | AA49: 0 | AB49: 0 | AE49: 0 | AF49: 0 | AI49: 0 | AJ49: 0 | AM49: 0 | AN49: 0 | AQ49: 0 | AR49: 0 | AU49: 0 | AV49: 0 | AY49: 0 | AZ49: 0 | CI49: 0 | CK49: 0 | CL49: 0 | CM49: 0 | CO49: 0 | CP49: 0 | CQ49: 0 | CS49: 0 | CT49: 0 | CU49: 0 | CV49: 0 | CY49: 2001.005813 | CZ49: 0.9755058129 | DA49: 0.9765 | DB49: 0.9775 | DC49: 0.9785 | DD49: 0.9795 | DE49: 0.9805 | DF49: 0.9815 | DG49: 0.9825 | DH49: 0.9835 | DI49: 0.9845 | DJ49: 0.9855 | DK49: 0.9865 | DL49: 0.9875 | DM49: 0.9885 | DN49: 0.9895 | DO49: 0.9905 | DP49: 0.9915 | DQ49: 0.9925 | DR49: 0.9935 | DS49: 0.9945 | DT49: 0.9955 | DU49: 0.9965 | DV49: 0.9975 | DW49: 0.9985 | DX49: 0.9995 | DY49: 3.359980469 | DZ49: 3359.980469 | EA49: 0 | EB49: 3277.680479 | EC49: 3.359980469 | ED49: 0.9745058129 | EE49: 0.9755 | EF49: 0.9765 | EG49: 0.9775 | EH49: 0.9785 | EI49: 0.9795 | EJ49: 0.9805 | EK49: 0.9815 | EL49: 0.9825 | EM49: 0.9835 | EN49: 0.9845 | EO49: 0.9855 | EP49: 0.9865 | EQ49: 0.9875 | ER49: 0.9885 | ES49: 0.9895 | ET49: 0.9905 | EU49: 0.9915 | EV49: 0.9925 | EW49: 0.9935 | EX49: 0.9945 | EY49: 0.9955 | EZ49: 0.9965 | FA49: 0.9975 | FB49: 0.9985 | FC49: 3.359980469 | FD49: 0.9735058129 | FE49: 0.9745 | FF49: 0.9755 | FG49: 0.9765 | FH49: 0.9775 | FI49: 0.9785 | FJ49: 0.9795 | FK49: 0.9805 | FL49: 0.9815 | FM49: 0.9825 | FN49: 0.9835 | FO49: 0.9845 | FP49: 0.9855 | FQ49: 0.9865 | FR49: 0.9875 | FS49: 0.9885 | FT49: 0.9895 | FU49: 0.9905 | FV49: 0.9915 | FW49: 0.9925 | FX49: 0.9935 | FY49: 0.9945 | FZ49: 0.9955 | GA49: 0.9965 | GB49: 0.9975 | GC49: 3.359980469 | GD49: 0.9725058129 | GE49: 0.9735 | GF49: 0.9745 | GG49: 0.9755 | GH49: 0.9765 | GI49: 0.9775 | GJ49: 0.9785 | GK49: 0.9795 | GL49: 0.9805 | GM49: 0.9815 | GN49: 0.9825 | GO49: 0.9835 | GP49: 0.9845 | GQ49: 0.9855 | GR49: 0.9865 | GS49: 0.9875 | GT49: 0.9885 | GU49: 0.9895 | GV49: 0.9905 | GW49: 0.9915 | GX49: 0.9925 | GY49: 0.9935 | GZ49: 0.9945 | HA49: 0.9955 | HB49: 0.9965 | HC49: 3.359980469 | HD49: 0.9715058129 | HE49: 0.9725 | HF49: 0.9735 | HG49: 0.9745 | HH49: 0.9755 | HI49: 0.9765 | HJ49: 0.9775 | HK49: 0.9785 | HL49: 0.9795 | HM49: 0.9805 | HN49: 0.9815 | HO49: 0.9825 | HP49: 0.9835 | HQ49: 0.9845 | HR49: 0.9855 | HS49: 0.9865 | HT49: 0.9875 | HU49: 0.9885 | HV49: 0.9895 | HW49: 0.9905 | HX49: 0.9915 | HY49: 0.9925 | HZ49: 0.9935 | IA49: 0.9945 | IB49: 0.9955 | IC49: 3.359980469
B50: Edificios y mejoras | C50: 40 | D50: 1789555.43 | F50: 1078896.611 | G50: 2935.52 | K50: 0 | L50: 0 | O50: 0 | S50: 0 | W50: 0 | X50: 0 | AA50: 427343.3 | AB50: 0 | AE50: 0 | AF50: 0 | AI50: 0 | AJ50: 0 | AM50: 0 | AN50: 0 | AQ50: 0 | AR50: 0 | AU50: 0 | AV50: 0 | AY50: 0 | AZ50: 0 | CK50: 0 | CL50: 0 | CO50: 0 | CP50: 0 | CS50: 0 | CT50: 0 | CV50: 0 | CY50: 1985.115411 | CZ50: 0 | DA50: 0.4125 | DB50: 0.4375 | DC50: 0.4625 | DD50: 0.4875 | DE50: 0.5125 | DF50: 0.5375 | DG50: 0.5625 | DH50: 0.5875 | DI50: 0.6125 | DJ50: 0.6375 | DK50: 0.6625 | DL50: 0.6875 | DM50: 0.7125 | DN50: 0.7375 | DO50: 0.7625 | DP50: 0.7875 | DQ50: 0.8125 | DR50: 0.8375 | DS50: 0.8625 | DT50: 0.8875 | DU50: 0.9125 | DV50: 0.9375 | DW50: 0.9625 | DX50: 0.9875 | DY50: 7738.876262 | DZ50: 2099110.481 | EA50: 1789555.43 | EB50: 166048.0622 | EC50: 7738.876262 | ED50: 0 | EE50: 0.3875 | EF50: 0.4125 | EG50: 0.4375 | EH50: 0.4625 | EI50: 0.4875 | EJ50: 0.5125 | EK50: 0.5375 | EL50: 0.5625 | EM50: 0.5875 | EN50: 0.6125 | EO50: 0.6375 | EP50: 0.6625 | EQ50: 0.6875 | ER50: 0.7125 | ES50: 0.7375 | ET50: 0.7625 | EU50: 0.7875 | EV50: 0.8125 | EW50: 0.8375 | EX50: 0.8625 | EY50: 0.8875 | EZ50: 0.9125 | FA50: 0.9375 | FB50: 0.9625 | FC50: 7738.876262 | FD50: 0 | FE50: 0.3625 | FF50: 0.3875 | FG50: 0.4125 | FH50: 0.4375 | FI50: 0.4625 | FJ50: 0.4875 | FK50: 0.5125 | FL50: 0.5375 | FM50: 0.5625 | FN50: 0.5875 | FO50: 0.6125 | FP50: 0.6375 | FQ50: 0.6625 | FR50: 0.6875 | FS50: 0.7125 | FT50: 0.7375 | FU50: 0.7625 | FV50: 0.7875 | FW50: 0.8125 | FX50: 0.8375 | FY50: 0.8625 | FZ50: 0.8875 | GA50: 0.9125 | GB50: 0.9375 | GC50: 7738.876262 | GD50: 0 | GE50: 0.3375 | GF50: 0.3625 | GG50: 0.3875 | GH50: 0.4125 | GI50: 0.4375 | GJ50: 0.4625 | GK50: 0.4875 | GL50: 0.5125 | GM50: 0.5375 | GN50: 0.5625 | GO50: 0.5875 | GP50: 0.6125 | GQ50: 0.6375 | GR50: 0.6625 | GS50: 0.6875 | GT50: 0.7125 | GU50: 0.7375 | GV50: 0.7625 | GW50: 0.7875 | GX50: 0.8125 | GY50: 0.8375 | GZ50: 0.8625 | HA50: 0.8875 | HB50: 0.9125 | HC50: 7738.876262 | HD50: 0 | HE50: 0.3125 | HF50: 0.3375 | HG50: 0.3625 | HH50: 0.3875 | HI50: 0.4125 | HJ50: 0.4375 | HK50: 0.4625 | HL50: 0.4875 | HM50: 0.5125 | HN50: 0.5375 | HO50: 0.5625 | HP50: 0.5875 | HQ50: 0.6125 | HR50: 0.6375 | HS50: 0.6625 | HT50: 0.6875 | HU50: 0.7125 | HV50: 0.7375 | HW50: 0.7625 | HX50: 0.7875 | HY50: 0.8125 | HZ50: 0.8375 | IA50: 0.8625 | IB50: 0.8875 | IC50: 7738.876262
B51: Sistema de medidores y accesorios | C51: 22 | D51: 26297065.7 | F51: 15052101.52 | G51: 1405286.87 | K51: 1845035.27 | L51: 0 | O51: 1528257.69 | S51: 1585438.52 | W51: 2332967.07 | X51: 0 | AA51: 1940524.29 | AB51: 0 | AE51: 2451346.14 | AF51: 0 | AI51: 2357328.01 | AJ51: 0 | AM51: 2372370 | AN51: 0 | AQ51: 2526316.83 | AR51: 0 | AU51: 2378895.18 | AV51: 0 | AY51: 3399815.24 | AZ51: 0 | BC51: 3619240.12 | BD51: 0 | BG51: 4682938.91 | BK51: 4008701.25 | BL51: 0 | BO51: 4686893.08 | BS51: 5644772.99 | BT51: 0 | BW51: 5653839.14 | BX51: 0 | CA51: 6088282.19 | CB51: 0 | CE51: 4726464.37 | CF51: 0 | CI51: 6825692.18 | CK51: 0 | CL51: 0 | CM51: 8143846.04 | CO51: 0 | CP51: 0 | CQ51: 8679275.4 | CS51: 0 | CT51: 0 | CU51: 14446307.28 | CV51: 0 | CY51: 1991.592516 | CZ51: 0 | DA51: 0 | DB51: 0 | DC51: 0.02272727273 | DD51: 0.06818181818 | DE51: 0.1136363636 | DF51: 0.1590909091 | DG51: 0.2045454545 | DH51: 0.25 | DI51: 0.2954545455 | DJ51: 0.3409090909 | DK51: 0.3863636364 | DL51: 0.4318181818 | DM51: 0.4772727273 | DN51: 0.5227272727 | DO51: 0.5681818182 | DP51: 0.6136363636 | DQ51: 0.6590909091 | DR51: 0.7045454545 | DS51: 0.75 | DT51: 0.7954545455 | DU51: 0.8409090909 | DV51: 0.8863636364 | DW51: 0.9318181818 | DX51: 0.9772727273 | DY51: 3867669.989 | DZ51: 114351635.7 | EA51: 29262895.9 | EB51: 57206164.45 | EC51: 3867669.989 | ED51: 0 | EE51: 0 | EF51: 0 | EG51: 0 | EH51: 0.02272727273 | EI51: 0.06818181818 | EJ51: 0.1136363636 | EK51: 0.1590909091 | EL51: 0.2045454545 | EM51: 0.25 | EN51: 0.2954545455 | EO51: 0.3409090909 | EP51: 0.3863636364 | EQ51: 0.4318181818 | ER51: 0.4772727273 | ES51: 0.5227272727 | ET51: 0.5681818182 | EU51: 0.6136363636 | EV51: 0.6590909091 | EW51: 0.7045454545 | EX51: 0.75 | EY51: 0.7954545455 | EZ51: 0.8409090909 | FA51: 0.8863636364 | FB51: 0.9318181818 | FC51: 3802613.631 | FD51: 0 | FE51: 0 | FF51: 0 | FG51: 0 | FH51: 0 | FI51: 0.02272727273 | FJ51: 0.06818181818 | FK51: 0.1136363636 | FL51: 0.1590909091 | FM51: 0.2045454545 | FN51: 0.25 | FO51: 0.2954545455 | FP51: 0.3409090909 | FQ51: 0.3863636364 | FR51: 0.4318181818 | FS51: 0.4772727273 | FT51: 0.5227272727 | FU51: 0.5681818182 | FV51: 0.6136363636 | FW51: 0.6590909091 | FX51: 0.7045454545 | FY51: 0.75 | FZ51: 0.7954545455 | GA51: 0.8409090909 | GB51: 0.8863636364 | GC51: 3759374.399 | GD51: 0 | GE51: 0 | GF51: 0 | GG51: 0 | GH51: 0 | GI51: 0 | GJ51: 0.02272727273 | GK51: 0.06818181818 | GL51: 0.1136363636 | GM51: 0.1590909091 | GN51: 0.2045454545 | GO51: 0.25 | GP51: 0.2954545455 | GQ51: 0.3409090909 | GR51: 0.3863636364 | GS51: 0.4318181818 | GT51: 0.4772727273 | GU51: 0.5227272727 | GV51: 0.5681818182 | GW51: 0.6136363636 | GX51: 0.6590909091 | GY51: 0.7045454545 | GZ51: 0.75 | HA51: 0.7954545455 | HB51: 0.8409090909 | HC51: 3685143.629 | HD51: 0 | HE51: 0 | HF51: 0 | HG51: 0 | HH51: 0 | HI51: 0 | HJ51: 0 | HK51: 0.02272727273 | HL51: 0.06818181818 | HM51: 0.1136363636 | HN51: 0.1590909091 | HO51: 0.2045454545 | HP51: 0.25 | HQ51: 0.2954545455 | HR51: 0.3409090909 | HS51: 0.3863636364 | HT51: 0.4318181818 | HU51: 0.4772727273 | HV51: 0.5227272727 | HW51: 0.5681818182 | HX51: 0.6136363636 | HY51: 0.6590909091 | HZ51: 0.7045454545 | IA51: 0.75 | IB51: 0.7954545455 | IC51: 3621807.774
B52: Equipos de medida SMEC | C52: 22 | D52: 0 | F52: 0 | G52: 0 | K52: 0 | L52: 0 | O52: 0 | S52: 0 | W52: 0 | X52: 0 | AA52: 0 | AB52: 0 | AE52: 0 | AF52: 0 | AI52: 0 | AJ52: 0 | AM52: 0 | AN52: 0 | AQ52: 0 | AR52: 0 | AU52: 0 | AV52: 0 | AY52: 0 | AZ52: 0 | BC52: 0 | BD52: 0 | BG52: 0 | BK52: 0 | BL52: 0 | BO52: 0 | BS52: 0 | BT52: 0 | BW52: 0 | BX52: 0 | CA52: 0 | CB52: 0 | CE52: 0 | CF52: 0 | CI52: 0 | CK52: 0 | CL52: 0 | CM52: 95463.4 | CO52: 0 | CP52: 0 | CQ52: 0 | CS52: 0 | CT52: 0 | CU52: 0 | CV52: 0 | CY52: 0 | CZ52: 0 | DA52: 0 | DB52: 0 | DC52: 0.02272727273 | DD52: 0.06818181818 | DE52: 0.1136363636 | DF52: 0.1590909091 | DG52: 0.2045454545 | DH52: 0.25 | DI52: 0.2954545455 | DJ52: 0.3409090909 | DK52: 0.3863636364 | DL52: 0.4318181818 | DM52: 0.4772727273 | DN52: 0.5227272727 | DO52: 0.5681818182 | DP52: 0.6136363636 | DQ52: 0.6590909091 | DR52: 0.7045454545 | DS52: 0.75 | DT52: 0.7954545455 | DU52: 0.8409090909 | DV52: 0.8863636364 | DW52: 0.9318181818 | DX52: 0.9772727273 | DY52: 3688.358636 | DZ52: 81143.89 | EA52: 0 | EB52: 71922.99341 | EC52: 3688.358636 | ED52: 0 | EE52: 0 | EF52: 0 | EG52: 0 | EH52: 0.02272727273 | EI52: 0.06818181818 | EJ52: 0.1136363636 | EK52: 0.1590909091 | EL52: 0.2045454545 | EM52: 0.25 | EN52: 0.2954545455 | EO52: 0.3409090909 | EP52: 0.3863636364 | EQ52: 0.4318181818 | ER52: 0.4772727273 | ES52: 0.5227272727 | ET52: 0.5681818182 | EU52: 0.6136363636 | EV52: 0.6590909091 | EW52: 0.7045454545 | EX52: 0.75 | EY52: 0.7954545455 | EZ52: 0.8409090909 | FA52: 0.8863636364 | FB52: 0.9318181818 | FC52: 3688.358636 | FD52: 0 | FE52: 0 | FF52: 0 | FG52: 0 | FH52: 0 | FI52: 0.02272727273 | FJ52: 0.06818181818 | FK52: 0.1136363636 | FL52: 0.1590909091 | FM52: 0.2045454545 | FN52: 0.25 | FO52: 0.2954545455 | FP52: 0.3409090909 | FQ52: 0.3863636364 | FR52: 0.4318181818 | FS52: 0.4772727273 | FT52: 0.5227272727 | FU52: 0.5681818182 | FV52: 0.6136363636 | FW52: 0.6590909091 | FX52: 0.7045454545 | FY52: 0.75 | FZ52: 0.7954545455 | GA52: 0.8409090909 | GB52: 0.8863636364 | GC52: 3688.358636 | GD52: 0 | GE52: 0 | GF52: 0 | GG52: 0 | GH52: 0 | GI52: 0 | GJ52: 0.02272727273 | GK52: 0.06818181818 | GL52: 0.1136363636 | GM52: 0.1590909091 | GN52: 0.2045454545 | GO52: 0.25 | GP52: 0.2954545455 | GQ52: 0.3409090909 | GR52: 0.3863636364 | GS52: 0.4318181818 | GT52: 0.4772727273 | GU52: 0.5227272727 | GV52: 0.5681818182 | GW52: 0.6136363636 | GX52: 0.6590909091 | GY52: 0.7045454545 | GZ52: 0.75 | HA52: 0.7954545455 | HB52: 0.8409090909 | HC52: 3688.358636 | HD52: 0 | HE52: 0 | HF52: 0 | HG52: 0 | HH52: 0 | HI52: 0 | HJ52: 0 | HK52: 0.02272727273 | HL52: 0.06818181818 | HM52: 0.1136363636 | HN52: 0.1590909091 | HO52: 0.2045454545 | HP52: 0.25 | HQ52: 0.2954545455 | HR52: 0.3409090909 | HS52: 0.3863636364 | HT52: 0.4318181818 | HU52: 0.4772727273 | HV52: 0.5227272727 | HW52: 0.5681818182 | HX52: 0.6136363636 | HY52: 0.6590909091 | HZ52: 0.7045454545 | IA52: 0.75 | IB52: 0.7954545455 | IC52: 3688.358636
B53: Mobiliario y equipo de oficina | C53: 7 | D53: 271822.5642 | F53: 155581.0221 | G53: 21233 | K53: 0 | L53: 0 | O53: 0 | S53: 0 | W53: 0 | X53: 0 | AA53: 0 | AB53: 0 | AE53: 0 | AF53: 0 | AI53: 0 | AJ53: 0 | AM53: 0 | AN53: 0 | AQ53: 0 | AR53: 0 | AU53: 0 | AV53: 0 | AY53: 0 | AZ53: 0 | CI53: 0 | CK53: 0 | CL53: 0 | CO53: 0 | CP53: 0 | CS53: 0 | CT53: 0 | CV53: 0 | CY53: 1998.006537 | CZ53: 0 | DA53: 0 | DB53: 0 | DC53: 0 | DD53: 0 | DE53: 0 | DF53: 0 | DG53: 0 | DH53: 0 | DI53: 0 | DJ53: 0 | DK53: 0 | DL53: 0 | DM53: 0 | DN53: 0 | DO53: 0 | DP53: 0 | DQ53: 0 | DR53: 0.07142857143 | DS53: 0.2142857143 | DT53: 0.3571428571 | DU53: 0.5 | DV53: 0.6428571429 | DW53: 0.7857142857 | DX53: 0.9285714286 | DY53: 0 | DZ53: 291368.0676 | EA53: 291368.0676 | EB53: 0 | EC53: 0 | ED53: 0 | EE53: 0 | EF53: 0 | EG53: 0 | EH53: 0 | EI53: 0 | EJ53: 0 | EK53: 0 | EL53: 0 | EM53: 0 | EN53: 0 | EO53: 0 | EP53: 0 | EQ53: 0 | ER53: 0 | ES53: 0 | ET53: 0 | EU53: 0 | EV53: 0 | EW53: 0.07142857143 | EX53: 0.2142857143 | EY53: 0.3571428571 | EZ53: 0.5 | FA53: 0.6428571429 | FB53: 0.7857142857 | FC53: 0 | FD53: 0 | FE53: 0 | FF53: 0 | FG53: 0 | FH53: 0 | FI53: 0 | FJ53: 0 | FK53: 0 | FL53: 0 | FM53: 0 | FN53: 0 | FO53: 0 | FP53: 0 | FQ53: 0 | FR53: 0 | FS53: 0 | FT53: 0 | FU53: 0 | FV53: 0 | FW53: 0 | FX53: 0.07142857143 | FY53: 0.2142857143 | FZ53: 0.3571428571 | GA53: 0.5 | GB53: 0.6428571429 | GC53: 0 | GD53: 0 | GE53: 0 | GF53: 0 | GG53: 0 | GH53: 0 | GI53: 0 | GJ53: 0 | GK53: 0 | GL53: 0 | GM53: 0 | GN53: 0 | GO53: 0 | GP53: 0 | GQ53: 0 | GR53: 0 | GS53: 0 | GT53: 0 | GU53: 0 | GV53: 0 | GW53: 0 | GX53: 0 | GY53: 0.07142857143 | GZ53: 0.2142857143 | HA53: 0.3571428571 | HB53: 0.5 | HC53: 0 | HD53: 0 | HE53: 0 | HF53: 0 | HG53: 0 | HH53: 0 | HI53: 0 | HJ53: 0 | HK53: 0 | HL53: 0 | HM53: 0 | HN53: 0 | HO53: 0 | HP53: 0 | HQ53: 0 | HR53: 0 | HS53: 0 | HT53: 0 | HU53: 0 | HV53: 0 | HW53: 0 | HX53: 0 | HY53: 0 | HZ53: 0.07142857143 | IA53: 0.2142857143 | IB53: 0.3571428571 | IC53: 0
B54: Equipo de computación | C54: 4 | D54: 524338.0136 | F54: 300131.0044 | G54: 0 | K54: 0 | L54: 0 | O54: 0 | S54: 0 | W54: 0 | X54: 0 | AA54: 0 | AB54: 0 | AE54: 0 | AF54: 0 | AI54: 0 | AJ54: 0 | AM54: 0 | AN54: 0 | AQ54: 0 | AR54: 0 | AU54: 0 | AV54: 0 | AY54: 0 | AZ54: 0 | CK54: 0 | CL54: 0 | CO54: 0 | CP54: 0 | CS54: 0 | CT54: 0 | CV54: 0 | CY54: 1999.289599 | CZ54: 0 | DA54: 0 | DB54: 0 | DC54: 0 | DD54: 0 | DE54: 0 | DF54: 0 | DG54: 0 | DH54: 0 | DI54: 0 | DJ54: 0 | DK54: 0 | DL54: 0 | DM54: 0 | DN54: 0 | DO54: 0 | DP54: 0 | DQ54: 0 | DR54: 0 | DS54: 0 | DT54: 0 | DU54: 0.125 | DV54: 0.375 | DW54: 0.625 | DX54: 0.875 | DY54: 0 | DZ54: 524338.0136 | EA54: 524338.0136 | EB54: 0 | EC54: 0 | ED54: 0 | EE54: 0 | EF54: 0 | EG54: 0 | EH54: 0 | EI54: 0 | EJ54: 0 | EK54: 0 | EL54: 0 | EM54: 0 | EN54: 0 | EO54: 0 | EP54: 0 | EQ54: 0 | ER54: 0 | ES54: 0 | ET54: 0 | EU54: 0 | EV54: 0 | EW54: 0 | EX54: 0 | EY54: 0 | EZ54: 0.125 | FA54: 0.375 | FB54: 0.625 | FC54: 0 | FD54: 0 | FE54: 0 | FF54: 0 | FG54: 0 | FH54: 0 | FI54: 0 | FJ54: 0 | FK54: 0 | FL54: 0 | FM54: 0 | FN54: 0 | FO54: 0 | FP54: 0 | FQ54: 0 | FR54: 0 | FS54: 0 | FT54: 0 | FU54: 0 | FV54: 0 | FW54: 0 | FX54: 0 | FY54: 0 | FZ54: 0 | GA54: 0.125 | GB54: 0.375 | GC54: 0 | GD54: 0 | GE54: 0 | GF54: 0 | GG54: 0 | GH54: 0 | GI54: 0 | GJ54: 0 | GK54: 0 | GL54: 0 | GM54: 0 | GN54: 0 | GO54: 0 | GP54: 0 | GQ54: 0 | GR54: 0 | GS54: 0 | GT54: 0 | GU54: 0 | GV54: 0 | GW54: 0 | GX54: 0 | GY54: 0 | GZ54: 0 | HA54: 0 | HB54: 0.125 | HC54: 0 | HD54: 0 | HE54: 0 | HF54: 0 | HG54: 0 | HH54: 0 | HI54: 0 | HJ54: 0 | HK54: 0 | HL54: 0 | HM54: 0 | HN54: 0 | HO54: 0 | HP54: 0 | HQ54: 0 | HR54: 0 | HS54: 0 | HT54: 0 | HU54: 0 | HV54: 0 | HW54: 0 | HX54: 0 | HY54: 0 | HZ54: 0 | IA54: 0 | IB54: 0 | IC54: 0
B55: Equipos de transporte y carga | C55: 5 | D55: 0 | F55: 0 | G55: 0 | K55: 0 | L55: 0 | O55: 0 | S55: 0 | W55: 0 | X55: 0 | AA55: 0 | AB55: 0 | AE55: 0 | AF55: 0 | AI55: 0 | AJ55: 0 | AM55: 0 | AN55: 0 | AQ55: 0 | AR55: 0 | AU55: 0 | AV55: 0 | AY55: 0 | AZ55: 0 | CI55: 0 | CK55: 0 | CL55: 0 | CM55: 0 | CO55: 0 | CP55: 0 | CQ55: 0 | CS55: 0 | CT55: 0 | CV55: 0 | CY55: 0 | CZ55: 0 | DA55: 0 | DB55: 0 | DC55: 0 | DD55: 0 | DE55: 0 | DF55: 0 | DG55: 0 | DH55: 0 | DI55: 0 | DJ55: 0 | DK55: 0 | DL55: 0 | DM55: 0 | DN55: 0 | DO55: 0 | DP55: 0 | DQ55: 0 | DR55: 0 | DS55: 0 | DT55: 0.1 | DU55: 0.3 | DV55: 0.5 | DW55: 0.7 | DX55: 0.9 | DY55: 0 | DZ55: 0 | EA55: 0 | EB55: 0 | EC55: 0 | ED55: 0 | EE55: 0 | EF55: 0 | EG55: 0 | EH55: 0 | EI55: 0 | EJ55: 0 | EK55: 0 | EL55: 0 | EM55: 0 | EN55: 0 | EO55: 0 | EP55: 0 | EQ55: 0 | ER55: 0 | ES55: 0 | ET55: 0 | EU55: 0 | EV55: 0 | EW55: 0 | EX55: 0 | EY55: 0.1 | EZ55: 0.3 | FA55: 0.5 | FB55: 0.7 | FC55: 0 | FD55: 0 | FE55: 0 | FF55: 0 | FG55: 0 | FH55: 0 | FI55: 0 | FJ55: 0 | FK55: 0 | FL55: 0 | FM55: 0 | FN55: 0 | FO55: 0 | FP55: 0 | FQ55: 0 | FR55: 0 | FS55: 0 | FT55: 0 | FU55: 0 | FV55: 0 | FW55: 0 | FX55: 0 | FY55: 0 | FZ55: 0.1 | GA55: 0.3 | GB55: 0.5 | GC55: 0 | GD55: 0 | GE55: 0 | GF55: 0 | GG55: 0 | GH55: 0 | GI55: 0 | GJ55: 0 | GK55: 0 | GL55: 0 | GM55: 0 | GN55: 0 | GO55: 0 | GP55: 0 | GQ55: 0 | GR55: 0 | GS55: 0 | GT55: 0 | GU55: 0 | GV55: 0 | GW55: 0 | GX55: 0 | GY55: 0 | GZ55: 0 | HA55: 0.1 | HB55: 0.3 | HC55: 0 | HD55: 0 | HE55: 0 | HF55: 0 | HG55: 0 | HH55: 0 | HI55: 0 | HJ55: 0 | HK55: 0 | HL55: 0 | HM55: 0 | HN55: 0 | HO55: 0 | HP55: 0 | HQ55: 0 | HR55: 0 | HS55: 0 | HT55: 0 | HU55: 0 | HV55: 0 | HW55: 0 | HX55: 0 | HY55: 0 | HZ55: 0 | IA55: 0 | IB55: 0.1 | IC55: 0
B56: Equipos de comunicaciones | C56: 8 | D56: 0 | F56: 0 | G56: 0 | K56: 0 | L56: 0 | O56: 0 | S56: 0 | W56: 0 | X56: 0 | AA56: 0 | AB56: 0 | AE56: 0 | AF56: 0 | AI56: 0 | AJ56: 0 | AM56: 0 | AN56: 0 | AQ56: 0 | AR56: 0 | AU56: 0 | AV56: 0 | AY56: 0 | AZ56: 0 | CI56: 0 | CK56: 0 | CL56: 0 | CM56: 0 | CO56: 0 | CP56: 0 | CQ56: 0 | CS56: 0 | CT56: 0 | CV56: 0 | CY56: 0 | CZ56: 0 | DA56: 0 | DB56: 0 | DC56: 0 | DD56: 0 | DE56: 0 | DF56: 0 | DG56: 0 | DH56: 0 | DI56: 0 | DJ56: 0 | DK56: 0 | DL56: 0 | DM56: 0 | DN56: 0 | DO56: 0 | DP56: 0 | DQ56: 0.0625 | DR56: 0.1875 | DS56: 0.3125 | DT56: 0.4375 | DU56: 0.5625 | DV56: 0.6875 | DW56: 0.8125 | DX56: 0.9375 | DY56: 0 | DZ56: 0 | EA56: 0 | EB56: 0 | EC56: 0 | ED56: 0 | EE56: 0 | EF56: 0 | EG56: 0 | EH56: 0 | EI56: 0 | EJ56: 0 | EK56: 0 | EL56: 0 | EM56: 0 | EN56: 0 | EO56: 0 | EP56: 0 | EQ56: 0 | ER56: 0 | ES56: 0 | ET56: 0 | EU56: 0 | EV56: 0.0625 | EW56: 0.1875 | EX56: 0.3125 | EY56: 0.4375 | EZ56: 0.5625 | FA56: 0.6875 | FB56: 0.8125 | FC56: 0 | FD56: 0 | FE56: 0 | FF56: 0 | FG56: 0 | FH56: 0 | FI56: 0 | FJ56: 0 | FK56: 0 | FL56: 0 | FM56: 0 | FN56: 0 | FO56: 0 | FP56: 0 | FQ56: 0 | FR56: 0 | FS56: 0 | FT56: 0 | FU56: 0 | FV56: 0 | FW56: 0.0625 | FX56: 0.1875 | FY56: 0.3125 | FZ56: 0.4375 | GA56: 0.5625 | GB56: 0.6875 | GC56: 0 | GD56: 0 | GE56: 0 | GF56: 0 | GG56: 0 | GH56: 0 | GI56: 0 | GJ56: 0 | GK56: 0 | GL56: 0 | GM56: 0 | GN56: 0 | GO56: 0 | GP56: 0 | GQ56: 0 | GR56: 0 | GS56: 0 | GT56: 0 | GU56: 0 | GV56: 0 | GW56: 0 | GX56: 0.0625 | GY56: 0.1875 | GZ56: 0.3125 | HA56: 0.4375 | HB56: 0.5625 | HC56: 0 | HD56: 0 | HE56: 0 | HF56: 0 | HG56: 0 | HH56: 0 | HI56: 0 | HJ56: 0 | HK56: 0 | HL56: 0 | HM56: 0 | HN56: 0 | HO56: 0 | HP56: 0 | HQ56: 0 | HR56: 0 | HS56: 0 | HT56: 0 | HU56: 0 | HV56: 0 | HW56: 0 | HX56: 0 | HY56: 0.0625 | HZ56: 0.1875 | IA56: 0.3125 | IB56: 0.4375 | IC56: 0
B57: Otros equipos del sistema de comercialización | C57: 17 | D57: 1434140.86 | F57: 820883.6958 | G57: 0 | K57: 0 | L57: 0 | O57: 0 | S57: 0 | W57: 0 | X57: 0 | AA57: 0 | AB57: 0 | AE57: 0 | AF57: 0 | AI57: 0 | AJ57: 0 | AM57: 0 | AN57: 0 | AQ57: 0 | AR57: 0 | AU57: 0 | AV57: 0 | AY57: 140059.97 | AZ57: 0 | BC57: 96346.01 | BD57: 0 | BG57: 21487.85 | BK57: 0 | BL57: 0 | BO57: 0 | BS57: 272457.37 | BT57: 0 | BW57: 342960 | BX57: 0 | CA57: 35080.33 | CB57: 0 | CE57: 576424 | CF57: 0 | CI57: 942213.33 | CK57: 0 | CL57: 0 | CM57: 828203.41 | CO57: 0 | CP57: 0 | CQ57: 0 | CS57: 0 | CT57: 0 | CU57: 0 | CV57: 0 | CY57: 1993.73058 | CZ57: 0 | DA57: 0 | DB57: 0 | DC57: 0 | DD57: 0 | DE57: 0 | DF57: 0 | DG57: 0 | DH57: 0.02941176471 | DI57: 0.08823529412 | DJ57: 0.1470588235 | DK57: 0.2058823529 | DL57: 0.2647058824 | DM57: 0.3235294118 | DN57: 0.3823529412 | DO57: 0.4411764706 | DP57: 0.5 | DQ57: 0.5588235294 | DR57: 0.6176470588 | DS57: 0.6764705882 | DT57: 0.7352941176 | DU57: 0.7941176471 | DV57: 0.8529411765 | DW57: 0.9117647059 | DX57: 0.9705882353 | DY57: 166304.8358 | DZ57: 4261323.069 | EA57: 1434140.86 | EB57: 2032039.499 | EC57: 166304.8358 | ED57: 0 | EE57: 0 | EF57: 0 | EG57: 0 | EH57: 0 | EI57: 0 | EJ57: 0 | EK57: 0 | EL57: 0 | EM57: 0.02941176471 | EN57: 0.08823529412 | EO57: 0.1470588235 | EP57: 0.2058823529 | EQ57: 0.2647058824 | ER57: 0.3235294118 | ES57: 0.3823529412 | ET57: 0.4411764706 | EU57: 0.5 | EV57: 0.5588235294 | EW57: 0.6176470588 | EX57: 0.6764705882 | EY57: 0.7352941176 | EZ57: 0.7941176471 | FA57: 0.8529411765 | FB57: 0.9117647059 | FC57: 166304.8358 | FD57: 0 | FE57: 0 | FF57: 0 | FG57: 0 | FH57: 0 | FI57: 0 | FJ57: 0 | FK57: 0 | FL57: 0 | FM57: 0 | FN57: 0.02941176471 | FO57: 0.08823529412 | FP57: 0.1470588235 | FQ57: 0.2058823529 | FR57: 0.2647058824 | FS57: 0.3235294118 | FT57: 0.3823529412 | FU57: 0.4411764706 | FV57: 0.5 | FW57: 0.5588235294 | FX57: 0.6176470588 | FY57: 0.6764705882 | FZ57: 0.7352941176 | GA57: 0.7941176471 | GB57: 0.8529411765 | GC57: 166304.8358 | GD57: 0 | GE57: 0 | GF57: 0 | GG57: 0 | GH57: 0 | GI57: 0 | GJ57: 0 | GK57: 0 | GL57: 0 | GM57: 0 | GN57: 0 | GO57: 0.02941176471 | GP57: 0.08823529412 | GQ57: 0.1470588235 | GR57: 0.2058823529 | GS57: 0.2647058824 | GT57: 0.3235294118 | GU57: 0.3823529412 | GV57: 0.4411764706 | GW57: 0.5 | GX57: 0.5588235294 | GY57: 0.6176470588 | GZ57: 0.6764705882 | HA57: 0.7352941176 | HB57: 0.7941176471 | HC57: 166304.8358 | HD57: 0 | HE57: 0 | HF57: 0 | HG57: 0 | HH57: 0 | HI57: 0 | HJ57: 0 | HK57: 0 | HL57: 0 | HM57: 0 | HN57: 0 | HO57: 0 | HP57: 0.02941176471 | HQ57: 0.08823529412 | HR57: 0.1470588235 | HS57: 0.2058823529 | HT57: 0.2647058824 | HU57: 0.3235294118 | HV57: 0.3823529412 | HW57: 0.4411764706 | HX57: 0.5 | HY57: 0.5588235294 | HZ57: 0.6176470588 | IA57: 0.6764705882 | IB57: 0.7352941176 | IC57: 166304.8358
B58: TOTAL SISTEMA DE COMERCIALIZACIÓN | D58: =SUM(D48:D57) -> 30320282.55 | E58: =SUM(E48:E57) -> 0 | F58: 17410953.86 | G58: 1429455.39 | H58: 0 | I58: 0 | J58: 0 | K58: 1845035.27 | L58: 0 | M58: 0 | N58: 0 | O58: 1528257.69 | P58: 0 | Q58: 0 | R58: 0 | S58: 1585438.52 | T58: 0 | U58: 0 | V58: 0 | W58: 2332967.07 | X58: 0 | Y58: 0 | Z58: 0 | AA58: 2367867.59 | AB58: 0 | AC58: 0 | AD58: 0 | AE58: 2451346.14 | AF58: 0 | AG58: 0 | AH58: 0 | AI58: 2357328.01 | AJ58: 0 | AK58: 0 | AL58: 0 | AM58: 2372370 | AN58: 0 | AO58: 0 | AP58: 0 | AQ58: 2526316.83 | AR58: 0 | AS58: 0 | AT58: 0 | AU58: 2378895.18 | AV58: 0 | AW58: 0 | AX58: 0 | AY58: 3539875.21 | AZ58: 0 | BA58: 0 | BB58: 0 | BC58: 3715586.13 | BD58: 0 | BE58: 0 | BF58: 0 | BG58: 4704426.76 | BH58: 0 | BI58: 0 | BJ58: 0 | BK58: 4008701.25 | BL58: 0 | BM58: 0 | BN58: 0 | BO58: 4686893.08 | BP58: 0 | BQ58: =SUM(BQ48:BQ57) -> 0 | BR58: 0 | BS58: 5917230.36 | BT58: 0 | BU58: 0 | BV58: 0 | BW58: 5996799.14 | BX58: 0 | BY58: 0 | BZ58: 0 | CA58: 6123362.52 | CB58: 0 | CC58: 0 | CD58: 0 | CE58: 5302888.37 | CF58: 0 | CG58: 0 | CH58: 0 | CI58: =SUM(CI48:CI57) -> 7767905.51 | CJ58: =SUM(CJ48:CJ57) -> 0 | CK58: 0 | CL58: 0 | CM58: =SUM(CM48:CM57) -> 9067512.85 | CN58: 0 | CO58: 0 | CP58: 0 | CQ58: =SUM(CQ48:CQ57) -> 8679275.4 | CR58: 0 | CS58: 0 | CT58: 0 | CU58: =SUM(CU48:CU57) -> 14446307.28 | CV58: =SUM(CV48:CV57) -> 0 | CW58: =SUM(CW48:CW57) -> 0 | CX58: =SUM(CX48:CX57) -> 0 | DY58: =SUM(DY48:DY57) -> 4045405.42 | DZ58: =SUM(DZ48:DZ57) -> 121612279.2 | EA58: =SUM(EA48:EA57) -> 33302298.27 | EB58: =SUM(EB48:EB57) -> 59479452.69 | EC58: =SUM(EC48:EC57) -> 4045405.42 | FC58: =SUM(FC48:FC57) -> 3980349.062 | GC58: =SUM(GC48:GC57) -> 3937109.83 | HC58: =SUM(HC48:HC57) -> 3862879.059 | IC58: =SUM(IC48:IC57) -> 3799543.204
B59: TOTAL PROPIEDADES Y PLANTA + SISTEMA DE DISTRIBUCIÓN + ALUMBRADO PÚBLICO + COMERCIALIZACIÓN | D59: =D13+D45+D47+D58 -> 365247420.1 | E59: 0 | F59: 208920072.8 | G59: 21991193.61 | H59: 0 | I59: 0 | J59: 0 | K59: 21245068.06 | L59: 6861633 | M59: 0 | N59: 0 | O59: 15731828.2 | P59: 0 | Q59: 0 | R59: 0 | S59: 27177682.65 | T59: 1983756 | U59: 0 | V59: 0 | W59: 21210692.69 | X59: 0 | Y59: 0 | Z59: 0 | AA59: 22645037.58 | AB59: 3019158.69 | AC59: 0 | AD59: 0 | AE59: 25891274.31 | AF59: 0 | AG59: 0 | AH59: 0 | AI59: 23534302.86 | AJ59: 169592.56 | AK59: 0 | AL59: 0 | AM59: 23428599.21 | AN59: 0 | AO59: 0 | AP59: 0 | AQ59: 38687520.2 | AR59: 0 | AS59: 0 | AT59: 0 | AU59: 42601316.69 | AV59: 0 | AW59: 0 | AX59: 0 | AY59: 54988873.61 | AZ59: 0 | BA59: 0 | BB59: 0 | BC59: 64581286.51 | BD59: 1434411.81 | BE59: 0 | BF59: 0 | BG59: 77251606.8 | BH59: 0 | BI59: 0 | BJ59: 0 | BK59: 74158056.86 | BL59: 0 | BM59: 0 | BN59: 0 | BO59: 114269447.2 | BP59: =BP13+BP45+BP47+BP58 -> 1008524.13 | BQ59: 0 | BR59: 0 | BS59: 87176683.74 | BT59: 5286189.338 | BU59: 0 | BV59: 0 | BW59: 120814327.2 | BX59: 3785224.844 | BY59: 0 | BZ59: 0 | CA59: 80738889.31 | CB59: 3226373.861 | CC59: 0 | CD59: 0 | CE59: 82826806.68 | CF59: 1419215.223 | CG59: 0 | CH59: 0 | CI59: 97784915.97 | CJ59: 1259571.35 | CK59: 0 | CL59: 0 | CM59: =CM13+CM45+CM47+CM58 -> 125215588.8 | CN59: 370340.83 | CO59: 0 | CP59: 0 | CQ59: =CQ13+CQ45+CQ47+CQ58 -> 114796110.8 | CR59: 2668460.06 | CS59: 0 | CT59: 0 | CU59: =CU13+CU45+CU47+CU58 -> 132448509.4 | CV59: =CV13+CV45+CV47+CV58 -> 1932932.573 | CW59: =CW13+CW45+CW47+CW58 -> 0 | CX59: =CX13+CX45+CX47+CX58 -> 0 | DY59: =DY13+DY45+DY47+DY58 -> 47746586.47 | DZ59: =DZ13+DZ45+DZ47+DZ58 -> 1633791158 | EA59: =EA13+EA45+EA47+EA58 -> 416908502 | EB59: =EB13+EB45+EB47+EB58 -> 870287190.4 | EC59: =EC13+EC45+EC47+EC58 -> 47746586.47 | FC59: =FC13+FC45+FC47+FC58 -> 46675118.23 | GC59: =GC13+GC45+GC47+GC58 -> 45112187.35 | HC59: =HC13+HC45+HC47+HC58 -> 44235506.3 | IC59: =IC13+IC45+IC47+IC58 -> 42510593.68
A60: COEFICIENTE DE EFICIENCIA | B60: PROPIEDADES Y PLANTA | D60: 1 | G60: 0.9050653124 | K60: 0.8551272715 | O60: 0.7205548102 | S60: 0.6 | W60: 0.8784561622 | AA60: 0.8510215534 | AE60: 0.8767106865 | AI60: 0.8467329245 | AM60: 1 | AN60: 0 | AO60: 0 | AP60: 0 | AQ60: 0.9492863426 | AR60: 0 | AS60: 0 | AT60: 0 | AU60: 0.5966549348 | AV60: 0 | AW60: 0 | AX60: 0 | AY60: 0.9979326844 | BC60: 0.8152270448 | BG60: 0.9357127234 | BK60: 0.8937843848 | BO60: 0.9 | BS60: 0.9 | BW60: 0.8997440971 | CA60: 0.9 | CE60: 0.9 | CI60: 0.85 | CM60: 0.85 | CQ60: 0.85 | CU60: =AVERAGE(CI60:CT60) -> 0.85
B61: SISTEMA DE DISTRIBUCIÓN | D61: 1 | G61: 0.8725864004 | K61: 0.8676925522 | O61: 0.8298852493 | S61: 0.8782798245 | W61: 0.8498214964 | AA61: 0.8812210021 | AE61: 0.8552983947 | AI61: 0.8649005287 | AM61: 0.7733575902 | AN61: 0 | AO61: 0 | AP61: 0 | AQ61: 0.8856166245 | AR61: 0 | AS61: 0 | AT61: 0 | AU61: 0.819727052 | AV61: 0 | AW61: 0 | AX61: 0 | AY61: 0.8413287006 | BC61: 0.8894999202 | BG61: 0.8635852578 | BK61: 0.8836195854 | BO61: 0.8891397517 | BS61: 0.8874438788 | BW61: 0.8819813143 | CA61: 0.8801615883 | CE61: 0.8806591258 | CI61: 0.8188019748 | CM61: 0.8418755529 | CQ61: 0.7980968513 | CU61: =AVERAGE(CI61:CT61) -> 0.8195914597
B62: ALUMBRADO PÚBLICO | D62: 1 | G62: 1 | K62: 1 | O62: 1 | S62: 1 | W62: 0.92 | AA62: 0.92 | AE62: 0.92 | AI62: 0.92 | AM62: 1 | AN62: 0 | AO62: 0 | AP62: 0 | AQ62: 1 | AR62: 0 | AS62: 0 | AT62: 0 | AU62: 1 | AV62: 0 | AW62: 0 | AX62: 0 | AY62: 1 | BC62: 0.9 | BG62: 0.9 | BK62: 0.9 | BO62: 0.9 | BS62: 0.9 | BW62: 0.9 | CA62: 0.9 | CE62: 0.9 | CI62: 0.85 | CM62: 0.85 | CQ62: 0.85 | CU62: 0.85
B63: SISTEMA DE COMERCIALIZACIÓN | D63: 1 | G63: 0.9205248147 | K63: 0.9063397265 | O63: 0.9365173657 | S63: 0.6 | W63: 0.7 | AA63: 0.7180476012 | AE63: 0.7 | AI63: 0.7 | AM63: 0.7864926738 | AN63: 0 | AO63: 0 | AP63: 0 | AQ63: 0.8882526196 | AR63: 0 | AS63: 0 | AT63: 0 | AU63: 0.8 | AV63: 0 | AW63: 0 | AX63: 0 | AY63: 0.8 | BC63: 0.9 | BG63: 0.9 | BK63: 0.9 | BO63: 0.9 | BS63: 0.9 | BW63: 0.9 | CA63: 0.9 | CE63: 0.9 | CI63: 0.85 | CM63: 0.85 | CQ63: 0.85 | CU63: 0.85
CI65: 0 | CJ65: 0 | CM65: 0 | CN65: 0 | CQ65: 0 | CR65: 0 | CU65: 0 | CV65: 0
CI66: =CI59-'BC y Dep'!CI59 -> 0 | CM66: =CM59-'BC y Dep'!CM59 -> 0 | CQ66: =CQ59-'BC y Dep'!CQ59 -> 0 | CU66: =CU59-'BC y Dep'!CU59 -> 0
B67: Base de Capital | C67: =ACTIVOS!F7 -> BASE | D67: =ACTIVOS!H7 -> JUL26/ JUN27 | E67: =ACTIVOS!I7 -> JUL27 / JUN28 | F67: =ACTIVOS!J7 -> JUL28 / JUN29 | G67: =ACTIVOS!K7 -> JUL29/ JUN30
B68: BCD | C68: =DZ45+DZ13*(DZ45/SUM(DZ45,DZ58)) -> 1446947590 | D68: =C68 -> 1446947590 | E68: =D68 -> 1446947590 | F68: 1446947590 | G68: 1446947590
B69: BCAP | C69: =DZ47 -> 53443875.44 | D69: =C69 -> 53443875.44 | E69: 53443875.44 | F69: 53443875.44 | G69: 53443875.44
B70: BCC | C70: =DZ58+DZ13*(DZ58/SUM(DZ45,DZ58)) -> 133399692.7 | D70: 133399692.7 | E70: 133399692.7 | F70: 133399692.7 | G70: 133399692.7
B71: Total BC | C71: =SUM(C68:C70) -> 1633791158 | D71: =SUM(D68:D70) -> 1633791158 | E71: 1633791158 | F71: 1633791158 | G71: 1633791158
B72: BCDtd | C72: =EA45+EA13*(EA45/SUM(EA45,EA58)) -> 364244710.7
B73: BCAPtd | C73: =EA47 -> 9217605.237
B74: BCCtd | C74: =EA58+EA13*(EA58/SUM(EA45,EA58)) -> 43446186.1
B75: Total BCtd | C75: =SUM(C72:C74) -> 416908502 | D75: =SUM(D72:D74) -> 0 | E75: 0 | F75: 0 | G75: 0
B76: BCDN | C76: =EB45+EB13*(EB45/SUM(EB45,EB58)) -> 783936150.1
B77: BCNAP | C77: =EB47 -> 24403300.74
B78: BCNC | C78: =EB58+EB13*(EB58/SUM(EB45,EB58)) -> 61947739.5
B79: Total BCN | C79: =SUM(C76:C78) -> 870287190.4 | D79: =SUM(D76:D78) -> 0 | E79: 0 | F79: 0 | G79: 0
B80: Depreciación D | C80: =DY45+DY13*(DY45/SUM(DY45,DY58)) -> 41289562.78 | D80: =FC45+FC13*(FC45/SUM(FC45,FC58)) -> 40432143.58 | E80: =GC45+GC13*(GC45/SUM(GC45,GC58)) -> 39052947.62 | F80: =HC45+HC13*(HC45/SUM(HC45,HC58)) -> 38324737.22 | G80: =IC45+IC13*(IC45/SUM(IC45,IC58)) -> 36808517.41
B81: Depreciación AP | C81: =DY47 -> 2010285.009 | D81: =FC47 -> 1956117.189 | E81: =GC47 -> 1896294.324 | F81: =HC47 -> 1867570.253 | G81: =IC47 -> 1839622.529
B82: Depreciación C | C82: =DY58+DY13*(DY58/SUM(DY45,DY58)) -> 4446738.681 | D82: =FC58+FC13*(FC58/SUM(FC45,FC58)) -> 4286857.457 | E82: =GC58+GC13*(GC58/SUM(GC45,GC58)) -> 4162945.406 | F82: =HC58+HC13*(HC58/SUM(HC45,HC58)) -> 4043198.826 | G82: =IC58+IC13*(IC58/SUM(IC45,IC58)) -> 3862453.734
B83: Total Depreciación | C83: =SUM(C80:C82) -> 47746586.47 | D83: =SUM(D80:D82) -> 46675118.23 | E83: 45112187.35 | F83: 44235506.3 | G83: 42510593.68
B84: % Depreciación s/BC D | C84: =C80/(C68-C72) -> 0.03813563587
B85: % Depreciación s/BC AP | C85: =C81/(C69-C73) -> 0.04545454545
B86: % Depreciación s/BC C | C86: 0.04943374468
B87: % Total Depreciación | C87: 0.03923680415
B88: Check BC | C88: =C71-DZ59 -> 0
B89: Check BCN | C89: =C79-EB59 -> 0
B90: Check Depreciación | C90: =C83-DY59 -> 0 | D90: =D83-FC59 -> 0 | E90: =E83-GC59 -> 0 | F90: =F83-HC59 -> 0 | G90: =G83-IC59 -> 0

Sheet PERDIDAS y OTROS
B2: EDEMET
B4: PERDIDAS Y OTROS DATOS
B6: CONCEPTO | D6: UNIDADES | E6: =ACTIVOS!H7 -> JUL26/ JUN27 | F6: =ACTIVOS!I7 -> JUL27 / JUN28 | G6: =ACTIVOS!J7 -> JUL28 / JUN29 | H6: =ACTIVOS!K7 -> JUL29/ JUN30
B8: Costo de la Energía en Mercado Mayorista | C8: CMM | D8: Balboas/MWh | E8: 130.0508263 | F8: 130.0508263 | G8: 130.0508263 | H8: 130.0508263
B9: Pérdidas | C9: PD% | D9: % | E9: ='Costos y Pérdidas Eficientes'!D98 -> 0.07530390156 | F9: ='Costos y Pérdidas Eficientes'!E98 -> 0.07528122643 | G9: ='Costos y Pérdidas Eficientes'!F98 -> 0.07525761188 | H9: ='Costos y Pérdidas Eficientes'!G98 -> 0.07523469741
B10: Pérdidas No Técnicas en Zonas Rojas (PNT) | C10: PD% | D10: % | E10: =50%*3.04% -> 0.0152 | F10: =E10 -> 0.0152 | G10: =F10 -> 0.0152 | H10: 0.0152
B11: Depreciaciones Activos de Distribución | C11: DEP% | D11: % | E11: ='BC y Dep'!C84 -> 0.03813563587 | F11: =+E11 -> 0.03813563587 | G11: =+F11 -> 0.03813563587 | H11: 0.03813563587
B12: Depreciaciones Activos de Comercialización | C12: DEP% | D12: % | E12: ='BC y Dep'!C86 -> 0.04943374468 | F12: =+E12 -> 0.04943374468 | G12: 0.04943374468 | H12: 0.04943374468
B13: Depreciaciones Activos de AP | C13: DEP% | D13: % | E13: ='BC y Dep'!C85 -> 0.04545454545 | F13: 0.04545454545 | G13: 0.04545454545 | H13: 0.04545454545
B14: Operación y Mantenimiento de AP | C14: O&Malum | D14: Miles de Balboas | E14: =ALUMPU!D12 -> 1420.710015 | F14: =ALUMPU!E12 -> 1464.714863 | G14: =ALUMPU!F12 -> 1508.71971 | H14: =ALUMPU!G12 -> 1552.724558

Sheet RETORNO
B1: EDEMET
B2: RETORNO SOBRE CAPITAL DISTRIBUCION
B4: Componentes | D4: Formula | E4: Características | F4: Caso Alto | G4: Caso Medio | H4: Caso Bajo
B5: Tasa Libre de Riesgo en USD | C5: rf | E5: Caso Alto: Rendimiento del UST20, Caso Medio: Rendimiento del UST30 y Caso Bajo: Rendimiento del UST10 - Promedio último año | F5: 4.768333333 | G5: 4.743333333 | H5: 4.335
B6: Adicional por riesgo local en USD | C6: rc | E6: EMBI+ Panamá - Promedio último año | F6: 2.577701781 | G6: 2.577701781 | H6: 2.577701781
B7: Beta sin apalancamiento [adimensional] | C7: βUSA unl | E7: Beta (Value Line) de utilities eléctricas de US | F7: 0.2501807366 | G7: 0.2501807366 | H7: 0.2501807366
B8: Beta ajustado por apalancamiento [adimensional] | C8: βUSA lev | D8: βUSA unl*[1+(1-t)*D/E] | E8: Beta ajustado por el apalancamiento | F8: 0.4253072523 | G8: 0.4482196069 | H8: 0.4482196069
B9: Premio por riesgo | C9: pm | D9: rm-rf | E9: Estimado sobre el mercado de EUA como spread entre el rendimiento del UST Bond y el rendimiento del S&P500. Casos Alto y Medio promedio 1928 - 2021. Caso Bajo promedio 1972 - 2021 - [%] | F9: 7.002434886 | G9: 7.002434886 | H9: 7.002434886
B11: Costo Nominal del Capital Propio después de impuestos, en USD | C11: re | D11: rf+rc+β*pm | E11: Aplicación CAPM [%] | F11: =(F5+F6+F8*F9) -> 10.32422145 | G11: =(G5+G6+G8*G9) -> 10.45966373 | H11: =(H5+H6+H8*H9) -> 10.05133039
B13: Componentes | D13: Formula | E13: Características | F13: Caso Alto | G13: =G4 -> Caso Medio | H13: Caso Bajo
B14: =+B5 -> Tasa Libre de Riesgo en USD | C14: rf | E14: =+E5 -> Caso Alto: Rendimiento del UST20, Caso Medio: Rendimiento del UST30 y Caso Bajo: Rendimiento del UST10 - Promedio último año | F14: 4.768333333 | G14: 4.743333333 | H14: 4.335
B15: =+B6 -> Adicional por riesgo local en USD | C15: rc | E15: EMBI+ Panamá - Promedio último año | F15: 2.577701781 | G15: 2.577701781 | H15: 2.577701781
B16: Adicional por riesgo crediticio | C16: rs | E16: Spread Calificación BBB y Baa2 Caso Alto: Estimación a 30 años. Casos medio y bajo estimación Damodaran 10 años | F16: 1.375 | G16: 1.375 | H16: 1.2
B17: Costo Nominal de la Deuda antes de impuestos , en USD | C17: rd | D17: rF + rC + rS | E17: Resultado [%] | F17: =F14+F15+F16 -> 8.721035114 | G17: =G14+G15+G16 -> 8.696035114 | H17: =H14+H15+H16 -> 8.112701781
B18: Tasa impositiva | C18: t | E18: Alícuota Impuesto a las Ganancias [%] | F18: 30 | G18: 30 | H18: 30
B19: Costo Nominal de la Deuda después de impuestos, en USD | C19: r'd | D19: rd*(1-t) | E19: Resultado [%] | F19: =(F17)*(1-F18/100) -> 6.10472458 | G19: =(G17)*(1-G18/100) -> 6.08722458 | H19: =(H17)*(1-H18/100) -> 5.678891247
B21: Componentes | D21: Formula | E21: Características | F21: Caso Alto | G21: =G13 -> Caso Medio | H21: Caso Bajo
B22: Costo Nominal del Capital Propio después de impuestos , en USD | C22: re | D22: rF+rL+βL*rM | E22: Aplicación CAPM [%] | F22: =+F11 -> 10.32422145 | G22: =+G11 -> 10.45966373 | H22: =+H11 -> 10.05133039
B23: Costo Nominal de la Deuda después de impuestos , en USD | C23: r'd | D23: rd*(1-t) | E23: Resultado [%] | F23: =+F19 -> 6.10472458 | G23: =+G19 -> 6.08722458 | H23: =+H19 -> 5.678891247
B24: Estructura de capital | C24: WD | D24: D/(D+E) | E24: Casos Alto y Medio: IMP de transmisión del período 2017-2021, Caso Bajo: Promedio paises | F24: 0.5 | G24: 0.5307 | H24: 0.5307
B25: Costo Nominal del Capital después de impuestos, en USD | C25: WACC | D25: rE*(1-WD)+rD'*WD | E25: Aplicación WACC [%] | F25: =F19*F24+(1-F24)*F11 -> 8.214473017 | G25: =G19*G24+(1-G24)*G11 -> 8.139210271 | H25: =H19*H24+(1-H24)*H11 -> 7.730876938
B27: Componentes | D27: Formula | E27: Características | F27: Caso Alto | G27: =G21 -> Caso Medio | H27: Caso Bajo
B28: Costo Nominal del Capital después de impuestos, en USD | C28: WACC | D28: re*(1-Wd)+rd'*Wd | E28: Aplicación WACC [%] | F28: =+F25 -> 8.214473017 | G28: =+G25 -> 8.139210271 | H28: =+H25 -> 7.730876938
B29: Inflación en USD | C29: πUSA | E29: Casos Alto y Medio: Spread del rendimientos de los bonos del tesoro de EUA no indexados e indexados (UST y TIPS) a 30 años - Promedio mensual - último año. Caso Medio: Crecimiento interanual promedio inflación estimada FMI 2022 - 2026 | F29: 2.275833333 | G29: 2.275833333 | H29: 2.275833333
B30: Prima por Riesgo Cambiario | C30: PRC | E30: Diferencia entre el dólar futuro (ROFEX) y el observado - [%] | F30: =#REF!*100*0 ->  | G30: =#REF!*100*0 ->  | H30: =#REF!*100*0 -> 
B31: Costo Real del Capital antes de impuestos | C31: WACCR | D31: [WACC/(1-t)-πEUA]/(1+πEUA) | E31: Resultado fórmula WACC - [%] | F31: =(((F28/100)/(1-(F18/100))-(F29/100))/(1+(F29/100)))*100 -> 9.248644388 | G31: =(((G28/100)/(1-(G18/100))-(G29/100))/(1+(G29/100)))*100 -> 9.143518666 | H31: 8.573165617
B36: RETORNO SOBRE CAPITAL DISTRIBUCION
B38: A. RESOLUCIÓN ASEP
B40: TASA DE RENTABILIDAD PARA IMP | D40: =D46 -> 0.1074333333
B42: B. REFERENCIAL
B44: TASA DE RETORNO media según la Ley (%) | D44: 0.1274333333
B45: Banda Artículo 101 de la Ley 6 – Máxima (%) | D45: 0.1474333333
B46: Banda Artículo 101 de la Ley 6 – Mínima (%) | D46: 0.1074333333

Sheet Archivos de Referencia
A1: Concepto | B1: Hoja | C1: Celdas Relacionadas | D1: Archivo Referencia
A2: Cantidad Luminarias AP | B2: ALUMPU | C2: D24 y D31:G31 | D2: EDEMET_ 622
A3: Costoss AP | B3: ALUMPU | C3: D30:G30 | D3: [Informe Regulatorio Ingreso_Gto EDEMET 2018 vFinal.xlsx]ERa'!$C$27. Mismo archivo para años 2019 a 2021
A4: Demanda | B4: Demanda | C4: Varias Celdas | D4: PROY DDA 2025_2030.xlsx
A5: Ingresos No Regulados | B5: Activos | C5: C23:E23 | D5: Detalle de otros ingresos - EDEMET adjunto CM-0094-26
A6: Inversiones y Coheficientes de Eficiencia | B6: BC y Dep | C6: Varias Celdas | D6: AA_EDEMET Actualizado 2025.xls CC01 EDEMET AAAA.xlsx Modelo EDEMETAAAA.xlsx
A7: ATR y AE | B7: BC y Dep | C7: Varias Celdas | D7: Resumen Inv y Trans ATR y AE.xlsx
A8: Costos de la Energía Mercado Mayorista | B8: Pérdidas y Otros | C8: E8:H8 | D8: (18-3-26) Monomico.xlsx
A9: Tasa de Retorno | B9: Retorno | C9: D44:D46 | D9: WACC_nov 25 v1
A10: Inversiones Nuevas | B10: Inversiones | C10: Varias Celdas | D10: 19.2.2026 Ánalisis de cambios de proyectos 2026-2030.xlsx 2.2.2 Inv No EcEficiencia 2.0 Plan 2026-2030 (EDEMET).xlsx
A11: Inversiones Cantidad Luminarias | B11: Inversiones | C11: K64:R64 | D11: 2026-02-05 Nota inversiones EDEMET adjunto CM-142-26.xlsx
A12: Ajuste Actualización | B12: ALUMPU | C12: C42:I44 | D12: 7. Aj ComDistAP 100 EDEMET
A13: Ajuste Ec. Eficiencia PPP, CLR | B13: Costos y Pérdidas Eficientes | C13: Varias Celdas | D13: datos_calculos.xlsx
A14: Inversiones 2026 | B14: Inversiones | C14: D30:D32 | D14: EDEMET - ADICIONES 2026
A15: Inversiones no realizadas | B15: IMP-RESUMEN | C15: C13 | D15: Inversiones no realizadas.xlsx
A16: Inversiones Electrificación Rural | B16: Inversiones | C16: K49:R49 | D16: Proyectos OER.xlsx
A17: Factor de Carga | B17: DEMANDA | C17: D15:H15 | D17: Tablas_de_Consumidores_Indicativo_de_Demandas_2025_2045_adenda_10
A18: Activos Netos Dic 25 | B18: ACTIVOS | C18: D14:D16 | D18: AA_EDEMET_Actualizado 2025.xlsx
